{"text_format":"3","workbook":"xlsx","n_sheets":7,"sheets":["Laporan PMB ","Pembimbing Akademik","Informatika","Sistem Informasi","Teknologi Informasi","Bisnis Digital","Ilmu Komunikasi"],"not_rendered":{"images":1,"external_links":1,"defined_names":6},"read":"whole","date_system":"1900"}

{"sheet":"Laporan PMB ","index":0,"n_rows":471,"n_cols":45,"rows_kept":471,"hidden":true,"merged":[[0,21,0,23],[1,1,4,2],[1,3,1,8],[1,21,1,23],[2,3,2,8],[2,21,2,23],[3,3,3,20],[3,21,3,23],[4,21,4,23]]}
[{"$nulls":21},"Hanya Daftar"]
[{"$nulls":3},"UNIVERSITAS AMIKOM PURWOKERTO",{"$nulls":17},"Bidikmisi"]
[{"$nulls":3},"TAHUN AKADEMIK 2020/2021",{"$nulls":17},"Angsur"]
[{"$nulls":3},"Jl Letjend Pol Soemarto Watumas Purwanegara, PURWOKERTO 53131. Telp : (0281)623321",{"$nulls":17},"Lunas"]
[{"$nulls":21},"Mortal"]
[]
[null,"NO","GEL","NODAF","NAMA","NIK","AGAMA","JK","TEMPAT LAHIR","TANGGAL LAHIR","ASAL SEKOLAH","JURUSAN SLTA","THN LULUS","NEM","ALAMAT","KECAMATAN","KABUPATEN","PROVINSI","NO TELP","NO WA","EMAIL","PILIHAN 1","KELAS","TGL DAFTAR","INFORMASI","PERSYARATAN","RELASI","TGL TES","NAMA IBU","PEKERJAAN IBU","TELP IBU","NAMA AYAH","PEKERJAAN AYAH","TELP AYAH","ALAMAT ORTU","KELURAHAN ORTU","KECAMATAN ORTU","KABUPATEN ORTU","PROVINSI ORTU","KODEPOS ORTU","PENGHASILAN/bln ORTU","UKURAN KAOS","UKURAN JAS","SPI"]
[null,1,"GELOMBANG KHUSUS","200029AO","ANDHAR SIRAJ MUNIR","3302193009980005","ISLAM","Pria","BANYUMAS","1998-09-30","SMK MUHAMMADIYAH SUMPIUH","TKJ",2016,0,"JL. TURMUDI RT 01 RW 01 SOKARAJA LOR","SOKARAJA","Banyumas","Jawa Tengah","085865229032",62,"sample@sample.com","INFORMATIKA S1","MAHASISWA KELAS SORE","02-01-2020","brosur","Lengkap","LAIN - LAIN","14-03-2020","MARKUNAH"," IRT"," ","JAMIAT"," BURUH"," ","JL. TURMUDI RT 01 RW 01","SOKARAJA LOR","SOKARAJA","Banyumas","Jawa Tengah",99999,0,"L","L",2000000,{"$f":"COUNTIF('[1]Laporan PMB '!$D$8:$D$469,D8)","v":{"$error":"#VALUE!"}}]
[null,2,"GELOMBANG KHUSUS","200039AO","AAN SUPANDHI","3301072803000002","ISLAM","Pria","CILACAP","2000-03-28","SMK NEGERI KEBASEN","BODI OTOMOTIF",2017,0,"JL. PESAYANGAN RT 04 RW 05 GLEMPANG KEC. MAOS KAB. CILACAP JAWA TENGAH 53272","MAOS","Cilacap","Jawa Tengah","6285642408016","6285642408016","sample@sample.com","INFORMATIKA S1","MAHASISWA BARU","06-01-2020","teman/saudara","Lengkap","LAIN - LAIN","11-01-2020","RAKEM","ALMH","082328763477","KASUM","BURUH","082221047615","JL. PESAYANGAN RT 04 RW 05 GLEMPANG KEC. MAOS KAB. CILACAP JAWA TENGAH 53272","GLEMPANG","MAOS","Cilacap","Jawa Tengah",53272,1000000,"L","L",2000000,{"$f":"COUNTIF('[1]Laporan PMB '!$D$8:$D$469,D9)","v":{"$error":"#VALUE!"}}]
[null,3,"GELOMBANG KHUSUS","200040AO","DIMAS SAPUTRA","3302220706010001","ISLAM","Pria","BANYUMAS","2001-06-07","SMK KESATRIAN PURWOKERTO","MULTIMEDIA",2019,0,"JL BATURRADEN RT 06 RW 03 KUTASARI KEC. BATURRADEN KAB. BANYUMAS JAWA TENGAH","BATURRADEN","Banyumas","Jawa Tengah","62859126476117","62859126476117","sample@sample.com","INFORMATIKA S1","MAHASISWA BARU","06-01-2020","teman/saudara","Lengkap","LAIN - LAIN","11-01-2020","SALIMAH","PEDAGANG","082134264580","SUDIRMAN","PERANGKAT DESA","082136239910","JL BATURRADEN RT 06 RW 03 KUTASARI KEC. BATURRADEN KAB. BANYUMAS JAWA TENGAH","KUTASARI","BATURRADEN","Banyumas","Jawa Tengah",99999,2000000,"XL","XL",2000000,{"$f":"COUNTIF('[1]Laporan PMB '!$D$8:$D$469,D10)","v":{"$error":"#VALUE!"}}]
[null,4,"GELOMBANG KHUSUS","200044AO","DEVY ALFINITA","3329035512010004","ISLAM","Wanita","BEKASI","2001-12-15","SMA N 1 BANTARKAWUNG","IPA",2019,0,"JL RAYA BUARAN RT 01 RW 05 PANGEBATAN KEC. BANTARKAWUNG KAB. BREBES JAWA TENGAH 52274","BREBES","Brebes","Jawa Tengah","62859148238341","6282328542516","sample@sample.com","SISTEM INFORMASI S1","MAHASISWA BARU","07-01-2020","teman/saudara","Lengkap","LAIN - LAIN","07-01-2020","FARIS NURHIKMAH","IBU RUMAH TANGGA","085259331474","URIPAGUNG ASTANA","WIRASWASTA","082221099888","JL RAYA BUARAN RT 01 RW 05 PANGEBATAN KEC. BANTARKAWUNG KAB. BREBES JAWA TENGAH 52274","BANTARKAWUNG","BREBES","Brebes","Jawa Tengah",52274,3000000,"M","L",1000000,{"$f":"COUNTIF('[1]Laporan PMB '!$D$8:$D$469,D11)","v":{"$error":"#VALUE!"}}]
[null,5,"JALUR PRESTASI","200049AO","RIZKY VEBRIYANTO","3301020611010005","ISLAM","Pria","CILACAP","2001-11-06","SMK BOEDI OETAMA CILACAP","TEKNIK MESIN",2020,0,"JL.KUTILANG RT 06 RW 01 SLARANG","KESUGIHAN","Cilacap","Jawa Tengah","085641890527","085641890527","sample@sample.com","INFORMATIKA S1","MAHASISWA BARU","09-01-2020","brosur","Lengkap","LAIN - LAIN","11-01-2020","RIYANTI"," IRT"," ","KASIMAN"," BURUH"," ","JL.KUTILANG RT 06 RW 01","SLARANG","KESUGIHAN","Cilacap","Jawa Tengah",99999,0,"XL","XL",0,{"$f":"COUNTIF('[1]Laporan PMB '!$D$8:$D$469,D12)","v":{"$error":"#VALUE!"}}]
[null,6,"GELOMBANG KHUSUS","200055AO","LABIB AQIL ZAIN","3301072206020001","ISLAM","Pria","CILACAP","2002-06-22","MAN 2 PURWOKERTO","IPA",2018,0,"JL MERAK RT 02 RW 09 MERNEK KEC. MAOS KAB. CILACAP JAWA TENGAH 53272","CILACAP","Cilacap","Jawa Tengah","6282136317846","6287828685345","sample@sample.com","INFORMATIKA S1","MAHASISWA KELAS SORE","14-01-2020","teman/saudara","Lengkap","LAIN - LAIN","24-01-2020","WARNIYATI","PNS","081226627982","ZAENI LATIF","PEDAGANG","082225106676","JL MERAK RT 02 RW 09 MERNEK KEC. MAOS KAB. CILACAP JAWA TENGAH 53272","MAOS","CILACAP","Cilacap","Jawa Tengah",53272,3000000,"XXL","XXL",2000000,{"$f":"COUNTIF('[1]Laporan PMB '!$D$8:$D$469,D13)","v":{"$error":"#VALUE!"}}]
[null,7,"JALUR PRESTASI","200077AO","KHOEROTUL MELINA ELISTIANA","3329044209020002","ISLAM","Wanita","BREBES","2002-09-02","SMK NURUL HUDA NU PAGUYANGAN","TKJ",2020,0,"DK KEMBANG RT 09 RW 05 KEL. RAGATUNJUNG KEC. PAGUYANGAN KAB. BREBES JAWA TENGAH","PAGUYANGAN","Brebes","Jawa Tengah","6282322802768","085647726323","sample@sample.com","INFORMATIKA S1","MAHASISWA BARU","31-01-2020","brosur","Lengkap","LAIN - LAIN","07-02-2020","KHOLIDAH","PETANI"," ","TOHIRI","PETANI"," ","DK KEMBANG RT 09 RW 05 KEL. RAGATUNJUNG KEC. PAGUYANGAN KAB. BREBES JAWA TENGAH","RAGATUNJUNG","PAGUYANGAN","Brebes","Jawa Tengah",99999,0,"L","L",0,{"$f":"COUNTIF('[1]Laporan PMB '!$D$8:$D$469,D14)","v":{"$error":"#VALUE!"}}]
[null,8,"GELOMBANG KHUSUS","200081AO","DOLA INNOLDA","3301225601020003","ISLAM","Wanita","CILACAP","2002-01-16","SMA N 2 CILACAP","IPS",2020,0,"JL. PERUM GREEN HILL M 10 RT 05 RW 12 TRITIH LOR","JERUK LEGI","Cilacap","Jawa Tengah","08973068317","08973068317","sample@sample.com","ILMU KOMUNIKASI S1","MAHASISWA BARU","01-02-2020","brosur","Lengkap","DOSEN","15-02-2020","YNI RAKHMAWATI","IRT","08562647760","SUDIMO TRIWIANTO","PENSIUNAN PNS","08562647750","JL. PERUM GREEN HILL M 10 RT 05 RW 12","TRITIH LOR","JERUK LEGI","Cilacap","Jawa Tengah",99999,0,"L","L",500000,{"$f":"COUNTIF('[1]Laporan PMB '!$D$8:$D$469,D15)","v":{"$error":"#VALUE!"}}]
[null,9,"JALUR PRESTASI","200084AO","BUNGA INTAN DEVINTA","3302126003020003","ISLAM","Wanita","BANYUMAS","2002-03-20","SMA N 1 PATIKRAJA","IPS",2020,0,"JL AMPEL RT 04 RW 05 KEDUNGRINGIN KEC. PATIKRAJA KAB. BANYUMAS JAWA TENGAH","PATIKRAJA","Banyumas","Jawa Tengah","6287773382000","6287773382000","sample@sample.com","SISTEM INFORMASI S1","MAHASISWA BARU","01-02-2020","brosur","Lengkap","LAIN - LAIN","15-02-2020","SUKARNI","IRT","087773381999","PRIHANTORO","BURUH","082177263936","JL AMPEL RT 04 RW 05 KEDUNGRINGIN KEC. PATIKRAJA KAB. BANYUMAS JAWA TENGAH","KEDUNGRINGIN","PATIKRAJA","Banyumas","Jawa Tengah",53171,0,"M","M",0,{"$f":"COUNTIF('[1]Laporan PMB '!$D$8:$D$469,D16)","v":{"$error":"#VALUE!"}}]
[null,10,"GELOMBANG KHUSUS","200090AO","DAVA ADAMS MAYMANAH","3307070609010005","ISLAM","Pria","INDRAMAYU","2001-09-06","SMK INFORMATIKA WONOSOBO","TKJ",2020,0,"SEMPOL RT 01 RW 09","KALIKAJAR","Wonosobo","Jawa Tengah","085727763013","085727763013","sample@sample.com","INFORMATIKA S1","MAHASISWA BARU","04-02-2020","brosur","Lengkap","LAIN - LAIN","15-02-2020","TITI FARIDA","IRT","085819276587","PUJI INDRAMAN","KARYAWAN","081351431570","SEMPOL RT 01 RW 09","SEMPOL","KALIKAJAR","Wonosobo","Jawa Tengah",99999,0,"L","L",2000000,{"$f":"COUNTIF('[1]Laporan PMB '!$D$8:$D$469,D17)","v":{"$error":"#VALUE!"}}]
[null,11,"JALUR PRESTASI","200098AO","USAMAH ABDUL MATIN","3319081201020001","ISLAM","Pria","KUDUS","2002-01-12","SMK MUHAMMADIYAH KUDUS","TKJ",2020,0,"JL. SUDIMORO RT 03 RW 04 GRIBIG","GEBOG","Kudus","Jawa Tengah","085225059637","089504516880","sample@sample.com","INFORMATIKA S1","MAHASISWA BARU","07-02-2020","brosur","Lengkap","LAIN - LAIN","15-02-2020","NOOR ALIFAH HIMAWATY","WIRASWASTA","085290006999","TANFIQ AKHMAD","WIRASWASTA","085225059637","JL. SUDIMORO RT 03 RW 04","GRIBIG","GEBOG","Kudus","Jawa Tengah",99999,0,"L","L",0,{"$f":"COUNTIF('[1]Laporan PMB '!$D$8:$D$469,D18)","v":{"$error":"#VALUE!"}}]
[null,12,"GELOMBANG KHUSUS","200106AO","MUFTI AMIN ZEIN","3302230706010002","ISLAM","Pria","BANYUMAS","2001-06-07","SMK N 1 PURWOKERTO","RPL",2020,0,"JL RAYA BASEH RT 03 RW 04 KEL. BASEH KEC. KEDUNGBANTENG KAB. BANYUMAS JAWA TENGAH","KEDUNGBANTENG","Banyumas","Jawa Tengah","6283863936942","6283863936942","sample@sample.com","SISTEM INFORMASI S1","MAHASISWA BARU","11-02-2020","brosur","Lengkap","LAIN - LAIN","15-02-2020","BADRIYAH","IRT","081328056715","LUKMAN EFENDI SULTOYO","PERANGKAT DESA","082136885188","JL RAYA BASEH RT 03 RW 04 KEL. BASEH KEC. KEDUNGBANTENG KAB. BANYUMAS JAWA TENGAH","BASEH","KEDUNGBANTENG","Banyumas","Jawa Tengah",53152,0,"XL","XL",2000000,{"$f":"COUNTIF('[1]Laporan PMB '!$D$8:$D$469,D19)","v":{"$error":"#VALUE!"}}]
[null,13,"GELOMBANG KHUSUS","200108AO","FAJRI AULIA RACHMANDHA","3302240509020003","ISLAM","Pria","BANYUMAS","2002-09-05","SMK N 1 PURWOKERTO","RPL",2020,0,"JL PEMBINA RAYA RT 04 RW 06 KARANG PUCUNG KEC. PURWOKERTO SELATAN KAB. BANYUMAS JAWA TENGAH","PURWOKERTO SELATAN","Banyumas","Jawa Tengah","6285712669582","6285712669582","sample@sample.com","SISTEM INFORMASI S1","MAHASISWA BARU","11-02-2020","brosur","Lengkap","LAIN - LAIN","15-02-2020","PUJI NURHAYATI","IRT"," ","SABAR","SWASTA","088224159281","JL PEMBINA RAYA RT 04 RW 06 KARANG PUCUNG KEC. PURWOKERTO SELATAN KAB. BANYUMAS JAWA TENGAH","KARANG PUCUNG","PURWOKERTO SELATAN","Banyumas","Jawa Tengah",53142,0,"L","L",2000000,{"$f":"COUNTIF('[1]Laporan PMB '!$D$8:$D$469,D20)","v":{"$error":"#VALUE!"}}]
[null,14,"GELOMBANG KHUSUS","200122AO","MUHAMMAD MUNIFADUN NINGAM","33020126040220002","ISLAM","Pria","BANYUMAS","2020-04-26","SMA MUHAMMADIYAH 1 PURWOKERTO","IPS",2020,7.5,"DS. CINGEBUL RT 04/08 KEC. LUMBIR","LUMBIR","Banyumas","Jawa Tengah","088983718201","088983718201","sample@sample.com","TEKNOLOGI INFORMASI S1","MAHASISWA BARU","18-02-2020","lainnya","Lengkap","LAIN - LAIN","22-02-2020","MUSTOTINGAH","PETANI"," ","MUDASIR","PETANI"," ","DS. CINGEBUL RT 04/08 KEC. LUMBIR","CINGEBUL","LUMBIR","Banyumas","Jawa Tengah",53177,3000000,"L","L",1250000,{"$f":"COUNTIF('[1]Laporan PMB '!$D$8:$D$469,D21)","v":{"$error":"#VALUE!"}}]
[null,15,"GELOMBANG KHUSUS","200131OL","FOUNDA NUR ANANTYO","3301021203020006","ISLAM","Pria","Cilacap","2002-03-12","SMAN 02 CILACAP","IPS",2020,7.5,"Jl. Beo RT 05 RW 12 SLARANG","KESUGIHAN","Cilacap","Jawa Tengah","082322482391","082322482391","fondanur12@gmail.com","SISTEM INFORMASI S1","MAHASISWA BARU","21-02-2020","brosur","Lengkap","LAIN - LAIN","04-04-2020","ITA RISMIYANTI","PERANGKAT DESA ","085726652333","LUKMAN SUBEHI","KARYAWAN SWASTA"," 085842648268","Jl. Beo RT 05 RW 12 SLARANG","SLARANG","KESUGIHAN","Cilacap","Jawa Tengah",53274,0,"XXL","XXL",2000000,{"$f":"COUNTIF('[1]Laporan PMB '!$D$8:$D$469,D22)","v":{"$error":"#VALUE!"}}]
[null,16,"GELOMBANG KHUSUS","200141AO","FIRSTYAN AGENG MAULANA","3302140809020004","ISLAM","Pria","BANYUMAS","2002-09-09","SMA N 1 PURWOKERTO","BAHASA",2020,0,"JL.PENATUSAN KARANG PUCUNG RT 02 RW 07","PURWOKERTO SELATAN","Banyumas","Jawa Tengah","081329877494","62 838-3844-4776","sample@sample.com","INFORMATIKA S1","MAHASISWA BARU","27-02-2020","brosur","Lengkap","LAIN - LAIN","29-02-2020","SETYOWATI WAHYUNINGSIH","GURU","083844498102","MUJI TRIONO","GURU","083839165848","JL.PENATUSAN KARANG PUCUNG RT 02 RW 07","KARANG PUCUNG","PURWOKERTO SELATAN","Banyumas","Jawa Tengah",99999,0,"L","L",2000000,{"$f":"COUNTIF('[1]Laporan PMB '!$D$8:$D$469,D23)","v":{"$error":"#VALUE!"}}]
[null,17,"GELOMBANG KHUSUS","200144AO","SAFIQ AFANDI FAHRURROZI","3302111405020003","ISLAM","Pria","BANYUMAS","2002-05-14","SMA ISLAM ANDALUSIA KEBASEN","IPS",2020,0,"JL.SIRAYU RT01 RW03 KALISUBE","BANYUMAS","Banyumas","Jawa Tengah","085291295751","085291295751","sample@sample.com","TEKNOLOGI INFORMASI S1","MAHASISWA BARU","28-02-2020","brosur","Lengkap","LAIN - LAIN","25-04-2020","SRI LESTARI","IRT"," ","SISWANDI IDRIS","WIRASWASTA","085291295727","JL.SIRAYU RT01 RW03 KALISUBE","KALISUBE","BANYUMAS","Banyumas","Jawa Tengah",99999,0," "," ",1250000,{"$f":"COUNTIF('[1]Laporan PMB '!$D$8:$D$469,D24)","v":{"$error":"#VALUE!"}}]
[null,18,"GELOMBANG KHUSUS","200148AO","SHARLY RIZKA ANIZZA MEGA","3302144909010007","ISLAM","Wanita","BANYUMAS","2001-09-09","SMK MA'ARIF NU 1 AJIBARANG","TKJ",2020,0,"LESMANA RT 01 RW 03","AJIBARANG","Banyumas","Jawa Tengah","085877706340","085877706340","sample@sample.com","TEKNOLOGI INFORMASI S1","MAHASISWA BARU","02-03-2020","brosur","Lengkap","LAIN - LAIN","07-03-2020","LINA KUNTARI","IRT","085200105607","DOYO SUYITNO"," "," ","LESMANA RT 01 RW 03","LESMANA RT 01 RW 03","AJIBARANG","Banyumas","Jawa Tengah",99999,0,"L","L",1250000,{"$f":"COUNTIF('[1]Laporan PMB '!$D$8:$D$469,D25)","v":{"$error":"#VALUE!"}}]
[null,19,"GELOMBANG KHUSUS","200149AO","ARIF DWI HARTANTO","3302111408010001","ISLAM","Pria","BANYUMAS","2001-08-14","SMK N 1 PURWOKERTO","MULTIMEDIA",2020,0,"BINANGUN RT 02 RW 06","BANYUMAS","Banyumas","Jawa Tengah","083861713152","083861713152","sample@sample.com","INFORMATIKA S1","MAHASISWA KELAS SORE","02-03-2020","brosur","Lengkap","LAIN - LAIN","07-03-2020","JUMIRAH","IRT"," ","LISUN MOHAMAD ALI NURDIN","PERANGKAT DESA","087837382082","BINANGUN RT 02 RW 06","BINANGUN RT 02 RW 06","BANYUMAS","Banyumas","Jawa Tengah",99999,0,"L","L",2000000,{"$f":"COUNTIF('[1]Laporan PMB '!$D$8:$D$469,D26)","v":{"$error":"#VALUE!"}}]
[null,20,"GELOMBANG KHUSUS","200150AO","DANDI IRMANSYAH","3674030112000010","ISLAM","Pria","TEGAL","2000-12-01","SMK AL-HIKMAH 1 SIRAMPOG","MULTIMEDIA",2019,5.37,"CEMPAKA RT 03 RW 03","BUMIJAWA","Kab. Tegal","Jawa Tengah","08156561044","08156561044","sample@sample.com","BISNIS DIGITAL S1","MAHASISWA BARU","02-03-2020","brosur","Lengkap","LAIN - LAIN","02-03-2020","IS KHASANAH","IRT"," ","AMIR NURDIANSYAH","WIRASWASTA","081391192575","CEMPAKA RT 03 RW 03","CEMPAKA","BUMIJAWA","Kab. Tegal","Jawa Tengah",99999,0,"XL","XL",1000000,{"$f":"COUNTIF('[1]Laporan PMB '!$D$8:$D$469,D27)","v":{"$error":"#VALUE!"}}]
[null,21,"GELOMBANG KHUSUS","200152AO","ANDRA DWI RAMADHAN","3302192611010001","ISLAM","Pria","BANYUMAS","2011-11-26","SMA N 1 SOKARAJA","IPS",2020,0,"SOKARAJA KIDUL RT 06 RW 02 KEC. SOKARAJA KAB. BANYUMAS JAWA TENGAH 53181","SOKARAJA","Banyumas","Jawa Tengah","6281575928378","6281575928378","sample@sample.com","SISTEM INFORMASI S1","MAHASISWA BARU","02-03-2020","teman/saudara","Lengkap","LAIN - LAIN","07-03-2020","ASIH SUHARYANI","-","082242756306","SUNARTO","PNS","082223513636","SOKARAJA KIDUL RT 06 RW 02 KEC. SOKARAJA KAB. BANYUMAS JAWA TENGAH 53181","SOKARAJA KIDUL","SOKARAJA","Banyumas","Jawa Tengah",53181,0," L"," M",2000000,{"$f":"COUNTIF('[1]Laporan PMB '!$D$8:$D$469,D28)","v":{"$error":"#VALUE!"}}]
[null,22,"GELOMBANG KHUSUS","200156AO","FIRMAN ARDI PRATAMA","3604050711970006","ISLAM","Pria","SURABAYA","1997-11-07","POLITEKNIK NEGERI CILACAP","INFORMATIKA",2019,0,"KARANGSALAM KIDUL RT04/05","KEDUNG BANTENG","Banyumas","Jawa Tengah","0895422954003","0895422954003","sample@sample.com","INFORMATIKA S1","MAHASISWA TRANSFER","04-03-2020","brosur","Lengkap","LAIN - LAIN","06-03-2020","AYU HIDAYATI","IRT","082114787181","SUSILO WINARDI","BUMN PLTU","081310142453","KARANGSALAM KIDUL RT04/05","KARANGSALAM KIDUL","KEDUNG BANTENG","Banyumas","Jawa Tengah",99999,0,"XL","XL",0,{"$f":"COUNTIF('[1]Laporan PMB '!$D$8:$D$469,D29)","v":{"$error":"#VALUE!"}}]
[null,23,"GELOMBANG KHUSUS","200166AO","YOGA JAKA PANGESTU","3303151506010001","ISLAM","Pria","PURBALINGGA","2001-06-15","PAKET C","IPS",2019,0,"JL. KRESNA 2 NO 7 RT 06 RW 04 BOJANEGARA","PADAMARA","Purbalingga","Jawa Tengah","083116383323","083879422209","sample@sample.com","INFORMATIKA S1","MAHASISWA BARU","09-03-2020","brosur","Lengkap","LAIN - LAIN","14-03-2020","TETIK LUSI NARYATI"," IRT","081327053664","KHODERI"," PNS"," ","JL. KRESNA 2 NO 7 RT 06 RW 04","BOJANEGARA","PADAMARA","Purbalingga","Jawa Tengah",99999,0,"M","M",2000000,{"$f":"COUNTIF('[1]Laporan PMB '!$D$8:$D$469,D30)","v":{"$error":"#VALUE!"}}]
[null,24,"GELOMBANG KHUSUS","200167AO","KANA QURROTU'AINII","3302266307020001","ISLAM","Wanita","BANYUMAS","2002-07-23","SMK N 1 PURWOKERTO","MULTIMEDIA",2020,0,"JL PEKIH RT02 RW02 SOKANEGARA","PURWOKERTO TIMUR","Banyumas","Jawa Tengah","089669115734",62,"sample@sample.com","ILMU KOMUNIKASI S1","MAHASISWA BARU","09-03-2020","brosur","Lengkap","LAIN - LAIN","21-03-2020","AGUSTIANA PANCAWATI","IRT","081327616777","KABUL YULIAN TRIS","SWASTA"," 081327616777","JL PEKIH RT02 RW02 SOKANEGARA","SOKANEGARA","PURWOKERTO TIMUR","Banyumas","Jawa Tengah",99999,0,"M","M",1000000,{"$f":"COUNTIF('[1]Laporan PMB '!$D$8:$D$469,D31)","v":{"$error":"#VALUE!"}}]
[null,25,"GELOMBANG KHUSUS","200173AO","DEVA AMANDA RESTU","3303052103010004","ISLAM","Pria","PURBALINGGA","2001-03-21","SMK YPT 1 PURBALINGGA","TKJ",2018,3.7,"KEMBARAN KULON RT 04 RW 03","PURBALINGGA","Purbalingga","Jawa Tengah","081541445318","081541445318","sample@sample.com","INFORMATIKA S1","MAHASISWA BARU","14-03-2020","brosur","Lengkap","LAIN - LAIN","14-03-2020","RESTI ANDRIYANI"," "," ","SURYADI"," "," ","KEMBARAN KULON RT 04 RW 03","KEMBARAN KULON","PURBALINGGA","Purbalingga","Jawa Tengah",99999,0,"L","M",2000000,{"$f":"COUNTIF('[1]Laporan PMB '!$D$8:$D$469,D32)","v":{"$error":"#VALUE!"}}]
[null,26,"GELOMBANG KHUSUS","200185AO","DANI KHAERUL WAFA","3329032412020002","ISLAM","Pria","BREBES","2002-12-24","MAN 2 BREBES","IPS",2020,0,"JL. BUMIAYU-BANTARKAWUNG RT 05 RW 01 KALI LANGGAP","BUMIAYU","Brebes","Jawa Tengah","082324741472","08883912812","sample@sample.com","SISTEM INFORMASI S1","MAHASISWA BARU","24-03-2020","brosur","Lengkap","LAIN - LAIN","28-03-2020","TARUNAH","IRT","082324741472","CHAMIM","PNS"," 082328154971","JL. BUMIAYU-BANTARKAWUNG RT 05 RW 01 KALI LANGGAP","KALI LANGGAP","BUMIAYU","Brebes","Jawa Tengah",99999,0,"L","L",2000000,{"$f":"COUNTIF('[1]Laporan PMB '!$D$8:$D$469,D33)","v":{"$error":"#VALUE!"}}]
[null,27,"GELOMBANG KHUSUS","200187AO","DAVID SUSANTO","3302071304020001","ISLAM","Pria","BANYUMAS","2002-04-13","SMK GIRIPURO SUMPIUH","TEKNIK PEMESINAN",2019,0,"KEBOKURA RT 04 RW 02","SUMPIUH","Banyumas","Jawa Tengah","0895383076122",62,"sample@sample.com","INFORMATIKA S1","MAHASISWA KELAS SORE","25-03-2020","brosur","Lengkap","LAIN - LAIN","28-03-2020","YOHANA","IRT","081327435851","SATIMAN","WIRASWASTA","088226647651","KEBOKURA RT 04 RW 02","KEBOKURA","SUMPIUH","Banyumas","Jawa Tengah",99999,0,"L","L",2000000,{"$f":"COUNTIF('[1]Laporan PMB '!$D$8:$D$469,D34)","v":{"$error":"#VALUE!"}}]
[null,28,"GELOMBANG KHUSUS","200191OL","SAFED NUVAPHON","3301080411970001","ISLAM","Pria","Ujung Pandang","1997-11-04","SMA NEGERI 1 JERUKLEGI","IPS",2017,7.9,"Dusun Kalibanjar RT 01 RW03 JERUK LEGI WETAN","JERUKLEGI","Cilacap","Jawa Tengah","081215901287",62,"ensefalanihjung@gmail.com","TEKNOLOGI INFORMASI S1","MAHASISWA BARU","27-03-2020","brosur","Lengkap","LAIN - LAIN","04-04-2020","BETY AGUSTINA MABIKAFOLA"," ","081327088739","BAMBANG SUBAGYO"," "," ","Dusun Kalibanjar","JERUKLEGI WETAN","JERUKLEGI","Cilacap","Jawa Tengah",53252,0,"L","L",1250000,{"$f":"COUNTIF('[1]Laporan PMB '!$D$8:$D$469,D35)","v":{"$error":"#VALUE!"}}]
[null,29,"GELOMBANG 2","200203OL","ISKHAK BAHTIAR","3302171710000001","ISLAM","Pria","Banyumas","2000-10-17","SMK MA'ARIF NU 1 CILONGOK","MULTIMEDIA",2020,0,"Jl.sudimara RT02 RW04 GRUMBUL TEMBELANG","CILONGOK","Banyumas","Jawa Tengah","0881024222249",62,"Ishaqqbachtiar@gmail.com","INFORMATIKA S1","MAHASISWA BARU","30-03-2020","lainnya","Lengkap","LAIN - LAIN","20-06-2020","JARIYAH","PEDAGANG","0881024222249","SUMIARTO","BURUH","083130018702","Jalan Sudimara","SUDIMARA","CILONGOK","Banyumas","Jawa Tengah",53162,0,"XL","XL",3500000,{"$f":"COUNTIF('[1]Laporan PMB '!$D$8:$D$469,D36)","v":{"$error":"#VALUE!"}}]
[null,30,"GELOMBANG KHUSUS","200204AO","MUHAMAD ULIL AZMI","3302130509010001","ISLAM","Pria","PURBALINGGA","2001-09-05","SMA N 1 REMBANG","IPS",2020,0,"BANTAR BARANG RT 01 RW 04","REMBANG","Purbalingga","Jawa Tengah","085523903607",62,"sample@sample.com","INFORMATIKA S1","MAHASISWA BARU","31-03-2020","brosur","Lengkap","LAIN - LAIN","04-04-2020","DARTYANTI","IRT","08156970847","AKHWANI","PEDAGANG"," ","BANTAR BARANG RT 01 RW 04","BANTAR BARANG","REMBANG","Purbalingga","Jawa Tengah",99999,0,"L","L",2000000,{"$f":"COUNTIF('[1]Laporan PMB '!$D$8:$D$469,D37)","v":{"$error":"#VALUE!"}}]
[null,31,"GELOMBANG KHUSUS","200205AO","ANANDA WAHYU AMUKTI","3301070701030001","ISLAM","Pria","CILACAP","2003-01-07","SMA N 1 AJIBARANG","MIPA",2020,0,"LESMANA RT 02 RW 05","AJIBARANG","Banyumas","Jawa Tengah","089644806631",62,"sample@sample.com","INFORMATIKA S1","MAHASISWA BARU","31-03-2020","brosur","Lengkap","LAIN - LAIN","04-04-2020","NURHAYATI","IRT","082243517373","WAHYUDI","PEGAWAI PT KAI","085600400984","LESMANA RT 02 RW 05","LESMANA","AJIBARANG","Banyumas","Jawa Tengah",99999,0,"L","L",2000000,{"$f":"COUNTIF('[1]Laporan PMB '!$D$8:$D$469,D38)","v":{"$error":"#VALUE!"}}]
[null,32,"GELOMBANG KHUSUS","200206AO","KARMIN PRASETYO",0,"ISLAM","Pria","PURBALINGGA","1996-12-26","SMK SABILUL HUDA",2018," ",4.61,"SIRAU RT 11 RW 04","KARANGMONCOL","Purbalingga","Jawa Tengah","085228436841",62,"sample@sample.com","INFORMATIKA S1","MAHASISWA BARU","31-03-2020","brosur","Lengkap","LAIN - LAIN","04-04-2020","TARYUNI"," IRT"," ","TAHYONO","PETANI"," ","SIRAU RT 11 RW 04","SIRAU","KARANGMONCOL","Purbalingga","Jawa Tengah",99999,0,"L","L",2000000,{"$f":"COUNTIF('[1]Laporan PMB '!$D$8:$D$469,D39)","v":{"$error":"#VALUE!"}}]
[null,33,"GELOMBANG 1","200212AO","ADLAN WIBOWO","3329060810980004","ISLAM","Pria","BREBES","1998-10-08","SMK MUHAMMADIYAH 1 PAGUYANGAN","MESIN"," ",0,"KALIJURANG RT02 RW03 TONJONG","TONJONG","Brebes","Jawa Tengah","088802705560","088802705560","sample@sample.com","INFORMATIKA S1","MAHASISWA BARU","02-04-2020","brosur","Lengkap","LAIN - LAIN","04-04-2020","BELUM"," "," "," "," "," ","KALIJURANG RT02 RW03 TONJONG","KALIJURANG","TONJONG","Brebes","Jawa Tengah",99999,0,"L","L",3000000,{"$f":"COUNTIF('[1]Laporan PMB '!$D$8:$D$469,D40)","v":{"$error":"#VALUE!"}}]
[null,34,"GELOMBANG 1","200215OL","KHANIF AJI PRASETYO","3301072010010001","ISLAM","Pria","Cilacap","2001-10-20","SMK BINA TEKNOLOGI PURWOKERTO","TEKNIK PEMESINAN",2019,24,"Jalan Pesayangan RT 02 RW 05 GLEMPANG","MAOS","Cilacap","Jawa Tengah","085802603938","085802603938","khnfprasetyo@gmail.com","INFORMATIKA S1","MAHASISWA BARU","04-04-2020","brosur","Lengkap","LAIN - LAIN","30-05-2020","MULYANINGSIH"," ","081338576485","NARSUM","NELAYAN","081328072544","Jalan Pesayangan RT 02 RW 05 GLEMPANG","GLEMPANG","MAOS","Cilacap","Jawa Tengah",53272,0,"XL","XL",3000000,{"$f":"COUNTIF('[1]Laporan PMB '!$D$8:$D$469,D41)","v":{"$error":"#VALUE!"}}]
[null,35,"GELOMBANG 1","200219OL","ERLIYANA NURRAHMA","3329034604020003","ISLAM","Wanita","Brebes","2002-04-06","SMA NEGERI 1 BUMIAYU","IPA",2020,8,"Jalan Pangeran Diponegoro","KEC. BUMIAYU","Brebes","Jawa Tengah","082324119673",62,"ernaiin123@gmail.com","SISTEM INFORMASI S1","MAHASISWA BARU","06-04-2020","brosur","Lengkap","LAIN - LAIN","20-05-2020","KHALIMAH"," ","085229634539"," "," "," ","Jalan Pangeran Diponegoro","DESA DUKUHTURI","KEC. BUMIAYU","Brebes","Jawa Tengah",52273,0,"M","M",3000000,{"$f":"COUNTIF('[1]Laporan PMB '!$D$8:$D$469,D42)","v":{"$error":"#VALUE!"}}]
[null,36,"GELOMBANG 1","200222AO","ICHFAN CHAMDANI","3302092302020001","ISLAM","Pria","BANYUMAS","2002-02-23","SMK N 1 BANYUMAS","TKJ",2020,0,"KLINTING RT 07 RW 01","SOMAGEDE","Banyumas","Jawa Tengah","087724032043",62,"sample@sample.com","INFORMATIKA S1","MAHASISWA BARU","07-04-2020","brosur","Lengkap","LAIN - LAIN","11-04-2020","NATEM"," "," ","SATU"," "," ","KLINTING RT 07 RW 01","KLINTING","SOMAGEDE","Banyumas","Jawa Tengah",99999,0,"L","L",3000000,{"$f":"COUNTIF('[1]Laporan PMB '!$D$8:$D$469,D43)","v":{"$error":"#VALUE!"}}]
[null,37,"GELOMBANG 1","200227OL","KIAGUS RACHMAT FAUZAN","3301231806020002","ISLAM","Pria","cilacap","2002-06-18","SMA NEGERI 2 CILACAP","IPS",2020,7,"Prum BKD Blok 30 C.171","CILACAP UTARA","Cilacap","Jawa Tengah","085291275571",62,"fauzanrachmat9@gmail.com","SISTEM INFORMASI S1","MAHASISWA BARU","09-04-2020","brosur","Lengkap","LAIN - LAIN","11-04-2020","YUNAENI WARASTUTI","IRT","085869879704","KIAGUS MUHAMMAD DJAMIL","karyawan swasta"," 081890566974","Prum BKD Blok 30 C.171","KEBONMANIS","CILACAP UTARA","Cilacap","Jawa Tengah",53235,0,"XXL","XXL",3000000,{"$f":"COUNTIF('[1]Laporan PMB '!$D$8:$D$469,D44)","v":{"$error":"#VALUE!"}}]
[null,38,"GELOMBANG 1","200235AO","GUSTI IRENDRA YUDHISTIRA",0,"ISLAM","Pria","BANYUMAS","2002-08-03","SMK MA'ARIF NU 1 AJIBARANG","TKJ",2020,0,"CILANGKAP RT03 RW01 GUMELAR","GUMELAR","Banyumas","Jawa Tengah","082328898659","082328898659","sample@sample.com","INFORMATIKA S1","MAHASISWA BARU","11-04-2020","brosur","Lengkap","LAIN - LAIN","18-04-2020","WIYARTI"," TKW","0886976677317","AHMAD AGUS SALIM","DAGANG"," ","CILANGKAP RT03 RW01 GUMELAR","CILANGKAP","GUMELAR","Banyumas","Jawa Tengah",99999,0,"XL","XL",2000000,{"$f":"COUNTIF('[1]Laporan PMB '!$D$8:$D$469,D45)","v":{"$error":"#VALUE!"}}]
[null,39,"GELOMBANG 1","200245AO","TAOFIK ARIANTO","3207172409010001","ISLAM","Pria","CIAMIS","2001-09-24","SMK WISATA INDONESIA","TKJ",2020,0,"DUSUN ADIMULYA RT 24 RW 04 SUKANEGARA","LAKBOK","Ciamis","Jawa Barat","085210215793",62,"sample@sample.com","INFORMATIKA S1","MAHASISWA BARU","15-04-2020","brosur","Lengkap","LAIN - LAIN","17-04-2020","KARSIATUN"," "," ","NGADIMAN MASNGUDIN"," "," ","DUSUN ADIMULYA RT 24 RW 04","SUKANEGARA","LAKBOK","Ciamis","Jawa Barat",99999,0,"L","L",3000000,{"$f":"COUNTIF('[1]Laporan PMB '!$D$8:$D$469,D46)","v":{"$error":"#VALUE!"}}]
[null,40,"GELOMBANG 1","200246AO","PUTRI KUSUMA MURDHANINGTIYAS","3301085611010003","ISLAM","Wanita","JEPARA","2001-11-16","SMA N 1 JERUKLEGI","IPS",2020,0,"DUSUN JAMBUANDAP RT 03 RW 08 JAMBUSARI","JERUKLEGI","Cilacap","Jawa Tengah","085523526661","085523526661","sample@sample.com","ILMU KOMUNIKASI S1","MAHASISWA BARU","15-04-2020","lainnya","Lengkap","LAIN - LAIN","25-04-2020","ETI HARNINGSIH","WIRASWASTA","081228360642","ALI MUSTOFA","PURNA WIRAWAN TNI-AD","082138310519","DUSUN JAMBUANDAP RT 03 RW 08","JAMBUSARI","JERUKLEGI","Cilacap","Jawa Tengah",99999,0,"L","L",1250000,{"$f":"COUNTIF('[1]Laporan PMB '!$D$8:$D$469,D47)","v":{"$error":"#VALUE!"}}]
[null,41,"GELOMBANG 1","200253AO","ACHMAD SULTAN","3302182101020002","ISLAM","Pria","BANYUMAS","2002-01-21","SMK DIPONEGORO 3 KEDUNGBANTENG","ADM PERKANTORAN",2020,0,"SINGASARI RT02 RW01","KARANGLEWAS","Banyumas","Jawa Tengah","081215302324",62,"sample@sample.com","SISTEM INFORMASI S1","MAHASISWA BARU","17-04-2020","brosur","Lengkap","LAIN - LAIN","25-04-2020","MU'AJIZAH","PERANGKAT DESA","081325913369","JAENAL ABIDIN","WIRASWASTA","081326778890","SINGASARI RT02 RW01","SINGASARI","KARANGLEWAS","Banyumas","Jawa Tengah",99999,0,"L","L",3000000,{"$f":"COUNTIF('[1]Laporan PMB '!$D$8:$D$469,D48)","v":{"$error":"#VALUE!"}}]
[null,42,"GELOMBANG 1","200256AO","IKMAL KHOERUR RIZKI","3302060912020002","ISLAM","Pria","PULAU BURUNG","2002-12-09","MA WI KEBARONGAN","IPA",2020,0,"KEBARONGAN RT01 RW01","KEMRANJEN","Banyumas","Jawa Tengah","082244124207","082244124207","sample@sample.com","ILMU KOMUNIKASI S1","MAHASISWA BARU","18-04-2020","brosur","Lengkap","LAIN - LAIN","25-04-2020","MUNINGAH"," "," ","ISWANTO"," "," ","KEBARONGAN RT01 RW01","KEBARONGAN","KEMRANJEN","Banyumas","Jawa Tengah",99999,0,"L","L",1250000,{"$f":"COUNTIF('[1]Laporan PMB '!$D$8:$D$469,D49)","v":{"$error":"#VALUE!"}}]
[null,43,"GELOMBANG 1","200258AO","CHOIRUL RIZAL","3302252412010002","ISLAM","Pria","BANYUMAS","2001-12-24","SMK WISOROTOMO PURWOKERTO","TKJ",2020,0,"REJASARI RT 02 RW 05","PURWOKERTO BARAT","Banyumas","Jawa Tengah","085747195349","085747195349","sample@sample.com","SISTEM INFORMASI S1","MAHASISWA BARU","20-04-2020","brosur","Lengkap","LAIN - LAIN","25-04-2020","DWINOVITA KURNIAWATI"," "," ","M. KOMARUDIN"," "," ","REJASARI RT 02 RW 05","REJASARI","PURWOKERTO BARAT","Banyumas","Jawa Tengah",99999,0,"L","L",3000000,{"$f":"COUNTIF('[1]Laporan PMB '!$D$8:$D$469,D50)","v":{"$error":"#VALUE!"}}]
[null,44,"GELOMBANG 1","200282AO","HASYYATI TRI AGUSTIN","3302265708010001","ISLAM","Wanita","PURWOKERTO","2001-08-17","SMK N 1 PURWOKERTO","PERKANTORAN",2020,0,"JL.KOL SUGIONO II NO 20  RT07 RW03 KRANJI","PURWOKERTO TIMUR","Banyumas","Jawa Tengah","081328739843",62,"sample@sample.com","BISNIS DIGITAL S1","MAHASISWA BARU","04-05-2020","brosur","Lengkap","LAIN - LAIN","09-05-2020","SURYATINI","PNS","081328739843","DARYADI","PENSIUNAN","081325259016","JL.KOL SUGIONO II NO 20  RT07 RW03 KRANJI","KRANJI","PURWOKERTO TIMUR","Banyumas","Jawa Tengah",99999,0,"XXL","XXL",1000000,{"$f":"COUNTIF('[1]Laporan PMB '!$D$8:$D$469,D51)","v":{"$error":"#VALUE!"}}]
[null,45,"GELOMBANG 1","200291OL","FATHIMAH HUSNA","3302255610020001","ISLAM","Wanita","Purwokerto","2002-10-16","SMA N 2 PURWOKERTO","IPA",2020,8.6,"Jalan Pahlawan Gang Konvoi Nomor 31","PURWOKERTO BARAT","Banyumas","Jawa Tengah","085725738608","085725738608","husnaf45@gmail.com","SISTEM INFORMASI S1","MAHASISWA BARU","06-05-2020","brosur","Lengkap","LAIN - LAIN","09-05-2020","WORO SRI LEGANI","IRT","085725958211","TARSO"," KARYAWAN SWASTA","085729471670","Jalan Pahlawan Gang Konvoi Nomor 31","PASIRMUNCANG","PURWOKERTO BARAT","Banyumas","Jawa Tengah",53137,0,"L","L",2000000,{"$f":"COUNTIF('[1]Laporan PMB '!$D$8:$D$469,D52)","v":{"$error":"#VALUE!"}}]
[null,46,"GELOMBANG 1","200295OL","PRASETIA EKO NUGROHO","3301090304020002","ISLAM","Pria","Cilacap","2002-04-03","SMK TARBIYATUL ISLAM KAWUNGANTEN","TKJ",2020,7.64,"Cigebret","KAWUNGANTEN","Cilacap","Jawa Tengah","085702564508","083126948725","prasetiaekon@gmail.com","SISTEM INFORMASI S1","MAHASISWA BARU","07-05-2020","brosur","Lengkap","LAIN - LAIN","09-05-2020","EKA YULIANTI","TKW","085702564508","MUGIONO","PETANI","085602414514","Cigebret","SARWADADI","KAWUNGANTEN","Cilacap","Jawa Tengah",53253,0,"L","L",3000000,{"$f":"COUNTIF('[1]Laporan PMB '!$D$8:$D$469,D53)","v":{"$error":"#VALUE!"}}]
[null,47,"GELOMBANG 1","200297AO","EDGINA PRISIANTO","00000000000000000000000000","ISLAM","Pria","BANYUMAS","2003-08-14","SMK KSATRIAN PURWOKERTO","TKJ",2020,0,"JL TRI 214 RT 01 RW 01 LEDUG KEC. KEMBARAN KAB. BANYUMAS JAWA TENGAH","KEMBARAN","Banyumas","Jawa Tengah","6282134082191","6282134082191","sample@sample.com","INFORMATIKA S1","MAHASISWA BARU","08-05-2020","teman/saudara","Lengkap","LAIN - LAIN","09-05-2020","SRI SUPENI"," PNS","085726321426","TARISMAN","PNS "," ","JL TRI 214 RT 01 RW 01 LEDUG KEC. KEMBARAN KAB. BANYUMAS JAWA TENGAH","LEDUG","KEMBARAN","Banyumas","Jawa Tengah",53182,0,"M","M",1250000,{"$f":"COUNTIF('[1]Laporan PMB '!$D$8:$D$469,D54)","v":{"$error":"#VALUE!"}}]
[null,48,"GELOMBANG 1","200298AO","ERLINA SETIANINGRUM","3302194304020003","ISLAM","Wanita","BANYUMAS","2002-04-03","SMK N 1 BANYUMAS","TKJ",2020,0,"KARANGDUREN RT 03 RW 01","SOKARAJA","Banyumas","Jawa Tengah","0895341158709","0895341158709","sample@sample.com","SISTEM INFORMASI S1","MAHASISWA BARU","08-05-2020","brosur","Lengkap","LAIN - LAIN","09-05-2020","GAYATI"," BURUH","081386685578","MIHARJO"," "," ","KARANGDUREN RT 03 RW 01","KARANGDUREN","SOKARAJA","Banyumas","Jawa Tengah",99999,0," XL"," XL",2000000,{"$f":"COUNTIF('[1]Laporan PMB '!$D$8:$D$469,D55)","v":{"$error":"#VALUE!"}}]
[null,49,"GELOMBANG 1","200299AO","MUKHAMMAD IFSA HAIKALINNURONI","3304022802020002","ISLAM","Pria","BANJARNEGARA","2002-02-28","SMK HKTI 2 PURWAREJA KLAMPOK","TKJ",2020,0,"DUSUN SIDAREJA RT 01 RW 08PURWAREJA","PURWAREJA","BanjarNegara","Jawa Tengah","08818660826","08818660826","sample@sample.com","TEKNOLOGI INFORMASI S1","MAHASISWA BARU","08-05-2020","brosur","Lengkap","LAIN - LAIN","09-05-2020","NING SODIQOH"," IRT"," ","MUHAMMAD NADHIF"," "," ","DUSUN SIDAREJA RT 01 RW 08PURWAREJA,KLAMPOK","SIDAREJA","PURWAREJA","BanjarNegara","Jawa Tengah",99999,0,"L","L",1500000,{"$f":"COUNTIF('[1]Laporan PMB '!$D$8:$D$469,D56)","v":{"$error":"#VALUE!"}}]
[null,50,"GELOMBANG 1","200307AO","VETI APRILIA","1605036304020001","ISLAM","Wanita","MUSI RWAS","2002-04-23","SMA N 3 PURWOKERTO","IPA",2020,83.12,"JL.MOCH BESAR RT5 RW01 KUTASARI","BATURRADEN","Banyumas","Jawa Tengah","085281194075",62,"sample@sample.com","ILMU KOMUNIKASI S1","MAHASISWA BARU","11-05-2020","brosur","Lengkap","LAIN - LAIN","20-05-2020","SARTINAH","IRT","085368264913","IMRON","PETANI","085368264913","JL.MOCH BESAR RT5 RW01 KUTASARI","KUTASARI","BATURRADEN","Banyumas","Jawa Tengah",99999,0,"S","S",1000000,{"$f":"COUNTIF('[1]Laporan PMB '!$D$8:$D$469,D57)","v":{"$error":"#VALUE!"}}]
[null,51,"GELOMBANG 1","200314AO","ADRI MIFTAH FAUZAN","3302250206920001","ISLAM","Pria","SERANG","1992-06-02","UNIVERSITAS MUHAMADDIYAH PURWOKERTO","MANAJEMEN",2014,0,"SOKAJATI RT01 RW08 BANTARSOKA","BATURRADEN","Banyumas","Jawa Tengah","081393366999",62,"sample@sample.com","BISNIS DIGITAL S1","MAHASISWA BARU","12-05-2020","brosur","Lengkap","LAIN - LAIN","20-05-2020","YAYUK WAHYUNI","IRT","081542687814","KASDU","WIRASWASTA","08121582020","JL MOCH BESAR NO 12 KUTASARI","KUTASARI","BATURRADEN","Banyumas","Jawa Tengah",99999,0,"L","L",1250000,{"$f":"COUNTIF('[1]Laporan PMB '!$D$8:$D$469,D58)","v":{"$error":"#VALUE!"}}]
[null,52,"GELOMBANG 1","200322OL","FARHAN AKHMAD FAHREZI","3302141505020004","ISLAM","Pria","Kab. Banyumas","2020-05-15","SMK MA'ARIF NU 1 AJIBARANG","MESIN",2020,0,"Jl.sawangan desa kalibenda","AJIBARANG","Banyumas","Jawa Tengah","085839790997",62,"fahrezif262@gmail.com","TEKNOLOGI INFORMASI S1","MAHASISWA BARU","15-05-2020","brosur","Lengkap","LAIN - LAIN","01-01-1970","MUSRIPAH"," ","081578041381"," "," "," ","Jl.sawangan desa kalibenda","KALIBENDA","AJIBARANG","Banyumas","Jawa Tengah",53163,0,"L","L",1500000,{"$f":"COUNTIF('[1]Laporan PMB '!$D$8:$D$469,D59)","v":{"$error":"#VALUE!"}}]
[null,53,"GELOMBANG 1","200334AO","RAKHA ADRI PERDANA","3175050908990007","ISLAM","Pria","CIREBON","2001-06-18","SMA YOS SUDARSO CILACAP","IPS",2019,0,"JL.WIJAYA KUSUMA NO 1 RT01 RW01 SIDAKAYA","CILACAP","Cilacap","Jawa Tengah","081578790975",62,"sample@sample.com","INFORMATIKA S1","MAHASISWA BARU","18-05-2020","brosur","Lengkap","LAIN - LAIN","20-05-2020","TRI WASIYATI","IRT","081578790975"," UNTUNG TARSONO","PENSIUNAN TNI","081319591882","JL.WIJAYA KUSUMA NO 1 RT01 RW01 SIDAKAYA","SIDAKAYA","CILACAP","Cilacap","Jawa Tengah",99999,0,"L","L",3000000,{"$f":"COUNTIF('[1]Laporan PMB '!$D$8:$D$469,D60)","v":{"$error":"#VALUE!"}}]
[null,54,"GELOMBANG 1","200339AO","RIFKI AMRULLOH","3302272909020006","ISLAM","Pria","PURWOKERTO","2002-09-29","SMK SWAGAYA 1 PURWOKERTO","MULTIMEDIA",2020,0,"PURWANEGARA RT05 RW06 PURWOKERTO UTARA","PURWOKERTO UTARA","Banyumas","Jawa Tengah","082314511291","082314511291","sample@sample.com","INFORMATIKA S1","MAHASISWA BARU","20-05-2020","brosur","Lengkap","LAIN - LAIN","20-05-2020","SETYOLARASATI","IRT","089670479057","KUSWOYO","SWASTA","081327649494","PURWANEGARA RT05 RW06 PURWOKERTO UTARA","PURWANEGARA","PURWOKERTO UTARA","Banyumas","Jawa Tengah",99999,0,"M","M",0,{"$f":"COUNTIF('[1]Laporan PMB '!$D$8:$D$469,D61)","v":{"$error":"#VALUE!"}}]
[null,55,"GELOMBANG 1","200349OL","MUTHIA HANAN DHIA MARDHIYATI","3303056807020003","ISLAM","Wanita","Kab. Purbalingga","2002-07-28","SMA NEGERI 2 PURBALINGGA","IPS",2020,80.4,"Perum. Wirasana Indah C12","PURBALINGGA","Purbalingga","Jawa Tengah","082265107409","082265107409","mutiapurbalingga@gmail.com","ILMU KOMUNIKASI S1","MAHASISWA BARU","22-05-2020","brosur","Lengkap","LAIN - LAIN","30-05-2020","DRA. SITI NURHAYATI"," ","081225937904","ALM DRS.BAMBANG SARDJITO"," "," ","Perum. Wirasana Indah C12","WIRASANA","PURBALINGGA","Purbalingga","Jawa Tengah",53317,0,"L","L",250000,{"$f":"COUNTIF('[1]Laporan PMB '!$D$8:$D$469,D62)","v":{"$error":"#VALUE!"}}]
[null,56,"GELOMBANG 2","200353OL","DESIKO BAYU RAFIZAKI","3301041012020001","ISLAM","Pria","Cilacap","2002-12-10","SMK N 1 BINANGUN","Lainnya",2020,84,"Jalan Pasar baru","BINANGUN","Cilacap","Jawa Tengah","081931527207",62,"Desikobayu82@gmail.com","SISTEM INFORMASI S1","MAHASISWA BARU","25-05-2020","internet","Lengkap","LAIN - LAIN","30-07-2020","RANGKEN","PEDAGANG","081227363874","PUJIANTO","WIRASWASTA"," ","Jalan pasar baru","WIDARAPAYUNG KULON","BINANGUN","Cilacap","Jawa Tengah",53281,0,"M","L",3500000,{"$f":"COUNTIF('[1]Laporan PMB '!$D$8:$D$469,D63)","v":{"$error":"#VALUE!"}}]
[null,57,"GELOMBANG 1","200358AO","FEDIKA AJI PRASETYO","3303062502010002","ISLAM","Pria","PURBALINGGA","2001-02-25","SMA CANDRA NAYA","IPA"," 2020",0,"BABAKAN RT07 RW02","KALIMANAH","Purbalingga","Jawa Tengah","0855191887703","0855191887703","sample@sample.com","INFORMATIKA S1","MAHASISWA BARU","26-05-2020","brosur","Lengkap","LAIN - LAIN","30-05-2020","YULISTINA","KARYAWAN SWASTA","0895377128614","SULIMAN","KARYAWAN SEKOLAH"," 087880903334","BABAKAN RT07 RW02","BABAKAN","KALIMANAH","Purbalingga","Jawa Tengah",99999,0,"L","L",3000000,{"$f":"COUNTIF('[1]Laporan PMB '!$D$8:$D$469,D64)","v":{"$error":"#VALUE!"}}]
[null,58,"GELOMBANG 1","200362AO","ALFATTAHUDIN AZMI FALAHAN","3319072209010005","ISLAM","Pria","PURBALINGGA","2001-09-22","SMA N 1 BOBOTSARI","IPS",2020,0,"TLAGAYASA RT 02 RW 04","BOBOTSARI","Purbalingga","Jawa Tengah","081227376881","081227376881","sample@sample.com","ILMU KOMUNIKASI S1","MAHASISWA BARU","27-05-2020","brosur","Lengkap","LAIN - LAIN","30-05-2020","HANIN SETIAWATI","IRT","082138082463","M SAIFUL ULUM","WIRASWASTA","081358523441","TLAGAYASA RT 02 RW 04","TLAGAYASA","BOBOTSARI","Purbalingga","Jawa Tengah",99999,0,"M","L",250000,{"$f":"COUNTIF('[1]Laporan PMB '!$D$8:$D$469,D65)","v":{"$error":"#VALUE!"}}]
[null,59,"GELOMBANG 1","200367AO","FRISKA RELA MARETA","330218603010001","ISLAM","Wanita","BANYUMAS","2001-03-26","SLB YAKUT PURWOKERTO","LAINNYA",2020,0,"KEDIRI RT 02 RW 03","KARANG LEWAS","Banyumas","Jawa Tengah","0895634458420",62,"sample@sample.com","INFORMATIKA S1","MAHASISWA BARU","28-05-2020","brosur","Lengkap","LAIN - LAIN","30-05-2020","PARTINI"," "," ","WIRO YULIANTO","KARYAWAN PT KAI","081325220593","KEDIRI RT 02 RW 03","KEDIRI","KARANG LEWAS","Banyumas","Jawa Tengah",99999,0,"M","M",3000000,{"$f":"COUNTIF('[1]Laporan PMB '!$D$8:$D$469,D66)","v":{"$error":"#VALUE!"}}]
[null,60,"GELOMBANG KHUSUS","200369AO","MUHAMMAD IKHSAN NUGRAHA","3302272106010001","ISLAM","Pria","PURWOKERTO","2001-05-21","MAN 1 BANYUMAS","IPS",2020,0,"ASPOL SPN PWT BLOCK C NO 9 RT 03 RW 05 PURWANEGARA","PURWOKERTO UTARA","Banyumas","Jawa Tengah","082235974305","082235974305","sample@sample.com","INFORMATIKA S1","MAHASISWA BARU","28-05-2020","brosur","Lengkap","LAIN - LAIN","30-05-2020","NINIK IRNAWATI","PNS","082328387671","DJAKA SUSANTA","POLRI","085869977786","ASPOL SPN PWT BLOCK C NO 9 RT 03 RW 05","PURWANEGARA","PURWOKERTO UTARA","Banyumas","Jawa Tengah",99999,0,"L","L",0,{"$f":"COUNTIF('[1]Laporan PMB '!$D$8:$D$469,D67)","v":{"$error":"#VALUE!"}}]
[null,61,"GELOMBANG 1","200373AO","PUTRI MARETA PUSPITASARI","3302244303020005","ISLAM","Wanita","PURWOKERTO","2002-03-03","SMA MUHAMMADIYAH 1 PURWOKERTO","IPA",2020,7.8,"PERUM GRIYA SATRIA MANTADALATAMA NO 13 BLOK 16 RT 01 RW 06 KARANG LEWAS KIDUL","PURWOKERTO BARAT","Banyumas","Jawa Tengah","089602180378","089602180378","sample@sample.com","SISTEM INFORMASI S1","MAHASISWA BARU","29-05-2020","brosur","Lengkap","LAIN - LAIN","30-05-2020","DWI ARIYANI","IRT","081215431866","MOHAMAD JUNAEDI","KARYAWAN SWASTA","08129502349","PERUM GRIYA SATRIA MANTADALATAMA NO 13 BLOK 16 RT 01 RW 06 KARANG LEWAS KIDUL","KARANG LEWAS","PURWOKERTO BARAT","Banyumas","Jawa Tengah",99999,0,"L","L",2000000,{"$f":"COUNTIF('[1]Laporan PMB '!$D$8:$D$469,D68)","v":{"$error":"#VALUE!"}}]
[null,62,"GELOMBANG 1","200376AO","TISA PALUPI","3302106905020003","ISLAM","Pria","BANYUMAS","2002-05-29","SMK N 1 BANYUMAS","OTKP",2020,0,"JL BOGISAH RT 04 RW 07 KALIORI WOGEN KEC. KALIBAGOR KAB. BANYUMAS JAWA TENGAH","KALIBAGOR","Banyumas","Jawa Tengah","6285869372074","6285869372074","sample@sample.com","ILMU KOMUNIKASI S1","MAHASISWA BARU","29-05-2020","brosur","Lengkap","LAIN - LAIN","30-05-2020","RUSMINI","IRT"," ","SANTOSO","BURUH","085602951694","JL BOGISAH RT 04 RW 07 KALIORI WOGEN KEC. KALIBAGOR KAB. BANYUMAS JAWA TENGAH","KALIORI WOGEH","KALIBAGOR","Banyumas","Jawa Tengah",53191,0,"L","L",1250000,{"$f":"COUNTIF('[1]Laporan PMB '!$D$8:$D$469,D69)","v":{"$error":"#VALUE!"}}]
[null,63,"GELOMBANG 1","200379OL","DIMAS ARIF PRIYOGI","3327030504020003","ISLAM","Pria","Pemalang","2002-04-05","SMK MA'ARIF NU BOBOTSARI","MULTIMEDIA",2020,7.39,"Desa Beluk","BELIK","Pemalang","Jawa Tengah","087833477540","087833477540","riyosunarko@gmail.com","INFORMATIKA S1","MAHASISWA BARU","29-05-2020","brosur","Lengkap","LAIN - LAIN","06-06-2020","SAIROH","IRT","085329310027"," TRI WAHYONO","KARYAWAN BUMN","085329311127","Desa Beluk","BELUK","BELIK","Pemalang","Jawa Tengah",52356,0,"L","L",2500000,{"$f":"COUNTIF('[1]Laporan PMB '!$D$8:$D$469,D70)","v":{"$error":"#VALUE!"}}]
[null,64,"GELOMBANG 1","200380AO","BAGUS DWI GUNTORO","3303082311010001","ISLAM","Pria","BANYUMAS","2001-11-23","MAN PURBALINGGA","IPA",2020,0,"JL PUJADI RT 02 RW 01 SINDANG","MREBET","Purbalingga","Jawa Tengah","6285601856030","6285601856030","sample@sample.com","INFORMATIKA S1","MAHASISWA BARU","30-05-2020","internet","Lengkap","LAIN - LAIN","30-05-2020","MUJI LESTARI","IRT","085728064952","SUPRIYANTO","PNS"," 085291188877","JL PUJADI RT 02 RW 01 SINDANG KEC. MREBET KAB. PURBALINGGA JAWA TENGAH","SINDANG","MREBET","Purbalingga","Jawa Tengah",53352,0,"L","XL",3000000,{"$f":"COUNTIF('[1]Laporan PMB '!$D$8:$D$469,D71)","v":{"$error":"#VALUE!"}}]
[null,65,"GELOMBANG 1","200383AO","PUTRI RAMADANI UTAMI","3303124902010002","ISLAM","Wanita","PURBALINGGA","2001-12-19","SMA N 1 BOBOTSARI","IPS",2020,0,"TAMANSARI RT 02 RW 19","KARANGMONCOL","Purbalingga","Jawa Tengah","083844927079",62,"sample@sample.com","BISNIS DIGITAL S1","MAHASISWA BARU","30-05-2020","brosur","Lengkap","LAIN - LAIN","30-05-2020","PUJIATI"," "," ","BANGUN SUGIONO"," "," ","TAMANSARI RT 02 RW 19","TAMANSARI","KARANGMONCOL","Purbalingga","Jawa Tengah",99999,0,"M "," M",1250000,{"$f":"COUNTIF('[1]Laporan PMB '!$D$8:$D$469,D72)","v":{"$error":"#VALUE!"}}]
[null,66,"GELOMBANG 1","200387AO","MAKHRUSUL FUAD","3301172405010001","ISLAM","Pria","CILACAP","2001-05-24","SMK MUHAMMADIYAH SAMPANG","TKR",2019,0,"JL WIRASIM RT 02 RW 01 KETANGGUNG KEC. SAMPANG KAB.CILACAP JAWA TENGAH 53273","CILACAP","Cilacap","Jawa Tengah","62895358655183","62895358655183","sample@sample.com","INFORMATIKA S1","MAHASISWA BARU","30-05-2020","teman/saudara","Lengkap","LAIN - LAIN","30-05-2020","SITI MAISAROH","WIRASWASTA","085227269995","NURKHOLIS","WIRASWASTA","085227269995","JL WIRASIM RT 02 RW 01 KETANGGUNG KEC. SAMPANG KAB.CILACAP JAWA TENGAH 53273","SAMPANG","CILACAP","Cilacap","Jawa Tengah",53273,0,"L","XL",2000000,{"$f":"COUNTIF('[1]Laporan PMB '!$D$8:$D$469,D73)","v":{"$error":"#VALUE!"}}]
[null,67,"GELOMBANG 1","200389AO","MOHAMMAD NAUFAL TAUFIKURROHMAN","3302261710010002","ISLAM","Pria","BANYUMAS","2001-10-17","SMA N 3 PURWOKERTO","IPS",2020,0,"PERUMAHAN PASIR LUHUR PERMAI BLOK TIMUR NO B3 18 JL PASIR LUHUR 3 RT 03 RW 07 PASIR LUHUR","PURWOKERTO BARAT","Banyumas","Jawa Tengah","0895416986010","0895416986010","sample@sample.com","TEKNOLOGI INFORMASI S1","MAHASISWA BARU","30-05-2020","brosur","Lengkap","LAIN - LAIN","30-05-2020","SUKATI","IRT","081548892693","MOCHMAMMAD IBNU","KARYWAN SWASTA","081321459431","PERUMAHAN PASIR LUHUR PERMAI BLOK TIMUR NO B3 18 JL PASIR LUHUR 3 RT 03 RW 07 PASIR LUHUR","PASIR LUHUR","PURWOKERTO BARAT","Banyumas","Jawa Tengah",99999,0,"L","L",500000,{"$f":"COUNTIF('[1]Laporan PMB '!$D$8:$D$469,D74)","v":{"$error":"#VALUE!"}}]
[null,68,"GELOMBANG 1","200393AO","OSARA GANDANG PRAKOSO","3329022710010008","ISLAM","Pria","BREBES","2001-10-07","SMA N 1 BANTARKAWUNG","IPS",2020,0,"BLOK KOSAMBI RT 05 RW 02 TERLAYA","BANTARKAWUNG","Brebes","Jawa Tengah","085903784320",62,"sample@sample.com","SISTEM INFORMASI S1","MAHASISWA BARU","30-05-2020","brosur","Lengkap","LAIN - LAIN","06-06-2020","TUTI UMYATI","IRT","087790006463","KURSIN","PNS BUMN","081804872457","BLOK KOSAMBI RT 05 RW 02","TERLAYA","BANTARKAWUNG","Brebes","Jawa Tengah",99999,0,"L","XL",3000000,{"$f":"COUNTIF('[1]Laporan PMB '!$D$8:$D$469,D75)","v":{"$error":"#VALUE!"}}]
[null,69,"GELOMBANG 2","200396OL","SAILATUL MARDIYAH","3212125609990002","ISLAM","Wanita","Indramayu","1999-09-16","MA NU PUTRI BUNTET","IPS",2018,46,"BLOK PLN RT 02 RW 01 SLIYEG LOR","SLIYEG","Indramayu","Jawa Barat","082320532409",62,"sailamardi99@gmail.com","ILMU KOMUNIKASI S1","MAHASISWA BARU","01-06-2020","brosur","Lengkap","LAIN - LAIN","13-06-2020","TATI SUDIAWATI"," ","087727152011","Abdul Rohman"," "," ","BLOK PLN RT 02 RW 01 SLIYEG LOR","SLIYEG LOR","SLIYEG","Indramayu","Jawa Barat",45281,0,"M","M",1250000,{"$f":"COUNTIF('[1]Laporan PMB '!$D$8:$D$469,D76)","v":{"$error":"#VALUE!"}}]
[null,70,"GELOMBANG 2","200402OL","RACHMAWATI MULYANI","3301015106970001","ISLAM","Wanita","Cilacap","1997-06-11","UNIVERSITAS DIPONEGORO","IPA",2019,3.75,"Dusun Sidanegara Desa Sidanegara RT/RW 04/02 Kecamatan Kedungreja Kabupaten Cilacap Jawa Tengah 53263","KEDUNGREJA","Cilacap","Jawa Tengah","085640986959",62,"rachmawatimulyani@gmail.com","INFORMATIKA S1","MAHASISWA TRANSFER","03-06-2020","brosur","Lengkap","LAIN - LAIN","06-06-2020","TASMIATI","PNS BIDAN","081548244739"," DARWAN","WIRASWASTA"," 085600400053","Dusun Sidanegara Desa Sidanegara RT/RW 04/02 Kecamatan Kedungreja Kabupaten Cilacap Jawa Tengah 53263","SIDANEGARA","KEDUNGREJA","Cilacap","Jawa Tengah",53263,0,"L","L",3500000,{"$f":"COUNTIF('[1]Laporan PMB '!$D$8:$D$469,D77)","v":{"$error":"#VALUE!"}}]
[null,71,"GELOMBANG 2","200403OL","MUHAMMAD FIKRI FIRMANSYAH","3302241412010002","ISLAM","Pria","Purwokerto","2001-12-14","SMA NEGERI 1 PATIKRAJA","IPS",2020,77.6,"Jalan Pamujan Tengah 1 No.247","PURWOKERTO SELATAN","Banyumas","Jawa Tengah","08971036400",62,"fikrifirmansyah1401@gmail.com","BISNIS DIGITAL S1","MAHASISWA BARU","03-06-2020","brosur","Lengkap","LAIN - LAIN","18-07-2020","SUCI MARWATI"," IRT","081391113630","MUJIHARTO","KARYAWAN SWASTA","0813911113630","Jalan Pamujan Tengah 1 No.247","TELUK","PURWOKERTO SELATAN","Banyumas","Jawa Tengah",53145,0,"L","L",1250000,{"$f":"COUNTIF('[1]Laporan PMB '!$D$8:$D$469,D78)","v":{"$error":"#VALUE!"}}]
[null,72,"GELOMBANG 2","200420OL","MULKI QOLBUNA SALAMIKA","3215132906010001","ISLAM","Pria","karawang","2001-06-29","MA NURUL HADID","IPA",2019,6,"KP Pakopen RT 01 RW 03 TEGALSARI","PURWASARI","Karawang","Jawa Barat","0895336821922",62,"mulkiqolbuna746@gmail.com","TEKNOLOGI INFORMASI S1","MAHASISWA BARU","08-06-2020","brosur","Lengkap","LAIN - LAIN","13-06-2020","HADIJAH"," ","08999413480","SANDI ABDULLAH"," "," ","KP Pakopen","TEGAL SARI","PURWASARI","Karawang","Jawa Barat",41373,0,"L","L",3500000,{"$f":"COUNTIF('[1]Laporan PMB '!$D$8:$D$469,D79)","v":{"$error":"#VALUE!"}}]
[null,73,"GELOMBANG 2","200421OL","JAMAL SAIFULAH","3301050911020001","ISLAM","Pria","Cilacap","2002-11-09","SMK KARYA MANDIRI","TKJ",2020,80,"Suryanegara RT02 RW02 JETIS NUSAWUNGU","NUSAWUNGU","Cilacap","Jawa Tengah","085759311869",62,"jamalsaifulah18@gmail.com","TEKNOLOGI INFORMASI S1","MAHASISWA BARU","08-06-2020","brosur","Lengkap","LAIN - LAIN","20-06-2020","SAIJEM","PETANI","082241148649","RADIMAN","NELAYAN","082241148649","Suryanegara","JETIS","NUSAWUNGU","Cilacap","Jawa Tengah",53283,0,"M","M",1750000,{"$f":"COUNTIF('[1]Laporan PMB '!$D$8:$D$469,D80)","v":{"$error":"#VALUE!"}}]
[null,74,"GELOMBANG 2","200426OL","NOVA RIANTO","3304131311010002","ISLAM","Pria","Banjarnegara","2001-11-13","SMK MA'ARIF NU 01 KARANGKOBAR","TKJ",2020,85,"Jl. Karangkobar-sampang RT03 RW03","KARANGKOBAR","BanjarNegara","Jawa Tengah","081225285338",62,"novarianto262@gmail.com","INFORMATIKA S1","MAHASISWA KELAS SORE","09-06-2020","internet","Lengkap","LAIN - LAIN","13-06-2020","TONAH"," IRT","082256010020"," SARDIMAN","KARYAWAN SWASTA"," ","Jl. Karangkobar-sampang","KARANGKOBAR","KARANGKOBAR","BanjarNegara","Jawa Tengah",53453,0,"M","M",3500000,{"$f":"COUNTIF('[1]Laporan PMB '!$D$8:$D$469,D81)","v":{"$error":"#VALUE!"}}]
[null,75,"GELOMBANG 2","200432AO","AKHDAAN DAFFA PURINDA","3304183007020002","ISLAM","Pria","BANJARNEGARA","2002-07-30","MAN PONPES MIFTAHUSSALAM BANYUMAS","IPA",2020,0,"MAJATENGAH RT03 RW02 KALIBENING","KALIBENING","BanjarNegara","Jawa Tengah","081392763504",62,"sample@sample.com","ILMU KOMUNIKASI S1","MAHASISWA BARU","11-06-2020","brosur","Lengkap","LAIN - LAIN","13-06-2020","ENDAH SURYANI","PNS","081390941007","PURWANTO"," PERANGKAT DESA","085392241321","MAJATENGAH RT03 RW02 KALIBENING","MAJATENGAH","KALIBENING","BanjarNegara","Jawa Tengah",99999,0,"L","L",1250000,{"$f":"COUNTIF('[1]Laporan PMB '!$D$8:$D$469,D82)","v":{"$error":"#VALUE!"}}]
[null,76,"GELOMBANG 2","200439AO","FAIZUNNAFI SUROSO","3304101612010002","ISLAM","Pria","BANJARNEGARA","2001-12-16","MA TANBIHUL GHOFILIN","AGAMA",2020,0,"KARANGJAMBU RT01 RW03 KANDANGWANGI BANJARNEGARA","WANADADI","BanjarNegara","Jawa Tengah","085227191547",62,"sample@sample.com","SISTEM INFORMASI S1","MAHASISWA BARU","13-06-2020","brosur","Lengkap","LAIN - LAIN","13-06-2020","LILI YULIARTI","PNS","085227191547","NOTO SUROSO"," WIRASWASTA","083837256756","KARANGJAMBU RT01 RW03 KANDANGWANGI BANJARNEGARA","KARANGJAMBU","WANADADI","BanjarNegara","Jawa Tengah",99999,0," L","L",3500000,{"$f":"COUNTIF('[1]Laporan PMB '!$D$8:$D$469,D83)","v":{"$error":"#VALUE!"}}]
[null,77,"GELOMBANG 2","200440AO","FAJRUL FALAH RAMADIAN","330340107990008","ISLAM","Pria","PURBALINGGA","1999-07-01","SMK MUHAMMADIYAH BOBOTSARI","TKJ",2018,0,"PANARUBAN RT01 RW01 KALIGONDANG"," ","Purbalingga","Jawa Tengah","082117472123",62,"sample@sample.com","SISTEM INFORMASI S1","MAHASISWA BARU","13-06-2020","brosur","Lengkap","LAIN - LAIN","20-06-2020","AFIDAH WINARNI"," "," ","SUSANTO"," "," ","PANARUBAN RT01 RW01 KALIGONDANG"," "," ","Purbalingga","Jawa Tengah",99999,0,"L","L",3500000,{"$f":"COUNTIF('[1]Laporan PMB '!$D$8:$D$469,D84)","v":{"$error":"#VALUE!"}}]
[null,78,"GELOMBANG 2","200443AO","HENDRIK KUSWOYO","3302062508960003","ISLAM","Pria","BANYUMAS","1996-08-25","SMK MPU TANTULAR KEMRANJEN","AP",2014,0,"PAGERALANG RT 02 RW 03","KEMRANJEN","Banyumas","Jawa Tengah","085893250760",62,"sample@sample.com","INFORMATIKA S1","MAHASISWA KELAS SORE","15-06-2020","brosur","Lengkap","LAIN - LAIN","27-06-2020","SATIYEM","BURUH"," ","MADMIARJO","BURUH"," ","PAGERALANG RT 02 RW 03","PAGERALANG","KEMRANJEN","Banyumas","Jawa Tengah",99999,0,"L","L",3000000,{"$f":"COUNTIF('[1]Laporan PMB '!$D$8:$D$469,D85)","v":{"$error":"#VALUE!"}}]
[null,79,"GELOMBANG 2","200445OL","PAMUNGKAS TRI PRASETYO","3302251011010001","ISLAM","Pria","Banyumas","2001-11-10","MAN 2 BANYUMAS","IPS",2019,5,"Jalan pemuda gang 1 RT 07 RW 06 KEDUNG WULUH","PURWOKERTO BARAT","Banyumas","Jawa Tengah","085227799950","085227799950","Pamungkastriprasetyo66@gmail.com","BISNIS DIGITAL S1","MAHASISWA BARU","15-06-2020","brosur","Lengkap","LAIN - LAIN","23-06-2020","TUKIYEM","PEDAGANG JAMU","085227799950","Tukiman","PEDAGANG BAKSO"," ","Jalan pemuda gang 1","KEDUNGWULUH","PURWOKERTO BARAT","Banyumas","Jawa Tengah",53131,0,"L","L",1250000,{"$f":"COUNTIF('[1]Laporan PMB '!$D$8:$D$469,D86)","v":{"$error":"#VALUE!"}}]
[null,80,"GELOMBANG 2","200460AO","SETIA DWI PRADANA","3303022810010002","ISLAM","Pria","PURBALINGGA","2001-10-28","SMK N 1 BUKATEJA","TKJ",2020,0,"KEBUTUH RT07 RW02 BUKATEJA","BUKATEJA","Purbalingga","Jawa Tengah","6285733262917","6285733262917","sample@sample.com","INFORMATIKA S1","MAHASISWA BARU","18-06-2020","brosur","Lengkap","LAIN - LAIN","20-06-2020","NURAINI","IRT","085733262917","SURATNO","PEDAGANG","081327644460","KEBUTUH RT07 RW02 BUKATEJA","KEBUTUH","BUKATEJA","Purbalingga","Jawa Tengah",53382,0,"L","L",1750000,{"$f":"COUNTIF('[1]Laporan PMB '!$D$8:$D$469,D87)","v":{"$error":"#VALUE!"}}]
[null,81,"GELOMBANG 2","200464OL","MUHAMAD RIZKI PADILAH","3279042308010001","ISLAM","Pria","Bekasi","2001-08-23","SMKN 3 BANJAR","RPL",2020,8.23,"Jln.mandor martinem roy 1 No 58","LANGENSARI","Kota Banjar","Jawa Barat","6281213831780","62895358483070","godjobb22@gmail.com","INFORMATIKA S1","MAHASISWA BARU","19-06-2020","teman/saudara","Lengkap","LAIN - LAIN","23-06-2020","ELIN HERLINA","IRT","08963243999","DEDE INDRAWAN","WIRASWASTA","087773653600","Jln.mandor martinem roy 1 No 58","REJASARI","LANGENSARI","Kota Banjar","Jawa Barat",46344,0,"XL","XL",3500000,{"$f":"COUNTIF('[1]Laporan PMB '!$D$8:$D$469,D88)","v":{"$error":"#VALUE!"}}]
[null,82,"GELOMBANG 2","200473AO","WAHYU WIJAYANTO","3302201704950001","ISLAM","Pria","KEBUMEN","1995-04-17","SEKOLAH TINGGI TEKNIK PLN JAKARTA","TEKNIK ELEKTRO",2020,0,"PERUM GRIYA SYIFA AMANDA BLOK D NO.2 RT 03 RW 10 PAMIJEN","KEMBARAN","Banyumas","Jawa Tengah","088221757834","088221757834","sample@sample.com","INFORMATIKA S1","MAHASISWA PINDAHAN","22-06-2020","brosur","Lengkap","LAIN - LAIN","27-06-2020","SUAMRNI","IRT","088229749494","TRI WAHONO","PENSIUNAN","0815200469988","PERUM GRIYA SYIFA AMANDA BLOK D NO.2 RT 03 RW 10 PAMIJEN","PAMIJEN","KEMBARAN","Banyumas","Jawa Tengah",99999,0,"L","L",3500000,{"$f":"COUNTIF('[1]Laporan PMB '!$D$8:$D$469,D89)","v":{"$error":"#VALUE!"}}]
[null,83,"GELOMBANG 2","200474AO","NAUVAL DWI YUZHAK AKHMARULLAH","3301112510020001","ISLAM","Pria","CILACAP","2002-10-25","SMK NEGERI 1 WANAREJA","TEKNIK OTOMOTIF",2020,0,"JL MAWAR DSN. CITENGAH RT 09 RW 01 TEGALSARI KEC. SIDAREJA KEB. CILACAP JAWA TENGAH","SIDAREJA","Cilacap","Jawa Tengah","628950818696","628950818696","sample@sample.com","SISTEM INFORMASI S1","MAHASISWA BARU","22-06-2020","teman/saudara","Lengkap","LAIN - LAIN","22-06-2020","EKA PRIYANINGSIH, S.PD","GURU","081327056307","SUPARWI, S.Pd","PNS","085291235687","JL MAWAR DSN. CITENGAH RT 09 RW 01 TEGALSARI KEC. SIDAREJA KEB. CILACAP JAWA TENGAH","TEGALSARI","SIDAREJA","Cilacap","Jawa Tengah",53261,0,"XXL","XXL",3500000,{"$f":"COUNTIF('[1]Laporan PMB '!$D$8:$D$469,D90)","v":{"$error":"#VALUE!"}}]
[null,84,"GELOMBANG 2","200477AO","EDO PUTRA PRATAMA","3303130707020007","ISLAM","Pria","PURBALINGGA","2002-07-07","SMA N 1 REMBANG","IPS",2020,7.7,"BODASKARANGJATI RT 03 RW 03 KEC. REMBANG KAB. PURBALINGGA JWA TENGAH","REMBANG","Purbalingga","Jawa Tengah","087879760625","087879760625","sample@sample.com","SISTEM INFORMASI S1","MAHASISWA BARU","22-06-2020","brosur","Lengkap","LAIN - LAIN","22-06-2020","YULIATI","IRT"," ","HERU NURCAHYO","SWASTA","085227950430","BODASKARANGJATI RT 03 RW 03 KEC. REMBANG KAB. PURBALINGGA JWA TENGAH","BODARKARANGJATI","REMBANG","Purbalingga","Jawa Tengah",53356,0,"XL","XL",3000000,{"$f":"COUNTIF('[1]Laporan PMB '!$D$8:$D$469,D91)","v":{"$error":"#VALUE!"}}]
[null,85,"GELOMBANG 2","200481AO","DEWI SAPUTRI","3303125301020002","ISLAM","Pria","PURBALINGGA","2002-01-13","SMA N 1 BOBOTSARI","MIPA",2020,0,"DESA SELATAN DUSUN 1 KELURAHAN TUNJUNGMULI","KARANGMONCOL","Purbalingga","Jawa Tengah","0838618781",62,"sample@sample.com","ILMU KOMUNIKASI S1","MAHASISWA BARU","23-06-2020","brosur","Lengkap","LAIN - LAIN","23-06-2020","WARDIYATI","IRT","081228160513","ROKHANI","PETANI"," ","DESA SELATAN DUSUN 1 KELURAHAN TUNJUNGMULI","TUNJUNGMULI","KARANGMONCOL","Purbalingga","Jawa Tengah",99999,0,"M","M",1250000,{"$f":"COUNTIF('[1]Laporan PMB '!$D$8:$D$469,D92)","v":{"$error":"#VALUE!"}}]
[null,86,"GELOMBANG 2","200483AO","SEPTIYA NUR FADILLAH","330224570001","ISLAM","Wanita","PURWOKERTO","2001-09-17","SMK N 1 PURWOKERTO","RPL",2020,0,"JL. PANCURAWIS NO 14 RT 2 RW 3 PURWOKERTO KIDUL","PURWOKERTO SELATAN","Banyumas","Jawa Tengah","083107041162","083107041162","sample@sample.com","SISTEM INFORMASI S1","MAHASISWA BARU","24-06-2020","brosur","Lengkap","LAIN - LAIN","27-06-2020","SRI RAHAYU","IRT","081578860931","ACHMAD DJUNAEDI","WIRASWASTA","085726264478","JL. PANCURAWIS NO 14 RT 2 RW 3 PURWOKERTO KIDUL","PURWOKERTO KIDUL","PURWOKERTO SELATAN","Banyumas","Jawa Tengah",99999,0,"L","L",3500000,{"$f":"COUNTIF('[1]Laporan PMB '!$D$8:$D$469,D93)","v":{"$error":"#VALUE!"}}]
[null,87,"GELOMBANG 2","200484AO","ANSARESI ALFAJRI LAKSAWUKIR","3302241404020002","ISLAM","Pria","PURWOKERTO","2002-04-14","SMK N 1 PURWOKERTO","RPL",2020,0,"JL. PAMUJAN ASRI I RT 07 RW 10 TELUK","PURWOKERTO SELATAN","Banyumas","Jawa Tengah","089669677790","089669677790","sample@sample.com","ILMU KOMUNIKASI S1","MAHASISWA BARU","24-06-2020","brosur","Lengkap","LAIN - LAIN","27-06-2020","SRI HARTINI","PEDAGANG","085227555445","DIDIK WAHYU SULISTYAJI","BURUH","082225491323","JL. PAMUJAN ASRI I RT 07 RW 10 TELUK","TELUK","PURWOKERTO SELATAN","Banyumas","Jawa Tengah",99999,0,"XXL","XXL",1250000,{"$f":"COUNTIF('[1]Laporan PMB '!$D$8:$D$469,D94)","v":{"$error":"#VALUE!"}}]
[null,88,"GELOMBANG 2","200485OL","MUHAMMAD FIKRI IBNU AZIZ","3301060103000002","ISLAM","Pria","Cilacap ","2000-03-01","MAN 1 BANYUMAS","Lainnya",2018,68.2,"Paus no. 25 rt 25 rw 03  sikampuh kroya","KROYA","Cilacap","Jawa Tengah","081325265157",62,"tujuhtujuh00@gmail.com","TEKNOLOGI INFORMASI S1","MAHASISWA BARU","25-06-2020","internet","Lengkap","LAIN - LAIN","27-06-2020","TRI WIDAYATI"," ","082138058795","AZIZ MUSLIM, S.Ag"," "," ","Paus no. 25","SIKAMPUH","KROYA","Cilacap","Jawa Tengah",53282,0,"L","L",1750000,{"$f":"COUNTIF('[1]Laporan PMB '!$D$8:$D$469,D95)","v":{"$error":"#VALUE!"}}]
[null,89,"GELOMBANG 2","200486AO","SA'ID NUR AWALI","3302180304020004","ISLAM","Pria","BANYUMAS","2002-04-03","SMK CITRA BANGSA MANDIRI","FARMASI",2020,80,"SINGASARI RT02 RW06 KARANG LEWAS","KARANGLEWAS","Banyumas","Jawa Tengah","085877344945",62,"sample@sample.com","INFORMATIKA S1","MAHASISWA BARU","25-06-2020","brosur","Lengkap","LAIN - LAIN","25-06-2020","KUSMIYATI"," IRT","085700601970","BUDI HARSONO","WIRASWASTA","085700601970","SINGASARI RT02 RW06 KARANG LEWAS","SINGASARI","KARANGLEWAS","Banyumas","Jawa Tengah",99999,0," L"," L",3500000,{"$f":"COUNTIF('[1]Laporan PMB '!$D$8:$D$469,D96)","v":{"$error":"#VALUE!"}}]
[null,90,"GELOMBANG 2","200488AO","TEGAR SUBEKTI","3302152306020001","ISLAM","Pria","BANYUMAS","2002-06-23","SMK MUHAMMADIYAH 1 AJIBARANG","TKJ",2020,0,"GRUMBUL SITU RT04 RW04 KARANG KEMOJING","GUMELAR","Banyumas","Jawa Tengah","083857733330",62,"sample@sample.com","TEKNOLOGI INFORMASI S1","MAHASISWA BARU","26-06-2020","brosur","Lengkap","LAIN - LAIN","27-06-2020","SARIKEM","IRT","083833496337","SIYAM MARSITO","KARYAWAN SWASTA","081548257088","GRUMBUL SITU RT04 RW04 KARANG KEMOJING","KARANGKEMOJING","GUMELAR","Banyumas","Jawa Tengah",99999,0,"XL","XL",1750000,{"$f":"COUNTIF('[1]Laporan PMB '!$D$8:$D$469,D97)","v":{"$error":"#VALUE!"}}]
[null,91,"GELOMBANG 2","200493AO","HENDRI MUJI WALUYO","3303022410990001","ISLAM","Pria","PURBALINGGA","1999-08-24","SMK HKTI 2 PURWAREJA KLAMPOK","TKR",2017,0,"JL.LANUD WIRASABA RT3 RW3 KEMBANGAN BUKATEJA","BUKATEJA","Purbalingga","Jawa Tengah","081384593375",62,"sample@sample.com","INFORMATIKA S1","MAHASISWA BARU","27-06-2020","brosur","Lengkap","LAIN - LAIN","18-07-2020","KARSINI","IRT","085319351160","ALM RUSWANTO"," "," ","JL.LANUD WIRASABA RT3 RW3 KEMBANGAN BUKATEJA","KEMBANGAN","BUKATEJA","Purbalingga","Jawa Tengah",99999,0,"L","L",3500000,{"$f":"COUNTIF('[1]Laporan PMB '!$D$8:$D$469,D98)","v":{"$error":"#VALUE!"}}]
[null,92,"GELOMBANG 2","200497AO","MUHAMAD RIZAL FAUZY","3329010210000004","ISLAM","Pria","BREBES","2000-10-02","SMK ISLAM AL AMANAH","TSM",2019,8.4,"BENTAR RT 01 RW 04","SALEM","Brebes","Jawa Tengah","082313124795","082313124795","sample@sample.com","TEKNOLOGI INFORMASI S1","MAHASISWA BARU","29-06-2020","brosur","Lengkap","LAIN - LAIN","04-07-2020","RIYANTI","PEDAGANG"," ","KUSMAN FAOZY"," WIRASWASTA","085700426711","BENTAR RT 01 RW 04","BENTAR","SALEM","Brebes","Jawa Tengah",99999,0,{"$nulls":3},{"$f":"COUNTIF('[1]Laporan PMB '!$D$8:$D$469,D99)","v":{"$error":"#VALUE!"}}]
[null,93,"GELOMBANG 2","200502OL","MOCHAMAD ALIF PRAYOGO","3304041612000002","ISLAM","Pria","Banjarnegara","2000-12-16","SMKN 2 BAWANG","TKJ",2019,7.48,"Kalimendong / Danaraja, SDN 4 Danaraja ke Barat, belok kanan gang ke 2","PURWONEGORO","BanjarNegara","Jawa Tengah","081229852973",62,"alifpm55@gmail.com","INFORMATIKA S1","MAHASISWA BARU","01-07-2020","internet","Lengkap","LAIN - LAIN","18-07-2020","SUKARTI","IRT","082323817034"," SUWANDI","BURUH","085221721790","Kalimendong / Danaraja, SDN 4 Danaraja ke Barat, belok kanan gang ke 2","KALIMENDONG","PURWONEGORO","BanjarNegara","Jawa Tengah",53472,0,"XL","XL",3500000,{"$f":"COUNTIF('[1]Laporan PMB '!$D$8:$D$469,D100)","v":{"$error":"#VALUE!"}}]
[null,94,"GELOMBANG 2","200503OL","AKHMAD SHOLIHUDIN","3301110103020001","ISLAM","Pria","Cilacap","1970-01-01","MA AL ITTIHAD SIDAREJA","IPS",2020,75,"Jl.Makam pahlawan RT 06 RW 03 TINGAR JAYA","SIDAREJA","Cilacap","Jawa Tengah","083133921148",62,"ahmaddilan367@gmail.com","ILMU KOMUNIKASI S1","MAHASISWA BARU","01-07-2020","brosur","Lengkap","LAIN - LAIN","11-07-2020","BONIRAH","IRT","082221525924","SUMARLAN","WIRAUSAHA","085221924963","Jl.Makam pahlawan","TINGGARJAYA","SIDAREJA","Cilacap","Jawa Tengah",53261,0,"L","XL",1250000,{"$f":"COUNTIF('[1]Laporan PMB '!$D$8:$D$469,D101)","v":{"$error":"#VALUE!"}}]
[null,95,"GELOMBANG 2","200504OL","MIA SETYA RAHAYU","3301044801030002","ISLAM","Wanita","Cilacap","2003-01-08","SMK NEGRI 1 BINANGUN","TKJ",2020,82,"Binangun, jalan merdeka RT 4 RW 2","BINANGUN","Cilacap","Jawa Tengah","081575761364",62,"miasetya0801@gmail.com","SISTEM INFORMASI S1","MAHASISWA BARU","01-07-2020","brosur","Lengkap","LAIN - LAIN","04-07-2020","DYAH SETYARINI","IRT","081326072051","SIMIN","PNS","081391199564","Binangun, jalan merdeka","BINANGUN","BINANGUN","Cilacap","Jawa Tengah",53281,0," "," ",3500000,{"$f":"COUNTIF('[1]Laporan PMB '!$D$8:$D$469,D102)","v":{"$error":"#VALUE!"}}]
[null,96,"GELOMBANG 2","200505AO","RA GENTAR AMAR MA'RUF","3303022311010001","ISLAM","Pria","PURBALINGGA","2001-11-23","SMA N 1 BIKATEJA","IPS",2019,0,"CIPAWON RT03 RW05","BUKATEJA","Purbalingga","Jawa Tengah","085326794340",62,"sample@sample.com","INFORMATIKA S1","MAHASISWA KELAS SORE","02-07-2020","brosur","Lengkap","LAIN - LAIN","04-07-2020","NURHAYATI","IRT"," ","SAEFUDIN","PERANGKAT DESA ","085326794340","CIPAWON RT03 RW05 BUKATEJA","CIPAWON","BUKATEJA","Purbalingga","Jawa Tengah",99999,0,"M","M",3500000,{"$f":"COUNTIF('[1]Laporan PMB '!$D$8:$D$469,D103)","v":{"$error":"#VALUE!"}}]
[null,97,"GELOMBANG 2","200506AO","SATIRAH","3302196210990005","ISLAM","Wanita","BANYUMAS","1999-10-22","SMK MUHAMMADIYAH 3 PURWOKERTO","TKJ",2019,0,"KARANGNANAS RT 01 RW 05","SOKARAJA","Banyumas","Jawa Tengah","083104812172","083104812172","sample@sample.com","TEKNOLOGI INFORMASI S1","MAHASISWA BARU","02-07-2020","brosur","Lengkap","LAIN - LAIN","04-07-2020","KARSIDAH","TKW","85256207292","WARKIM","TUKANG KAYU","08384427399","KARANGNANAS RT 01 RW 05","KARANGNANAS","SOKARAJA","Banyumas","Jawa Tengah",99999,0,"M","M",1750000,{"$f":"COUNTIF('[1]Laporan PMB '!$D$8:$D$469,D104)","v":{"$error":"#VALUE!"}}]
[null,98,"GELOMBANG 2","200516AO","HANS STAVIERA CHRISTY","3302252109020001","ISLAM","Pria","BANYUMAS","2002-09-21","SMA N 1 PATIKRAJA","IPS",2020,0,"KEDUNG WRINGIN RT01 RW08 PATIKRAJA","PATIKRAJA","Banyumas","Jawa Tengah","081317866347",62,"sample@sample.com","TEKNOLOGI INFORMASI S1","MAHASISWA BARU","06-07-2020","brosur","Lengkap","LAIN - LAIN","11-07-2020","DIAH PURWANTI","IRT","085842678454","KRSITIONO HARTANTO","KARYAWAN SWASTA ","081902966660","KEDUNG WRINGIN RT01 RW08 PATIKRAJA","KEDUNGWRINGIN","PATIKRAJA","Banyumas","Jawa Tengah",99999,0,"M","M",1750000,{"$f":"COUNTIF('[1]Laporan PMB '!$D$8:$D$469,D105)","v":{"$error":"#VALUE!"}}]
[null,99,"GELOMBANG 2","200519AO","FIRMAN MUNTAQO","3302242210020001","ISLAM","Pria","PURWOKERTO","2002-10-22","SMK WIWOROTOMO PURWOKERTO","TPM",2020,8.1,"JL. MARTOSAYOGO RT 05 RW 02 TELUK","PURWOKERTO SELATAN","Banyumas","Jawa Tengah","088227836437",62,"sample@sample.com","SISTEM INFORMASI S1","MAHASISWA BARU","07-07-2020","internet","Lengkap","LAIN - LAIN","11-07-2020","SUPRIYATIN","DAGANG","085879766256","PRABOWO ADI NUGROHO","DAGANG","085329719874","JL. MARTOSAYOGO RT 05 RW 02 TELUK","TELUK","PURWOKERTO SELATAN","Banyumas","Jawa Tengah",99999,0,"XXL","XXL",3500000,{"$f":"COUNTIF('[1]Laporan PMB '!$D$8:$D$469,D106)","v":{"$error":"#VALUE!"}}]
[null,100,"GELOMBANG 2","200528AO","SHAFIRINA ARSYDINI SHIDQI","3301214603010004","ISLAM","Wanita","BLORA","2001-03-06","SMA N 1 JERUKLEGI","IPS",2020,99,"PERUM GRIYA TRITIH ASRI E-12 RT 2 RW 11 TRITIH LOR","CILACAP TIMUR","Cilacap","Jawa Tengah","088229860168","088229860168","shafirinaarsydinis@gmail.com","ILMU KOMUNIKASI S1","MAHASISWA BARU","11-07-2020","teman/saudara","Lengkap","KARYAWAN","14-07-2020","TINA ISBANDINI","IBU RUMAH TANGGA","08386836688","TAUFIK","PNS","085292788679","PERUM GRIYA TRITIH ASRI E-12 RT 2 RW 11 TRITIH LOR","TRITIH LOR","CILACAP TIMUR","Cilacap","Jawa Tengah",99999,0,"L","L",2000000,{"$f":"COUNTIF('[1]Laporan PMB '!$D$8:$D$469,D107)","v":{"$error":"#VALUE!"}}]
[null,101,"GELOMBANG 2","200529OL","MUHAMAD FAJAR TSANY ADZIKRI","3327061001030002","ISLAM","Pria","Bogor","2003-01-10","SMK NEGERI 1 RANDUDONGKAL","MESIN",2020,85,"Desa Bantarbolang","BANTARBOLANG","Pemalang","Jawa Tengah","085294281841",62,"fajartsany23@gmail.com","ILMU KOMUNIKASI S1","MAHASISWA BARU","11-07-2020","brosur","Lengkap","LAIN - LAIN","18-07-2020","SRI EKA SETYAWATI","IRT","081391354323","KASITO","KARYAWAN SWASTA","082117313973","Desa Bantarbolang","BANTARBOLANG","BANTARBOLANG","Pemalang","Jawa Tengah",52352,0,"XL","XL",1250000,{"$f":"COUNTIF('[1]Laporan PMB '!$D$8:$D$469,D108)","v":{"$error":"#VALUE!"}}]
[null,102,"GELOMBANG 2","200532AO","RIKO DINOVA","3301132904020002","ISLAM","Pria","CILACAP","2002-04-29","SMK N 1 KARANGPUCUNG","TKRO",2020,0,"PESANANGAN RT 02 RW 06","CIMANGGU","Cilacap","Jawa Tengah","087735335995","087735335995","sample@sample.com","SISTEM INFORMASI S1","MAHASISWA BARU","13-07-2020","brosur","Lengkap","LAIN - LAIN","13-07-2020","TARTEM","IRT","087719735422","KARTO","PETANI"," 087837016799","PESANANGAN RT 02 RW 06","PESANANGAN","CIMANGGU","Cilacap","Jawa Tengah",99999,0,"L","XL",3500000,{"$f":"COUNTIF('[1]Laporan PMB '!$D$8:$D$469,D109)","v":{"$error":"#VALUE!"}}]
[null,103,"GELOMBANG 2","200533AO","DZAKIY FIRMANSYAH","3304060909990002","ISLAM","Pria","BANJARNEGARA","1999-09-09","MAN 2 BANJARNEGARA","IPS",2017,5.75,"KUTABANJARNEGARA RT 04 RW 05","BANJARNEGARA","BanjarNegara","Jawa Tengah","085136370516","085136370516","sample@sample.com","ILMU KOMUNIKASI S1","MAHASISWA BARU","13-07-2020","brosur","Lengkap","LAIN - LAIN","16-07-2020","ISTIKHAROH","SWASTA","085295492651","DADANG SANTOSA"," SWASTA","082322934284","KUTABANJARNEGARA RT 04 RW 05","KUTABANJARNEGARA","BANJARNEGARA","BanjarNegara","Jawa Tengah",99999,0,"M","M",1250000,{"$f":"COUNTIF('[1]Laporan PMB '!$D$8:$D$469,D110)","v":{"$error":"#VALUE!"}}]
[null,104,"GELOMBANG 2","200534AO","ANGGI RAHMAWATI","3304015807000001","ISLAM","Wanita","BANJARNEGARA","2000-07-18","SMK HKTI 1 KLAMPOK","AKUNTANSI",2020,0,"JL. SEKAR KEMUNING RAYA NO 43 PERUM GRIYA ABADI KENCANA RT 02 RW 09","PURBALINGGA WETAN","Purbalingga","Jawa Tengah","085691108326",62,"sample@sample.com","ILMU KOMUNIKASI S1","MAHASISWA BARU","13-07-2020","brosur","Lengkap","LAIN - LAIN","13-07-2020","SUPARMI","PEDAGANG","085327497777","ALM ITIN SUTARLAN"," "," ","JL. SEKAR KEMUNING RAYA NO 43 PERUM GRIYA ABADI KENCANA RT 02 RW 09","PURBALINGGA","PURBALINGGA WETAN","Purbalingga","Jawa Tengah",99999,0,"XL","XL",1250000,{"$f":"COUNTIF('[1]Laporan PMB '!$D$8:$D$469,D111)","v":{"$error":"#VALUE!"}}]
[null,105,"GELOMBANG 2","200535AO","FAKHRI ARDANA","3302271410000002","ISLAM","Pria","BANYUMAS","2000-10-14","SMK TUJUH LIMA 1 PURWOKERTO","MUMTIMEDIA",2020,0,"PERUM SHAMARA BLOK A3 RT 08 RW 01 CIBEREM","SUMBANG","Banyumas","Jawa Tengah","085326753631","085326753631","sample@sample.com","ILMU KOMUNIKASI S1","MAHASISWA BARU","13-07-2020","brosur","Lengkap","LAIN - LAIN","18-07-2020","NUR ATI RUSTIASIH"," IRT","081240609751","ARIEF HARYONO","SWASTA","082187492440","PERUM SHAMARA BLOK A3 RT 08 RW 01","CIBEREM","SUMBANG","Banyumas","Jawa Tengah",99999,0,"L","L",1250000,{"$f":"COUNTIF('[1]Laporan PMB '!$D$8:$D$469,D112)","v":{"$error":"#VALUE!"}}]
[null,106,"GELOMBANG 2","200539AO","FIFIN MILLA FELICE DAELI","3303065601010001","ISLAM","Wanita","PURBALINGGA","2001-01-16","SMA N 1 PURBALINGGA","MIPA",2019,0,"KARANGMANYAR RT 02 RW 03"," ","Purbalingga","Jawa Tengah","082313562566",62,"sample@sample.com","INFORMATIKA S1","MAHASISWA BARU","14-07-2020","brosur","Lengkap","LAIN - LAIN","18-07-2020","INGATI DAELI","IRT"," ","FERITAS DAELI","WIRASWASTA","081327343366","KARANGMANYAR RT 02 RW 03"," "," ","Purbalingga","Jawa Tengah",99999,0,"M","M",1250000,{"$f":"COUNTIF('[1]Laporan PMB '!$D$8:$D$469,D113)","v":{"$error":"#VALUE!"}}]
[null,107,"GELOMBANG 2","200546AO","HANIFAH NUR ALIYYAH","3303064906020001","ISLAM","Wanita","PURBALINGGA","2002-06-09","SMK N 1 BOJONGSARI","MULTIMEDIA",2020,0,"JL. GUNUNG KRATON RT 04 RW 03 BABAKAN","KALIMANAH","Purbalingga","Jawa Tengah","085700492860","085700492860","sample@sample.com","INFORMATIKA S1","MAHASISWA BARU","15-07-2020","brosur","Lengkap","LAIN - LAIN","18-07-2020","SANTI","IRT"," ","WARISNO","WIRASWASTA","081541282735","JL. GUNUNG KRATON RT 04 RW 03 BABAKAN","BABAKAN","KALIMANAH","Purbalingga","Jawa Tengah",99999,0,"M","M",1250000,{"$f":"COUNTIF('[1]Laporan PMB '!$D$8:$D$469,D114)","v":{"$error":"#VALUE!"}}]
[null,108,"GELOMBANG 2","200554AO","AZIZTY NAFA SALSABELLA","3302124409020003","ISLAM","Wanita","BANYUMAS","2002-09-04","SMA N 1 PATIKRAJA","IPA",2020,0,"KEDUNGWRINGIN RT 02 RW 06","PATIKRAJA","Banyumas","Jawa Tengah","085601502229","085601502229","sample@sample.com","BISNIS DIGITAL S1","MAHASISWA BARU","16-07-2020","brosur","Lengkap","LAIN - LAIN","18-07-2020","ANI KURNIASIH","IRT","088983284107","SUGIANTO","BURUH","081226353955","KEDUNGWRINGIN RT 02 RW 06","KEDUNGWRINGIN","PATIKRAJA","Banyumas","Jawa Tengah",99999,0,"L"," M",1250000,{"$f":"COUNTIF('[1]Laporan PMB '!$D$8:$D$469,D115)","v":{"$error":"#VALUE!"}}]
[null,109,"GELOMBANG 2","200556AO","ATMAJA JALU NARENDRA KISMA","3328010905010005","ISLAM","Pria","TEGAL","2001-05-09","SMA N 1 BALAPILANG","IPA",2019,4.45,"JEMBAYAT RT 04 RW 09 JATILAWANG","MARGASARI","Kab. Tegal","Jawa Tengah","082323532673",62,"sample@sample.com","SISTEM INFORMASI S1","MAHASISWA BARU","18-07-2020","brosur","Lengkap","LAIN - LAIN","18-07-2020","MUJI HARTATI","IRT","081806732424","ABDUL KHALIM","PEDAGANG","081391710296","JEMBAYAT RT 04 RW 09 JATILAWANG","JEMBAYAT","MARGASARI","Kab. Tegal","Jawa Tengah",99999,0," XL"," XL",3500000,{"$f":"COUNTIF('[1]Laporan PMB '!$D$8:$D$469,D116)","v":{"$error":"#VALUE!"}}]
[null,110,"GELOMBANG 2","200561AO","DWI NURHIDAYAT","3303012105000002","ISLAM","Pria","PURBALINGGA","2000-05-21","SMA BUDI UTOMO PERAK","IPS",2018,0,"TOYAREKA RT01 RW10 KEMANGKON","KEMANGKON","Purbalingga","Jawa Tengah","085701033712",62,"sample@sample.com","TEKNOLOGI INFORMASI S1","MAHASISWA BARU","20-07-2020","brosur","Lengkap","LAIN - LAIN","20-07-2020","WIDI ASTUTI","IRT","085712925410","TAUHID HIDAYATULLOH"," WIRASWASTA","089644906233","TOYAREKA RT01 RW10 KEMANGKON","TOYAREKA","KEMANGKON","Purbalingga","Jawa Tengah",99999,0,"XL","XL",1750000,{"$f":"COUNTIF('[1]Laporan PMB '!$D$8:$D$469,D117)","v":{"$error":"#VALUE!"}}]
[null,111,"GELOMBANG 2","200568OL","MUHAMAD SOLEH","3302032804000003","ISLAM","Pria","Jakarta","2000-04-28","SMA NEGERI 1 RAWALO","IPA",2018,37.5,"Desa Adisara RT05 RW02 JATILAWANG","JATILAWANG","Banyumas","Jawa Tengah","081325210155",62,"Solehmuhammad764@gmail.com","INFORMATIKA S1","MAHASISWA BARU","21-07-2020","internet","Lengkap","LAIN - LAIN","25-07-2020","SANIYEM","IRT","08176353054","DARSO","PENSIUNAN"," ","Desa Adisara","ADISARA","JATILAWANG","Banyumas","Jawa Tengah",53174,0,"XL","XL",3500000,{"$f":"COUNTIF('[1]Laporan PMB '!$D$8:$D$469,D118)","v":{"$error":"#VALUE!"}}]
[null,112,"GELOMBANG 2","200572AO","FAJAR AKMALI RIZQI","3301142809010003","ISLAM","Pria","Cilacap","2001-09-28","SMK KOMPUTAMA MAJENANG","TKJ",2019,0,"PADANGSARI RT02 RW05 MAJENANG","MAJENANG","Cilacap","Jawa Tengah","081299886846","083844559488","sample@sample.com","INFORMATIKA S1","MAHASISWA BARU","22-07-2020","brosur","Lengkap","LAIN - LAIN","25-07-2020","UNI ATIKAH","IRT","081227792544","TUMIRAN","WIRASWASTA","085706107555","PADANGSARI RT02 RW05 MAJENANG","PADANGSARI","MAJENANG","Cilacap","Jawa Tengah",99999,0,"L","XL",2000000,{"$f":"COUNTIF('[1]Laporan PMB '!$D$8:$D$469,D119)","v":{"$error":"#VALUE!"}}]
[null,113,"GELOMBANG 2","200575OL","RIZAL EKA SEPTOAJI","3301172209020001","ISLAM","Pria","CILACAP","2002-09-22","SMK N 1 BANYUMAS","MULTIMEDIA",2020,85,"Desa Paberasan Rt05/01  kecamatan sampang kabupaten cilacap","SAMPANG","Cilacap","Jawa Tengah","0895401250252",62,"rizalekaseptoaji@gmail.com","INFORMATIKA S1","MAHASISWA BARU","22-07-2020","brosur","Lengkap","LAIN - LAIN","30-07-2020","TUSIYEM","PEDAGANG","089669886022","SUKARMAN"," "," ","Desa Paberasan Rt05/01  kecamatan sampang kabupaten cilacap","PABERASAN","SAMPANG","Cilacap","Jawa Tengah",53273,0,"L","L",3500000,{"$f":"COUNTIF('[1]Laporan PMB '!$D$8:$D$469,D120)","v":{"$error":"#VALUE!"}}]
[null,114,"GELOMBANG 2","200579AO","ARRIZIQ","3212150106020004","ISLAM","Pria","INDRAMAYU","2002-06-01","SMK WICAKSANA AL HIKMAH","TKJ",2020,73,"JL.AZIZI BLOK KR RT07 RW02 SINGAJAYA","INDRAMAYU","Indramayu","Jawa Barat","08895043905","08895043905","sample@sample.com","TEKNOLOGI INFORMASI S1","MAHASISWA BARU","23-07-2020","brosur","Lengkap","LAIN - LAIN","25-07-2020","TITIN SUPRIYATIN","IRT","087828715485","MAKMURI","WIRASWASTA","085795229310","JL.AZIZI BLOK KR RT07 RW02 SINGAJAYA","SINGAJAYA","INDRAMAYU","Indramayu","Jawa Barat",99999,0,"L","L",1750000,{"$f":"COUNTIF('[1]Laporan PMB '!$D$8:$D$469,D121)","v":{"$error":"#VALUE!"}}]
[null,115,"GELOMBANG 2","200583AO","TIO ARGATARA WIDODO","3212181802030001","ISLAM","Pria","INDRAMAYU","2003-02-18","SMA N 2 INDRAMAYU","IPA",2020,8.5,"LOHBENER RT 39 RW 08","LOHBENER","Indramayu","Jawa Barat","085314635430",62,"sample@sample.com","TEKNOLOGI INFORMASI S1","MAHASISWA BARU","24-07-2020","teman/saudara","Lengkap","LAIN - LAIN","25-07-2020","JULIAH","IRT","085220215367","WIDODO","SALES MOBIL","081312319252","LOHBENER RT 39 RW 08","LOHBENER","LOHBENER","Indramayu","Jawa Barat",99999,0,"L","L",1750000,{"$f":"COUNTIF('[1]Laporan PMB '!$D$8:$D$469,D122)","v":{"$error":"#VALUE!"}}]
[null,116,"GELOMBANG 2","200587AO","FARAH ANIS RAHMAWATI","3303155008020001","ISLAM","Wanita","PURBALINGGA","2002-08-10","SMA N 1 PADAMARA","IPS",2020,0,"PADAMARA RT 01 RW 01","PADAMARA","Purbalingga","Jawa Tengah","089619288163",62,"sample@sample.com","ILMU KOMUNIKASI S1","MAHASISWA BARU","25-07-2020","brosur","Lengkap","LAIN - LAIN","27-07-2020","INDAH WIDI ASTUTI","BURUH","085868877897","NGASYROH","KARYAWAN SWASTA","085747762576","PADAMARA RT 01 RW 01","PADAMARA","PADAMARA","Purbalingga","Jawa Tengah",99999,0,"S","S",1250000,{"$f":"COUNTIF('[1]Laporan PMB '!$D$8:$D$469,D123)","v":{"$error":"#VALUE!"}}]
[null,117,"GELOMBANG 2","200589OL","TARISA RIZKY APRILIA","3207225604020001","ISLAM","Wanita","Ciamis","2002-04-16","SMAN 1 PANGANDARAN","IPA",2020,90.8,"Dusun Karangsalam","PANGANDARAN","Ciamis","Jawa Barat","088213786354",62,"tarisarizky10@gmail.com","TEKNOLOGI INFORMASI S1","MAHASISWA BARU","25-07-2020","brosur","Lengkap","LAIN - LAIN","30-07-2020","MUNARNI"," ","082118088814"," "," "," ","Dusun Karangsalam","PANANJUNG","PANGANDARAN","Ciamis","Jawa Barat",46396,0,{"$nulls":3},{"$f":"COUNTIF('[1]Laporan PMB '!$D$8:$D$469,D124)","v":{"$error":"#VALUE!"}}]
[null,118,"GELOMBANG 2","200595AO","MAINAR RAHMAWATI","3302264305010002","ISLAM","Wanita","BANYUMAS","2001-05-03","MAN 2 BANYUMAS","IPA",2019,0,"JL. GEREJA NO 3/33 RT 02 RW 07 SOKANEGARA","PURWOKERTO TIMUR","Banyumas","Jawa Tengah","085866218924",62,"sample@sample.com","ILMU KOMUNIKASI S1","MAHASISWA BARU","27-07-2020","brosur","Lengkap","LAIN - LAIN","27-07-2020","HARNIYATI","WIRASWASTA","085866010610","FARID SUROYO","WIRASWASTA","0281627801","JL. GEREJA NO 3/33 RT 02 RW 07 SOKANEGARA","JL. GEREJA NO 3/33 RT 02 RW 07 SOKANEGARA","PURWOKERTO TIMUR","Banyumas","Jawa Tengah",99999,0,"L","L",1250000,{"$f":"COUNTIF('[1]Laporan PMB '!$D$8:$D$469,D125)","v":{"$error":"#VALUE!"}}]
[null,119,"GELOMBANG 2","200600AO","AMANDA INKA DWI LESTIANI","3302224711020002","ISLAM","Wanita","BANYUMAS","2002-11-07","SMA N 1 BATURRADEN",2020,"IPS",0,"JL. MOHAMMAD BESAR RT 01 RW 01 KUTASARI","BATURRADEN","Banyumas","Jawa Tengah","0858876646441","0858876646441","sample@sample.com","ILMU KOMUNIKASI S1","MAHASISWA BARU","27-07-2020","brosur","Lengkap","LAIN - LAIN","27-07-2020","SRI LESTARI","PNS","082137882518","AHMAD YANI","WIRASWASTA"," ","JL. MOHAMMAD BESAR RT 01 RW 01 KUTASARI","KUTASARI","BATURRADEN","Banyumas","Jawa Tengah",99999,0,"S","S",1250000,{"$f":"COUNTIF('[1]Laporan PMB '!$D$8:$D$469,D126)","v":{"$error":"#VALUE!"}}]
[null,120,"GELOMBANG 2","200611AO","AFIT NUR KHOLIH","3302171802010001","ISLAM","Pria","BANYUMAS","2001-02-18","SMK MA'ARIF NU 1 AJIBARANG","TKJ",2020,83.86,"KARANGLO RT04 RW02 CILONGOK","CILONGOK","Banyumas","Jawa Tengah","08587003211",62,"sample@sample.com","SISTEM INFORMASI S1","MAHASISWA BARU","28-07-2020","brosur","Lengkap","LAIN - LAIN","30-07-2020","SATIYEM","IRT"," ","SITAM SUKARTO","PEDAGANG"," 082136276070","KARANGLO RT04 RW02 CILONGOK","KARANGLO","CILONGOK","Banyumas","Jawa Tengah",99999,0,"L","L",3500000,{"$f":"COUNTIF('[1]Laporan PMB '!$D$8:$D$469,D127)","v":{"$error":"#VALUE!"}}]
[null,121,"GELOMBANG 2","200616OL","DWIKI FEBRIYANTO","3303181502020002","ISLAM","Pria","Purbalingga","2002-02-15","SMKN 2 PURBALINGGA","RPL",2020,86,"Dusun Wotan","KERTANEGARA","Purbalingga","Jawa Tengah","081215635747",62,"dwikifbr@gmail.com","INFORMATIKA S1","MAHASISWA BARU","29-07-2020","brosur","Lengkap","LAIN - LAIN","01-08-2020","MURNIATI"," ","085227020065","SABAR WIDODO","PNS","0852227146710","Dusun Wotan","KARANGPUCUNG","KERTANEGARA","Purbalingga","Jawa Tengah",53358,0,"XL","XL",3500000,{"$f":"COUNTIF('[1]Laporan PMB '!$D$8:$D$469,D128)","v":{"$error":"#VALUE!"}}]
[null,122,"GELOMBANG 2","200617AO","KAMELIA PUSPITASARI","3302144609010001","ISLAM","Wanita","BANYUMAS","2001-09-06","SMK MA'ARIF NU 1 AJIBARANG","TKJ",2020,84.63,"KRACAK RT01 RW09 AJIBARANG","AJIBARANG","Banyumas","Jawa Tengah","085840268646","085840268646","sample@sample.com","TEKNOLOGI INFORMASI S1","MAHASISWA BARU","29-07-2020","brosur","Lengkap","LAIN - LAIN","30-07-2020","SUSWATI","IRT","081286966795","RATIM","PEDAGANG","081391680879","KRACAK RT01 RW09 AJIBARANG","KRACAK","AJIBARANG","Banyumas","Jawa Tengah",99999,0,"L","L",1750000,{"$f":"COUNTIF('[1]Laporan PMB '!$D$8:$D$469,D129)","v":{"$error":"#VALUE!"}}]
[null,123,"GELOMBANG 2","200619AO","FANDI KRISTIAJI","3301071503990003","ISLAM","Pria","CILACAP","1999-03-15","SMK TUJUHLIMA 1 PURWOKERTO","MESIN",2017,0,"RAYA NO 877A RT06 RW02 GLEMPANG MAOS","MAOS","Cilacap","Jawa Tengah","089632598295",62,"sample@sample.com","INFORMATIKA S1","MAHASISWA BARU","29-07-2020","brosur","Lengkap","LAIN - LAIN","30-07-2020","MUNIYAH","PEDAGANG","083844269083","WAHIDIN"," PEDAGANG","08387010443","RAYA NO 877A RT06 RW02 GLEMPANG MAOS","GLEMPANG","MAOS","Cilacap","Jawa Tengah",99999,0,"L","L",3500000,{"$f":"COUNTIF('[1]Laporan PMB '!$D$8:$D$469,D130)","v":{"$error":"#VALUE!"}}]
[null,124,"GELOMBANG 3","200634AO","IRYUMA ZAHRA MUTIA","3304065212010003","ISLAM","Wanita","BANJARNEGARA","2001-12-12","SMA N 1 BANJARNEGARA","IPS",2020,0,"KRANDEGAN RT 01 RW 05","BANJARNEGARA","BanjarNegara","Jawa Tengah","082144585585",62,"sample@sample.com","BISNIS DIGITAL S1","MAHASISWA BARU","01-08-2020","brosur","Lengkap","LAIN - LAIN","01-08-2020","WIDI PRIHASTUTI","IRT","082316253195","SETYO YUWONO","GURU","085328609730","KRANDEGAN RT 01 RW 05","KRANDEGAN","BANJARNEGARA","BanjarNegara","Jawa Tengah",99999,0,"M","M",1250000,{"$f":"COUNTIF('[1]Laporan PMB '!$D$8:$D$469,D131)","v":{"$error":"#VALUE!"}}]
[null,125,"JALUR PRESTASI","200005AO","LIZA FITRIANA","3302194501010001","ISLAM","Wanita","BANYUMAS","2001-01-05","SMK N 1 BANYUMAS","lainnya"," 2019",4.88,"JL PRAMUKA RT 05 RW 04 SOKARAJA BANYUMAS JAWA TENGAH 53181","SOKARAJA","Banyumas","Jawa Tengah","6285712395356","6285712395356","sample@sample.com","ILMU KOMUNIKASI S1","MAHASISWA BARU","04-12-2019","brosur","Lengkap","LAIN - LAIN","14-12-2019","SITI KHOTIMAH","WIRASWASTA","085747269300","DIDI PRASETYA","WIRASWASTA","089670142023","JL PRAMUKA RT 05 RW 04 SOKARAJA BANYUMAS JAWA TENGAH 53181","SOKARAJA LOR","SOKARAJA","Banyumas","Jawa Tengah",53181,4000000,"L","L",0,{"$f":"COUNTIF('[1]Laporan PMB '!$D$8:$D$469,D132)","v":{"$error":"#VALUE!"}}]
[null,126,"JALUR PRESTASI","200007AO","ASYIFA NUR HAMIDAH","3302196006020004","ISLAM","Wanita","PURBALINGGA","2002-06-20","MAN 2 BANYUMAS","IPS"," ",7.73,"KALIBAGOR RT 05 RW 04 KALIBAGOR","KALIBAGOR","Banyumas","Jawa Tengah","089675792742",62,"sample@sample.com","ILMU KOMUNIKASI S1","MAHASISWA BARU","06-12-2019","brosur","Lengkap","LAIN - LAIN","14-12-2019","PARYATI"," -","08561048092","ACHMAD MAKSUDI","WIRASWASTA","081225588100","KALIBAGOR RT 05 RW 04 KALIBAGOR","KALIBAGOR","KALIBAGOR","Banyumas","Jawa Tengah",99999,2000000,"L","L",0,{"$f":"COUNTIF('[1]Laporan PMB '!$D$8:$D$469,D133)","v":{"$error":"#VALUE!"}}]
[null,127,"JALUR PRESTASI","200010AO","HASNA LEGINASAWATI","3303015004010003","ISLAM","Wanita","PURBALINGGA","2001-04-10","SMK N 1 PURBALINGGA","PERKANTORAN",2019,0,"BOKOL RT 08 RW 03 KEL. BOKOL","KEMANGKON","Purbalingga","Jawa Tengah","082133544636",62,"sample@sample.com","BISNIS DIGITAL S1","MAHASISWA BARU","14-12-2019","brosur","Lengkap","LAIN - LAIN","07-12-2019","KUSMIYATI","IRT","082324544199"," EKO YUNDRIYANTO","PEDAGANG","082324544199","BOKOL RT 08 RW 03 KEL. BOKOL KEC. KEMANGKONG KAB. PURBALINGGA JAWA TENGAH","BOKOL","KEMANGKON","Purbalingga","Jawa Tengah",53381,2000000,"XL","XL",0,{"$f":"COUNTIF('[1]Laporan PMB '!$D$8:$D$469,D134)","v":{"$error":"#VALUE!"}}]
[null,128,"GELOMBANG KHUSUS","200011AO","RESTU SETIADE PUTRA","3302233009970002","ISLAM","Pria","BANYUMAS","1997-09-30","SMK WIWOROTOMO PURWOKERTO","lainnya"," 2016",6.51,"JL. TINGGARJAYA RT 02 RW 02 KALIKESUR KEDUNGBANTENG","KEDUNGBANTENG","Banyumas","Jawa Tengah","082227635372",62,"sample@sample.com","INFORMATIKA S1","MAHASISWA BARU","09-12-2019","brosur","Lengkap","LAIN - LAIN","14-12-2019","KALIMAH","-","081229465453"," SUYITNO","BURUH","081229465453","JL. TINGGARJAYA RT 02 RW 02 KALIKESUR KEDUNGBANTENG","KALIKESUR","KEDUNGBANTENG","Banyumas","Jawa Tengah",99999,2000000,"XL","XL",2000000,{"$f":"COUNTIF('[1]Laporan PMB '!$D$8:$D$469,D135)","v":{"$error":"#VALUE!"}}]
[null,129,"JALUR PRESTASI","200012OL","MUHAMMAD RIFQI ANSHARI","3216191910000004","ISLAM","Pria","Purbalingga","2000-10-19","PAKET C","lainnya",2019,0,"PERUM VMC 2 BLOK B9 NO 24","CIKARANG SELATAN","Kab. Bekasi","Jawa Barat","085747902610",62,"rifqianshari28@gmail.com","INFORMATIKA S1","MAHASISWA BARU","10-12-2019","brosur","Lengkap","LAIN - LAIN","21-12-2019","SURATMI","IRT","085211010821","AMAL SUCIPTO","PEDAGANG","085216129086","Perum VMC 2 Blok B9 No24","SUKASEJATI","CIKARANG SELATAN","Kab. Bekasi","Jawa Barat",17530,0,"XL","XL",0,{"$f":"COUNTIF('[1]Laporan PMB '!$D$8:$D$469,D136)","v":{"$error":"#VALUE!"}}]
[null,130,"GELOMBANG KHUSUS","200015AO","JANUWAR BY KHAQI","3302180901010001","ISLAM","Pria","BANYUMAS","2001-01-09","SMK TUJUH LIMA 1 PURWOKERTO","lainnya",2018,7.83,"SINGASARI RT 02 RW 03","KARANGLEWAS","Banyumas","Jawa Tengah","085708619371","085708619371","sample@sample.com","INFORMATIKA S1","MAHASISWA KELAS SORE","11-12-2019","brosur","Lengkap","LAIN - LAIN","14-12-2019","HALIMAH","IRT",62,"ROSIDIN","PNS","085640541943","SINGASARI","SINGASARI","KARANGLEWAS","Banyumas","Jawa Tengah",99999,0,"L","L",2000000,{"$f":"COUNTIF('[1]Laporan PMB '!$D$8:$D$469,D137)","v":{"$error":"#VALUE!"}}]
[null,131,"GELOMBANG KHUSUS","200017AO","DESI PURNAMASARI","3301234612950003","ISLAM","Wanita","CILACAP","1970-01-01","SMA N 1 CILACAP","IPS",2014,0,"JL NUSANTARA NO.80 RT 06 RW 06 KEL. TRITIHKULON KEC.CILACAP UTARA KAB.CILACAP JAWA TENGAH 53233","CILACAP UTARA","Cilacap","Jawa Tengah","6283863983485",62,"sample@sample.com","BISNIS DIGITAL S1","MAHASISWA BARU","13-12-2019","teman/saudara","Lengkap","DOSEN","14-12-2019","BONIYAH","IRT",62," ENDANG SUGANDA","WIRASWASTA","081548878330","JL NUSANTARA NO.80 RT 06 RW 06 KEL. TRITIHKULON KEC.CILACAP UTARA KAB.CILACAP JAWA TENGAH 53233","TRITIHKULON","CILACAP UTARA","Cilacap","Jawa Tengah",53233,0,"XL","XL",1000000,{"$f":"COUNTIF('[1]Laporan PMB '!$D$8:$D$469,D138)","v":{"$error":"#VALUE!"}}]
[null,132,"GELOMBANG KHUSUS","200018AO","NUGRAHA EKA ADI WIBAWA","3302221409980001","ISLAM","Pria","PURWOKERTO","1998-09-14","SMK KESATRIAN PURWOKERTO","TKJ",2016,6.75,"KARANGMANGU RT 05 RW 02","BATURRADEN","Banyumas","Jawa Tengah","081383438097","081383438097","sample@sample.com","INFORMATIKA S1","MAHASISWA BARU","14-12-2019","brosur","Lengkap","LAIN - LAIN","04-01-2020","RAFIKATUL ALIYAH","IRT","08572666463","HERI PURWANTO","SWASTA"," ","KARANGMANGU","KARANGMANGU","BATURRADEN","Banyumas","Jawa Tengah",99999,0,"L","L",2000000,{"$f":"COUNTIF('[1]Laporan PMB '!$D$8:$D$469,D139)","v":{"$error":"#VALUE!"}}]
[null,133,"GELOMBANG KHUSUS","200019AO","NUR HAKIM SURYA ARDIYANSYAH","3302221910000006","ISLAM","Pria","BANYUMAS","2000-10-19","SMA MUHAMMADIYAH 1 PURWOKERTO","IPS",2019,0,"JL.MOCH BESAR RT02 RW03 KUTASARI","BATURRADEN","Banyumas","Jawa Tengah","6285607299947",62,"sample@sample.com","INFORMATIKA S1","MAHASISWA BARU","16-12-2019","internet","Lengkap","LAIN - LAIN","21-12-2019","SURYATI","IRT",62,"BAMBANG SUPRIYADI","WIRASWASTA","081391144710","JL.MOCH BESAR RT02 RW03 KUTASARI","KUTASARI","BATURRADEN","Banyumas","Jawa Tengah",53151,0,null,null,0,{"$f":"COUNTIF('[1]Laporan PMB '!$D$8:$D$469,D140)","v":{"$error":"#VALUE!"}}]
[null,134,"GELOMBANG KHUSUS","200021AO","PRISTIAN LUTHFY ROMADLONI","3302011603930001","ISLAM","Pria","BANYUMAS","1993-03-16","UNIVERSITAS TELKOM","lainnya",2015,3.3,"PARUNGKAMAL RT 04 RW 05","LUMBIR","Banyumas","Jawa Tengah","085291739277",62,"sample@sample.com","INFORMATIKA S1","MAHASISWA TRANSFER","21-12-2019","brosur","Lengkap","LAIN - LAIN","21-12-2019","UMI HINDUN","-","081327289266"," SAHNAN (ALM)","-","-","PARUNGKAMAL RT 04 RW 05","PARUNGKAMAL","LUMBIR","Banyumas","Jawa Tengah",99999,0,"3L","3L",0,{"$f":"COUNTIF('[1]Laporan PMB '!$D$8:$D$469,D141)","v":{"$error":"#VALUE!"}}]
[null,135,"GELOMBANG KHUSUS","200022OL","WAHYU WIDODO","3303020504970003","ISLAM","Pria","Purbalingga","1997-04-05","SMK NEGERI 1 PURBALINGGA","RPL",2015,8.35,"Penaruban RT 02 RW 01 BUKATEJA","BUKATEJA","Purbalingga","Jawa Tengah","085785855555",62,"mr.wahyuwidodo@gmail.com","INFORMATIKA S1","MAHASISWA BARU","26-12-2019","brosur","Lengkap","LAIN - LAIN","04-01-2020","ERNI TRIASTI","IRT","085647301222"," SUTEDJO","PENSIUNNA","08224252585","Penaruban RT 02 RW 01 BUKATEJA","PENARUBAN","BUKATEJA","Purbalingga","Jawa Tengah",53382,0,"XL","XXL",2000000,{"$f":"COUNTIF('[1]Laporan PMB '!$D$8:$D$469,D142)","v":{"$error":"#VALUE!"}}]
[null,136,"GELOMBANG KHUSUS","200023AO","VIAN ALFIANDI ADITIYA","3302092304020005","ISLAM","Pria","BANYUMAS","2002-04-23","SMK N 2 BANYUMAS","lainnya",2020,0,"SOKAWERA RT 03 RW 02","SOMAGEDE","Banyumas","Jawa Tengah","085842443181","085842443181","sample@sample.com","TEKNOLOGI INFORMASI S1","MAHASISWA BARU","27-12-2019","brosur","Lengkap","LAIN - LAIN","06-06-2020","JUMIATI","IRT","081226470806","ROHMADI","PENJAGA BALAI DESA","081329269891","SOKAWERA RT 03 RW 02","SOKAWERA","SOMAGEDE","Banyumas","Jawa Tengah",99999,0,"L","L",1250000,{"$f":"COUNTIF('[1]Laporan PMB '!$D$8:$D$469,D143)","v":{"$error":"#VALUE!"}}]
[null,137,"JALUR PRESTASI","200025AO","LUKMAN YAHYA SAPUTRA",0,"ISLAM","Pria","CILACAP","2002-12-31","SMK MUHAMMADIYAH 1 BAMBANGLIPURO","RPL",2019,6.75,"JL. JETIS RT 19 RW 06 PAGUBUGAN KULON","BINANGUN","Cilacap","Jawa Tengah","0895378281574","0895378281574","sample@sample.com","INFORMATIKA S1","MAHASISWA BARU","30-12-2019","brosur","Lengkap","LAIN - LAIN","11-01-2020","SURATMI"," IRT"," ","SUPANGAT","BURUH"," ","JL. JETIS RT 19 RW 06 PAGUBUGAN KULON","PAGUBUGAN KULON","BINANGUN","Cilacap","Jawa Tengah",53281,0,"M","M",0,{"$f":"COUNTIF('[1]Laporan PMB '!$D$8:$D$469,D144)","v":{"$error":"#VALUE!"}}]
[null,138,"JALUR PRESTASI","200026AO","DEVINA LARAS SITA","3303136009010001","ISLAM","Wanita","PURBALINGGA","2001-09-20","SMA N 1 REMBANG","MIPA",2020,8.15,"LOSARI RT 10 RW 01","REMBANG","Purbalingga","Jawa Tengah","085727359610","085727359610","sample@sample.com","INFORMATIKA S1","MAHASISWA BARU","31-12-2019","brosur","Lengkap","LAIN - LAIN","11-01-2020","SURYANTI"," IRT"," ","NGABDUS SOMAD","BURUH","085700315810","LOSARI RT 10 RW 01","LOSARI","REMBANG","Banyumas","Jawa Tengah",99999,0,"L","L",0,{"$f":"COUNTIF('[1]Laporan PMB '!$D$8:$D$469,D145)","v":{"$error":"#VALUE!"}}]
[null,139,"JALUR PRESTASI","200027AO","DEVANI LARAS SATI","3303136009010002","ISLAM","Wanita","PURBALINGGA","2001-09-20","SMA N 1 REMBANG","MIPA",2020,8.52,"LOSARI RT 10 RW 01","REMBANG","Purbalingga","Jawa Tengah","082265107472","082265107472","sample@sample.com","INFORMATIKA S1","MAHASISWA BARU","31-12-2019","brosur","Lengkap","LAIN - LAIN","11-01-2020","SURYANTI","IRT"," ","NGABDUL SOMAD","BURUH"," 085700315810","LOSARI RT 10 RW 01","LOSARI","REMBANG","Purbalingga","Jawa Tengah",99999,0,"L","L",0,{"$f":"COUNTIF('[1]Laporan PMB '!$D$8:$D$469,D146)","v":{"$error":"#VALUE!"}}]
[null,140,"JALUR PRESTASI","200028AO","NAILY FAJAR HIDAYATI","3302166101020003","ISLAM","Wanita","BANYUMAS","2002-01-21","SMK MA'ARIF NU 2 AJIBARANG","MULTIMEDIA",2020,9.01,"BANJARANYAR RT 02 RW 06","PEKUNCEN","Banyumas","Jawa Tengah","087820376369","087820376369","sample@sample.com","INFORMATIKA S1","MAHASISWA BARU","31-12-2019","brosur","Lengkap","LAIN - LAIN","04-01-2020","ATIK SUSANTI","IRT","085728118408","SOLEH DAMAN HURI","SOPIR"," 082187026661","BANJARANYAR RT 02 RW 06","BANJARANYAR","PEKUNCEN","Banyumas","Jawa Tengah",99999,0,"M","M",0,{"$f":"COUNTIF('[1]Laporan PMB '!$D$8:$D$469,D147)","v":{"$error":"#VALUE!"}}]
[null,141,"JALUR PRESTASI","200032AO","FREDA WIDYA ARTANTI","3301114911010001","ISLAM","Wanita","CILACAP","2001-11-09","SMA N 1 SIDAREJA","IPS",2020,7.78,"JENGGALAN RT 03 RW 05","SIDAREJA","Cilacap","Jawa Tengah","087731971218","087731971218","sample@sample.com","SISTEM INFORMASI S1","MAHASISWA BARU","04-01-2020","brosur","Lengkap","LAIN - LAIN","11-01-2020","HEPPY HEROWATI"," PNS","081327447237","SUDIARTO"," WIRASWASTA","081812133237","JENGGALAN RT 03 RW 05","JENGGALAN","SIDAREJA","Cilacap","Jawa Tengah",99999,0,"L","L",0,{"$f":"COUNTIF('[1]Laporan PMB '!$D$8:$D$469,D148)","v":{"$error":"#VALUE!"}}]
[null,142,"GELOMBANG KHUSUS","200033OL","ANI NURGANIS","3302136310960001","ISLAM","Wanita","Lampung","1997-10-23","SMK NEGERI 1 PURWOJATI","PEMASARAN",2015,7.16,"Desa Purwojati RT04 RW01","PURWOJATI","Banyumas","Jawa Tengah","081212440917","081212440917","aninurganis@gmail.com","INFORMATIKA S1","MAHASISWA KELAS SORE","05-01-2020","internet","Lengkap","LAIN - LAIN","11-01-2020","KIRWEN"," IRT","081212440917"," HADI PRAYOGO"," PETANI"," 083862426248","Desa purwojati","PURWOJATI","PURWOJATI","Banyumas","Jawa Tengah",53175,0,"M","M",2000000,{"$f":"COUNTIF('[1]Laporan PMB '!$D$8:$D$469,D149)","v":{"$error":"#VALUE!"}}]
[null,143,"GELOMBANG KHUSUS","200035AO","AGUNG PRAYOGA","3207350306000001","ISLAM","Pria","CIAMIS","2000-06-03","SMK SILIWANGI AMS BANJARSARI","TKJ",2018,0,"JL PANINENGAN RT 03 RW 01 PURWAJAYA KEC. PURWADADI KAB CIAMIS JAWA BARAT 46385","PURWADADI","Ciamis","Jawa Barat","6285863820128","6282117441502","sample@sample.com","SISTEM INFORMASI S1","MAHASISWA BARU","06-01-2020","internet","Lengkap","LAIN - LAIN","06-01-2020","PUJIATI","TKW","0886981901523","SALIMIN","PEDAGANG","081285971799","JL PANINENGAN RT 03 RW 01 PURWAJAYA KEC. PURWADADI KAB CIAMIS JAWA BARAT 46385","PURWAJAYA","PURWADADI","Ciamis","Jawa Barat",46385,7000000,"L","L",2000000,{"$f":"COUNTIF('[1]Laporan PMB '!$D$8:$D$469,D150)","v":{"$error":"#VALUE!"}}]
[null,144,"GELOMBANG KHUSUS","200037AO","RIZAL ARDIANSYAH","3301061106990002","ISLAM","Pria","CILACAP","1999-06-11","SMK MAARIF 1 KROYA","TEKNIK SEPEDA MOTOR",2018,0,"JL BHAYANGKARA RT 01 RW 04 KARANGMANGU KEC. KROYA KAB. CILACAP JAWA TENGAH 53282","KROYA","Cilacap","Jawa Tengah","082247264242","082247264242","sample@sample.com","INFORMATIKA S1","MAHASISWA BARU","06-01-2020","internet","Lengkap","LAIN - LAIN","06-01-2020","PARYATI","IBU RUMAH TANGGA"," ","HADI SUNARTO","SUPIR BUS","081329369042","JL BHAYANGKARA RT 01 RW 04 KARANGMANGU KEC. KROYA KAB. CILACAP JAWA TENGAH 53282","KARANGMANGU","KROYA","Cilacap","Jawa Tengah",53282,4000000,"L","L",2000000,{"$f":"COUNTIF('[1]Laporan PMB '!$D$8:$D$469,D151)","v":{"$error":"#VALUE!"}}]
[null,145,"GELOMBANG KHUSUS","200038AO","EDWIN SUSANTO","3302251004960003","ISLAM","Pria","PURWOKERTO","1996-04-10","SMA N BATURRADEN","IPA",2013,7.3,"JL. PERINTIS KEMERDEKAAN NO 20 RT 01 RW 02 KARANGPUCUNG","PURWOKERTO SELATAN","Banyumas","Jawa Tengah","081392868708","081392868708","sample@sample.com","BISNIS DIGITAL S1","MAHASISWA BARU","06-01-2020","brosur","Lengkap","LAIN - LAIN","11-01-2020","GITAWATI","WIRASWASTA","081327285550","TEDDY SUSANTO"," WIRASWASTA"," 0281-633317","JL. PERINTIS KEMERDEKAAN NO 20 RT 01 RW 02","KARANGPUCUNG","PURWOKERTO SELATAN","Banyumas","Jawa Tengah",53142,5000000,"XXL","XXL",1000000,{"$f":"COUNTIF('[1]Laporan PMB '!$D$8:$D$469,D152)","v":{"$error":"#VALUE!"}}]
[null,146,"JALUR PRESTASI","200043AO","ALBI TEGAR PRAYOGA","3302050401010003","ISLAM","Pria","BANYUMAS","2001-01-04","SMK TELKOM PURWOKERTO","RPL"," 2020",7.98,"TUMIYANG RT 01 RW 03","KEBASEN","Banyumas","Jawa Tengah","081225388751","081225388751","sample@sample.com","INFORMATIKA S1","MAHASISWA BARU","07-01-2020","brosur","Lengkap","LAIN - LAIN","11-01-2020","AGUS KHUATININGSIH"," IRT","082240002678","SARKUM"," SWASTA"," 081326373083","TUMIYANG RT 01 RW 03","TUMIYANG RT 01 RW 03","KEBASEN","Banyumas","Jawa Tengah",99999,0,"L","L",0,{"$f":"COUNTIF('[1]Laporan PMB '!$D$8:$D$469,D153)","v":{"$error":"#VALUE!"}}]
[null,147,"GELOMBANG KHUSUS","200045AO","ARIEF NURSOLEH","3303091001010003","ISLAM","Pria","PURBALINGGA","2001-01-10","SMK N 1 PURBALINGGA","RPL",2019,0,"JL. TINCAT RT 03 RW 01 KARANG DUREN","BOBOTSARI","Purbalingga","Jawa Tengah","0895328580761","0895328580761","sample@sample.com","INFORMATIKA S1","MAHASISWA KELAS SORE","08-01-2020","brosur","Lengkap","LAIN - LAIN","11-01-2020","RATIWEN"," IRT"," ","SALIMI","PEDAGANG"," 085227521172","JL. TINCAT RT 03 RW 01","KARANG DUREN","BOBOTSARI","Purbalingga","Jawa Tengah",99999,0,"L","L",2000000,{"$f":"COUNTIF('[1]Laporan PMB '!$D$8:$D$469,D154)","v":{"$error":"#VALUE!"}}]
[null,148,"GELOMBANG KHUSUS","200046AO","MUHAMMAD IKHSAN MAULANA","3329020905020003","ISLAM","Pria","BREBES","2002-05-09","SMK MUHAMMADIYAH BANTARKAWUNG","TKJ",2020,0,"JL.RAYA BATURAN RT 05 RW 05 PANGEBATAN","BANTARKAWUNG","Brebes","Jawa Tengah","088802658606","088802658606","sample@sample.com","INFORMATIKA S1","MAHASISWA BARU","08-01-2020","brosur","Lengkap","LAIN - LAIN","11-01-2020","WAHYUNI"," IRT"," ","ROJIKIN"," "," ","JL.RAYA BATURAN RT 05 RW 05 PANGEBATAN","PANGEBATAN","BANTARKAWUNG","Brebes","Jawa Tengah",99999,0,"L","L",2000000,{"$f":"COUNTIF('[1]Laporan PMB '!$D$8:$D$469,D155)","v":{"$error":"#VALUE!"}}]
[null,149,"JALUR PRESTASI","200047AO","FALHAN DHIYA ULHAQ","3329020406020002","ISLAM","Pria","BREBES","2002-06-04","SMK MUHAMMADIYAH BANTARKAWUNG","RPL",2020,8.06,"JL. BUARAN TIMES RT 11 RW 01 PANGEBATAN","BANTARKAWUNG","Brebes","Jawa Tengah","088225361475","088225361475","sample@sample.com","INFORMATIKA S1","MAHASISWA BARU","08-01-2020","brosur","Lengkap","LAIN - LAIN","11-01-2020","NURCHOSIAH"," PNS GURU","081327233360","ROCHIDIN","KARYAWAN"," ","JL. BUARAN TIMES RT 11 RW 01","PANGEBATAN","BANTARKAWUNG","Brebes","Jawa Tengah",99999,0,"L","L",0,{"$f":"COUNTIF('[1]Laporan PMB '!$D$8:$D$469,D156)","v":{"$error":"#VALUE!"}}]
[null,150,"GELOMBANG KHUSUS","200051AO","SETYA RIZKY PRADANA","330206910000005","ISLAM","Pria","BANYUMAS","2000-10-09","SMK N 1 BANYUMAS","TKJ",2018,7.95,"ALASMALANG RT 02 RW 06","KEMRANJEN","Banyumas","Jawa Tengah","082137884501","082137884501","sample@sample.com","INFORMATIKA S1","MAHASISWA BARU","13-01-2020","brosur","Lengkap","LAIN - LAIN","24-01-2020","SITI KHUROTUN"," IRT","081289666242","SIAMIN"," -"," 085329317611","ALASMALANG RT 02 RW 06","ALASMALANG","KEMRANJEN","Banyumas","Jawa Tengah",99999,2000000,"L","L",2000000,{"$f":"COUNTIF('[1]Laporan PMB '!$D$8:$D$469,D157)","v":{"$error":"#VALUE!"}}]
[null,151,"JALUR PRESTASI","200052OL","YEVI SEPTIRAY PURBO","3301025309020005","ISLAM","Wanita","Cilacap","2002-09-13","SMA NEGERI 1 MAOS","IPA",2020,8,"JL Raya pesanggrahan RT01 RW 06","KESUGIHAN","Cilacap","Jawa Tengah","085600104439","085600104439","Septirayyevi@gmail.com","SISTEM INFORMASI S1","MAHASISWA BARU","13-01-2020","lainnya","Lengkap","LAIN - LAIN","24-01-2020","ASMINAH"," ","082137078673"," PURWOTO"," "," ","JL Raya pesanggrahan RT01 RW 06","PESANGGRAHAN","KESUGIHAN","Cilacap","Jawa Tengah",53274,0,"L","L",0,{"$f":"COUNTIF('[1]Laporan PMB '!$D$8:$D$469,D158)","v":{"$error":"#VALUE!"}}]
[null,152,"GELOMBANG KHUSUS","200054AO","JAKA SATRIA PRATAMA RUSDIANTO","3302270207940001","ISLAM","Pria","BANYUMAS","1994-07-02","SMA N 3 PURWOKERTO","IPS"," ",0,"JL GUNUNG MENOREH RT 03 RW 09 KEL. BANCAR KEMBAR KEC. PURWOKERTO UTARA KAB. BANYUMAS JAWA TENGAH 53121","PURWOKERTO UTARA","Banyumas","Jawa Tengah","6281393663301","628966219241","sample@sample.com","SISTEM INFORMASI S1","MAHASISWA PINDAHAN","14-01-2020","brosur","Lengkap","LAIN - LAIN","24-01-2020","RUSIDAWATI","IBU RUMAH TANGGA","081290026436","MUSFARIYANTO","PNS TNI AD","081393663301","JL GUNUNG MENOREH RT 03 RW 09 KEL. BANCAR KEMBAR KEC. PURWOKERTO UTARA KAB. BANYUMAS JAWA TENGAH 53121","BANCARKEMBAR","PURWOKERTO UTARA","Banyumas","Jawa Tengah",99999,0,"M","M",0,{"$f":"COUNTIF('[1]Laporan PMB '!$D$8:$D$469,D159)","v":{"$error":"#VALUE!"}}]
[null,153,"GELOMBANG KHUSUS","200056AO","SHAFRI SAMSUDIN","330225090598003","ISLAM","Pria","BEKASI","1998-05-09","MA MUHAMMADIYAH KLATEN","IPS",2016,5.73,"JL. ADIPATI MERSI RT 04 RW 03 MERSI","PURWOKERTO TIMUR","Banyumas","Jawa Tengah","081392939836","081392939836","sample@sample.com","ILMU KOMUNIKASI S1","MAHASISWA BARU","15-01-2020","brosur","Lengkap","LAIN - LAIN","24-01-2020","NIAGO","IRT","081225593558","ASRIL","WIRASWASTA"," 081392290214","JL. ADIPATI MERSI RT 04 RW 03 MERSI","MERSI","PURWOKERTO TIMUR","Banyumas","Jawa Tengah",99999,10000000,"XL","XL",1000000,{"$f":"COUNTIF('[1]Laporan PMB '!$D$8:$D$469,D160)","v":{"$error":"#VALUE!"}}]
[null,154,"JALUR PRESTASI","200059AO","ANINDYA PUSPANING TYAS","3302194405020002","ISLAM","Wanita","BANYUMAS","2002-05-04","SMA N 1 SOKARAJA","MIPA",2020,8.6,"KEDONDONG RT 03 RW 02","SOKARAJA","Banyumas","Jawa Tengah","085747299633","085747299633","sample@sample.com","BISNIS DIGITAL S1","MAHASISWA BARU","18-01-2020","brosur","Lengkap","LAIN - LAIN","24-01-2020","SURYANI"," ","085747299633","TAOFIK"," ","085823215559","KEDONDONG RT 03 RW 02","KEDONDONG","SOKARAJA","Banyumas","Jawa Tengah",99999,0,"L","L",0,{"$f":"COUNTIF('[1]Laporan PMB '!$D$8:$D$469,D161)","v":{"$error":"#VALUE!"}}]
[null,155,"GELOMBANG KHUSUS","200060AO","DANTY KUSUMANINGTYAS","3302266103010005","ISLAM","Wanita","BANYUMAS","2001-03-21","SMA N 5 PURWOKERTO","IPS",2019,0,"JL MERDEKA RT 07 RW 04 KRANJI KEC. PURWOKERTO TIMUR KAB. BANYUMAS JAWA TENGAH 53116","PURWOKERTO TIMUR","Banyumas","Jawa Tengah","6281249671184","6281249671184","sample@sample.com","TEKNOLOGI INFORMASI S1","MAHASISWA BARU","20-01-2020","internet","Lengkap","LAIN - LAIN","24-01-2020","WIDIASTUTI","IBU RUMAH TANGGA","082225899113","DADANG PRIYONO","PEGAWAI PT KAI","082134873414","JL MERDEKA RT 07 RW 04 KRANJI KEC. PURWOKERTO TIMUR KAB. BANYUMAS JAWA TENGAH 53116","KRANJI","PURWOKERTO TIMUR","Banyumas","Jawa Tengah",53116,3000000,"M","M",1250000,{"$f":"COUNTIF('[1]Laporan PMB '!$D$8:$D$469,D162)","v":{"$error":"#VALUE!"}}]
[null,156,"GELOMBANG KHUSUS","200062OL","DIMAS SARIEF ARDIANSYAH","3302070606000001","ISLAM","Pria","Banyumas","2000-06-06","SMK NEGERI 1 BANYUMAS","TKJ",2018,3.22,"Jalan Diponegoro RT02 RW 03 KETANDA","SUMPIUH","Banyumas","Jawa Tengah","085721807724","085721807724","dimassariefardiansah@gmail.com","INFORMATIKA S1","MAHASISWA BARU","22-01-2020","lainnya","Lengkap","LAIN - LAIN","07-02-2020","JUNIYAH"," ","085290744343"," AHMAD SYARIFUDIN","BURUH","085290744343","Jalan Diponegoro RT02 RW 03 KETANDA","KETANDA","SUMPIUH","Banyumas","Jawa Tengah",53195,1000000," L"," L",2000000,{"$f":"COUNTIF('[1]Laporan PMB '!$D$8:$D$469,D163)","v":{"$error":"#VALUE!"}}]
[null,157,"GELOMBANG KHUSUS","200063AO","ARI SELAN SETIAWAN","3172011805940008","ISLAM","Pria","JAKARTA","1994-05-18","SMK MUHAMMADIYAH 1 PURBALINGGA","TKJ",2012,8.37,"JOMPO RT 01 RW 02","KALIMANAH","Purbalingga","Jawa Tengah","081802253975","081802253975","sample@sample.com","INFORMATIKA S1","MAHASISWA KELAS SORE","23-01-2020","brosur","Lengkap","LAIN - LAIN","24-01-2020","KUSTINAH","IRT","081807412611","AKHMAD SUMARNO","WIRAUSAHA"," 085964414102","JOMPO RT 01 RW 02","JOMPO","KALIMANAH","Purbalingga","Jawa Tengah",99999,7000000,"M","M",2000000,{"$f":"COUNTIF('[1]Laporan PMB '!$D$8:$D$469,D164)","v":{"$error":"#VALUE!"}}]
[null,158,"JALUR PRESTASI","200065AO","FARRELIANDRO RADHIKA PUTRA L","3471020404030001","ISLAM","Pria","YOGYAKARTA","2003-04-04","SMA N 1 ULUJAMI PEMALANG","IPS",2020,0,"JL. JETIS HARJO RT 25 RW 06","COKRODININGRATAN","Kota Yogyakarta","Daerah Istimewa Yogyakarta","085713342663","085713342663","sample@sample.com","SISTEM INFORMASI S1","MAHASISWA BARU","24-01-2020","brosur","Lengkap","LAIN - LAIN","15-02-2020","RHINA PRASIANA SEPTANIA"," "," ","ANDI LESTIYAWAN","SWASTA","082324454005","JL. JETIS HARJO RT 25 RW 06","COKRODININGRATAN","COKRODININGRATAN","Kota Yogyakarta","Daerah Istimewa Yogyakarta",99999,2000000,"L","L",0,{"$f":"COUNTIF('[1]Laporan PMB '!$D$8:$D$469,D165)","v":{"$error":"#VALUE!"}}]
[null,159,"GELOMBANG KHUSUS","200069AO","NUR AZIZAH","3302046104010002","ISLAM","Wanita","BANYUMAS","2001-04-21","SMK DIPONEGORO 2 RAWALO","AKUNTANSI",2020,0,"JL. LOCONDONG LOSARI RT 02 RW 05","RAWALO","Banyumas","Jawa Tengah","085786316861","085786316861","sample@sample.com","ILMU KOMUNIKASI S1","MAHASISWA BARU","28-01-2020","teman/saudara","Lengkap","LAIN - LAIN","07-02-2020","KASIRAH","IRT"," ","KADIR LISWONO","PETANI"," ","JL. LOCONDONG LOSARI RT 02 RW 05","LOSARI","RAWALO","Banyumas","Jawa Tengah",99999,0,"XXL","XXL",1000000,{"$f":"COUNTIF('[1]Laporan PMB '!$D$8:$D$469,D166)","v":{"$error":"#VALUE!"}}]
[null,160,"GELOMBANG KHUSUS","200071AO","ADI DERMAWAN","3302130807980001","ISLAM","Pria","BANYUMAS","1998-07-08","UNIVERSITAS INDRAPRASTA PGRI","INFORMATIKA","-",0,"JL. INPRES RT 03 RW 01 PURWOJATI","PURWOJATI","Banyumas","Jawa Tengah","085788886143","085788886143","sample@sample.com","INFORMATIKA S1","MAHASISWA PINDAHAN","29-01-2020","internet","Lengkap","LAIN - LAIN","22-02-2020","WARSINAH","IRT","085713264075","SOBIRIN","WIRASWASTA","081391018346","JL. INPRES RT 03 RW 01","PURWOJATI","PURWOJATI","Banyumas","Jawa Tengah",99999,0,"L","L",2000000,{"$f":"COUNTIF('[1]Laporan PMB '!$D$8:$D$469,D167)","v":{"$error":"#VALUE!"}}]
[null,161,"JALUR PRESTASI","200072AO","RIZKI SETIABUDI","3301061904020004","ISLAM","Pria","CILACAP","2002-04-19","MAN 1 BANYUMAS","IPA",2020,0,"JL. BULUS RT 05 RW 01 KARANGTURI","KROYA","Cilacap","Jawa Tengah","087837047195","087837047195","sample@sample.com","INFORMATIKA S1","MAHASISWA BARU","30-01-2020","brosur","Lengkap","LAIN - LAIN","07-02-2020","JARMI","PETANI","085261432190","NGADINO","PETANI",0,"JL. BULUS RT 05 RW 01","KARANGTURI","KROYA","Cilacap","Jawa Tengah",99999,0,"L","L",0,{"$f":"COUNTIF('[1]Laporan PMB '!$D$8:$D$469,D168)","v":{"$error":"#VALUE!"}}]
[null,162,"GELOMBANG KHUSUS","200073AO","YOSEFITA OMEGA INTI","330125911010003","ISLAM","Wanita","CILACAP","2001-11-12","PKBM ANNISA","IPS",2020,0,"JL. KINIBALU RT 06 RW 10 SIDANEGARA","CILACAP TENGAH","Cilacap","Jawa Tengah","085712076991","081326477690","sample@sample.com","ILMU KOMUNIKASI S1","MAHASISWA BARU","30-01-2020","internet","Lengkap","LAIN - LAIN","07-02-2020","DRA ENDANG LULUSTUATI","GURU","081542669055","SUGENG SUTIKNO SE","PNS","085866161589","JL. KINIBALU RT 06 RW 10","SIDANEGARA","CILACAP TENGAH","Cilacap","Jawa Tengah",99999,0,"L","L",1000000,{"$f":"COUNTIF('[1]Laporan PMB '!$D$8:$D$469,D169)","v":{"$error":"#VALUE!"}}]
[null,163,"JALUR PRESTASI","200076AO","ADES TIKANINGSIH","3329046009010001","ISLAM","Wanita","BREBES","2001-09-20","SMK NURUL HUDA NU PAGUYANGAN","TKJ",2020,0,"RAGATUNJUNG RT 02 RW 03","PAGYUYANGAN","Brebes","Jawa Tengah","081384637301","081384637301","sample@sample.com","INFORMATIKA S1","MAHASISWA BARU","31-01-2020","brosur","Lengkap","LAIN - LAIN","07-02-2020","TARYUNAN","IRT"," ","WARTIM","PETANI","081384637301","RAGATUNJUNG RT 02 RW 03","RAGATUNJUNG","PAGYUYANGAN","Brebes","Jawa Tengah",99999,0,"L","L",0,{"$f":"COUNTIF('[1]Laporan PMB '!$D$8:$D$469,D170)","v":{"$error":"#VALUE!"}}]
[null,164,"JALUR PRESTASI","200080AO","TANTHY AISYAH AL MUSLIH","3301015906020005","ISLAM","Wanita","CILACAP","2002-06-29","SMA N 1 SIDAREJA","IPA",2020,0,"DUSUN KEDUNGDAON RT 03 RW 12 BUMIREJA","KEDUNGREJA","Cilacap","Jawa Tengah","085229208409","081266920767","sample@sample.com","TEKNOLOGI INFORMASI S1","MAHASISWA BARU","01-02-2020","lainnya","Lengkap","LAIN - LAIN","07-02-2020","RITA ROSMIATI","IRT"," ","MUSLIKHIN","SWASTA","085229208409","DUSUN KEDUNGDAON RT 03 RW 12","BUMIREJA","KEDUNGREJA","Cilacap","Jawa Tengah",99999,1000000,"L","L",0,{"$f":"COUNTIF('[1]Laporan PMB '!$D$8:$D$469,D171)","v":{"$error":"#VALUE!"}}]
[null,165,"JALUR PRESTASI","200082AO","MUJI HARIANTI","3302125509020001","ISLAM","Wanita","BANYUMAS","2002-09-15","SMA N 1 PATIKRAJA","IPS",2020,0,"JL SAWANGAN WETAN RT 01 RW 01 SAWANGAN WETAN KEC. PATIKRAJA KAB. BANYUMAS JAWA TENGAH 53171","PATIKRAJA","Banyumas","Jawa Tengah","6285803424798","628157685807","sample@sample.com","SISTEM INFORMASI S1","MAHASISWA BARU","01-02-2020","teman/saudara","Lengkap","LAIN - LAIN","07-02-2020","KARTISEM","IBU RUMAH TANGGA","081225141363","SARTIM","BURUH","082322102044","JL SAWANGAN WETAN RT 01 RW 01 SAWANGAN WETAN KEC. PATIKRAJA KAB. BANYUMAS JAWA TENGAH 53171","SAWANGAN WETAN","PATIKRAJA","Banyumas","Jawa Tengah",53171,0,"M","M",0,{"$f":"COUNTIF('[1]Laporan PMB '!$D$8:$D$469,D172)","v":{"$error":"#VALUE!"}}]
[null,166,"GELOMBANG KHUSUS","200085AO","ARISTYA WIRAWAN","3302240108950004","ISLAM","Pria","CILACAP","1995-08-01","UNIVERSITAS TELKOM","INFORMATIKA",0,0,"PERUM SAPHIRE RT REGENCY BLOK C NO 34 03 RW 09 KOBER","PURWOKERTO BARAT","Banyumas","Jawa Tengah","082137277591","082137277591","sample@sample.com","INFORMATIKA S1","MAHASISWA PINDAHAN","01-02-2020","internet","Lengkap","LAIN - LAIN","15-02-2020","DIAH LISTOANI","IRT","08122712738","ADI ARIANTO","ASN","082223041000 ","PERUM SAPHIRE RT REGENCY BLOK C NO 34 03 RW 09","KOBER","PURWOKERTO BARAT","Banyumas","Jawa Tengah",99999,0,"M","L",2000000,{"$f":"COUNTIF('[1]Laporan PMB '!$D$8:$D$469,D173)","v":{"$error":"#VALUE!"}}]
[null,167,"GELOMBANG KHUSUS","200087AO","NISA AULIA RACHMA","3327075009010087","ISLAM","Wanita","PEMALANG","2001-09-10","SMA N 1 RANDUDONGKAL","MIPA",2019,0,"JL PRAMUKA RT 34 RW 04 RANDUDONGKAL KEC. RANDUDONGKAL KAB.PEMALANG JAWA TENGAH 52353","RANDUDONGKAL","Pemalang","Jawa Tengah","6285700981544","6285700981544","sample@sample.com","SISTEM INFORMASI S1","MAHASISWA BARU","03-02-2020","teman/saudara","Lengkap","LAIN - LAIN","15-02-2020","TASRIAH","PNS","083861705469","NILMAN ZAKARIA ALM"," "," ","JL PRAMUKA RT 34 RW 04 RANDUDONGKAL KEC. RANDUDONGKAL KAB.PEMALANG JAWA TENGAH 52353","RANDUDONGKAL","RANDUDONGKAL","Pemalang","Jawa Tengah",52353,0,"M","M",2000000,{"$f":"COUNTIF('[1]Laporan PMB '!$D$8:$D$469,D174)","v":{"$error":"#VALUE!"}}]
[null,168,"JALUR PRESTASI","200089AO","GADIS NURSABILA","3302124605020004","ISLAM","Wanita","BANYUMAS","2002-05-06","SMK N 3 PURWOKERTO","KECANTIKAN",2020,0,"JL. RAYA PATIKRAJA RT 03 RW 02 PATIKRAJA","PATIKRAJA","Banyumas","Jawa Tengah","082218914043","082218914043","sample@sample.com","SISTEM INFORMASI S1","MAHASISWA BARU","03-02-2020","brosur","Lengkap","LAIN - LAIN","07-02-2020","SITI NURTOYIBAH","PEDAGANG","081226427435","UNTUNG HERMAWAN","SWASTA","082114508908","JL. RAYA PATIKRAJA RT 03 RW 02","PATIKRAJA","PATIKRAJA","Banyumas","Jawa Tengah",99999,0,"L","L",0,{"$f":"COUNTIF('[1]Laporan PMB '!$D$8:$D$469,D175)","v":{"$error":"#VALUE!"}}]
[null,169,"GELOMBANG KHUSUS","200092OL","AFRI MULYANA","3302142104000001","ISLAM","Pria","Banyumas","2000-04-21","SMK MA'ARIF NU 1 AJIBARANG","TKJ",2018,3.55,"Kracak RT 05 RW 07","AJIBARANG","Banyumas","Jawa Tengah","085870841197","085870841197","afrimaulana2104@gmail.com","INFORMATIKA S1","MAHASISWA KELAS SORE","05-02-2020","internet","Lengkap","LAIN - LAIN","07-03-2020","SUMIRAH","IRT","08567843430","RUKIMAN","BURUH BANGUNAN LEPAS","081393082240","Kracak","KRACAK","AJIBARANG","Banyumas","Jawa Tengah",53163,0,"L","M",2000000,{"$f":"COUNTIF('[1]Laporan PMB '!$D$8:$D$469,D176)","v":{"$error":"#VALUE!"}}]
[null,170,"GELOMBANG KHUSUS","200094AO","ZHAFRAN AFIF NURDIYANSAH","304022107020001","ISLAM","Pria","BANJARNEGARA","2002-07-21","SMK HKTI 2 PURWAREJA KLAMPOK","TKJ",2020,0,"KALILANDAK RT 04 RW 01","PURWAREJA KLAMPOK","BanjarNegara","Jawa Tengah","081297160595","081297160595","sample@sample.com","INFORMATIKA S1","MAHASISWA BARU","06-02-2020","brosur","Lengkap","LAIN - LAIN","15-02-2020","WARSIYAH","WIRASWASTA","085328310075","NAJIB HIDAYAT","WIRASWASTA","085292750589","KALILANDAK RT 04 RW 01","KALILANDAK","PURWAREJA KLAMPOK","BanjarNegara","Jawa Tengah",99999,0,"XL","XL",2000000,{"$f":"COUNTIF('[1]Laporan PMB '!$D$8:$D$469,D177)","v":{"$error":"#VALUE!"}}]
[null,171,"GELOMBANG KHUSUS","200097AO","PUTRY ERICA DJUNIASIH","3302086706020003","ISLAM","Wanita","BANYUMAS","2002-06-27","MA PPPI MIFTAHUSSALAM BANYUMAS","IPA",2020,0,"JL GUNTUR RT 03 RW 02 PREMBUN KEC. TAMBAK KAB. BANYUMAS JAWA TENGAH 53196","TAMBAK","Banyumas","Jawa Tengah","6282113928471","6282113928471","sample@sample.com","INFORMATIKA S1","MAHASISWA BARU","07-02-2020","brosur","Lengkap","LAIN - LAIN","07-02-2020","WARTININGSIH","IRT","085328909718","HERIANTO","WIRAUSAHA","082244477772","JL GUNTUR RT 03 RW 02 PREMBUN KEC. TAMBAK KAB. BANYUMAS JAWA TENGAH 53196","PREMBUN","TAMBAK","Banyumas","Jawa Tengah",53196,0,"L","L",2000000,{"$f":"COUNTIF('[1]Laporan PMB '!$D$8:$D$469,D178)","v":{"$error":"#VALUE!"}}]
[null,172,"GELOMBANG KHUSUS","200099AO","AGUNG PERMANA","3173032011000002","ISLAM","Pria","JAKARTA","2000-11-20","SMK N 1 JAKARTA PUSAT","PERKANTORAN",2019,7.5,"PASIRWETAN RT 01/03","KARANGLEWAS","Banyumas","Jawa Tengah","082241292075",62,"permanagung1345@gmail.com","SISTEM INFORMASI S1","MAHASISWA BARU","08-02-2020","brosur","Lengkap","LAIN - LAIN","15-02-2020","HADINI","IRT","08132740282","KOSEN SULAIMAN","SWASTA","0281636122","PASIR WETAN RT 01/03","PASIR WETAN","KARANGLEWAS","Banyumas","Jawa Tengah",53161,3000000,"XXL","XXL",2000000,{"$f":"COUNTIF('[1]Laporan PMB '!$D$8:$D$469,D179)","v":{"$error":"#VALUE!"}}]
[null,173,"GELOMBANG KHUSUS","200103AO","ADNAN ADITYA MUNTAHAR","3302253003990002","ISLAM","Pria","BANYUMAS","1999-03-30","SMK N 2 PURWOKERTO","TEK OTOMATIS INDUSTRI",2017,7,"Jl Ahmad Yani Rt 06 Rw 06 Kedungwuluh Kec. Purwokerto Barat Kab. Banyumas Jawa Tengah 53131","PURWOKERTO BARAT","Banyumas","Jawa Tengah","6281329492998","6281329492998","sample@sample.com","INFORMATIKA S1","MAHASISWA BARU","10-02-2020","brosur","Lengkap","LAIN - LAIN","15-02-2020","SURTINAH","IRT","082220081400","SURYADI","PENSIUNAN PNS","085227281430","Jl Ahmad Yani Rt 06 Rw 06 Kedungwuluh Kec. Purwokerto Barat Kab. Banyumas Jawa Tengah 53131","KEDUNGWULUH","PURWOKERTO BARAT","Banyumas","Jawa Tengah",53131,0,"M","M",1000000,{"$f":"COUNTIF('[1]Laporan PMB '!$D$8:$D$469,D180)","v":{"$error":"#VALUE!"}}]
[null,174,"GELOMBANG KHUSUS","200105AO","JULIONO ADI PRASETIYO","3302191707980004","ISLAM","Pria","BANYUMAS","1998-07-17","SMK N 2 PURWOKERTO","LISTRIK",2016,0,"BANJARANYAR RT 03 RW 06 SOKARAJA","SOKARAJA","Banyumas","Jawa Tengah","085869414500","085869414500","sample@sample.com","INFORMATIKA S1","MAHASISWA KELAS SORE","11-02-2020","brosur","Lengkap","LAIN - LAIN","21-03-2020","YAYUK KUSUMA NINGSIN","BURUH","081391125841","LUKMANUDIN","BURUH","081806679516","BANJARANYAR RT 03 RW 06","BANJARANYAR","SOKARAJA","Banyumas","Jawa Tengah",99999,0,"M","L",2000000,{"$f":"COUNTIF('[1]Laporan PMB '!$D$8:$D$469,D181)","v":{"$error":"#VALUE!"}}]
[null,175,"GELOMBANG KHUSUS","200107AO","GALIH FIRMANSYAH","3302211907020005","ISLAM","Pria","BANYUMAS","2002-07-19","SMK N 1 PURWOKERTO","RPL",2020,0,"JL SIRAPAN TENGAH RT 04 RW 02 KEL. GANDATAPA KEC. SUMBANG KAB. BANYUMAS JAWA TENGAH","SUMBANG","Banyumas","Jawa Tengah","6281237605488","6285846466570","sample@sample.com","SISTEM INFORMASI S1","MAHASISWA BARU","11-02-2020","brosur","Lengkap","LAIN - LAIN","15-02-2020","SUKINI","IRT","085299512254","SUTIR","KARYAWAN SWASTA","087780511375","JL SIRAPAN TENGAH RT 04 RW 02 KEL. GANDATAPA KEC. SUMBANG KAB. BANYUMAS JAWA TENGAH","GANDATAPA","SUMBANG","Banyumas","Jawa Tengah",53183,0,"L","L",2000000,{"$f":"COUNTIF('[1]Laporan PMB '!$D$8:$D$469,D182)","v":{"$error":"#VALUE!"}}]
[null,176,"GELOMBANG KHUSUS","200109AO","RAFIAN TRI AKSO","329030403990001","ISLAM","Pria","BREBES","1999-03-04","SMK N 1 TONJONG","TKR",2017,0,"DK. KAUMAN RT 003 RW 001 BUMIAYU","BUMIAYU","Brebes","Jawa Tengah","087728572584","087728572584","sample@sample.com","SISTEM INFORMASI S1","MAHASISWA BARU","12-02-2020","brosur","Lengkap","LAIN - LAIN","15-02-2020","MUJIYANI","IRT","087737387891","RAKIJAN","PEDAGANG","081249564165","DK. KAUMAN RT 003 RW 001","BUMIAYU","BUMIAYU","Brebes","Jawa Tengah",99999,0,"XL","XL",2000000,{"$f":"COUNTIF('[1]Laporan PMB '!$D$8:$D$469,D183)","v":{"$error":"#VALUE!"}}]
[null,177,"GELOMBANG KHUSUS","200110AO","IZAZ RIZQULLAH","3301212301010001","ISLAM","Pria","CILACAP","2001-01-02","SMK N 1 CILACAP","TKJ",2019,0,"JL CUCUT NO 3 RT 4 RW 10 CILACAP KEC. CILACAP SELATAN KAB. CILACAP JAWA TENGAH","CILACAP SELATAN","Cilacap","Jawa Tengah","6285712587187","6285712587187","sample@sample.com","INFORMATIKA S1","MAHASISWA BARU","12-02-2020","teman/saudara","Lengkap","LAIN - LAIN","15-02-2020","SUNIATI","PEDAGANG","085647829418","RUDI SANTOSO","BURUH","081329996448","JL CUCUT NO 3 RT 4 RW 10 CILACAP KEC. CILACAP SELATAN KAB. CILACAP JAWA TENGAH","CILACAP","CILACAP SELATAN","Cilacap","Jawa Tengah",53211,0,"L","XL",2000000,{"$f":"COUNTIF('[1]Laporan PMB '!$D$8:$D$469,D184)","v":{"$error":"#VALUE!"}}]
[null,178,"GELOMBANG KHUSUS","200112AO","NOVIKA ANDANI","3304035911010001","ISLAM","Wanita","SEMULI RAYA","2001-11-19","SMK MULYA HUSADA","TEKNIK ELEKTRO",2020,0,"JL SUHADA RT 02 RW 03 KEBAKALAN KEC. MANDIRAJA KAB. BANJARNEGARA JAWA TENGAH","MANDIRAJA","BanjarNegara","Jawa Tengah","6285867385160","6285867385160","sample@sample.com","ILMU KOMUNIKASI S1","MAHASISWA BARU","14-02-2020","internet","Lengkap","LAIN - LAIN","15-02-2020","ISTI FARIDA ERYANI","PEGAWAI SWASTA","081226776689","ANDI YULISTIA","WIRASWASTA","085358801442","JL SUHADA RT 02 RW 03 KEBAKALAN KEC. MANDIRAJA KAB. BANJARNEGARA JAWA TENGAH","KEBAKALAN","MANDIRAJA","BanjarNegara","Jawa Tengah",53473,0,"XL","XL",1000000,{"$f":"COUNTIF('[1]Laporan PMB '!$D$8:$D$469,D185)","v":{"$error":"#VALUE!"}}]
[null,179,"GELOMBANG KHUSUS","200114AO","IKA AYU PRATIWI","3302095609020002","ISLAM","Wanita","BANYUMAS","2002-09-16","SMK N 1 BUKATEJA","TKJ",2020,0,"PESINGGANGAN RT 07 RW 08","BANYUMAS","Banyumas","Jawa Tengah","085727161908","085727161908","sample@sample.com","SISTEM INFORMASI S1","MAHASISWA BARU","15-02-2020","brosur","Lengkap","LAIN - LAIN","15-02-2020","SUTARMI"," "," ","KHADIO","BURUH HARIAN LEPAS","087741330798","PESINGGANGAN RT 07 RW 08","PESINGGANGAN","BANYUMAS","Banyumas","Jawa Tengah",99999,0,"L","L",2000000,{"$f":"COUNTIF('[1]Laporan PMB '!$D$8:$D$469,D186)","v":{"$error":"#VALUE!"}}]
[null,180,"GELOMBANG KHUSUS","200116OL","NOVANDI SIAM RAHUTOMO","3302171711010005","ISLAM","Pria","Banyumas","2001-11-17","SMA MA'ARIF NU 1 AJIBARANG","IPA",2020,7.82,"Karangtengah","CILONGOK","Banyumas","Jawa Tengah","082223955380","085741509983","novandisiam17@gmail.com","SISTEM INFORMASI S1","MAHASISWA BARU","16-02-2020","brosur","Lengkap","LAIN - LAIN","24-04-2020","ESTI UMIATI"," ","0856430993"," "," "," ","Karangtengah","DESA KARANGTENGAH","CILONGOK","Banyumas","Jawa Tengah",53162,0,"L","L",2000000,{"$f":"COUNTIF('[1]Laporan PMB '!$D$8:$D$469,D187)","v":{"$error":"#VALUE!"}}]
[null,181,"GELOMBANG KHUSUS","200117AO","RATRI NURAINI","3302125606020003","ISLAM","Wanita","BANYUMAS","2002-06-16","SMK BINA TEKNOLOGI PURWOKERTO","TKJ",2020,0,"JL RAYA PATIKRAJA RT 02 RW 03 PATIKRAJA, KEC. PATIKRAJA KAB. BANYUMAS JAWA TENGAH 53171","PATIKRAJA","Banyumas","Jawa Tengah","6281225884531","6281225884531","sample@sample.com","SISTEM INFORMASI S1","MAHASISWA BARU","17-02-2020","internet","Lengkap","LAIN - LAIN","17-02-2020","SITI JULIAH","PEDAGANG"," ","DJUNERI","-","081386336086","JL RAYA PATIKRAJA RT 02 RW 03 PATIKRAJA, KEC. PATIKRAJA KAB. BANYUMAS JAWA TENGAH 53171","PATIKRAJA","PATIKRAJA","Banyumas","Jawa Tengah",53171,0,"3L","3L",1000000,{"$f":"COUNTIF('[1]Laporan PMB '!$D$8:$D$469,D188)","v":{"$error":"#VALUE!"}}]
[null,182,"GELOMBANG KHUSUS","200118AO","DZAKY CANDY FAHREZY","3302261307020001","ISLAM","Pria","BANYUMAS","2002-07-13","SMK BINA TEKNOLOGI PURWOKERTO","TKJ",0,0,"JL. MASJID RT 04 RW 03 SOKANEGARA","PURWOKERTO TIMUR","Banyumas","Jawa Tengah","082223731539","082223731539","sample@sample.com","INFORMATIKA S1","MAHASISWA BARU","17-02-2020","brosur","Lengkap","LAIN - LAIN","29-02-2020","SUDI RAHAYU","GURU TK","081542964633","ROSIKUN","SWASTA","083844364000","JL. MASJID RT 04 RW 03","SOKANEGARA","PURWOKERTO TIMUR","Banyumas","Jawa Tengah",99999,0,"XL","XL",2000000,{"$f":"COUNTIF('[1]Laporan PMB '!$D$8:$D$469,D189)","v":{"$error":"#VALUE!"}}]
[null,183,"GELOMBANG KHUSUS","200119AO","LAILI MEIZAROH","330222620501001","ISLAM","Wanita","BANYUMAS","2001-05-22","SMA N 1 BATURRADEN","IPS",2019,8.1,"JL CANDRA WIJAYA RT 03 RW 03 PURWOSARI KEC. BATURRADEN KAB. BANYUMAS JAWA TENGAH","BATURRADEN","Banyumas","Jawa Tengah","6285701914852","6285701914852","sample@sample.com","SISTEM INFORMASI S1","MAHASISWA BARU","18-02-2020","brosur","Lengkap","LAIN - LAIN","22-02-2020","DARIAH","IRT","085712017643","PONIDJAN ALM"," "," ","JL CANDRA WIJAYA RT 03 RW 03 PURWOSARI KEC. BATURRADEN KAB. BANYUMAS JAWA TENGAH","PURWOSARI","BATURRADEN","Banyumas","Jawa Tengah",53151,0,"L","XL",2000000,{"$f":"COUNTIF('[1]Laporan PMB '!$D$8:$D$469,D190)","v":{"$error":"#VALUE!"}}]
[null,184,"GELOMBANG KHUSUS","200121AO","AMMAR FAUZAN","3301220504930004","ISLAM","Pria","CILACAP","1993-04-05","UNIVERSITAS NEGERI YOGYAKARTA","IPA",2015,0,"JL BROBAHAN SELATAN RT 03 RW 04 KRANJI KEC. PURWOKERTO TIMUR KAB. BANYUMAS JAWA TENGAH","PURWOKERTO TIMUR","Banyumas","Jawa Tengah","6285810994028","6285810994028","sample@sample.com","SISTEM INFORMASI S1","MAHASISWA TRANSFER","18-02-2020","internet","Lengkap","LAIN - LAIN","22-02-2020","ARMI SYAFRIDA","IRT",536076,"TEDY ERLANGGA","PENSIUNAN BUMN"," 081548882252","JL BROBAHAN SELATAN RT 03 RW 04 KRANJI KEC. PURWOKERTO TIMUR KAB. BANYUMAS JAWA TENGAH","KRANJI","PURWOKERTO TIMUR","Banyumas","Jawa Tengah",53115,0,"L","M",2000000,{"$f":"COUNTIF('[1]Laporan PMB '!$D$8:$D$469,D191)","v":{"$error":"#VALUE!"}}]
[null,185,"GELOMBANG KHUSUS","200126AO","NIKEN MEINICA PURWANTO","3302254605990003","ISLAM","Wanita","PURWOKERTO","1999-05-06","SMK N 1 PURWOKERTO","MULTIMEDIA",2017,7.02,"JL JEN SOETOYO RT 03 RW 02 KEDUNGWULUH, KEC. PURWOKERTO BARAT KAB. BANYUMAS JAWA TENGAH","PURWOKERTO BARAT","Banyumas","Jawa Tengah","6289530115434","6289530115434","sample@sample.com","ILMU KOMUNIKASI S1","MAHASISWA BARU","19-02-2020","teman/saudara","Lengkap","LAIN - LAIN","22-02-2020","MEILINAH","IRT","087719881572","SJOKO PURWANTO","SWASTA"," 085227272291","JL JEN SOETOYO RT 03 RW 02 KEDUNGWULUH, KEC. PURWOKERTO BARAT KAB. BANYUMAS JAWA TENGAH","KEDUNGWULUH","PURWOKERTO BARAT","Banyumas","Jawa Tengah",53131,2000000,"M","M",1000000,{"$f":"COUNTIF('[1]Laporan PMB '!$D$8:$D$469,D192)","v":{"$error":"#VALUE!"}}]
[null,186,"GELOMBANG KHUSUS","200127AO","DWI SANDHI BHAKTI","3302251206900002","ISLAM","Pria","JAKARTA","1990-06-12","SMA JENDRAL SOEDIRMAN","IPS",2009,5.15,"JL JEND SOETOYO RT 05 RW 02 KEDUNGWULUH KEC. PURWOKERTO BARAT KAB. BANYUMAS JAWA TENGAH","PURWOKERTO BARAT","Banyumas","Jawa Tengah","6282126927664","6282126927664","sample@sample.com","INFORMATIKA S1","MAHASISWA KELAS SORE","19-02-2020","brosur","Lengkap","LAIN - LAIN","22-02-2020","SRI SUMBARSIH","IRT","0281627160","WARDU RIANTO","KARYAWAN SWASTA","08118455186","JL JEND SOETOYO RT 05 RW 02 KEDUNGWULUH KEC. PURWOKERTO BARAT KAB. BANYUMAS JAWA TENGAH","KEDUNGWULUH","PURWOKERTO BARAT","Banyumas","Jawa Tengah",53131,0,"M","M",2000000,{"$f":"COUNTIF('[1]Laporan PMB '!$D$8:$D$469,D193)","v":{"$error":"#VALUE!"}}]
[null,187,"GELOMBANG KHUSUS","200128AO","AJI SAEFUL","3302161505960001","ISLAM","Pria","BANYUMAS","1996-05-15","SMA MAARIF NU 1 AJIBARANG","TSM",2014,8.65,"CIKEMBULAN RT 07 RW 01 KEC. PEKUNCEN KEB. BANYUMAS JAWA TENGAH","PEKUNCEN","Banyumas","Jawa Tengah","6285747051996","6285747051996","sample@sample.com","INFORMATIKA S1","MAHASISWA KELAS SORE","20-02-2020","brosur","Lengkap","LAIN - LAIN","22-02-2020","DIKEM","IRT"," ","DASIRUN","BURUH TANI","085711973578","CIKEMBULAN RT 07 RW 01 KEC. PEKUNCEN KEB. BANYUMAS JAWA TENGAH","CIKEMBULAN","PEKUNCEN","Banyumas","Jawa Tengah",53164,0,"XL","XL",2000000,{"$f":"COUNTIF('[1]Laporan PMB '!$D$8:$D$469,D194)","v":{"$error":"#VALUE!"}}]
[null,188,"GELOMBANG KHUSUS","200129AO","ARDIANSYAH PUTRA SEPTIADI","33020409010005","ISLAM","Pria","BANYUMAS","2001-09-04","SMA MUHAMMADIYAH 1 PURWOKERTO","IPS",2020,7.5,"DS. MENGANTI RT 01/06 KEC. RAWALO","RAWALO","Banyumas","Jawa Tengah","085536579278","085536579278","sample@sample.com","BISNIS DIGITAL S1","MAHASISWA BARU","20-02-2020","brosur","Lengkap","LAIN - LAIN","22-02-2020","FAJARYATI","IRT","081000000","SARTA","SWASTA","0810000000","DS. MENGANTI RT 01/06 KEC. RAWALO","MENGANTI","RAWALO","Banyumas","Jawa Tengah",53173,3000000,"L","L",1000000,{"$f":"COUNTIF('[1]Laporan PMB '!$D$8:$D$469,D195)","v":{"$error":"#VALUE!"}}]
[null,189,"GELOMBANG KHUSUS","200133AO","FATIHILAL ADHA FADILA","3301062202020006","ISLAM","Pria","CILACAP","2002-02-22","SMK N 1 BIANGUN","TKR",2019,0,"JL. MATARAM RT 07 RW 03 PEKUNCEN","PEKUNCEN","Cilacap","Jawa Tengah","0895401504535","0895401504535","sample@sample.com","SISTEM INFORMASI S1","MAHASISWA BARU","22-02-2020","brosur","Lengkap","LAIN - LAIN","22-02-2020","DEPI SUPITRI","PEGAWAI BANK","082227423331","NUR HILAL","WIRAUSAHA","087802856788","JL. MATARAM RT 07 RW 03","PEKUNCEN","PEKUNCEN","Cilacap","Jawa Tengah",99999,0,"XL","XL",2000000,{"$f":"COUNTIF('[1]Laporan PMB '!$D$8:$D$469,D196)","v":{"$error":"#VALUE!"}}]
[null,190,"GELOMBANG KHUSUS","200134AO","LARASATI","3302165605020003","ISLAM","Wanita","BANYUMAS","2002-05-16","SMK MUHAMMADIYAH 1 AJIBARANG","AKUNTANSI",2020,0,"GLEMPANG RT 03 RW02","PEKUNCEN","Banyumas","Jawa Tengah","085801179452","085875396855","sample@sample.com","INFORMATIKA S1","MAHASISWA BARU","22-02-2020","brosur","Lengkap","LAIN - LAIN","22-02-2020","KARTEM","ASISTEN RUMAH TANGGA","085311764218","GERING (ALM)","X","X","GLEMPANG RT 03 RW02","GLEMPANG","PEKUNCEN","Banyumas","Jawa Tengah",99999,0,"M","M",2000000,{"$f":"COUNTIF('[1]Laporan PMB '!$D$8:$D$469,D197)","v":{"$error":"#VALUE!"}}]
[null,191,"GELOMBANG KHUSUS","200136AO","HUSNI MUZAKI","3302171806010002","ISLAM","Pria","BANYUMAS","2001-06-18","MA RAUDHATUL ULUM TRANGKIL PATI","IPA",2020,0,"DUKUH MONGOL RT04 RW07 SOKAWERA CILONGOK","CILONGOK","Banyumas","Jawa Tengah","083844731410","083844731410","sample@sample.com","INFORMATIKA S1","MAHASISWA BARU","24-02-2020","brosur","Lengkap","LAIN - LAIN","11-04-2020","AMANAH","IRT","083844731410","USMAN","BURUH","083817334036","DUKUH MONGOL RT04 RW07 SOKAWERA CILONGOK","SOKAWERA","CILONGOK","Banyumas","Jawa Tengah",99999,0,"L","XL",2000000,{"$f":"COUNTIF('[1]Laporan PMB '!$D$8:$D$469,D198)","v":{"$error":"#VALUE!"}}]
[null,192,"GELOMBANG KHUSUS","200138AO","OZZY IRVANSYAH","3303150904010002","ISLAM","Pria","CIREBON","2001-04-09","SMA N 1 PURBALINGGA","IPS",2019,6.5,"JL.KIDANGSARI RT02 RW01 KARANGSENTUL PADAMARA","PADAMARA","Purbalingga","Jawa Tengah","089669235182","085879478768","sample@sample.com","ILMU KOMUNIKASI S1","MAHASISWA BARU","24-02-2020","brosur","Lengkap","LAIN - LAIN","24-02-2020","ZULEHA","IRT","082136891839","ANDHI BUNJAMIN"," "," ","JL.KIDANGSARI RT02 RW01 KARANGSENTUL PADAMARA","KARANGSENTUL","PADAMARA","Purbalingga","Jawa Tengah",99999,0,"XL","XXL",1000000,{"$f":"COUNTIF('[1]Laporan PMB '!$D$8:$D$469,D199)","v":{"$error":"#VALUE!"}}]
[null,193,"GELOMBANG KHUSUS","200139AO","DIMAS MARSUS PANDEGA","3302252403010001","ISLAM","Pria","BANYUMAS","2001-03-24","SMK WIWOROTOMO PURWOKERTO","TEKNIK PEMESINAN",2019,0,"BANARAN RT 03 RW 01 PASIR KIDUL","PURWOKERTO BARAT","Banyumas","Jawa Tengah","081947177208","081947177208","sample@sample.com","INFORMATIKA S1","MAHASISWA BARU","25-02-2020","brosur","Lengkap","LAIN - LAIN","29-02-2020","ASRIYANI"," IRT","085227374263","DJAIS","PEDAGANG"," ","BANARAN RT 03 RW 01","PASIR KIDUL","PURWOKERTO BARAT","Banyumas","Jawa Tengah",99999,0,"L","XL",2000000,{"$f":"COUNTIF('[1]Laporan PMB '!$D$8:$D$469,D200)","v":{"$error":"#VALUE!"}}]
[null,194,"GELOMBANG KHUSUS","200142AO","AISHA AMALIA","3301214609020002","ISLAM","Wanita","CILACAP","2002-09-06","SMK N 1 CILACAP","MULTIMEDIA",2020,0,"JL. LAYUR TIMUR RT04 RW10 CILACAP","CILACAP SELATAN","Cilacap","Jawa Tengah","081391582552","085865049872","sample@sample.com","INFORMATIKA S1","MAHASISWA BARU","28-02-2020","brosur","Lengkap","LAIN - LAIN","28-02-2020","HENI SETIOWATI","IRT","081391582552","BEJO SETIAWAN","KARYAWAN SWASTA","08882614042","JL. LAYUR TIMUR RT04 RW10 CILACAP","CILACAP","CILACAP SELATAN","Cilacap","Jawa Tengah",99999,0,"XL","XL",2000000,{"$f":"COUNTIF('[1]Laporan PMB '!$D$8:$D$469,D201)","v":{"$error":"#VALUE!"}}]
[null,195,"GELOMBANG KHUSUS","200143AO","DELA SAFITRI","3273134107020002","ISLAM","Wanita","CIANJUR","2002-07-01","SMK N 1 CILACAP","MULTIMEDIA",2020,0,"JL KIDANG TIMUR RT03 RW12 MERTASINGA","CILACAP UTARA","Cilacap","Jawa Tengah","08128835814","085850318593","sample@sample.com","INFORMATIKA S1","MAHASISWA BARU","28-02-2020","brosur","Lengkap","LAIN - LAIN","28-02-2020","SAKIRAH","IRT","085803802664","DEDI SURYADI","PNS"," 08128835814","JL KIDANG TIMUR RT03 RW12 MERTASINGA","MERTASINGA","CILACAP UTARA","Cilacap","Jawa Tengah",99999,0,"L","XL",2000000,{"$f":"COUNTIF('[1]Laporan PMB '!$D$8:$D$469,D202)","v":{"$error":"#VALUE!"}}]
[null,196,"GELOMBANG KHUSUS","200145AO","SALAHUDIN AL AYYUBI",0,"ISLAM","Pria","UNTORO","2001-11-09","SMK N 1 PURWOJATI","TEKNIK SEPEDA MOTOR",2020,0,"KASEGERAN RT05 RW02","CILONGOK","Banyumas","Jawa Tengah","088983162015","088983162015","sample@sample.com","INFORMATIKA S1","MAHASISWA BARU","29-02-2020","brosur","Lengkap","LAIN - LAIN","29-02-2020","WIGI FAIZAH","IRT","089658074189","HARYONO"," WIRAUSAHA"," 087734503914","KASEGERAN RT05 RW02","KASEGERAN","CILONGOK","Banyumas","Jawa Tengah",99999,0,"XL","XL",2000000,{"$f":"COUNTIF('[1]Laporan PMB '!$D$8:$D$469,D203)","v":{"$error":"#VALUE!"}}]
[null,197,"GELOMBANG KHUSUS","200146AO","WIWI SUTRIATI","3302226809020001","ISLAM","Wanita","BANYUMAS","2002-09-28","MA AL-IKSAN BEJI","IPA",2020,0,"JL. MOHAMMAD BESAR RT04 RW07 KUTASARI","BATURRADEN","Banyumas","Jawa Tengah","085712108776","085712108776","sample@sample.com","INFORMATIKA S1","MAHASISWA BARU","29-02-2020","brosur","Lengkap","LAIN - LAIN","29-02-2020","MARSINI PUJIASTUTI","IRT","085712108776","KARSOWIDODO","BURUH","085712108776","JL. MOHAMMAD BESAR RT04 RW07","KUTASARI","BATURRADEN","Banyumas","Jawa Tengah",99999,0," M","M",2000000,{"$f":"COUNTIF('[1]Laporan PMB '!$D$8:$D$469,D204)","v":{"$error":"#VALUE!"}}]
[null,198,"GELOMBANG KHUSUS","200151AO","NAFIS MAULIDUL FAKHRI","3304122405020002","ISLAM","Pria","BANJARNEGARA","2002-05-25","SMA N 1 WANADADI","IPS",2020,0,"DANAKERTA RT 02 RW 01","PUNGGELAN","BanjarNegara","Jawa Tengah","085643402463","085643402463","sample@sample.com","INFORMATIKA S1","MAHASISWA BARU","02-03-2020","brosur","Lengkap","LAIN - LAIN","07-03-2020","UNTORO","PEDAGANG","085540679016","UMU LATIFAH","PENJAGA SEKOLAH","085226528276","DANAKERTA RT 02 RW 01","DANAKERTA","PUNGGELAN","BanjarNegara","Jawa Tengah",99999,0,"L","L",2000000,{"$f":"COUNTIF('[1]Laporan PMB '!$D$8:$D$469,D205)","v":{"$error":"#VALUE!"}}]
[null,199,"GELOMBANG KHUSUS","200155OL","ASNAWI  YASIN AL FARUQ","3216150107000150","ISLAM","Pria","WONOGIRI","2000-02-13","MA NURUL HADID","IPA",2019,6.26,"Jl. Kp. Jagawana, Sukarukun, Kec. Sukatani, Bekasi, Jawa Barat 17630","SUKATANI","Kab. Bekasi","Jawa Barat","087874082226","081383927959","asnawiyasin11@gmail.com","TEKNOLOGI INFORMASI S1","MAHASISWA BARU","04-03-2020","brosur","Lengkap","LAIN - LAIN","14-03-2020","WARSIH"," ","085289029072"," "," "," ","Jl. Kp. Jagawana, Sukarukun, Kec. Sukatani, Bekasi, Jawa Barat 17630","SUKARUKUN","SUKATANI","Kab. Bekasi","Jawa Barat",17534,0," xl"," xl",1250000,{"$f":"COUNTIF('[1]Laporan PMB '!$D$8:$D$469,D206)","v":{"$error":"#VALUE!"}}]
[null,200,"GELOMBANG KHUSUS","200159AO","IDA FITRIYAH","3327144404910002","ISLAM","Wanita","PEMALANG","1991-04-04","AMIK BINA SARANA INFORMATIKA BEKASI","MANAJEMEN INFORMATIKA",2014,2.84,"MERENG RT 34 RW 09","WARUNGPRING","Pemalang","Jawa Tengah","08568861651","08568861651","sample@sample.com","INFORMATIKA S1","MAHASISWA TRANSFER","05-03-2020","brosur","Lengkap","LAIN - LAIN","05-03-2020","RODIAH"," -"," ","RITNO","PEDAGANG"," 081399274806","MERENG RT 34 RW 09","MERENG","WARUNGPRING","Pemalang","Jawa Tengah",99999,0,"M","M",0,{"$f":"COUNTIF('[1]Laporan PMB '!$D$8:$D$469,D207)","v":{"$error":"#VALUE!"}}]
[null,201,"GELOMBANG KHUSUS","200161AO","RICARDO CHRISTIAN DA","3603122112010006","ISLAM","Pria","TANGERANG","2001-12-21","SMK BONAVITA","MULTIMEDIA",2020,0,"PURWANEGARA RT03 RW043","PASAR KEMIS","Kab. Tangerang","Banten","089601195304","089601195304","sample@sample.com","TEKNOLOGI INFORMASI S1","MAHASISWA BARU","07-03-2020","brosur","Lengkap","LAIN - LAIN","25-04-2020","DWI UTAMI"," "," ","BAMBANG SUKSOMO ADI"," "," ","TAMAN KUTABUMI BLOK A 9/12 RT 01 RW 06 KUTABUMI","KUTA BUMI","PASAR KEMIS","Kab. Tangerang","Banten",99999,0," L"," L",0,{"$f":"COUNTIF('[1]Laporan PMB '!$D$8:$D$469,D208)","v":{"$error":"#VALUE!"}}]
[null,202,"GELOMBANG KHUSUS","200162AO","WIDYA PRATATYAS MA'RUF","3204052212010002","ISLAM","Pria","BANYUMAS","2001-12-22","SMA MUHAMMADIYAH 1 PURWOKERTO","MIPA",2020,0,"ARCAWINANGUN RT07 RW02","PURWOKERTO TIMUR","Banyumas","Jawa Tengah","083829560277","083829560277","sample@sample.com","ILMU KOMUNIKASI S1","MAHASISWA BARU","07-03-2020","brosur","Lengkap","LAIN - LAIN","07-03-2020","SITI FUZIYAH","IRT","081214647615","ALM TAAT"," "," ","ARCAWINANGUN RT07 RW02","ARCAWINANGUN","PURWOKERTO TIMUR","Banyumas","Jawa Tengah",99999,0,"L","L",1000000,{"$f":"COUNTIF('[1]Laporan PMB '!$D$8:$D$469,D209)","v":{"$error":"#VALUE!"}}]
[null,203,"GELOMBANG KHUSUS","200163AO","RIZQI FADHILAH MUKTI","3204052212010003","ISLAM","Pria","BANYUMAS","2001-12-22","SMA MUHAMMADIYAH 1 PURWOKERTO","IPS",2020,0,"ARCAWINANGUN RT07 RW02","PURWOKERTO TIMUR","Banyumas","Jawa Tengah","083829560221","083829560221","sample@sample.com","INFORMATIKA S1","MAHASISWA BARU","07-03-2020","brosur","Lengkap","LAIN - LAIN","07-03-2020","SITI FAUZIYAH","IRT","081214647615","ALM TAAT"," "," ","ARCAWINANGUN RT07 RW02","ARCAWINANGUN","PURWOKERTO TIMUR","Banyumas","Jawa Tengah",99999,0,"L","L",0,{"$f":"COUNTIF('[1]Laporan PMB '!$D$8:$D$469,D210)","v":{"$error":"#VALUE!"}}]
[null,204,"GELOMBANG KHUSUS","200164AO","IMAM BAYU NURDIANTO",0,"ISLAM","Pria","BANYUMAS","2002-07-03","SMK N 1 BANYUMAS","TKJ",2020,0,"SOMAGEDE RT02 RW03","BANYUMAS","Banyumas","Jawa Tengah","087742075494","087742075494","sample@sample.com","SISTEM INFORMASI S1","MAHASISWA BARU","07-03-2020","brosur","Lengkap","LAIN - LAIN","07-03-2020","SAMSIYAH","PNS","081329988243","BASIRAN","PENSIUNAN"," ","SOMAGEDE RT02 RW03","SOMAGEDE","BANYUMAS","Banyumas","Jawa Tengah",99999,3000000,"L","L",2000000,{"$f":"COUNTIF('[1]Laporan PMB '!$D$8:$D$469,D211)","v":{"$error":"#VALUE!"}}]
[null,205,"GELOMBANG KHUSUS","200165AO","HERO GALUH PYAWAI",0,"ISLAM","Pria","PURBALINGGA","2002-05-01","SMK N 1 BUKATEJA","TKJ",2020,0,"TOYAREJA RT 01 RW 01","PURBALINGGA","Purbalingga","Jawa Tengah","083896686572","083896686572","sample@sample.com","INFORMATIKA S1","MAHASISWA BARU","09-03-2020","brosur","Lengkap","LAIN - LAIN","14-03-2020","MUSROFIAH"," "," ","SUPRIYANTO"," "," ","TOYAREJA RT 01 RW 01","TOYAREJA","PURBALINGGA","Purbalingga","Jawa Tengah",99999,0,"M","M",2000000,{"$f":"COUNTIF('[1]Laporan PMB '!$D$8:$D$469,D212)","v":{"$error":"#VALUE!"}}]
[null,206,"GELOMBANG KHUSUS","200168AO","ANJAR WATI","330101690802002","ISLAM","Wanita","CILACAP","2002-08-29","SMK LPPM RI 2 KEDUNGREJA","TKJ",2019,6.5,"JL.SIDAURIP RT08 RW04 SIDANEGARA","KEDUNGREJA","Cilacap","Jawa Tengah","081230550808","081230550808","sample@sample.com","TEKNOLOGI INFORMASI S1","MAHASISWA BARU","10-03-2020","brosur","Lengkap","LAIN - LAIN","14-03-2020","RATIJEM","IRT"," ","WAKIJAN"," PETANI","081215985699","JL.SIDAURIP RT08 RW04 SIDANEGARA","SIDANEGARA","KEDUNGREJA","Cilacap","Jawa Tengah",99999,0,"M","L",1250000,{"$f":"COUNTIF('[1]Laporan PMB '!$D$8:$D$469,D213)","v":{"$error":"#VALUE!"}}]
[null,207,"GELOMBANG KHUSUS","200169AO","AGNAR RIAN ANGGORO","3302130202980004","ISLAM","Pria","BANYUMAS","1998-02-17","PAKET C COSMOS BEKASI","IPS",2020,0,"KALIPUTIH RT 04 RW 01","PURWOJATI","Banyumas","Jawa Tengah","081281931265","081281931265","sample@sample.com","BISNIS DIGITAL S1","MAHASISWA BARU","10-03-2020","brosur","Lengkap","LAIN - LAIN","10-03-2020","DARSITI","TANI","085771975063","DARSITO","TANI","081380573559","KALIPUTIH RT 04 RW 01","KALIPUTIH","PURWOJATI","Banyumas","Jawa Tengah",99999,0,"L","L",1000000,{"$f":"COUNTIF('[1]Laporan PMB '!$D$8:$D$469,D214)","v":{"$error":"#VALUE!"}}]
[null,208,"GELOMBANG KHUSUS","200170AO","BAGUS SETIO PAMBUKO","3302192908010002","ISLAM","Pria","PURBALINGGA","2001-08-29","SMK N 1 PURBALINGGA","TKJ",2019,5.9,"JL.BRAWIJAYA RT02 RW02 BANJARANYAR","SOKARAJA","Banyumas","Jawa Tengah","085877194093","085877194093","sample@sample.com","TEKNOLOGI INFORMASI S1","MAHASISWA BARU","10-03-2020","brosur","Lengkap","LAIN - LAIN","14-03-2020","AMBARWATI","IRT","081807827736","SOLIKHIN","BURUH","087720913787","JL.BRAWIJAYA RT02 RW02 BANJARANYAR","BANJARANYAR","SOKARAJA","Banyumas","Jawa Tengah",99999,0,"L","L",1250000,{"$f":"COUNTIF('[1]Laporan PMB '!$D$8:$D$469,D215)","v":{"$error":"#VALUE!"}}]
[null,209,"GELOMBANG KHUSUS","200171AO","WAHYU SUBANGUN","3302091910000003","ISLAM","Pria","BANYUMAS","2000-10-19","SMK N 1 BANYUMAS","TKJ",2020,0,"JL. RAYA SOMAGEDE SOMAGEDE RT 02 RW 06","SOMAGEDE","Banyumas","Jawa Tengah","085802903576","085802903576","sample@sample.com","SISTEM INFORMASI S1","MAHASISWA BARU","10-03-2020","brosur","Lengkap","LAIN - LAIN","14-03-2020","HADYANI"," "," ","SUKARDI"," "," ","JL. RAYA SOMAGEDE","SOMAGEDE RT 02 RW 06","SOMAGEDE","Banyumas","Jawa Tengah",99999,0,"L","L",2000000,{"$f":"COUNTIF('[1]Laporan PMB '!$D$8:$D$469,D216)","v":{"$error":"#VALUE!"}}]
[null,210,"GELOMBANG KHUSUS","200172AO","NRH ABDULAZIES AZZAM ALBANA","33040220596004","ISLAM","Pria","BANJARNEGARA","1996-05-20","PONPES ISLAM NURUL HUDA","AGAMA",2016,0,"KLAMPOK RT02 RW14 BANJARNEGARA","PURWAREJA KLAMPOK","BanjarNegara","Jawa Tengah","085641721353","085641721353","sample@sample.com","INFORMATIKA S1","MAHASISWA BARU","13-03-2020","brosur","Lengkap","LAIN - LAIN","13-03-2020","NURSIAH","PEDAGANG","082138243","ROSENVELT HUSSAIN","BURUH"," ","KLAMPOK RT02 RW14 BANJARNEGARA","PURWAREJA","PURWAREJA KLAMPOK","BanjarNegara","Jawa Tengah",99999,0,"L","L",2000000,{"$f":"COUNTIF('[1]Laporan PMB '!$D$8:$D$469,D217)","v":{"$error":"#VALUE!"}}]
[null,211,"GELOMBANG KHUSUS","200174AO","ASHAR MULYADI PRATAMA","3302140912010001","ISLAM","Pria","BANYUMAS","2001-12-09","SMK MA'ARIF NU 2 AJIBARANG","MULTIMEDIA",2019,5.47,"LESMANA RT 01 RW 05","AJIBARANG","Banyumas","Jawa Tengah","083145772243","083145772243","sample@sample.com","INFORMATIKA S1","MAHASISWA BARU","16-03-2020","brosur","Lengkap","LAIN - LAIN","21-03-2020","EMI MULYANA","GURU PAUD","08823329472","RIYADI","PERANGKAT DESA","082322497009","LESMANA RT 01 RW 05","LESMANA","AJIBARANG","Banyumas","Jawa Tengah",99999,0,"XXL","XXL",2000000,{"$f":"COUNTIF('[1]Laporan PMB '!$D$8:$D$469,D218)","v":{"$error":"#VALUE!"}}]
[null,212,"GELOMBANG KHUSUS","200175AO","PUJI WAHYUNI","3303055201940002","ISLAM","Wanita","PURBALINGGA","1994-01-12","UNIVERSITAS BSI PURWOKERTO","SISTEM INFORMASI",2018,3.34,"BOJONG RT 04 RW 02","BOJONG","Purbalingga","Jawa Tengah","082243684238","082243684238","sample@sample.com","INFORMATIKA S1","MAHASISWA TRANSFER","17-03-2020","brosur","Lengkap","LAIN - LAIN","21-03-2020","HAYATI","IRT","0895357411615","NGALIMUN","KARYAWAN SWASTA","08127880790","BOJONG RT 04 RW 02","BOJONG","BOJONG","Purbalingga","Jawa Tengah",99999,0,"S","S",2000000,{"$f":"COUNTIF('[1]Laporan PMB '!$D$8:$D$469,D219)","v":{"$error":"#VALUE!"}}]
[null,213,"GELOMBANG KHUSUS","200178AO","FARID HELMI MUZAQQI","3302143108010002","ISLAM","Pria","BANYUMAS","2001-08-31","SMK MA'ARIF NU 1 CILONGOK","MULTIMEDIA",2020,0,"TIPAR KIDUL RT01 RW05 AJIBARANG","AJIBARANG","Banyumas","Jawa Tengah","085702394957",62,"sample@sample.com","INFORMATIKA S1","MAHASISWA BARU","19-03-2020","brosur","Lengkap","LAIN - LAIN","21-03-2020","INDRIA UTAMI","IRT","082133437357","HENDRI ARI WIBOWO","GURU","085702394957","TIPAR KIDUL RT01 RW05 AJIBARANG","TIPAR KIDUL","AJIBARANG","Banyumas","Jawa Tengah",99999,0,"L","L",2000000,{"$f":"COUNTIF('[1]Laporan PMB '!$D$8:$D$469,D220)","v":{"$error":"#VALUE!"}}]
[null,214,"GELOMBANG KHUSUS","200179OL","SABANA NUR RIZKI HERMAWAN","3279040611010002","ISLAM","Pria","Ciamis","2001-11-06","SMK NEGERI 3 BANJAR","RPL",2020,0,"Jalan Belakang pasar langensari, No. 69, Lingkungan Langen","LANGENSARI","Kota Banjar","Jawa Barat","082216863513",62,"sabana.prilude@gmail.com","SISTEM INFORMASI S1","MAHASISWA BARU","20-03-2020","lainnya","Lengkap","LAIN - LAIN","24-04-2020","RASMI ROYANTI"," ","082217168050"," "," "," ","Jalan Belakang pasar langensari, No. 69, Lingkungan Langen","MUKTISARI","LANGENSARI","Kota Banjar","Jawa Barat",46343,0,"L "," L",2000000,{"$f":"COUNTIF('[1]Laporan PMB '!$D$8:$D$469,D221)","v":{"$error":"#VALUE!"}}]
[null,215,"GELOMBANG KHUSUS","200181AO","FIRLANNA WIHADITRA","3302252404010002","ISLAM","Pria","BANYUMAS","2001-04-24","SMK N 2 BANYUMAS","TEKNIK LISTRIK",2019,5.81,"JL VETERAN RT07 RW03 REJASARI","PURWOKERTO BARAT","Banyumas","Jawa Tengah","08375803152","08975803152","sample@sample.com","TEKNOLOGI INFORMASI S1","MAHASISWA BARU","20-03-2020","brosur","Lengkap","LAIN - LAIN","21-03-2020","SUCININGRUM","KARYAWAN SWASTA","085299256399","ACHMAD WILOPO","PEDAGANG","085100637634","JL VETERAN RT07 RW03 REJASARI","REJASARI","PURWOKERTO BARAT","Banyumas","Jawa Tengah",99999,0,"XL","XL",1250000,{"$f":"COUNTIF('[1]Laporan PMB '!$D$8:$D$469,D222)","v":{"$error":"#VALUE!"}}]
[null,216,"GELOMBANG KHUSUS","200183AO","WIDODO RIYADI","3302060701000004","ISLAM","Pria","BANYUMAS","2000-01-07","SMA MA'ARIF NU 1 KEMRANJEN","IPS",2018,6.02,"NUSAMANGIR RT 03 RW 01","KEMRANJEN","Banyumas","Jawa Tengah","085875142331","085875142331","sample@sample.com","SISTEM INFORMASI S1","MAHASISWA BARU","23-03-2020","brosur","Lengkap","LAIN - LAIN","28-03-2020","SAMINEM","TKI","66557766890","SAHIDI MUHDIRAN","ALM"," ALM","NUSAMANGIR RT 03 RW 01","NUSAMANGIR","KEMRANJEN","Banyumas","Jawa Tengah",99999,0,"L","L",2000000,{"$f":"COUNTIF('[1]Laporan PMB '!$D$8:$D$469,D223)","v":{"$error":"#VALUE!"}}]
[null,217,"GELOMBANG KHUSUS","200184AO","AGUNG WIDHI PRAMANA","3302252209930003","ISLAM","Pria","PURWOKERTO","1993-09-22","SMA 3 PURWOKERTO","IPS",2010,0,"JL KOBER NO 142 RT04/RW04 KOBER PURWOKERTO BARAT","PURWOKERTO BARAT","Banyumas","Jawa Tengah","6285848569429","6285848569429","sample@sample.com","INFORMATIKA S1","MAHASISWA TRANSFER","24-03-2020","teman/saudara","Lengkap","LAIN - LAIN","28-03-2020","SRI HARTATI WAHYUNINGSIH","PNS","085290593456","WARSIADI PURWANDONO","PNS","081229944498","JL KOBER NO 142 RT04/RW04 KOBER PURWOKERTO BARAT","KOBER","PURWOKERTO BARAT","Banyumas","Jawa Tengah",99999,0,"XL","XL",2000000,{"$f":"COUNTIF('[1]Laporan PMB '!$D$8:$D$469,D224)","v":{"$error":"#VALUE!"}}]
[null,218,"GELOMBANG KHUSUS","200186AO","MUHAMMAD SOHIHUL IBAD","3329031209020004","ISLAM","Pria","BREBES","2002-09-12","MAN 2 BREBES","IPS",2020,0,"JL. BUMIAYU-BANTARKAWUNG RT 01 RW 01 KALI LANGGAP","BUMIAYU","Brebes","Jawa Tengah","085229465004","082329502219","sample@sample.com","SISTEM INFORMASI S1","MAHASISWA BARU","24-03-2020","brosur","Lengkap","LAIN - LAIN","28-03-2020","JAHROTUL MUNAWAROH","IRT","085227040328","MUCH JAFAR","PEDAGANG","085280018157","JL. BUMIAYU-BANTARKAWUNG RT 01 RW 01 KALI LANGGAP","KALI LANGGAP","BUMIAYU","Brebes","Jawa Tengah",99999,0,"L","L",2000000,{"$f":"COUNTIF('[1]Laporan PMB '!$D$8:$D$469,D225)","v":{"$error":"#VALUE!"}}]
[null,219,"GELOMBANG KHUSUS","200189AO","AHMAD ARIF FEBRIAN",0,"ISLAM","Pria","KEDIRI","2002-02-16","SMK MUHAMMADIYAH 3 PURWOKERTO","TKJ",2020,0,"PERUM KARKLES RT07 RW07 KARANG KLESEM","PURWOKERTO SELATAN","Banyumas","Jawa Tengah","081228013283",62,"sample@sample.com","TEKNOLOGI INFORMASI S1","MAHASISWA BARU","26-03-2020","brosur","Lengkap","LAIN - LAIN","30-03-2020","TETI INDARWATI"," "," ","NORMA SUSILA"," ","081228013283","PERUM KARKLES RT07 RW07 KARANG KLESEM","KARANG KLESEM","PURWOKERTO SELATAN","Banyumas","Jawa Tengah",99999,0,"L","L",1250000,{"$f":"COUNTIF('[1]Laporan PMB '!$D$8:$D$469,D226)","v":{"$error":"#VALUE!"}}]
[null,220,"GELOMBANG KHUSUS","200190AO","ALIF SYAH MUGHNII PRIHATNA","3303151502000003","ISLAM","Pria","PURBALINGGA","1970-01-01","PKBM KARTIKA","IPS",2018,4.55,"KARANGNANGKA RT02 RW03 MREBET","MREBET","Purbalingga","Jawa Tengah","085643691724",62,"sample@sample.com","SISTEM INFORMASI S1","MAHASISWA BARU","26-03-2020","brosur","Lengkap","LAIN - LAIN","28-03-2020","NENI WIDYASTUTI","IRT","085280401687","TARSITO","PNS","085329195685","KARANGNANGKA RT02 RW03 MREBET","KARANGNAGKA","MREBET","Purbalingga","Jawa Tengah",99999,0,"XL","XL",2000000,{"$f":"COUNTIF('[1]Laporan PMB '!$D$8:$D$469,D227)","v":{"$error":"#VALUE!"}}]
[null,221,"GELOMBANG KHUSUS","200192AO","AFIFAH LUTFIA MUNAWAROH","3521055304000002","ISLAM","Wanita","NGAWI","2000-04-18","SMA N 2 NGAWI"," "," ",0,"PILANG PAYUNG RT03 RW01 NGAWI"," ","Ngawi","Jawa Timur",62,62,"sample@sample.com","INFORMATIKA S1","MAHASISWA BARU","27-03-2020","brosur","Lengkap","LAIN - LAIN","27-03-2020","MINISEM"," "," ","ALM RONI ANWAR"," "," "," "," "," ","Ngawi","Jawa Timur",99999,0,"M","M",0,{"$f":"COUNTIF('[1]Laporan PMB '!$D$8:$D$469,D228)","v":{"$error":"#VALUE!"}}]
[null,222,"GELOMBANG KHUSUS","200193AO","GIOVANI BENEDIKTUS RIDANTO WICAKSONO","3302240705970002","ISLAM","Pria","BANYUMAS","1997-05-07","SMA PANGUDI LUHUR","IPA",2015,0,"JL.CEMPAKA RT02 RW06 TELUK","PUREOKRTO SELATAN","Banyumas","Jawa Tengah","081225136590","081225136590","sample@sample.com","BISNIS DIGITAL S1","MAHASISWA BARU","27-03-2020","brosur","Lengkap","LAIN - LAIN","11-04-2020","FLORENTINA HASWARI","GURU","081391225136590","IGNATIUS MARDIYANTO","-"," 0","JL.CEMPAKA RT02 RW06 TELUK","TELUK","PUREOKRTO SELATAN","Banyumas","Jawa Tengah",99999,0,"L","L",1000000,{"$f":"COUNTIF('[1]Laporan PMB '!$D$8:$D$469,D229)","v":{"$error":"#VALUE!"}}]
[null,223,"GELOMBANG 1","200195OL","DIANA PUSPITA ANGGRAENI","3303135210030001","ISLAM","Wanita","Purbalingga","2003-10-12","SMA NEGERI 1 REMBANG","IPS",2020,0,"Gunungwuled","REMBANG","Purbalingga","Jawa Tengah","081393442043","081393442043","diianaa2017@gmail.com","ILMU KOMUNIKASI S1","MAHASISWA BARU","27-03-2020","brosur","Lengkap","LAIN - LAIN","30-05-2020","PRIATI","IRT","081393442043","SUPANGAT","WIRASWASTA"," 081382998334","Gunungwuled","GUNUNGWULED","REMBANG","Purbalingga","Jawa Tengah",53356,0,"XL","XL",1250000,{"$f":"COUNTIF('[1]Laporan PMB '!$D$8:$D$469,D230)","v":{"$error":"#VALUE!"}}]
[null,224,"GELOMBANG KHUSUS","200196AO","KARTIKA HANUM","33010743020005","ISLAM","Wanita","CILACAP","2002-03-03","SMK N 1 BANYUMAS","MULTIMEDIA",2020,0,"JL.RAMBUTAN RT03 RW04 MAOS LOR","MAOS","Cilacap","Jawa Tengah","089656164941","089656164941","sample@sample.com","ILMU KOMUNIKASI S1","MAHASISWA BARU","28-03-2020","brosur","Lengkap","LAIN - LAIN","28-03-2020","SUDARTI","PEGDAGANG","082135167151","ADITIYO","PEDAGANG","081329445328","JL.RAMBUTAN RT03 RW04","MAOS LOR","MAOS","Cilacap","Jawa Tengah",99999,0,"L","L",1000000,{"$f":"COUNTIF('[1]Laporan PMB '!$D$8:$D$469,D231)","v":{"$error":"#VALUE!"}}]
[null,225,"GELOMBANG KHUSUS","200197AO","SEPTIAN ARIZKI","3302140909970003","ISLAM","Pria","BANYUMAS","1997-09-09","SMK WIWOROTOMO PURWOKERTO","TKR",2015,0,"LESMANA RT 01 RT 04 KEC. AJIBARANG KAB. BANYUMAS JAWA TENGAH 53163","AJIBARANG","Banyumas","Jawa Tengah","6281393923197","6281393923197","sample@sample.com","INFORMATIKA S1","MAHASISWA KELAS SORE","28-03-2020","teman/saudara","Lengkap","LAIN - LAIN","28-03-2020","BARIYAH","IRT","0895378237413","ABU TOYIB","BURUH"," ","LESMANA RT 01 RT 04 KEC. AJIBARANG KAB. BANYUMAS JAWA TENGAH 53163","LESMANA","AJIBARANG","Banyumas","Jawa Tengah",53163,0,"L","M",2000000,{"$f":"COUNTIF('[1]Laporan PMB '!$D$8:$D$469,D232)","v":{"$error":"#VALUE!"}}]
[null,226,"GELOMBANG KHUSUS","200207AO","NUR AZMI AMRULLOH","33040125512010003","ISLAM","Pria","BANJARNEGARA","2001-12-25","SMA N 1 PURWAREJA KALMPOK","MIPA",2020,0,"GUMELAR WETAN RT 01 RW 03","SUSUKAN","BanjarNegara","Jawa Tengah","085702427313","085702427313","sample@sample.com","INFORMATIKA S1","MAHASISWA BARU","31-03-2020","brosur","Lengkap","LAIN - LAIN","04-04-2020","RUMINI","IRT"," ","PARSONO","SIPIL"," 085227789710","GUMELAR WETAN RT 01 RW 03","GUMELAR WETAN","SUSUKAN","BanjarNegara","Jawa Tengah",99999,0,"L","XL",1000000,{"$f":"COUNTIF('[1]Laporan PMB '!$D$8:$D$469,D233)","v":{"$error":"#VALUE!"}}]
[null,227,"GELOMBANG 1","200211OL","APRIMAN FIKRI HAIKAL","3329091405010007","ISLAM","Pria","Brebes","2001-05-14","SMA N 1 BREBES","IPS",2018,5.93,"Desa wangandalem RT05 RW02","BREBES","Brebes","Jawa Tengah","087708223311",62,"xfrhk3@gmail.com","INFORMATIKA S1","MAHASISWA BARU","02-04-2020","brosur","Lengkap","LAIN - LAIN","04-04-2020","RINI PANETI"," ","087830393434"," "," "," ","Desa wangandalem RT05 RW02","WANGANDALEM","BREBES","Brebes","Jawa Tengah",52214,0,"L","L",3000000,{"$f":"COUNTIF('[1]Laporan PMB '!$D$8:$D$469,D234)","v":{"$error":"#VALUE!"}}]
[null,228,"GELOMBANG KHUSUS","200214AO","NURUL FACHRUNNISA","302112690901001","ISLAM","Wanita","BOGOR","2001-09-29","SMK N 1 BUKATEJA","MULTIMEDIA",2019,0,"KEDUNGJATI RT02 RW10BUKATEJA","BUKATEJA","Purbalingga","Jawa Tengah","62085799301510","62085799301510","sample@sample.com","ILMU KOMUNIKASI S1","MAHASISWA BARU","03-04-2020","brosur","Lengkap","LAIN - LAIN","04-04-2020","SYARIFAH NUR A'ENI"," IRT","081575969428","rochmat"," TNI AU","082283629615","KEDUNGJATI RT02 RW10BUKATEJA","KEDUNGJATI","BUKATEJA","Purbalingga","Jawa Tengah",99999,0,"M","M",1250000,{"$f":"COUNTIF('[1]Laporan PMB '!$D$8:$D$469,D235)","v":{"$error":"#VALUE!"}}]
[null,229,"GELOMBANG 1","200218OL","ROWDAK BARTS ADHANI","3302260210020003","ISLAM","Pria","PURWOKERTO ","2002-10-02","SMA BATIK 1 SURAKARTA","IPA",2020,0,"JL. MAHONI VII NO 67","PURWOKERTO SELATAN","Banyumas","Jawa Tengah","088227899835","088227899835","odabarts@gmail.com","TEKNOLOGI INFORMASI S1","MAHASISWA BARU","06-04-2020","brosur","Lengkap","LAIN - LAIN","06-04-2020","DEWI YUNI WIDIASTUTI","IRT","088980234726","METTA PHANA A","PNS","08562617631","JL MAHONI VII NO 67","TELUK","PURWOKERTO SELATAN","Banyumas","Jawa Tengah",53145,0,"M","M",1500000,{"$f":"COUNTIF('[1]Laporan PMB '!$D$8:$D$469,D236)","v":{"$error":"#VALUE!"}}]
[null,230,"GELOMBANG 1","200225AO","FITRIANA AWALIYAH","3302156201990001","ISLAM","Wanita","BANYUMAS","1999-01-22","SMA N 1 AJIBARANG","IPA",2020,0,"KEL. CIREBAH RT 02 RW 05 CIHONJE","GUMELAR","Banyumas","Jawa Tengah","082137916936",62,"sample@sample.com","INFORMATIKA S1","MAHASISWA BARU","08-04-2020","brosur","Lengkap","LAIN - LAIN","18-04-2020","JARYATI","PNS","081226435178","SUBUR WIDODO","WIRASWASTA"," 081215680383","KEL. CIREBAH RT 02 RW 05","CIHONJE","GUMELAR","Banyumas","Jawa Tengah",99999,0,"XL","XL",2000000,{"$f":"COUNTIF('[1]Laporan PMB '!$D$8:$D$469,D237)","v":{"$error":"#VALUE!"}}]
[null,231,"GELOMBANG KHUSUS","200226AO","JANUAR FABRIAN FAKHARDIKA","3302101501020002","ISLAM","Pria","BANYUMAS","2002-01-15","SMK TUJUH LIMA 1 PURWOKERTO","OTOMOTIF",2020,0,"WLAHAR WETAN RT 07 RW 02","KALIBAGOR","Banyumas","Jawa Tengah","081578277503",62,"sample@sample.com","INFORMATIKA S1","MAHASISWA BARU","08-04-2020","brosur","Lengkap","LAIN - LAIN","08-04-2020","SITI KHOTIMAH","GURU"," ","SUTORO"," "," ","WLAHAR WETAN RT 07 RW 02","WLAHAR WETAN","KALIBAGOR","Banyumas","Jawa Tengah",99999,0,"L","L",2000000,{"$f":"COUNTIF('[1]Laporan PMB '!$D$8:$D$469,D238)","v":{"$error":"#VALUE!"}}]
[null,232,"GELOMBANG 1","200228OL","ANAN WIDIANTO","3301051204020004","ISLAM","Pria","Cilacap","2002-04-12","SMK NEGERI NUSAWUNGU","LISTRIK",2020,0,"Jalan Tongkol no.11","NUSAWUNGU","Cilacap","Jawa Tengah","081227594676",62,"anan.widi1@gmail.com","TEKNOLOGI INFORMASI S1","MAHASISWA BARU","09-04-2020","brosur","Lengkap","LAIN - LAIN","11-04-2020","RODIYAH","IRT","081384500244","ALIMUN SAFAAT"," TANI"," 081296808734","Jalan Tongkol no.11","JALAN TONGKOL DUSUN NUSADADI NO.011","NUSAWUNGU","Cilacap","Jawa Tengah",53283,0,"L","L",1500000,{"$f":"COUNTIF('[1]Laporan PMB '!$D$8:$D$469,D239)","v":{"$error":"#VALUE!"}}]
[null,233,"GELOMBANG 1","200229AO","FARREL IBRAHIM","3302271608020002","ISLAM","Pria","KUDUS","2002-08-16","PONPES ALI MAKSUM KRAPYAK"," ",2020,0,"JL.WIRYO DIHARDJO 12 RT02 RW08 GRENDENG","PURWOKERTO UTARA","Banyumas","Jawa Tengah","085759736767",62,"sample@sample.com","INFORMATIKA S1","MAHASISWA BARU","09-04-2020","brosur","Lengkap","LAIN - LAIN","25-04-2020","KHUSNUL KHOTIMAH","IRT"," ","YUSMEDI NURFAIZAL","DEKAN ","085759736767","JL.WIRYO DIHARDJO 12 RT02 RW08 GRENDENG","GRENDENG","PURWOKERTO UTARA","Banyumas","Jawa Tengah",99999,0,"L","L",0,{"$f":"COUNTIF('[1]Laporan PMB '!$D$8:$D$469,D240)","v":{"$error":"#VALUE!"}}]
[null,234,"GELOMBANG 1","200233AO","ILHAM AKBAR RAMDANI","3301041511010002","ISLAM","Pria","CILACAP","2001-11-15","SMK NEGERI NUSAWUNGU","LISTRIK",2020,0,"JL.GOGIKAN RT12 RW02 KEMOJING BINANGUN","BINANGUN","Cilacap","Jawa Tengah","087825249050","087825249050","sample@sample.com","ILMU KOMUNIKASI S1","MAHASISWA BARU","11-04-2020","brosur","Lengkap","LAIN - LAIN","11-04-2020","SITI MULYANI","IRT","087802884663","ARIS RANTONO"," WIRASWASTA","083106277999","JL.GOGIKAN RT12 RW02 KEMOJING BINANGUN","KEMOJING","BINANGUN","Cilacap","Jawa Tengah",99999,1000000,"XXL","XXL",1250000,{"$f":"COUNTIF('[1]Laporan PMB '!$D$8:$D$469,D241)","v":{"$error":"#VALUE!"}}]
[null,235,"GELOMBANG 1","200238OL","ADITYA RAMADHAN","3302031212010002","ISLAM","Pria","Banyumas","2001-12-12","SMA NEGERI 1 WANGON","IPS",2020,0,"Jalan suwardi RT","JATILAWANG","Banyumas","Jawa Tengah","085701914112",62,"adhtyaramadhan273@gmail.com","INFORMATIKA S1","MAHASISWA BARU","13-04-2020","brosur","Lengkap","LAIN - LAIN","25-04-2020","SITI ZULAEHA"," IRT","081327338239"," SLAMET YULIANTO","KARYWAN SWASTA"," 082221753287","Jalan Suwardi","TINGGARJAYA","JATILAWANG","Banyumas","Jawa Tengah",53174,0,"XL","XL",2000000,{"$f":"COUNTIF('[1]Laporan PMB '!$D$8:$D$469,D242)","v":{"$error":"#VALUE!"}}]
[null,236,"GELOMBANG 1","200239OL","GILANG PRIAMBODO","3303140105020002","ISLAM","Pria","Purbalingga","2002-05-01","SMA NEGERI 1 KUTASARI","IPA",2020,0,"Beji RT 14 RW 7 Purbalingga","BOJONGSARI","Purbalingga","Jawa Tengah","089510833572",62,"tubagusafifnurhidayat1@gmail.com","BISNIS DIGITAL S1","MAHASISWA BARU","13-04-2020","brosur","Lengkap","LAIN - LAIN","25-04-2020","HANDAYANI","PNS","085869633369","GUNTORO","SWASTA","081542818965","Beji","BEJI","BOJONGSARI","Purbalingga","Jawa Tengah",53362,0,"XXL","XXL",1250000,{"$f":"COUNTIF('[1]Laporan PMB '!$D$8:$D$469,D243)","v":{"$error":"#VALUE!"}}]
[null,237,"GELOMBANG 1","200241OL","AL BAKHRI FAJAR NUR FADILLAH","3674050806020005","ISLAM","Pria","Banyumas","2002-06-08","SMK BINA INFORMATIKA BINTARO","TKJ",2020,0,"Jalan Gunung Gede No. 20A","PURWOKERTO UTARA","Banyumas","Jawa Tengah","081318594028","081318594028","albakhrifnf@gmail.com","BISNIS DIGITAL S1","MAHASISWA BARU","14-04-2020","internet","Lengkap","LAIN - LAIN","25-04-2020","TIFFANY ALIF VOLLYRIANZY","IRT","081292237911"," BARYADI","KARYWAN SWASTA"," 081298177389","Jalan Gunung Gede No. 20A","BANCARKEMBAR","PURWOKERTO UTARA","Banyumas","Jawa Tengah",53121,4000000,"XL","XL",250000,{"$f":"COUNTIF('[1]Laporan PMB '!$D$8:$D$469,D244)","v":{"$error":"#VALUE!"}}]
[null,238,"GELOMBANG 1","200244OL","FATHUR ROHMAN","3301192506020001","ISLAM","Pria","Cilacap","2002-06-25","MA AL ITTIHAD SIDAREJA","IPA",2020,8,"Jl. Samboja No. 04 Dusun kedokan jali RT 02 RW 10 CINYAWANG","PATIMUAN","Cilacap","Jawa Tengah","085747917917","085747917917","Syariefrohman2520@gmail.com","TEKNOLOGI INFORMASI S1","MAHASISWA BARU","14-04-2020","brosur","Lengkap","LAIN - LAIN","25-04-2020","SUKIRAH FITRI M"," IRT","085293298344","MOHAMMAD AMIR"," PNS","085227434523","Jl. Samboja No. 04 Dusun kedokan jali RT 02 RW 10","CINYAWANG","PATIMUAN","Cilacap","Jawa Tengah",53264,0,"S","M",1500000,{"$f":"COUNTIF('[1]Laporan PMB '!$D$8:$D$469,D245)","v":{"$error":"#VALUE!"}}]
[null,239,"GELOMBANG 1","200249AO","AFNATASYA DWIAS PUTRI","3302086405020004","ISLAM","Wanita","BANYUMAS","2002-05-24","SMK N NUSAWUNGU","LISTRIK",2020,0,"JL.BALAI DESA RT02 RW01 PLANGKAPAN","TAMBAK","Banyumas","Jawa Tengah","082138113428","082138113428","sample@sample.com","TEKNOLOGI INFORMASI S1","MAHASISWA BARU","16-04-2020","brosur","Lengkap","LAIN - LAIN","25-04-2020","MUNTRIYAH","IRT","081326283692","UNTUNG TRI TUTUR","BURUH","+6738850878","JL.BALAI DESA RT02 RW01","PLANGKAPAN","TAMBAK","Banyumas","Jawa Tengah",99999,1500000,"M","L",1500000,{"$f":"COUNTIF('[1]Laporan PMB '!$D$8:$D$469,D246)","v":{"$error":"#VALUE!"}}]
[null,240,"GELOMBANG 1","200251OL","SITI MUTAMIMAH","3302044102020002","ISLAM","Wanita","Banyumas","2002-02-01","SMKS TEKOM MBM RAWALO","TKJ",2020,0,"Tipar","RAWALO","Banyumas","Jawa Tengah","082265107650",62,"Sitimutamimah669@gmail.com","TEKNOLOGI INFORMASI S1","MAHASISWA BARU","16-04-2020","brosur","Lengkap","LAIN - LAIN","06-06-2020","WASILAH","IRT","081384158641","MASKUN","BURUH","081901010813","Tipar","TIPAR","RAWALO","Banyumas","Jawa Tengah",53173,0,"L","L",500000,{"$f":"COUNTIF('[1]Laporan PMB '!$D$8:$D$469,D247)","v":{"$error":"#VALUE!"}}]
[null,241,"GELOMBANG 1","200255AO","FATHUR ROHIM","3301192506020002","ISLAM","Pria","CILACAP","2002-06-25","MA AL ITTIHAD SIDAREJA","IPS",2020,0,"DSN KEDOKANJALI RT03 RW10","PATIMUAN","Cilacap","Jawa Tengah","08812949903","08812949903","sample@sample.com","TEKNOLOGI INFORMASI S1","MAHASISWA BARU","18-04-2020","brosur","Lengkap","LAIN - LAIN","25-04-2020","SUKIRAH FITRI MASRUROH"," ","081293298344","MOHAMMAD AMIR"," ","085227434523","DSN KEDOKANJALI RT03 RW10","CINYAWANG","PATIMUAN","Banyumas","Jawa Tengah",99999,0,"S","M",1500000,{"$f":"COUNTIF('[1]Laporan PMB '!$D$8:$D$469,D248)","v":{"$error":"#VALUE!"}}]
[null,242,"GELOMBANG KHUSUS","200260AO","MANG'RUF ICHSANUDIN","3305020703980001","ISLAM","Pria","KEBUMEN","1998-03-07","POLITEKNIK MA'ARIF PURWOKERTO","TEKNIK KOMPUTER",2020,0,"DK. JAGABELA RT 01 RW 02 JOGOMULYO","BUAYAN","Banyumas","Jawa Tengah","087847615350","085642662087","sample@sample.com","SISTEM INFORMASI S1","MAHASISWA TRANSFER","21-04-2020","brosur","Lengkap","LAIN - LAIN","25-04-2020","MANISEM","TANI","087847615350","SANMOHAMAD","TANI","081548874452","DK. JAGABELA RT 01 RW 02","JOGOMULYO","BUAYAN","Banyumas","Jawa Tengah",99999,0,"L","L",2000000,{"$f":"COUNTIF('[1]Laporan PMB '!$D$8:$D$469,D249)","v":{"$error":"#VALUE!"}}]
[null,243,"GELOMBANG 1","200261AO","DHIKA ADI PRASETYA","3327070610010001","ISLAM","Pria","PEMALANG","2001-10-06","SMK PGRI 3 RANDUDONGKAL","MULTIMEDIA",2020,0,"KEJENE RT 15 RW 01","RANDUDONGKAL","Pemalang","Jawa Tengah","085328702307","085328702307","sample@sample.com","INFORMATIKA S1","MAHASISWA BARU","22-04-2020","brosur","Lengkap","LAIN - LAIN","25-04-2020","SE'AH","PETANI"," ","TARONO","PETANI","081902728856","KEJENE RT 15 RW 01","KEJENE","RANDUDONGKAL","Pemalang","Jawa Tengah",99999,0,"M","M",3000000,{"$f":"COUNTIF('[1]Laporan PMB '!$D$8:$D$469,D250)","v":{"$error":"#VALUE!"}}]
[null,244,"GELOMBANG KHUSUS","200262AO","DESTIANA WIJAYANTI","3302264112010001","ISLAM","Wanita","BANYUMAS","2001-12-01","SMK N 1 PURWOKERTO","OTKP",2020,0,"JL. NYI MELENG RT 07 RW 01 MERSI","PURWOKERTO TIMUR","Banyumas","Jawa Tengah","085803409099","085803409099","sample@sample.com","ILMU KOMUNIKASI S1","MAHASISWA BARU","22-04-2020","brosur","Lengkap","LAIN - LAIN","25-04-2020","SUYATNI","IRT"," ","SURATMO","BURUH","085567986547","JL. NYI MELENG RT 07 RW 01 MERSI","MERSI","PURWOKERTO TIMUR","Banyumas","Jawa Tengah",99999,0,"L","L",1000000,{"$f":"COUNTIF('[1]Laporan PMB '!$D$8:$D$469,D251)","v":{"$error":"#VALUE!"}}]
[null,245,"GELOMBANG 1","200263AO","DZADILLASYAFAROS DAHRIGUSFA LAIRAY","3302144408010002","ISLAM","Wanita","BANYUMAS","2001-08-04","SMK MUHAMMADIYAH 1 AJIBARANG","AP",2020,0,"AJIBARANG KULON RT 06 RW 01","AJIBARANG","Banyumas","Jawa Tengah","085894515087","085894515087","sample@sample.com","ILMU KOMUNIKASI S1","MAHASISWA BARU","22-04-2020","brosur","Lengkap","LAIN - LAIN","25-04-2020","ONE FRAILISTIANI","WIRASWASTA","085600704542","WASIS SUGIARTO","WIRASWASTA","081327003954","AJIBARANG KULON RT 06 RW 01","AJIBARANG KULON","AJIBARANG","Banyumas","Jawa Tengah",99999,0,"M","M",1250000,{"$f":"COUNTIF('[1]Laporan PMB '!$D$8:$D$469,D252)","v":{"$error":"#VALUE!"}}]
[null,246,"GELOMBANG 1","200265OL","MUHAMMAD WILDAN SANTOSA","3302260111980002","ISLAM","Pria","Purwokerto,Banyumas,Jawa Tengah","1998-11-01","SMK WIWOROTOMO PURWOKERTO","TKJ",2018,8,"Jalan Kranji Gang 1 no.36 RT04 RW07","PURWOKERTO TIMUR","Banyumas","Jawa Tengah","089667183329","089667183329","himeka.rin09@gmail.com","SISTEM INFORMASI S1","MAHASISWA BARU","23-04-2020","internet","Lengkap","LAIN - LAIN","09-05-2020","EVI P","ALM",631170,"ACHMAD PRATIKNO HADI"," WIRAUSAHA",632180,"Kranji gang 1 no 36","KRANJI","PURWOKERTO TIMUR","Banyumas","Jawa Tengah",53116,0,"M","M",3000000,{"$f":"COUNTIF('[1]Laporan PMB '!$D$8:$D$469,D253)","v":{"$error":"#VALUE!"}}]
[null,247,"GELOMBANG 1","200266AO","MAYA SETIANINGSIH","3302176805020006","ISLAM","Wanita","BANYUMAS","2002-05-28","SMK MUHAMMADIYAH 1 AJIBARANG","PERKANTORAN",2020,0,"JL.CURUG CIPENDOK RT06 RW06 CILONGOK","CILONGOK","Banyumas","Jawa Tengah","081586819887",62,"sample@sample.com","ILMU KOMUNIKASI S1","MAHASISWA BARU","23-04-2020","brosur","Lengkap","LAIN - LAIN","25-04-2020","SULIATI","IRT"," ","ABDUL ACIN","KARYAWAN SWASTA","081219225294","JL.CURUG CIPENDOK RT06 RW06 CILONGOK","KARANGTENGAH","CILONGOK","Banyumas","Jawa Tengah",99999,0,"M","M",1250000,{"$f":"COUNTIF('[1]Laporan PMB '!$D$8:$D$469,D254)","v":{"$error":"#VALUE!"}}]
[null,248,"GELOMBANG 1","200267AO","BAGUS LIGA IRAWAN","3302140404020004","ISLAM","Pria","BANYUMAS","2002-04-04","SMK MUHAMMADIYAH 1 AJIBARANG","TKJ",2020,0,"PANCURENDANG RT02 RW07 AJIBARANG","AJIBARANG","Banyumas","Jawa Tengah","081226785105","085329959364","sample@sample.com","INFORMATIKA S1","MAHASISWA BARU","24-04-2020","brosur","Lengkap","LAIN - LAIN","09-05-2020","WIWIK SETYANINGSIH","GURU","089632023332","NOTO","KARYAWAN SWASTA"," ","PANCURENDANG RT02 RW07 AJIBARANG","PANCURENDANG","AJIBARANG","Banyumas","Jawa Tengah",99999,0,"XXL","XXL",3000000,{"$f":"COUNTIF('[1]Laporan PMB '!$D$8:$D$469,D255)","v":{"$error":"#VALUE!"}}]
[null,249,"GELOMBANG 1","200269AO","ELKANA AYYUGI","3301072805020002","ISLAM","Pria","CILACAP","2002-01-28","SMK NEGERI 1 BINANGUN","TKR",2020,0,"MAOS LOR RT02 RW01 CILACAP","MAOS","Cilacap","Jawa Tengah","089658825456",62,"sample@sample.com","TEKNOLOGI INFORMASI S1","MAHASISWA BARU","25-04-2020","brosur","Lengkap","LAIN - LAIN","25-04-2020","RUMIYATI"," "," ","KASMAN"," "," ","MAOS LOR RT02 RW01 CILACAP","MAOSLOR","MAOS","Cilacap","Jawa Tengah",99999,0,"L ","L",1500000,{"$f":"COUNTIF('[1]Laporan PMB '!$D$8:$D$469,D256)","v":{"$error":"#VALUE!"}}]
[null,250,"GELOMBANG 1","200273OL","KHARISMA KAULAENI","3302224701030001","ISLAM","Wanita","Banyumas","2003-01-07","SMK MUHAMMADIYAH 3 PURWOKERTO","KEPERAWATAN",2020,0,"Moch. Besar DESA KUTASARI RT 03 RW 07","BATURRADEN","Banyumas","Jawa Tengah","0895351916397","0895351916397","rismamima43@gmail.com","ILMU KOMUNIKASI S1","MAHASISWA BARU","29-04-2020","lainnya","Lengkap","LAIN - LAIN","09-05-2020","KORINGAH"," IRT","081328627170","KAMTO","BURUH","081326007261","Moch. Besar DESA KUTASARI RT 03 RW 07","KUTASARI","BATURRADEN","Banyumas","Jawa Tengah",53251,0,"M","L",1250000,{"$f":"COUNTIF('[1]Laporan PMB '!$D$8:$D$469,D257)","v":{"$error":"#VALUE!"}}]
[null,251,"GELOMBANG 1","200275AO","RIDO AJI PANGESTU","3303071203010002","ISLAM","Pria","PURBALINGGA","2001-03-12","SMK N 1 KUTASARI","TKJ",2019,5.46,"KARANGCEGAK RT 01 RW 01","KUTASARI","Purbalingga","Jawa Tengah","081228232252","081228169997","sample@sample.com","TEKNOLOGI INFORMASI S1","MAHASISWA BARU","30-04-2020","brosur","Lengkap","LAIN - LAIN","09-05-2020","WARYANTI","PEDAGANG"," ","EDI KARYANTO","PNS","085329389494","KARANGCEGAK RT 01 RW 01","KARANGCEGAK","KUTASARI","Purbalingga","Jawa Tengah",99999,0,"L","L",1500000,{"$f":"COUNTIF('[1]Laporan PMB '!$D$8:$D$469,D258)","v":{"$error":"#VALUE!"}}]
[null,252,"GELOMBANG 1","200277OL","MUHAMMAD ABDUL AZIZ","3302111603020001","ISLAM","Pria","Banyumas","2002-03-16","MA MIFTAHUSSALAM BANYUMAS","IPS",2020,0,"Pasinggangan","BANYUMAS","Banyumas","Jawa Tengah","0895364653938","0895364653938","muhammadabdulaziz173@gmail.com","SISTEM INFORMASI S1","MAHASISWA BARU","01-05-2020","brosur","Lengkap","LAIN - LAIN","09-05-2020","SUMIYATI","IRT","082138387147","MUNTORI"," PNS"," 082221072275","Pasinggangan","PASINGGANGAN","BANYUMAS","Banyumas","Jawa Tengah",53192,0,"M","M",2000000,{"$f":"COUNTIF('[1]Laporan PMB '!$D$8:$D$469,D259)","v":{"$error":"#VALUE!"}}]
[null,253,"GELOMBANG KHUSUS","200278AO","NAUFAL TAUFIQURRAKHMAN","3302240606020004","ISLAM","Pria","PURWOKERTO","2002-06-06","SMK N 2 PURWOKERTO","MULTIMEDIA",2020,0,"JL. JATI RAYA NO 130 RT 04 RW 07 TANJUNG","PURWOKERTO SELATAN","Banyumas","Jawa Tengah","082243377739","082243377739","sample@sample.com","INFORMATIKA S1","MAHASISWA BARU","02-05-2020","brosur","Lengkap","LAIN - LAIN","09-05-2020","SITI NURURROKHMI","GURU","082242067120","ISTIAWAN WIBISONO ADJI","GURU","085101643490","JL. JATI RAYA NO 130 RT 04 RW 07","TANJUNG","PURWOKERTO SELATAN","Banyumas","Jawa Tengah",99999,0,"XL","XL",2000000,{"$f":"COUNTIF('[1]Laporan PMB '!$D$8:$D$469,D260)","v":{"$error":"#VALUE!"}}]
[null,254,"GELOMBANG 1","200279OL","AFILIASARI MAULIDA","3171064306010003","ISLAM","Wanita","bogor","2001-06-03","SMK NEGERI 3 PURWOKERTO","Lainnya",2019,6.7,"Jalan Ahmad Yani gang 4","PURWOKERTO BARAT","Banyumas","Jawa Tengah","083103995751","083103995751","Afiliasarimaulida1@gmail.com","ILMU KOMUNIKASI S1","MAHASISWA BARU","03-05-2020","internet","Lengkap","LAIN - LAIN","09-05-2020","ERIA ERAWATY","IRT","082210143129"," ANDY ISTIANTO"," SWASTA","081281110772","Jalan Ahmad Yani gang 4","KEDUNGWULUH","PURWOKERTO BARAT","Banyumas","Jawa Tengah",53131,0,"M","L",0,{"$f":"COUNTIF('[1]Laporan PMB '!$D$8:$D$469,D261)","v":{"$error":"#VALUE!"}}]
[null,255,"GELOMBANG 1","200284AO","SAIFU ALDIANSYAH","3302102806010001","ISLAM","Pria","PURBALINGGA","2001-06-28","SMK N 1 BANYUMAS","MULTIMEDIA",2020,8.1,"KALIBAGOR RT09 RW02"," ","Banyumas","Jawa Tengah","082330751251",62,"sample@sample.com","TEKNOLOGI INFORMASI S1","MAHASISWA BARU","04-05-2020","brosur","Lengkap","LAIN - LAIN","09-05-2020","ELLY PURWANTI","GURU TK","081328645925","SUPARYANTO"," WIRASWASTA"," 081328760358","KALIBAGOR RT09 RW02"," "," ","Banyumas","Jawa Tengah",99999,0,"XXL","XXL",1500000,{"$f":"COUNTIF('[1]Laporan PMB '!$D$8:$D$469,D262)","v":{"$error":"#VALUE!"}}]
[null,256,"GELOMBANG 1","200287AO","MUHAMMAD ARDIANSYAH","00000000000000000000000000","ISLAM","Pria","JAYAPURA","2020-03-27","MAN 1 CILACAP","IPS",2020,0,"JL. BETET RT 03/12 KEL. SLARANG","KESUGIHAN","Cilacap","Jawa Tengah","081344251620","081344251620","sample@sample.com","INFORMATIKA S1","MAHASISWA BARU","05-05-2020","brosur","Lengkap","LAIN - LAIN","09-05-2020","SITI MUTMAINAH","PNS","081344251620","SUTRISNO","PNS","081344251620","JL. BETET RT 03/12 SLARANG","SLARANG","KESUGIHAN","Cilacap","Jawa Tengah",53271,5000000,"L","L",3000000,{"$f":"COUNTIF('[1]Laporan PMB '!$D$8:$D$469,D263)","v":{"$error":"#VALUE!"}}]
[null,257,"GELOMBANG 1","200288AO","YUDHISTIRA MUHAMMAD ALFA","9103012912010003","ISLAM","Pria","JAYAPURA","2001-12-29","SMA N 3 PURWOKERTO","IPA",2020,0,"PERUM GSMT BLOK 21 NO 15  RT03 RW06 KARANGLEWAS","KARANGLEWAS","Banyumas","Jawa Tengah","0895385038959",62,"sample@sample.com","SISTEM INFORMASI S1","MAHASISWA BARU","05-05-2020","brosur","Lengkap","LAIN - LAIN","09-05-2020","DYAH NIRMALA WAHYUDIATMIKA","IRT","081344650624","DARYONO","ASN"," 085244925133","PERUM GSMT BLOK 21 NO 15  RT03 RW06 KARANGLEWAS","KARANGLEWAS KIDUL","KARANGLEWAS","Banyumas","Jawa Tengah",99999,0,"5L","5L",2000000,{"$f":"COUNTIF('[1]Laporan PMB '!$D$8:$D$469,D264)","v":{"$error":"#VALUE!"}}]
[null,258,"GELOMBANG 1","200289OL","ALFIAN NANDA PRATAMA","3302112905020002","ISLAM","Pria","Banyumas","2002-05-29","SMK PURNAMA 2 BANYUMAS","MESIN",2020,0,"Pasinggangan","BANYUMAS","Banyumas","Jawa Tengah","085326711714",62,"Alfiannandapratama115@gmail.com","INFORMATIKA S1","MAHASISWA BARU","05-05-2020","internet","Lengkap","LAIN - LAIN","06-06-2020","PURWATI","MENJAHIT","081325513034"," NARWAN","PNS","081325513034","Pasinggangan","PASINGGANGAN","BANYUMAS","Banyumas","Jawa Tengah",53192,0,"L","L",3000000,{"$f":"COUNTIF('[1]Laporan PMB '!$D$8:$D$469,D265)","v":{"$error":"#VALUE!"}}]
[null,259,"GELOMBANG 1","200290AO","ARIEF ADE IRAWAN","3302180606020001","ISLAM","Pria","BANYUMAS","2002-06-06","MAN 2 BANYUMAS","IPA",2020,0,"KARANGLEWAS KIDUL RT01 RW02","KARANGLEWAS","Banyumas","Jawa Tengah","0895343361145",62,"sample@sample.com","INFORMATIKA S1","MAHASISWA BARU","05-05-2020","brosur","Lengkap","LAIN - LAIN","09-05-2020","FATIMAH ASIH MULYANI","IRT","085869613575","TULUS WINTORO","BURUH","089518547593","KARANGLEWAS KIDUL RT01 RW02","KARANG LEWAS KIDUL","KARANGLEWAS","Banyumas","Jawa Tengah",99999,0,"XL","XL",2000000,{"$f":"COUNTIF('[1]Laporan PMB '!$D$8:$D$469,D266)","v":{"$error":"#VALUE!"}}]
[null,260,"GELOMBANG 1","200303AO","AHMAD ZAMRUDIN","3302151701020003","ISLAM","Pria","BANYUMAS","2003-01-17","SMK MAARIF NU 1 AJIBARANG","TEKNIK SEPEDA MOTOR",2020,0,"TLAGA RT 02 RW 03","GUMELAR","Banyumas","Jawa Tengah","6281228209564","6281228209564","sample@sample.com","INFORMATIKA S1","MAHASISWA BARU","09-05-2020","brosur","Lengkap","LAIN - LAIN","20-05-2020","YULI WIHARYATI","PNS GURU","081327045347","SARKO"," PNS KORWIL"," 081215076713","TLAGA RT 02 RW 03 KEC. GUMELAR KAB. BANYUMAS JAWA TENGAH 53165","TLAGA","GUMELAR","Banyumas","Jawa Tengah",53165,0,"L","L",3000000,{"$f":"COUNTIF('[1]Laporan PMB '!$D$8:$D$469,D267)","v":{"$error":"#VALUE!"}}]
[null,261,"GELOMBANG 1","200308AO","YOSEP OKTAVIANUS TEGUH","3303012810000002","ISLAM","Pria","PURBALINGGA","2000-10-28","SMA N BUKATEJA","IPA",2020,0,"TOYAREKA RT02 RW01 KEMANGKON"," ","Purbalingga","Jawa Tengah","085702267105",62,"sample@sample.com","TEKNOLOGI INFORMASI S1","MAHASISWA BARU","11-05-2020","brosur","Lengkap","LAIN - LAIN","15-05-2020","ALM ANY SUMARNI"," "," ","ALM JOKO YUWONO"," "," ","TOYAREKA RT02 RW01 KEMANGKON"," "," ","Purbalingga","Jawa Tengah",99999,0,"XL","XL",1500000,{"$f":"COUNTIF('[1]Laporan PMB '!$D$8:$D$469,D268)","v":{"$error":"#VALUE!"}}]
[null,262,"GELOMBANG KHUSUS","200315AO","AKTSA FATHARANI","3303056303020001","ISLAM","Wanita","BEKASI","2002-03-23","SMA N 2 PURBALINGGA","IPA",2020,8.2,"PERUM PURNAWIRA RT01 RW05 PURBALINGGA","PURBALINGGA","Purbalingga","Jawa Tengah","085700909940",62,"sample@sample.com","ILMU KOMUNIKASI S1","MAHASISWA BARU","12-05-2020","brosur","Lengkap","LAIN - LAIN","20-05-2020","NUNING SRI WAHYUNI","WIRASWASTA","085713417973","WAHYUDIN","WIRASAWASTA"," ","PERUM PURNAWIRA RT01 RW05 PURBALINGGA","WIRASANA","PURBALINGGA","Purbalingga","Jawa Tengah",99999,0,"L","L",1250000,{"$f":"COUNTIF('[1]Laporan PMB '!$D$8:$D$469,D269)","v":{"$error":"#VALUE!"}}]
[null,263,"GELOMBANG 1","200316OL","ATIKA JUNIATI","3329045806010003","ISLAM","Wanita","Kab. Brebes","2001-06-18","SMA NEGERI 1 PAGUYANGAN","IPA",2019,48.7,"Kedung Agung RT08 RW02 WINDUAJI PAGUYANGAN","PAGUYANGAN","Brebes","Jawa Tengah","085602231439",62,"atikajuniati7@gmail.com","ILMU KOMUNIKASI S1","MAHASISWA BARU","13-05-2020","brosur","Lengkap","LAIN - LAIN","20-05-2020","SUPRIYATI","PEDAGANG","085201203336","GIMIN MUSTADI","PENSIUNAN PNS","085225142496","Kedung Agung RT08 RW02 WINDUAJI PAGUYANGAN","WINDUAJI","PAGUYANGAN","Brebes","Jawa Tengah",52276,0,"L","L",1250000,{"$f":"COUNTIF('[1]Laporan PMB '!$D$8:$D$469,D270)","v":{"$error":"#VALUE!"}}]
[null,264,"GELOMBANG 1","200318AO","PUTRI DWI LUTFIA","3302204103020001","ISLAM","Wanita","BANYUMAS","2002-03-01","MAN 1 BANYUMAS","IPS",2020,7.9,"PERUM LEDUG PURNAWIRA RT 01 RW 09 LEDUG","KEMBARAN","Banyumas","Jawa Tengah","085726013646","085726013646","sample@sample.com","ILMU KOMUNIKASI S1","MAHASISWA BARU","16-05-2020","brosur","Lengkap","LAIN - LAIN","16-05-2020","KASIYAN ANDRIYANTO"," "," ","WAHYU DWI ASTUTI"," "," ","PERUM LEDUG PURNAWIRA RT 01 RW 09 LEDUG","LEDUG","KEMBARAN","Banyumas","Jawa Tengah",99999,0,"M","M",250000,{"$f":"COUNTIF('[1]Laporan PMB '!$D$8:$D$469,D271)","v":{"$error":"#VALUE!"}}]
[null,265,"GELOMBANG KHUSUS","200320AO","SYAFRIL SETIAWAN","3175062603020016","ISLAM","Pria","BANYUMAS","2002-03-26","SMK WIWOROTOMO PURWOKERTO","TEKNIK MESIN",2020,0,"JL. LET JEND POL SOEMARTO RT 01 RW 03 PURWANEGARA","PURWOKERTO UTARA","Banyumas","Jawa Tengah","0895384030648",62,"sample@sample.com","INFORMATIKA S1","MAHASISWA BARU","14-05-2020","brosur","Lengkap","LAIN - LAIN","20-05-2020","SUSMIATI"," IRT","082113940327","SLAMET RIYADI","KARYAWAN SWASTA","08121993424","JL. LET JEND POL SOEMARTO RT 01 RW 03 PURWANEGARA","PURWANEGARA","PURWOKERTO UTARA","Banyumas","Jawa Tengah",99999,0,"XL","XL",0,{"$f":"COUNTIF('[1]Laporan PMB '!$D$8:$D$469,D272)","v":{"$error":"#VALUE!"}}]
[null,266,"GELOMBANG 1","200327OL","RETNO ASIH","3302064707020003","ISLAM","Wanita","Kab.","2002-07-07","SMK NEGERI 1 BANYUMAS","BISNIS DARING DAN PEMASARAN",2020,0,"Karangsalam RT 07 RW 03","KEMRANJEN","Banyumas","Jawa Tengah","085643126490","085643126490","rtnoash070702@gmail.com","SISTEM INFORMASI S1","MAHASISWA BARU","16-05-2020","brosur","Lengkap","LAIN - LAIN","30-05-2020","SARNI","IRT","081229460761"," KASWIN","PETANI","088227343859","Karang Salam","KARANGSALAM","KEMRANJEN","Banyumas","Jawa Tengah",53194,0,"M","M",1250000,{"$f":"COUNTIF('[1]Laporan PMB '!$D$8:$D$469,D273)","v":{"$error":"#VALUE!"}}]
[null,267,"GELOMBANG 1","200328OL","SALLI RISQI WARIDA SURYADILAGA","3329062608020001","ISLAM","Pria","Brebes","2002-08-26","SMK NEGERI 1 TONJONG","Lainnya",2020,8.4,"Jl LINGGAPURA UTARA","TONJONG","Brebes","Jawa Tengah","085713592426",62,"sallirisqistok125@gmail.com","TEKNOLOGI INFORMASI S1","MAHASISWA KELAS SORE","17-05-2020","brosur","Lengkap","LAIN - LAIN","20-05-2020","KOIDAH"," ","085200422017"," "," "," ","JL LINGGAPURA UTARA","LINGGAPURA","TONJONG","Brebes","Jawa Tengah",52271,0,"L","L",1250000,{"$f":"COUNTIF('[1]Laporan PMB '!$D$8:$D$469,D274)","v":{"$error":"#VALUE!"}}]
[null,268,"GELOMBANG 1","200338OL","ZAHI AHMAD FAIZI","3302062412010001","ISLAM","Pria","Banyumas","2001-12-24","MA WI KEBARONGAN","IPA",2020,85,"Jalan Pomesmawi RT01 RW06 KEBARONGAN","KEMRANJEN","Banyumas","Jawa Tengah","085325234383","085325234383","zahiahmadf@gmail.com","TEKNOLOGI INFORMASI S1","MAHASISWA BARU","20-05-2020","lainnya","Lengkap","LAIN - LAIN","30-05-2020","SRI HARTUTI","IRT","081327529602","A. SULAEMAN","DOSEN","081327529602","Jalan Pomesmawi RT01 RW06 KEBARONGAN","KEBARONGAN","KEMRANJEN","Banyumas","Jawa Tengah",53194,0,"XL","XL",1500000,{"$f":"COUNTIF('[1]Laporan PMB '!$D$8:$D$469,D275)","v":{"$error":"#VALUE!"}}]
[null,269,"GELOMBANG 1","200340OL","WIBOWO LENANG TEGUH RAHARJO","3302262408000003","ISLAM","Pria","purwokerto","2000-08-24","SMK KESATRIAN PURWOKERTO","MULTIMEDIA",2020,82,"jl.wakafiah","PURWOKERTO TIMUR","Banyumas","Jawa Tengah","082235505949",62,"wibowolenang12@gmail.com","BISNIS DIGITAL S1","MAHASISWA BARU","20-05-2020","lainnya","Lengkap","LAIN - LAIN","30-05-2020","SUPARMI","WIRASWASTA","0856478816","WIDODO","WIRASWASTA","085647881635","jl.wakafiah","PURWOKERTO WETAN","PURWOKERTO TIMUR","Banyumas","Jawa Tengah",53111,0,"L","L",1250000,{"$f":"COUNTIF('[1]Laporan PMB '!$D$8:$D$469,D276)","v":{"$error":"#VALUE!"}}]
[null,270,"GELOMBANG 1","200341AO","WIDYA DWI ATMOKO","3671091004020004","ISLAM","Pria","PURBALINGGA","2002-04-10","SMA N 1 KUTASARI","IPS",2020,74.33,"JL. TOBONG DESA MERI, KUTASARI","KUTASARI","Purbalingga","Jawa Tengah","085293355763","085293355763","sample@sample.com","TEKNOLOGI INFORMASI S1","MAHASISWA BARU","20-05-2020","internet","Lengkap","LAIN - LAIN","20-05-2020","AFIAH WIDAYATI","WIRASWASTA"," ","TEGUH AJI SUYITNO","WIRASWASTA","085293355763","JL. TOBONG DESA MERI, KUTASARI","MERI","KUTASARI","Purbalingga","Jawa Tengah",53361,0,"XL","XL",1500000,{"$f":"COUNTIF('[1]Laporan PMB '!$D$8:$D$469,D277)","v":{"$error":"#VALUE!"}}]
[null,271,"GELOMBANG 1","200342AO","ANUGRAH GESANG RESTU SAPUTRA","3303141105020002","ISLAM","Pria","PURBALINGGA","2002-05-11","SMK N 1 KUTASARI","IPS",2020,73.47,"JL. PAGEDANGAN RT.12 RW. 06, BOJONGSARI","BOJONGSARI","Purbalingga","Jawa Tengah","085728558510","085728558510","sample@sample.com","TEKNOLOGI INFORMASI S1","MAHASISWA BARU","20-05-2020","brosur","Lengkap","LAIN - LAIN","20-05-2020","MAENURLAELI","WIRASWASTA"," ","WIDIANTO DWI ATMOKO","WIRASWASTA","083128143324","JL. PAGEDANGAN RT.12 RW. 06, BOJONGSARI","PAGEDENGAN","BOJONGSARI","Purbalingga","Jawa Tengah",53361,0,"XL","XL",1500000,{"$f":"COUNTIF('[1]Laporan PMB '!$D$8:$D$469,D278)","v":{"$error":"#VALUE!"}}]
[null,272,"GELOMBANG 1","200343OL","MARETHA PERMATASARI","3302244903020001","ISLAM","Wanita","Banyumas","2002-03-09","MAN 2 BANYUMAS","IPA",2020,79.3,"Prof.M.Yamin RT 05 RW 03 KARANG KLESEM","PURWOKERTO SELATAN","Banyumas","Jawa Tengah","0895396874638","0895396874638","maretapermatasari00@gmail.com","BISNIS DIGITAL S1","MAHASISWA BARU","20-05-2020","brosur","Lengkap","LAIN - LAIN","30-05-2020","SUMIATI","IRT","0895396874638","KANA","BURUH HARIAN LEPAS"," ","Prof.M.Yamin","KARANGKLESEM","PURWOKERTO SELATAN","Banyumas","Jawa Tengah",53144,0,"L","L",1250000,{"$f":"COUNTIF('[1]Laporan PMB '!$D$8:$D$469,D279)","v":{"$error":"#VALUE!"}}]
[null,273,"GELOMBANG 1","200344OL","AHMAD BAHAR","3301192503010001","ISLAM","Pria","Cilacap","2001-03-25","SMAN 1 PATIMUAN","IPA",2020,0,"Gang rambutan","PATIMUAN","Cilacap","Jawa Tengah","085156245078","085156245078","ahmadbahar911@gmail.com","INFORMATIKA S1","MAHASISWA BARU","20-05-2020","brosur","Lengkap","LAIN - LAIN","30-05-2020","NGADINEM","PETANI","085327403777","BASMAN KARTONO","PETANI","085327407077","Gang rambutan","CINYAWANG","PATIMUAN","Cilacap","Jawa Tengah",53264,0,"L","L",3000000,{"$f":"COUNTIF('[1]Laporan PMB '!$D$8:$D$469,D280)","v":{"$error":"#VALUE!"}}]
[null,274,"GELOMBANG 1","200346AO","ISRO' NABIL FADLILLAH","1805181707020001","ISLAM","Pria","LAMPUNG UTARA","2002-07-17","MAWI KEBARONGAN","IPA",2020,0,"KEBARONGAN RT 01 RW 05","KEMRANJEN","Banyumas","Jawa Tengah","081227045599","085155040116","sample@sample.com","TEKNOLOGI INFORMASI S1","MAHASISWA BARU","21-05-2020","brosur","Lengkap","LAIN - LAIN","30-05-2020","SARMINI","IRT","081228174510","ROHMAT","NELAYAN"," 082183605103","KEBARONGAN RT 01 RW 05","KEBARONGAN","KEMRANJEN","Banyumas","Jawa Tengah",99999,0,"L","L",1500000,{"$f":"COUNTIF('[1]Laporan PMB '!$D$8:$D$469,D281)","v":{"$error":"#VALUE!"}}]
[null,275,"GELOMBANG 1","200351OL","WALIYUDDIN NAUFAL AL ZHAFIR","3303142603020001","ISLAM","Pria","Purbalingga","2002-03-26","SMA N 1 KUTASARI","IPA",2020,77,"Desa Kajongan","BOJONGSARI","Purbalingga","Jawa Tengah","0895320993092","0895320993092","naufalalzafir76@gmail.com","BISNIS DIGITAL S1","MAHASISWA BARU","23-05-2020","brosur","Lengkap","LAIN - LAIN","30-05-2020","UMI WIDAYANI"," ","085740300645","YUWONO"," "," 0","Desa Kajongan","KAJONGAN","BOJONGSARI","Purbalingga","Jawa Tengah",53362,0,"XL","XL",1250000,{"$f":"COUNTIF('[1]Laporan PMB '!$D$8:$D$469,D282)","v":{"$error":"#VALUE!"}}]
[null,276,"GELOMBANG 1","200354OL","REZKY NAJIHUL UMAM","3302041008010005","ISLAM","Pria","Banyumas","2001-08-10","SMK TEKNIK KOMPUTER MBM RAWALO","TKJ",2019,26,"Jl Kamboja PESAWAHAN RT 01 RW 01","RAWALO","Banyumas","Jawa Tengah","085641357077",62,"rezkynjhloke34@gmail.com","TEKNOLOGI INFORMASI S1","MAHASISWA BARU","25-05-2020","brosur","Lengkap","LAIN - LAIN","30-05-2020","SITI CHAPSIYAH","IRT","085641357077","SULEMI"," "," ","Jl Kamboja","PESAWAHAN","RAWALO","Banyumas","Jawa Tengah",53173,0,"L","L",1500000,{"$f":"COUNTIF('[1]Laporan PMB '!$D$8:$D$469,D283)","v":{"$error":"#VALUE!"}}]
[null,277,"GELOMBANG 1","200357AO","BERLIANA WAHYU PRATIWI","3301194511010001","ISLAM","Wanita","CILACAP","2001-11-05","SMA N 1 PATIMUAN","IPA",2020,0,"CINYAWANG RT04 RW04","PATIMUAN","Cilacap","Jawa Tengah","085323077027","085323077027","sample@sample.com","SISTEM INFORMASI S1","MAHASISWA BARU","26-05-2020","brosur","Lengkap","LAIN - LAIN","30-05-2020","NINING PURWANINGSIH","PETANI","085867589550","LUKMANUDIN","PETANI"," 085867589550","CINYAWANG RT04 RW04","CINYAWANG RT04 RW04","PATIMUAN","Cilacap","Jawa Tengah",99999,0,"L","L",3000000,{"$f":"COUNTIF('[1]Laporan PMB '!$D$8:$D$469,D284)","v":{"$error":"#VALUE!"}}]
[null,278,"GELOMBANG 1","200360OL","RIFQI SETIADI","3327041210980012","ISLAM","Pria","Pemalang","1998-10-12","SMK MUHAMMADIYAH BELIK PEMALANG","TKJ",2016,77,"Desa Majakerta Celeleng","WAKTUKUMPUL","Pemalang","Jawa Tengah","087832591993",62,"setiadirifqi2638@gmail.com","INFORMATIKA S1","MAHASISWA BARU","27-05-2020","brosur","Lengkap","LAIN - LAIN","06-06-2020","KHURNIATI","IRT","082838240919"," DARYAT","WIRASWASTA"," 083824091978","Desa Majakerta Celeleng","MAJAKERTA","WAKTUKUMPUL","Pemalang","Jawa Tengah",52357,0,"M","M",1500000,{"$f":"COUNTIF('[1]Laporan PMB '!$D$8:$D$469,D285)","v":{"$error":"#VALUE!"}}]
[null,279,"GELOMBANG 1","200365OL","AHMAD DANI PANGESTU","3302241802020001","ISLAM","Pria","Purwokerto","2002-02-18","SMK NEGERI 1 PURWOKERTO","TKJ",2020,8.21,"Jalan Sudagaran II / 232","PURWOKERTO SELATAN","Banyumas","Jawa Tengah","082242598256",62,"kidk56676@gmail.com","INFORMATIKA S1","MAHASISWA BARU","28-05-2020","brosur","Lengkap","LAIN - LAIN","13-06-2020","DWI FITRIYANTI","IRT","081390560462","Djuhari","KARYAWAN SWASTA","08122661838","Jalan Sudagaran II / 232","PURWOKERTO KULON","PURWOKERTO SELATAN","Banyumas","Jawa Tengah",53141,0,"L","L",3000000,{"$f":"COUNTIF('[1]Laporan PMB '!$D$8:$D$469,D286)","v":{"$error":"#VALUE!"}}]
[null,280,"GELOMBANG 1","200366AO","AKHMAD BAEHAKI","3301020501020001","ISLAM","Pria","CILACAP","2002-01-05","SMK BOEDI OETOMO CILACAP","TEKNIK MESIN",2020,0,"JL. BETET NO 15 SLARANG RT 03 RW 12","KESUGIHAN","Cilacap","Jawa Tengah","081228499842","081326380573","sample@sample.com","INFORMATIKA S1","MAHASISWA BARU","28-05-2020","brosur","Lengkap","LAIN - LAIN","30-05-2020","KASIYEM"," ","08562964579","SATIMAN","WIRAUSAHA","081542787443","JL. BETET NO 15 SLARANG RT 03 RW 12","SLARANG","KESUGIHAN","Cilacap","Jawa Tengah",99999,2500000," "," ",3000000,{"$f":"COUNTIF('[1]Laporan PMB '!$D$8:$D$469,D287)","v":{"$error":"#VALUE!"}}]
[null,281,"GELOMBANG 1","200368AO","GALIH PRABOWO","3275062407010013","ISLAM","Pria","BANYUMAS","2001-07-24","SMK WIWOROTOMO PURWOKERTO","MESIN",2020,0,"PERUM GRIYA SATRIA MANDALATAMA BLOK 49 NO 1 KARANG LEWAS LOR","PURWOKERTO BARAT","Banyumas","Jawa Tengah","081391594624","081391594624","sample@sample.com","TEKNOLOGI INFORMASI S1","MAHASISWA BARU","28-05-2020","brosur","Lengkap","LAIN - LAIN","30-05-2020","TITIK ISTIANINGSIH"," ","081310721974","SEDIYONO SAPTO PRABOWO"," "," ","PERUM GRIYA SATRIA MANDALATAMA BLOK 49 NO 1","KARANG LEWAS LOR","PURWOKERTO BARAT","Banyumas","Jawa Tengah",99999,0,"L","L",1500000,{"$f":"COUNTIF('[1]Laporan PMB '!$D$8:$D$469,D288)","v":{"$error":"#VALUE!"}}]
[null,282,"GELOMBANG 1","200375AO","SIMBI NAZDAN IRFAN","3329020704010001","ISLAM","Pria","BREBES","2001-04-07","SMA N 1 BANTARKAWUNG","MIPA",2019,0,"BANGBAYANG RT 03 RW 02","BANTARKAWUNG","Brebes","Jawa Tengah","083134651404","083134651404","sample@sample.com","ILMU KOMUNIKASI S1","MAHASISWA BARU","29-05-2020","brosur","Lengkap","LAIN - LAIN","30-05-2020","OOP MUSYAROFAH","IRT","085217104076","JATMOKO","SOPIR","085222706220","BANGBAYANG RT 03 RW 02","BANGBAYANG RT 03 RW 02","BANTARKAWUNG","Brebes","Jawa Tengah",99999,0,"XL","XL",1250000,{"$f":"COUNTIF('[1]Laporan PMB '!$D$8:$D$469,D289)","v":{"$error":"#VALUE!"}}]
[null,283,"GELOMBANG 1","200377AO","DINAR FITRI ANDHAYANI","3302115811010001","ISLAM","Wanita","CILACAP","2001-11-18","SMK N 1 BANYUMAS","OTKP",2020,0,"JL. JAYA SIRAYU RT 04 RW 02 PAPRINGAN","BANYUMAS","Banyumas","Jawa Tengah","085803514743","085803514743","sample@sample.com","BISNIS DIGITAL S1","MAHASISWA BARU","29-05-2020","brosur","Lengkap","LAIN - LAIN","30-05-2020","RATEM","-","082324858389","ROHIMAN","KARYAWAN SWASTA","085258600361","JL. JAYA SIRAYU RT 04 RW 02 PAPRINGAN","PAPRINGAN","BANYUMAS","Banyumas","Jawa Tengah",99999,0,"L","L",250000,{"$f":"COUNTIF('[1]Laporan PMB '!$D$8:$D$469,D290)","v":{"$error":"#VALUE!"}}]
[null,284,"GELOMBANG 1","200382AO","WISNU AJI FERNANDA","3302181802020002","ISLAM","Pria","BANYUMAS","2002-02-18","SMA N 1 PATIKRAJA","MIPA",2020,0,"PANGEBATAN RT 01 RW 08","KARANG LEWAS","Banyumas","Jawa Tengah","081393925264","081393925264","sample@sample.com","TEKNOLOGI INFORMASI S1","MAHASISWA BARU","30-05-2020","brosur","Lengkap","LAIN - LAIN","30-05-2020","SURTIYAH"," "," ","SUDIONO","BURUH","085291704460","PANGEBATAN RT 01 RW 08","PANGEBATAN","KARANG LEWAS","Banyumas","Jawa Tengah",99999,0,"XL","XL",1500000,{"$f":"COUNTIF('[1]Laporan PMB '!$D$8:$D$469,D291)","v":{"$error":"#VALUE!"}}]
[null,285,"GELOMBANG 1","200384OL","AISYAH NUR AENI","3302256307020003","ISLAM","Wanita","Banyumas","2002-07-23","MA AL-IKHSAN BEJI","IPS",2020,79.2,"Jalan Raya Kebocoran gang merpati 2","KEDUNGBANTENG","Banyumas","Jawa Tengah","081217606136",62,"Aisyahpwt23@gmail.com","SISTEM INFORMASI S1","MAHASISWA BARU","30-05-2020","brosur","Lengkap","LAIN - LAIN","06-06-2020","SOFWATI","IRT","085226357397","DJOKO UMBORO","WIRASWASTA"," ","Jalan Raya Kebocoran gang merpati 2","KARANGSALAM KIDUL","KEDUNGBANTENG","Banyumas","Jawa Tengah",53152,0,"L","L",3000000,{"$f":"COUNTIF('[1]Laporan PMB '!$D$8:$D$469,D292)","v":{"$error":"#VALUE!"}}]
[null,286,"GELOMBANG 1","200386AO","RESTIANA TRI OCTAVIA","3201026210020010","ISLAM","Wanita","JAKARTA","2002-10-22","SMK BINA BANGSA MANDIRI","OTKP",2020,8.56,"PERUMAHAN PURI LANGEN ESTATE  B 16 RT 01 RW 06 KUTASARI","BATURRADEN","Banyumas","Jawa Tengah","085887966904","085887966904","sample@sample.com","INFORMATIKA S1","MAHASISWA BARU","30-05-2020","brosur","Lengkap","LAIN - LAIN","30-05-2020","TRI WURYANTHI ALM"," "," ","WELY UDIANTO (ALM)"," "," "," ","KUTASARI","BATURRADEN","Banyumas","Jawa Tengah",99999,0,"3XL","3XL",3000000,{"$f":"COUNTIF('[1]Laporan PMB '!$D$8:$D$469,D293)","v":{"$error":"#VALUE!"}}]
[null,287,"GELOMBANG 1","200388AO","BAGUS KUSUMAWAN AZAN SUBECHI","3302220207020002","ISLAM","Pria","BANYUMAS","2002-07-02","SMK KESATRIAN","MULTIMEDIA",2020,8.26,"JL RAYA BARAT RT 09 RW 02 KETENGER KEC. BATURRADEN KAB. BANYUMAS JAWA TENGAH","BATURRADEN","Banyumas","Jawa Tengah","6281215671014","6281215671014","sample@sample.com","INFORMATIKA S1","MAHASISWA BARU","30-05-2020","teman/saudara","Lengkap","LAIN - LAIN","30-05-2020","URIP SULISTIOWATI","WIRASWASTA","085232464545","HANDOKO"," "," ","JL RAYA BARAT RT 09 RW 02 KETENGER KEC. BATURRADEN KAB. BANYUMAS JAWA TENGAH","KETENGER","BATURRADEN","Banyumas","Jawa Tengah",53151,0,"L","L",3000000,{"$f":"COUNTIF('[1]Laporan PMB '!$D$8:$D$469,D294)","v":{"$error":"#VALUE!"}}]
[null,288,"GELOMBANG 1","200394AO","MUHAMMAD SYAHRUL ALAI","3303141911010001","ISLAM","Pria","PURBALINGGA","2001-11-19","SMK YPT 1 PURBALINGGA","TKR",2020,0,"BOJONGSARI RT 01 RW 10","BOJONGSARI","Purbalingga","Jawa Tengah","081228231335",62,"sample@sample.com","TEKNOLOGI INFORMASI S1","MAHASISWA BARU","30-05-2020","teman/saudara","Lengkap","LAIN - LAIN","06-06-2020","TITIN WAHDIYANTI","IRT","088233054173","SUBKHAN","WIRASWASTA","082225497222","BOJONGSARI RT 01 RW 10","BOJONGSARI","BOJONGSARI","Purbalingga","Jawa Tengah",99999,0,"XL","XL",1500000,{"$f":"COUNTIF('[1]Laporan PMB '!$D$8:$D$469,D295)","v":{"$error":"#VALUE!"}}]
[null,289,"GELOMBANG 1","200395AO","DENI NUGRAHA","3301060505000003","ISLAM","Pria","CILACAP","2000-05-05","MAN 3 CILACAP","IPA",2020,0,"JL. BRANTAS II RT 02 RW 05 KARANGMANGU","KROYA","Cilacap","Jawa Tengah","082233247971","082233247971","sample@sample.com","INFORMATIKA S1","MAHASISWA BARU","30-05-2020","brosur","Lengkap","LAIN - LAIN","06-06-2020","SUMIATI","PEDAGANG","081226650444","RUSLIM HEWDRIANA","PENSIUNAN PNS","081327208016","JL. BRANTAS II RT 02 RW 05","KARANGMANGU","KROYA","Cilacap","Jawa Tengah",99999,0,"M","M",3000000,{"$f":"COUNTIF('[1]Laporan PMB '!$D$8:$D$469,D296)","v":{"$error":"#VALUE!"}}]
[null,290,"GELOMBANG 2","200400AO","ROY JORDY","00","ISLAM","Pria","CILACAP","2001-12-24","SMK MUHAMMADIYAH MAJENANG","RPL",2020,79,"JL.CIKUPA RT02 RW07 MAJENANG"," ","Cilacap","Jawa Tengah","087848467545",62,"sample@sample.com","INFORMATIKA S1","MAHASISWA BARU","02-06-2020","brosur","Lengkap","LAIN - LAIN","06-06-2020","SUNTINAH","PEDAGANG","083321095597","RASAD","PETANI","087825465540","JL.CIKUPA RT02 RW07 MAJENANG"," "," ","Cilacap","Jawa Tengah",99999,0,"L","L",3500000,{"$f":"COUNTIF('[1]Laporan PMB '!$D$8:$D$469,D297)","v":{"$error":"#VALUE!"}}]
[null,291,"GELOMBANG 1","200404AO","NAFI ASYQAR SYARIFUDIN","3303050702010001","ISLAM","Pria","PURBALINGGA","2001-02-07","MA TQ ISTIQOMAH SAMBAS PURBALINGGA","IPA",2020,7.7,"JATISABA RT 03 RW 01","PURBALINGGA","Purbalingga","Jawa Tengah","081327259878","081329914055","sample@sample.com","INFORMATIKA S1","MAHASISWA BARU","04-06-2020","brosur","Lengkap","LAIN - LAIN","06-06-2020","YANI APRIATUN","WIRASWASTA","081327259878","Adib Yunan syarifudin","WIRASWASTA","082133005075","JATISABA RT 03 RW 01","JATISABA","PURBALINGGA","Purbalingga","Jawa Tengah",99999,0,"L","L",2000000,{"$f":"COUNTIF('[1]Laporan PMB '!$D$8:$D$469,D298)","v":{"$error":"#VALUE!"}}]
[null,292,"GELOMBANG 2","200405AO","IDHAM SYAFA ARIZAL","3302142905000001","ISLAM","Pria","BANYUMAS","2000-05-29","SMK MA'ARIF NU 1 AJIBARANG","TKR",2020,0,"AJIBARANG KULON RT 06 RW 01","AJIBARANG","Banyumas","Jawa Tengah","085839790937","085839790937","sample@sample.com","TEKNOLOGI INFORMASI S1","MAHASISWA BARU","04-06-2020","brosur","Lengkap","LAIN - LAIN","06-06-2020","KUSMIATI","PEDAGANG","085329267577","AHMAD NURROHMAT","PEDAGANG","085329262571","AJIBARANG KULON RT 06 RW 01","AJIBARANG KULON","AJIBARANG","Banyumas","Jawa Tengah",99999,0,"L","L",1750000,{"$f":"COUNTIF('[1]Laporan PMB '!$D$8:$D$469,D299)","v":{"$error":"#VALUE!"}}]
[null,293,"GELOMBANG 2","200407AO","DIAH FITRIANI","3302155912000001","ISLAM","Wanita","BANYUMAS","2000-12-19","MAN 1 BANYUMAS","IPS",2019,0,"DUSUN CIWARAS KELURAHAN CIHONJE RT 01 RW 05","GUMELAR","Banyumas","Jawa Tengah","081226348480",62,"sample@sample.com","ILMU KOMUNIKASI S1","MAHASISWA BARU","04-06-2020","brosur","Lengkap","LAIN - LAIN","06-06-2020","WARINAH","-","085282654294","DARSITO","WIRASWASTA","082299816247","DUSUN CIWARAS KELURAHAN CIHONJE RT 01 RW 05","CIHONJE","GUMELAR","Banyumas","Jawa Tengah",99999,0,"L","L",1250000,{"$f":"COUNTIF('[1]Laporan PMB '!$D$8:$D$469,D300)","v":{"$error":"#VALUE!"}}]
[null,294,"GELOMBANG 2","200409OL","PRISTY DWI ANGGRAENI","3301085204010005","ISLAM","Wanita","CILACAP","2001-04-12","SMK DR. SOETOMO CILACAP","MULTIMEDIA",2019,44.3,"JALAN KEMUNING","JERUKLEGI","Cilacap","Jawa Tengah","085742128421",62,"pristydwia1204@gmail.com","ILMU KOMUNIKASI S1","MAHASISWA BARU","04-06-2020","internet","Lengkap","LAIN - LAIN","04-07-2020","MARYAM KHOYIMAH","IRT","081225057074","SUPRIYADI","BURUH","085941379734","JALAN KEMUNING","TRITIH LOR","JERUKLEGI","Cilacap","Jawa Tengah",53252,0,"L","L",1250000,{"$f":"COUNTIF('[1]Laporan PMB '!$D$8:$D$469,D301)","v":{"$error":"#VALUE!"}}]
[null,295,"GELOMBANG 2","200412AO","AMIN NASYITH","3329041411010005","ISLAM","Pria","BREBES","2001-11-14","SMK MUHAMMADIYAH BUMIAYU","TKJ",2020,8.3,"DK. PERENG RT 08 RW 05 WINDUAJI PAGUYANGAN BREBES","PAGUYANGAN","Brebes","Jawa Tengah","082322443949","082322443949","sample@sample.com","TEKNOLOGI INFORMASI S1","MAHASISWA BARU","05-06-2020","brosur","Lengkap","LAIN - LAIN","06-06-2020","SITI MAESAROH"," ","08525325386","MOHAMMAD IRFAN"," ","087881356431","DK. PERENG RT 08 RW 05 WINDUAJI PAGUYANGAN BREBES","WINDUAJI","PAGUYANGAN","Brebes","Jawa Tengah",52276,0,"L","L",1750000,{"$f":"COUNTIF('[1]Laporan PMB '!$D$8:$D$469,D302)","v":{"$error":"#VALUE!"}}]
[null,296,"GELOMBANG 2","200418OL","M. ADITYA RIZKI RAMADHANI","3329040511020008","ISLAM","Pria","BREBES","2002-11-05","SMK MAARIF NU 1 AJIBARANG","RPL",2020,8.89,"PATUGURAN rt 03 rw05 WINDUAJI BUMIAYU","PAGUYANGAN","Brebes","Jawa Tengah","083176419082",62,"dityahandsome@gmail.com","SISTEM INFORMASI S1","MAHASISWA BARU","07-06-2020","brosur","Lengkap","LAIN - LAIN","18-07-2020","TRI WIDI NINGSIH","IRT","082134075145"," ARIF BUDIYANTO","WIRASWASTA","085227926270","PATUGURAN","WINDUAJI","PAGUYANGAN","Brebes","Jawa Tengah",52276,0," L"," M",3500000,{"$f":"COUNTIF('[1]Laporan PMB '!$D$8:$D$469,D303)","v":{"$error":"#VALUE!"}}]
[null,297,"GELOMBANG 2","200419AO","ULYA INDAH RAHMAWATI","1408046405020010","ISLAM","Wanita","PERAWANG","2002-05-24","SMK YPPI TUALANG","TKJ",2020,0,"JL 5 NO 47 KPR II RT 09 RW 08 TUALANG KEC. TUALANG KAB. SIAK RIAU","TUALANG","Siak","Riau","6281365237526","6281365237526","sample@sample.com","INFORMATIKA S1","MAHASISWA BARU","08-06-2020","teman/saudara","Lengkap","LAIN - LAIN","13-06-2020","SRI YUNIATI"," "," ","MANGGI"," "," ","JL 5 NO 47 KPR II RT 09 RW 08 TUALANG KEC. TUALANG KAB. SIAK RIAU","TUALANG","TUALANG","Siak","Riau",28772,0,"L","L",3500000,{"$f":"COUNTIF('[1]Laporan PMB '!$D$8:$D$469,D304)","v":{"$error":"#VALUE!"}}]
[null,298,"GELOMBANG 2","200423OL","PASCA APRIYANTO","3301142204000003","KATOLIK","Pria","Cilacap","2000-04-22","SMK NEGERI 1 WANAREJA","MESIN",2018,4.96,"Mawar No.109 NO109 RT04 RW02 CIBEUNYING MAJENANG","MAJENANG","Cilacap","Jawa Tengah","081382289408",62,"askaapriyantodasliva@gmail.com","SISTEM INFORMASI S1","MAHASISWA BARU","08-06-2020","internet","Lengkap","LAIN - LAIN","20-06-2020","ENI SUSANTI","GURU","085869960242","SUHERMAN","WIRASWASTA","085869960242","Mawar No.109","CIBEUNYING","MAJENANG","Cilacap","Jawa Tengah",53257,0,"L","L",3500000,{"$f":"COUNTIF('[1]Laporan PMB '!$D$8:$D$469,D305)","v":{"$error":"#VALUE!"}}]
[null,299,"GELOMBANG 2","200427AO","FAHAR IVANA FAJRI",0,"ISLAM","Pria","BANYUMAS","2002-01-23","SMA N 1 AJIBARANG","IPA",2020,0,"PANCURENDANG RT01 RW02"," ","Banyumas","Jawa Tengah","088228683111",62,"sample@sample.com","TEKNOLOGI INFORMASI S1","MAHASISWA BARU","09-06-2020","brosur","Lengkap","LAIN - LAIN","13-06-2020","SUSWATI"," "," ","BIANTORO"," "," "," "," "," ","Banyumas","Jawa Tengah",99999,0," L"," L",1700000,{"$f":"COUNTIF('[1]Laporan PMB '!$D$8:$D$469,D306)","v":{"$error":"#VALUE!"}}]
[null,300,"GELOMBANG 2","200428AO","ABDULLAH RAHMAN SHOLIKHIN","3303043001010004","ISLAM","Pria","PURBALINGGA","2001-01-30","SMK N 1 KALIGONDANG","TEKNIK PEMESINAN",2020,7.9,"PENOLIH RT 01 RW 04","KALIGONDANG","Purbalingga","Jawa Tengah","082313110747","082313110747","sample@sample.com","TEKNOLOGI INFORMASI S1","MAHASISWA BARU","10-06-2020","brosur","Lengkap","LAIN - LAIN","13-06-2020","JUMINI","IRT"," ","SUPRIYANTO","BURUH"," ","PENOLIH RT 01 RW 04","PENOLIH","KALIGONDANG","Purbalingga","Jawa Tengah",99999,0,"XL","XL",1750000,{"$f":"COUNTIF('[1]Laporan PMB '!$D$8:$D$469,D307)","v":{"$error":"#VALUE!"}}]
[null,301,"GELOMBANG 2","200430OL","LAUDIANA ANGGRAENI","3301074506020002","ISLAM","Wanita","TANGERANG","2002-06-05","SMA N 1 SAMPANG","IPA",2020,0,"JALAN MENIR RT 03 RW05 PANISIHAN,MAOS","MAOS","Cilacap","Jawa Tengah","0895411776078",62,"laudianaanggraeni@gmail.com","SISTEM INFORMASI S1","MAHASISWA BARU","10-06-2020","brosur","Lengkap","LAIN - LAIN","13-06-2020","SUMARNI","IRT","081388255408","SUDARSO"," BURUH","081388255408","JALAN MENIR","PANISIHAN","MAOS","Cilacap","Jawa Tengah",53272,0,"L","L",3000000,{"$f":"COUNTIF('[1]Laporan PMB '!$D$8:$D$469,D308)","v":{"$error":"#VALUE!"}}]
[null,302,"GELOMBANG 2","200442AO","IGHFARUZ ZHAGY","3302141504020005","ISLAM","Pria","BANYUMAS","2002-04-15","SMK MA'ARIF NU 1 AJIBARANG","RPL",2020,0,"JL. PANDANDANSARI RT 02 RW 12 AJIBARANG WETAN","AJIBARANG","Banyumas","Jawa Tengah","081292735146",62,"sample@sample.com","TEKNOLOGI INFORMASI S1","MAHASISWA BARU","15-06-2020","brosur","Lengkap","LAIN - LAIN","20-06-2020","MIMI HARNI SAHAR","IRT","081390019608","DEDI PURNAMA","PEDAGANG","081235882524","JL. PANDANDANSARI RT 02 RW 12","AJIBARANG WETAN","AJIBARANG","Banyumas","Jawa Tengah",99999,0,"L","L",1750000,{"$f":"COUNTIF('[1]Laporan PMB '!$D$8:$D$469,D309)","v":{"$error":"#VALUE!"}}]
[null,303,"GELOMBANG 2","200451AO","LAIL AWAL RAMADHAN","3302141611010003","ISLAM","Pria","BANYUMAS","2001-11-18","SMK MUHAMMADIYAH 1 AJIBARANG","TKJ",2020,8.47,"AJIBARANG WETAN RT 01 RW 09","AJIBARANG","Banyumas","Jawa Tengah","085156736303",62,"sample@sample.com","TEKNOLOGI INFORMASI S1","MAHASISWA BARU","16-06-2020","brosur","Lengkap","LAIN - LAIN","20-06-2020","WIJI LESTARI","IRT","085227114933","MUAMAL","WIRASWASTA","085227175066","AJIBARANG WETAN RT 01 RW 09","AJIBARANG WETAN","AJIBARANG","Banyumas","Jawa Tengah",99999,0,"L","L",1750000,{"$f":"COUNTIF('[1]Laporan PMB '!$D$8:$D$469,D310)","v":{"$error":"#VALUE!"}}]
[null,304,"GELOMBANG 2","200454AO","RISKI HARDIAN","3302151606970001","ISLAM","Pria","BANYUMAS","1997-06-06","SMK WIWOROTOMO PURWOKERTO","TKR",2016,8.02,"GUMELAR RT 5 RW 5","GUMELAR","Banyumas","Jawa Tengah","081271208778",62,"sample@sample.com","INFORMATIKA S1","MAHASISWA BARU","16-06-2020","brosur","Lengkap","LAIN - LAIN","20-06-2020","SRI MULYANTI","IRT"," ","KARSO","WIRASWASTA","081327135613","GUMELAR RT 5 RW 5","GUMELAR","GUMELAR","Banyumas","Jawa Tengah",99999,0,"L","L",3500000,{"$f":"COUNTIF('[1]Laporan PMB '!$D$8:$D$469,D311)","v":{"$error":"#VALUE!"}}]
[null,305,"GELOMBANG 2","200456AO","HUSAIN GILANG SYAH ALAM","3302062610020002","ISLAM","Pria","BANYUMAS","2002-10-26","MA WI KEBARONGAN","IPA",2020,77.25,"KEBARONGAN RT 01 RW 09","KEMRANJEN","Banyumas","Jawa Tengah","08816718841","08816718841","sample@sample.com","BISNIS DIGITAL S1","MAHASISWA BARU","17-06-2020","brosur","Lengkap","LAIN - LAIN","20-06-2020","SITI ROMLAH","PEDAGANG","085228838384","MUSTOFA(ALM)"," ","085228838384","KEBARONGAN RT 01 RW 09","KEBARONGAN","KEMRANJEN","Banyumas","Jawa Tengah",53194,0,"XL","XL",1250000,{"$f":"COUNTIF('[1]Laporan PMB '!$D$8:$D$469,D312)","v":{"$error":"#VALUE!"}}]
[null,306,"GELOMBANG 2","200458OL","AGUM HASRUDIN","3303040708020002","ISLAM","Pria","PURBALINGGA","2002-08-07","SMA NEGERI 1 BUKATEJA","IPS",2020,76,"PAGERANDONG DUSUN 2 RT02 RW01 KALIGONDANG","KALIGONDANG","Purbalingga","Jawa Tengah","082314836619",62,"agumhas4@gmail.com","INFORMATIKA S1","MAHASISWA BARU","17-06-2020","brosur","Lengkap","LAIN - LAIN","20-06-2020","SUTARMAN","WIRASWASTA","081372337208","SURINAH","WIRASWASTA","08532964772","PAGERANDONG DUSUN 2","PAGERANDONG","KALIGONDANG","Purbalingga","Jawa Tengah",53391,0,"L","L",3500000,{"$f":"COUNTIF('[1]Laporan PMB '!$D$8:$D$469,D313)","v":{"$error":"#VALUE!"}}]
[null,307,"GELOMBANG 2","200462OL","FIRDAN RAFI NUGROHO","3303022401030002","ISLAM","Pria","Purbalingga","2003-01-24","SMA N 1 BUKATEJA","IPS",2020,74,"Kutawis rt05 rw01 bukateja","BUKATEJA","Purbalingga","Jawa Tengah","085641840983",62,"Firdanrafi241@gmail.com","TEKNOLOGI INFORMASI S1","MAHASISWA BARU","19-06-2020","brosur","Lengkap","LAIN - LAIN","25-07-2020","KUSWATI","WIRASWASTA","081393012448","andi nugroho"," WIRASWASTA","082134456777","Kutawis","KUTAWIS","BUKATEJA","Purbalingga","Jawa Tengah",53382,0,"L","L",1750000,{"$f":"COUNTIF('[1]Laporan PMB '!$D$8:$D$469,D314)","v":{"$error":"#VALUE!"}}]
[null,308,"GELOMBANG 2","200465AO","OLIVIA SHALSHABILA PUTRI","3302256609020002","ISLAM","Pria","MAGELANG","2002-09-26","SMK TUJUH LIMA 2 PURWOKERTO","TKJ",2020,0,"JL PERUM SAGA BARURT 03 RW5 BANTARSOKA","PURWOKERTO BARAT","Banyumas","Jawa Tengah","0859152731648","0859152731648","sample@sample.com","BISNIS DIGITAL S1","MAHASISWA BARU","20-06-2020","brosur","Lengkap","LAIN - LAIN","20-06-2020","APRIYATIN","IRT","085643375494","SUKIS IRAWAN","PENJAHIT","085385130477","JL PERUM SAGA BARURT 03 RW5 BANTARSOKA","BANTARSOKA","PURWOKERTO BARAT","Banyumas","Jawa Tengah",99999,0,"L","L",1000000,{"$f":"COUNTIF('[1]Laporan PMB '!$D$8:$D$469,D315)","v":{"$error":"#VALUE!"}}]
[null,309,"GELOMBANG 2","200466AO","TEGAR SUBIANTO","3302191512010002","ISLAM","Pria","BANYUMAS","2001-12-12","SMK N 2 BANYUMAS","OTOMOTIF",2020,0,"JL.AMAD RT 2 RW 1 SOKARAJA KIDUL","SOKARAJA","Banyumas","Jawa Tengah","082242867667","6288239156035","sample@sample.com","INFORMATIKA S1","MAHASISWA BARU","20-06-2020","brosur","Lengkap","LAIN - LAIN","27-06-2020","SITI ROCHIMAH","PEDAGANG","088225184309","SUSANTO","PETANI","088225184309","JL.AMAD RT 2 RW 1 SOKARAJA KIDUL","SOKARAJA KIDUL","SOKARAJA","Banyumas","Jawa Tengah",99999,0,"XL","XL",2000000,{"$f":"COUNTIF('[1]Laporan PMB '!$D$8:$D$469,D316)","v":{"$error":"#VALUE!"}}]
[null,310,"GELOMBANG 2","200467AO","SATRIA RANGGA PRAYOGO",0,"ISLAM","Pria","PURBALINGGA","2002-08-28","PKBM HANDAYANI","IPS",2020,0,"JL ARGANDARU RT05 RW08 BUKATEJA"," ","Purbalingga","Jawa Tengah","0895343037934",62,"sample@sample.com","SISTEM INFORMASI S1","MAHASISWA BARU","20-06-2020","brosur","Lengkap","LAIN - LAIN","20-06-2020","SRI AMINAH","WIRASWASTA"," ","TRI WARJONO","WIRASWASTA","081323335953","JL ARGANDARU RT05 RW08 BUKATEJA"," "," ","Purbalingga","Jawa Tengah",99999,0,"L","L",3500000,{"$f":"COUNTIF('[1]Laporan PMB '!$D$8:$D$469,D317)","v":{"$error":"#VALUE!"}}]
[null,311,"GELOMBANG 2","200469OL","ALFIAN SA'IDAN MUHROJI","3175042109020001","ISLAM","Pria","Jakarta","2002-09-21","SMK MA'ARIF NU 1 SUMPIUH","ELEKTRO",2020,8.59,"BATU AMPAR RT02 RW 05 KRAMAT JATI JAKARTA TIMUR","KRAMAT JATI","Jakarta Timur","DKI Jakarta","082129137427","081215646273","muhrozi2122@gmail.com","ILMU KOMUNIKASI S1","MAHASISWA BARU","20-06-2020","brosur","Lengkap","LAIN - LAIN","23-06-2020","SITI ROHMAH","WIRASWASTA","082129137427","Anjar Muhrozi","KARYAWAN SWASTA","082142030640","BATU AMPAR RT02 RW 05 KRAMAT JATI JAKARTA TIMUR","BATU AMPAR","KRAMAT JATI","Banyumas","Jawa Tengah",53194,0,"L","L",1250000,{"$f":"COUNTIF('[1]Laporan PMB '!$D$8:$D$469,D318)","v":{"$error":"#VALUE!"}}]
[null,312,"GELOMBANG 2","200470OL","TEGAR AQSHAL FATEHAN","3302262604010004","ISLAM","Pria","Ngawi,","2001-04-26","SMK TI BINA CITRA INFORMATIKA PURWOKERTO","MULTIMEDIA",2019,51,"Arcawinangun RT06 RW01 PURWOKERTO WETAN","PURWOKERTO TIMUR","Banyumas","Jawa Tengah","082138968893","082138968893","ziger5698@gmail.com","ILMU KOMUNIKASI S1","MAHASISWA BARU","21-06-2020","brosur","Lengkap","LAIN - LAIN","27-06-2020","SUGIARTI","WIRASWASTA","08976604737","BEGYO SURIPNO","KARYAWAN SWASTA"," ","Arcawinangun RT06 RW01 PURWOKERTO WETAN","PURWOKERTO WETAN","PURWOKERTO TIMUR","Banyumas","Jawa Tengah",53113,0,"L","L",1250000,{"$f":"COUNTIF('[1]Laporan PMB '!$D$8:$D$469,D319)","v":{"$error":"#VALUE!"}}]
[null,313,"GELOMBANG 2","200475AO","SYALAFUDIN FIRMAN SYAH","3307131907010002","ISLAM","Pria","WONOSOBO","2001-07-19","SMK DARUL FALACH CANDIROTO","TKJ",2020,7.95,"SEMBUNGAN RT 04 RW 02","KEJAJAR","Wonosobo","Jawa Tengah","087745570626","087745570626","sample@sample.com","INFORMATIKA S1","MAHASISWA BARU","22-06-2020","brosur","Lengkap","LAIN - LAIN","22-06-2020","UMARIYAH","PNS","081327909186","RIDHOI","TANI"," 082220127828","SEMBUNGAN RT 04 RW 02","SEMBUNGAN","KEJAJAR","Wonosobo","Jawa Tengah",99999,0,"M","L",2500000,{"$f":"COUNTIF('[1]Laporan PMB '!$D$8:$D$469,D320)","v":{"$error":"#VALUE!"}}]
[null,314,"GELOMBANG 2","200480OL","MUHAMMAD AFNURIZA BAHARI PUTRA","3302151712010003","ISLAM","Pria","Banyumas","2001-12-17","SMA PGRI GUNELAR","MULTIMEDIA",2019,72,"Desa cilangkap,kecamatan gumelar,kabupaten banyumas","GUMELAR","Banyumas","Jawa Tengah","081228533347",62,"muhammadp918@gmail.com","INFORMATIKA S1","MAHASISWA BARU","23-06-2020","brosur","Lengkap","LAIN - LAIN","27-06-2020","ISNAENIATI","GURU","081327509984","edi supriyo","WIRASWASTA"," ","Desa cilangkap,kecamatan gumelar,kabupaten banyumas","CILANGKAP","GUMELAR","Banyumas","Jawa Tengah",53165,0,"L","L",3500000,{"$f":"COUNTIF('[1]Laporan PMB '!$D$8:$D$469,D321)","v":{"$error":"#VALUE!"}}]
[null,315,"GELOMBANG 2","200490AO","RIO ARDY DWI RIYANTO","3327073005000001","ISLAM","Pria","PEMALANG","2000-05-30","SMA N 1 BANTARBOLANG","IPA",2018,0,"KEMANGGUNGAN RT04 RW01 TAMAN PEMALANG","TAMAN","Pemalang","Jawa Tengah","082314619052",62,"sample@sample.com","TEKNOLOGI INFORMASI S1","MAHASISWA BARU","27-06-2020","brosur","Lengkap","LAIN - LAIN","27-06-2020","WASRIAH","IRT"," ","SOLIKHIN","SOPIR","082324738076","KEMANGGUNGAN RT04 RW01 TAMAN PEMALANG","KEMANGGUNGAN","TAMAN","Pemalang","Jawa Tengah",99999,0,"M","M",1750000,{"$f":"COUNTIF('[1]Laporan PMB '!$D$8:$D$469,D322)","v":{"$error":"#VALUE!"}}]
[null,316,"GELOMBANG 2","200496AO","JEANY OLIVIA","3301215301000001","ISLAM","Wanita","CILACAP","2000-01-13","SMK MUHAMMADIYAH 1 PURWOKERTO","OTKP",2020,7.91,"JL. VETERAN RT 01 RW 06 PSIRMUNCANG","PURWOKERTO BARAT","Banyumas","Jawa Tengah","088806831073",62,"sample@sample.com","ILMU KOMUNIKASI S1","MAHASISWA BARU","29-06-2020","brosur","Lengkap","LAIN - LAIN","04-07-2020","MARYATI","IRT"," ","AMRI YULFIAN","KARYAWAN SWASTA","081393909745","JL. VETERAN RT 01 RW 06 PSIRMUNCANG","PSIRMUNCANG","PURWOKERTO BARAT","Banyumas","Jawa Tengah",99999,0,"L","L",1250000,{"$f":"COUNTIF('[1]Laporan PMB '!$D$8:$D$469,D323)","v":{"$error":"#VALUE!"}}]
[null,317,"GELOMBANG 2","200501AO","JAMADUL WIRA SATYA","9201070308030002","ISLAM","Pria","SORONG","2003-08-03","MA NURUL YAQIN","IPS",2020,7.1,"DS. KUWARASAN RT 03 RW 02 KEC. KUWARASAN, KAB. KEBUMEN JAWA TENGAH","KUWARASAN","Kebumen","Jawa Tengah","6287831413015","6287831413015","sample@sample.com","ILMU KOMUNIKASI S1","MAHASISWA BARU","30-06-2020","brosur","Lengkap","LAIN - LAIN","30-06-2020","MARYATI","IRT","081225174631","JAINAL ARIFIN","POLISI","085291315328","DS. KUWARASAN RT 03 RW 02 KEC. KUWARASAN, KAB. KEBUMEN JAWA TENGAH","KUWARASAN","KUWARASAN","Kebumen","Jawa Tengah",54366,0," M"," M",1250000,{"$f":"COUNTIF('[1]Laporan PMB '!$D$8:$D$469,D324)","v":{"$error":"#VALUE!"}}]
[null,318,"GELOMBANG 2","200507AO","FATAH ILHAM","3302171007000003","ISLAM","Pria","BANYUMAS","2000-07-10","SMK FARMASI MAJENANG","FARMASI",2018,0,"PLIKEN,LANGGONGSARI RT01 RW07 CILONGOK","CILONGOK","Banyumas","Jawa Tengah","088228889909","088228889909","sample@sample.com","INFORMATIKA S1","MAHASISWA BARU","03-07-2020","brosur","Lengkap","LAIN - LAIN","04-07-2020","SOLIKHAH","TKW","85292492313","DALDIRI","-","-","LANGGONGSARI RT01 RW07 CILONGOK","LANGGONGSARI","CILONGOK","Banyumas","Jawa Tengah",99999,0,"L","L",3500000,{"$f":"COUNTIF('[1]Laporan PMB '!$D$8:$D$469,D325)","v":{"$error":"#VALUE!"}}]
[null,319,"GELOMBANG 2","200511OL","SHIFA AULIA RAMADHANI","3302134101000008","ISLAM","Wanita","Banyumas","2000-01-01","SMK MA'ARIF NU 1 WANGON","FARMASI",2018,50.5,"Jalan glempang, desa gerduren RT 02 RW 02","PURWOJATI","Banyumas","Jawa Tengah","081325404366",62,"shifaauliar123@gmail.con","BISNIS DIGITAL S1","MAHASISWA BARU","04-07-2020","internet","Lengkap","LAIN - LAIN","11-07-2020","MURNIYATI","GURU","086905243601","SUPRIYANTO","WIRASWASTA","081359683950","Jalan glempang, desa gerduren","GERDUREN","PURWOJATI","Banyumas","Jawa Tengah",53175,0,"L","L",1250000,{"$f":"COUNTIF('[1]Laporan PMB '!$D$8:$D$469,D326)","v":{"$error":"#VALUE!"}}]
[null,320,"GELOMBANG 2","200520AO","ZHAKI MUHTARIK YAFI","330102000000004","ISLAM","Pria","CILACAP","2003-08-20","MA RAUDLATUL HUDA ADIPALA","IPS",2020,76,"WELAHAN WETAN RT01 RW06 ADIPALA","ADIPALA","Cilacap","Jawa Tengah","082132987571",62,"sample@sample.com","INFORMATIKA S1","MAHASISWA BARU","08-07-2020","brosur","Lengkap","LAIN - LAIN","11-07-2020","TACIH"," ","085292451864","TUMIRAN ABDUL ROKHIM"," "," ","WELAHAN WETAN RT01 RW06 ADIPALA","WELAHAN WETAN","ADIPALA","Cilacap","Jawa Tengah",53271,0,"XL","XL",3500000,{"$f":"COUNTIF('[1]Laporan PMB '!$D$8:$D$469,D327)","v":{"$error":"#VALUE!"}}]
[null,321,"GELOMBANG 2","200524AO","YUDHA PRATAMA","3302223000802002","ISLAM","Pria","BANYUMAS","2002-08-30","SMK SWAGAYA 1 PURWOKERTO","AKUNTANSI",2020,0,"JL.CENDANA RT03 RW04 KETENGER","BATURRADEN","Banyumas","Jawa Tengah","082322884606",62,"sample@sample.com","SISTEM INFORMASI S1","MAHASISWA BARU","08-07-2020","brosur","Lengkap","LAIN - LAIN","11-07-2020","RESTI NUR ASIAH","IRT"," ","SUGIYONO","SWASTA","085742797230","JL.CENDANA RT03 RW04 KETENGER","KETENGER","BATURRADEN","Banyumas","Jawa Tengah",99999,0," "," ",2000000,{"$f":"COUNTIF('[1]Laporan PMB '!$D$8:$D$469,D328)","v":{"$error":"#VALUE!"}}]
[null,322,"GELOMBANG 2","200527AO","MA'RIFAN PERMADI","330302070295001","ISLAM","Pria","PURBALINGGA","1995-02-07","SMK N 1 BUKATEJA","TKR",2012,92,"JL RA YA BUKATEJA RT01 RW05 MAJASARI BUKATEJA","BUKATEJA","Purbalingga","Jawa Tengah","081393193531",62,"sample@sample.com","INFORMATIKA S1","MAHASISWA KELAS SORE","11-07-2020","brosur","Lengkap","LAIN - LAIN","18-07-2020","MAHINI","PERAWAT","082320837573","DUROR MA'ARIF"," "," ","JL RA YA BUKATEJA RT01 RW05 MAJASARI BUKATEJA","MAJASARI","BUKATEJA","Purbalingga","Jawa Tengah",99999,0,"L","L",3500000,{"$f":"COUNTIF('[1]Laporan PMB '!$D$8:$D$469,D329)","v":{"$error":"#VALUE!"}}]
[null,323,"GELOMBANG 2","200537OL","RIFAT SETO HARYOKO","3301131708000001","ISLAM","Pria","Cilacap","2000-08-17","SMK NEGERI KARANGPUCUNG","MESIN",2019,46,"Jalan raya cimanggu","CIMANGGU","Cilacap","Jawa Tengah","085602927211",62,"rifatbabylooks18@gmail.com","TEKNOLOGI INFORMASI S1","MAHASISWA BARU","14-07-2020","brosur","Lengkap","LAIN - LAIN","18-07-2020","RESTI HANDAYANI","IRT","081391410976","SISWOTO","KARYAWAN BUMD"," ","Jalan raya cimanggu","DESA CIMANGGU","CIMANGGU","Cilacap","Jawa Tengah",53256,0,"XL","XL",1750000,{"$f":"COUNTIF('[1]Laporan PMB '!$D$8:$D$469,D330)","v":{"$error":"#VALUE!"}}]
[null,324,"GELOMBANG 2","200538AO","VELLANIA STELLA","3302184902990001","ISLAM","Wanita","BANYUMAS","1999-02-09","SMK BAKTI PURWOKERTO","AKUNTANSI",2020,49.05,"JL KOBER RT02 RE 01 BOBOSAN","PURWOKERTO UTARA","Banyumas","Jawa Tengah","081328146109",62,"sample@sample.com","BISNIS DIGITAL S1","MAHASISWA BARU","14-07-2020","brosur","Lengkap","LAIN - LAIN","18-07-2020","KUSUMA ASTUTI","IRT"," ","PRIHANTONI KUSUMA IRAWAN","WIRASWASTA"," ","JL KOBER RT02 RE 01 BOBOSAN","BOBOSAN","PURWOKERTO UTARA","Banyumas","Jawa Tengah",99999,0," M"," M",1250000,{"$f":"COUNTIF('[1]Laporan PMB '!$D$8:$D$469,D331)","v":{"$error":"#VALUE!"}}]
[null,325,"GELOMBANG 2","200542AO","ALMAS ' ABDUL HAFIZH","3302202307990003","ISLAM","Pria","BANYUMAS","1999-07-23","SMA N 1 BATURRADEN","IPS",2017,0,"JL.SUNAN BONANG RT05 RW05 DUKUHWALUH","KEMBARAN","Banyumas","Jawa Tengah","081915018935",62,"sample@sample.com","TEKNOLOGI INFORMASI S1","MAHASISWA BARU","14-07-2020","brosur","Lengkap","LAIN - LAIN","18-07-2020","ETIK PUJI ASTUTI","IRT","087838869153","SLAMET ISNEN","PNS"," ","JL.SUNAN BONANG RT05 RW05 DUKUHWALUH","DUKUHWALUH","KEMBARAN","Banyumas","Jawa Tengah",99999,0,"L","L",1750000,{"$f":"COUNTIF('[1]Laporan PMB '!$D$8:$D$469,D332)","v":{"$error":"#VALUE!"}}]
[null,326,"GELOMBANG 2","200544AO","RIZKI SURYA AGUSTIAN","3307091208990005","ISLAM","Pria","WONOSOBO","1999-08-12","SMA MUHAMMADIYAH WONOSOBO","IPS",2017,75.5,"DS.CAMPURSARI RT02 RW08 JARAKSARI WONOSOBO","WONOSOBO","Wonosobo","Jawa Tengah","081389030009","081389030009","sample@sample.com","ILMU KOMUNIKASI S1","MAHASISWA BARU","15-07-2020","brosur","Lengkap","LAIN - LAIN","18-07-2020","DEVI YENI","IRT","085292300233","MUFLIN SAMSUL BAHRI","WIRASWASTA","085227498100","DS.CAMPURSARI RT02 RW08 JARAKSARI WONOSOBO","JARAKSARI","WONOSOBO","Wonosobo","Jawa Tengah",99999,0,"M","M",1250000,{"$f":"COUNTIF('[1]Laporan PMB '!$D$8:$D$469,D333)","v":{"$error":"#VALUE!"}}]
[null,327,"GELOMBANG 2","200562AO","ALFIAN DAFFA FEBRIANTO","3302011502010002","ISLAM","Pria","BANYUMAS","2001-02-15","SMA N 1 WANGON","IPS",2019,58,"LUMBIR RT02 RW04 BANYUMAS","LUMBIR","Banyumas","Jawa Tengah","085326737846",62,"sample@sample.com","SISTEM INFORMASI S1","MAHASISWA BARU","20-07-2020","brosur","Lengkap","LAIN - LAIN","25-07-2020","KASMINAH","IRT"," ","DULHADI","PETANI","082136031294","LUMBIR RT02 RW04 BANYUMAS","LUMBIR","LUMBIR","Banyumas","Jawa Tengah",99999,0,"XL","XL",3500000,{"$f":"COUNTIF('[1]Laporan PMB '!$D$8:$D$469,D334)","v":{"$error":"#VALUE!"}}]
[null,328,"GELOMBANG 2","200571AO","MOCHAMMAD FADLY FEBRI YARDAN","3301171102040001","ISLAM","Pria","BANDUNG","2003-02-11","SMK NASIONAL PURWOKERTO","NAUTIKA KAPAL NIAGA",2020,82.07,"KARANGJATI RT01 RW10 SAMPANG"," ","Cilacap","Jawa Tengah","0895378238463","0895378238463","sample@sample.com","TEKNOLOGI INFORMASI S1","MAHASISWA BARU","22-07-2020","brosur","Lengkap","LAIN - LAIN","25-07-2020","UIFATUL JANNAH","PEDAGANG","085222088086","YAYAN HABRI YARDAN","SERABUTAN","085290567979","KARANGJATI RT01 RW10 SAMPANG"," "," ","Cilacap","Jawa Tengah",99999,0,"M"," M",1750000,{"$f":"COUNTIF('[1]Laporan PMB '!$D$8:$D$469,D335)","v":{"$error":"#VALUE!"}}]
[null,329,"GELOMBANG 2","200574AO","AISYAH MUJI YANUARISKA","000","ISLAM","Wanita","WONOGIRI","2002-01-31","SMA N 1 GIRIMARTO WONOGIRI","IPS",2020,85.8,"TAMBAK MERANG RT02 RW08 GIRIMARTO"," ","Wonogiri","Jawa Tengah","082313555560",62,"sample@sample.com","SISTEM INFORMASI S1","MAHASISWA BARU","22-07-2020","brosur","Lengkap","LAIN - LAIN","25-07-2020","SUKATI"," "," ","MUJIONO"," "," "," "," "," ","Wonogiri","Jawa Tengah",99999,0,{"$nulls":3},{"$f":"COUNTIF('[1]Laporan PMB '!$D$8:$D$469,D336)","v":{"$error":"#VALUE!"}}]
[null,330,"GELOMBANG 2","200578OL","MARCEL AFANDI","3329062606030004","ISLAM","Pria","Brebes","2003-05-26","SMK KERABAT KITA BUMIAYU","TKJ",2020,82,"Jl.kalijurang 1","TONJONG","Brebes","Jawa Tengah","085727951815",62,"marcelafandi22@gmail.com","INFORMATIKA S1","MAHASISWA BARU","23-07-2020","brosur","Lengkap","LAIN - LAIN","30-07-2020","TARINI"," ","085803232571"," "," "," ","Jl.kalijurang 1","KALIJURANG","TONJONG","Brebes","Jawa Tengah",52271,0,"L","L",3500000,{"$f":"COUNTIF('[1]Laporan PMB '!$D$8:$D$469,D337)","v":{"$error":"#VALUE!"}}]
[null,331,"GELOMBANG 2","200597AO","PRASTYO BAYU AJI","3303052703030005","ISLAM","Pria","PURBALINGGA","2003-03-27","SMK N 1 KUTASARI","TKJ",2020,8.75,"JL. RAYA TOBONG RT 15 RW 06 MERI","KUTASARI","Purbalingga","Jawa Tengah","085726461373","085726461373","sample@sample.com","TEKNOLOGI INFORMASI S1","MAHASISWA BARU","27-07-2020","brosur","Lengkap","LAIN - LAIN","27-07-2020","SUTARTI"," IRT","085294555715","RUSMAN","WIRASWASTA","085846225148","JL. RAYA TOBONG RT 15 RW 06 MERI","MERI","KUTASARI","Purbalingga","Jawa Tengah",99999,0,"XL","XL",1750000,{"$f":"COUNTIF('[1]Laporan PMB '!$D$8:$D$469,D338)","v":{"$error":"#VALUE!"}}]
[null,332,"GELOMBANG 2","200598AO","RIZKY BAGAS NUR HIDAYAT","330307812020004","ISLAM","Pria","PURBALINGGA","2002-12-08","SMK MUHAMMADIYAH 1 PURBALINGGA","TKJ",2020,0,"JL. RAYA TOBONG RT 07 RW 04 KUTASARI","KUTASARI","Purbalingga","Jawa Tengah","081228341707",62,"sample@sample.com","TEKNOLOGI INFORMASI S1","MAHASISWA BARU","27-07-2020","brosur","Lengkap","LAIN - LAIN","27-07-2020","ENDAH PAKARTI","PNS","085712504858","JITONO","PEDAGANG","081226898719","JL. RAYA TOBONG RT 07 RW 04 KUTASARI","KUTASARI","KUTASARI","Purbalingga","Jawa Tengah",99999,0,"XL","XXL",1750000,{"$f":"COUNTIF('[1]Laporan PMB '!$D$8:$D$469,D339)","v":{"$error":"#VALUE!"}}]
[null,333,"GELOMBANG 2","200613AO","TRI REJEKI LAILA WAHYUNINGSIH","3302025107000002","ISLAM","Wanita","BANYUMAS","2000-07-11","SMA N 1 WANGON","IPS",2018,0,"WINDUNEGARA RT 04 RW 01","WANGON","Banyumas","Jawa Tengah","0895417001515",62,"sample@sample.com","ILMU KOMUNIKASI S1","MAHASISWA BARU","28-07-2020","brosur","Lengkap","LAIN - LAIN","30-07-2020","RUMIATI","IRT","085770633277","MUHENI ALM"," "," ","WINDUNEGARA RT 04 RW 01","WINDUNEGARA","WANGON","Banyumas","Jawa Tengah",99999,0,"L","M",1250000,{"$f":"COUNTIF('[1]Laporan PMB '!$D$8:$D$469,D340)","v":{"$error":"#VALUE!"}}]
[null,334,"GELOMBANG 2","200618OL","AFAH ULY NARESTAMI","3302114507000002","ISLAM","Wanita","Banyumas","2000-07-05","SMK N 1 BANYUMAS","TKJ",2020,83,"Desa Kedunggede","BANYUMAS","Banyumas","Jawa Tengah","085868577534",62,"afahulyynaress@gmail.com","SISTEM INFORMASI S1","MAHASISWA BARU","29-07-2020","lainnya","Lengkap","LAIN - LAIN","30-07-2020","WATIMAH","IRT","085290153048","AMIN","DAGANG"," ","Desa Kedunggede","KEDUNGGEDE","BANYUMAS","Banyumas","Jawa Tengah",53192,0,"L","L",3500000,{"$f":"COUNTIF('[1]Laporan PMB '!$D$8:$D$469,D341)","v":{"$error":"#VALUE!"}}]
[]
[]
[3,116,"GELOMBANG KHUSUS","200209OL","YOUKA EZZAT ELBUNA","3327011103010003","ISLAM","Pria","085226116097",62,"elbuna007@gmail.com","BISNIS DIGITAL S1","TEKNOLOGI INFORMASI S1","MAHASISWA BARU"]
[26,286,"GELOMBANG 3","200985AO","ARFINA AYU LESTARI","33022160100020004","ISLAM","Wanita","085702627042",62,"sample@sample.com","BISNIS DIGITAL S1","BISNIS DIGITAL S1","MAHASISWA BARU"]
[42,302,"GELOMBANG 3","201054AO","ZULFIKAR IKHTIARA RAMADHAN","3303021212010001","ISLAM","Pria","6287887280487","6287887280487","sample@sample.com","BISNIS DIGITAL S1","ILMU KOMUNIKASI S1","MAHASISWA BARU"]
[54,314,"GELOMBANG 3","201103OL","NOVAN BAGUS ARIANTO","3302101311010004","ISLAM","Pria","085741140613",62,"novanbagus05@gmail.com","BISNIS DIGITAL S1","ILMU KOMUNIKASI S1","MAHASISWA BARU"]
[55,315,"GELOMBANG 3","201105AO","ARIF BAYU SADEWA","3302272601010003","ISLAM","Pria","0895617082007",62,"sample@sample.com","BISNIS DIGITAL S1","BISNIS DIGITAL S1","MAHASISWA BARU"]
[70,330,"GELOMBANG 3","201141AO","FAHRUL HUSNA KUSUMA ARGA","3302252903020003","ISLAM","Pria","081804506846",62,"sample@sample.com","BISNIS DIGITAL S1","BISNIS DIGITAL S1","MAHASISWA BARU"]
[71,331,"GELOMBANG 3","201142AO","TRI SUPRAPTI","3302117003010001","ISLAM","Wanita","081575644263",62,"sample@sample.com","BISNIS DIGITAL S1","BISNIS DIGITAL S1","MAHASISWA BARU"]
[72,332,"GELOMBANG 3","201143AO","ANGGI PUTRI PRATAMA","3302095710020001","ISLAM","Wanita","082313366200",62,"sample@sample.com","BISNIS DIGITAL S1","BISNIS DIGITAL S1","MAHASISWA BARU"]
[73,333,"GELOMBANG 3","201148AO","IMAM NUR VAUSI","3302270207020002","ISLAM","Pria","089671688641",62,"sample@sample.com","BISNIS DIGITAL S1","BISNIS DIGITAL S1","MAHASISWA BARU"]
[83,343,"GELOMBANG 3","201208AO","KRISTA YOHANA RAHMADEKA","3302125808020005","ISLAM","Wanita","081326807471",62,"sample@sample.com","BISNIS DIGITAL S1","BISNIS DIGITAL S1","MAHASISWA BARU"]
[87,413,"GELOMBANG 2","200559OL","DEDI SALPIAN","1213221505010003","ISLAM","Pria","081228323110",62,"dedisalpian86@gmail.com","BISNIS DIGITAL S1","TEKNOLOGI INFORMASI S1","MAHASISWA BARU"]
[88,414,"GELOMBANG 2","200560OL","ADE IRFANSYAH","1213222705020003","ISLAM","Pria","082276938337",62,"Adekaderacing@gmail.com","BISNIS DIGITAL S1","TEKNOLOGI INFORMASI S1","MAHASISWA BARU"]
[111,445,"GELOMBANG 3","201085AO","GILDAS DANISWARA","330225210301002","ISLAM","Pria","089396873072",62,"sample@sample.com","BISNIS DIGITAL S1","ILMU KOMUNIKASI S1","MAHASISWA BARU"]
[114,448,"GELOMBANG 3","201112OL","FADHAIL PATTAN PRATAMA","3303093007010001","ISLAM","Pria","0895383067811",62,"pathanfadhail76@gmail.com","BISNIS DIGITAL S1","TEKNOLOGI INFORMASI S1","MAHASISWA BARU"]
[115,449,"GELOMBANG 3","201118OL","RIZKI FA'IQ PRADANA","3301211009020001","ISLAM","Pria","081772378580",62,"rizkiclp83@gmail.com","BISNIS DIGITAL S1","SISTEM INFORMASI S1","MAHASISWA BARU"]
[126,460,"GELOMBANG 3","201189AO","ZAHWA NUR AMALIA","3302125504010002","ISLAM","Wanita","082133501814",62,"sample@sample.com","BISNIS DIGITAL S1","ILMU KOMUNIKASI S1","MAHASISWA BARU"]
[127,461,"GELOMBANG 3","201193AO","WINDI LESTARI","3302036303010003","ISLAM","Wanita","081313201941",62,"sample@sample.com","BISNIS DIGITAL S1","TEKNOLOGI INFORMASI S1","MAHASISWA BARU"]
[128,462,"GELOMBANG 3","201200AO","REGIA ANGGI SETIYADI","33022413090000003","ISLAM","Pria","085292808174",62,"sample@sample.com","BISNIS DIGITAL S1","BISNIS DIGITAL S1","MAHASISWA BARU"]
[1,18,"GELOMBANG KHUSUS","200030AO","AJENG WIKO RIMADANI",0,"ISLAM","Wanita","081548951691","081548951691","sample@sample.com","ILMU KOMUNIKASI S1","ILMU KOMUNIKASI S1","MAHASISWA BARU"]
[8,204,"GELOMBANG 2","200413AO","OCTAVIANA EKTINCYA DEWI","3302264410020003","KATOLIK","Wanita","081229147717",62,"sample@sample.com","ILMU KOMUNIKASI S1","ILMU KOMUNIKASI S1","MAHASISWA BARU"]
[13,271,"GELOMBANG 2","200614OL","NILA REZAENI","3302156412010002","ISLAM","Wanita","083863610109",62,"nilareza33@gmail.com","ILMU KOMUNIKASI S1","ILMU KOMUNIKASI S1","MAHASISWA BARU"]
[17,277,"GELOMBANG 3","200747OL","REZA GHIFARI RAMADHAN","3301230101000004","ISLAM","Pria","087719475643",62,"rezabaguz12@gmail.com","ILMU KOMUNIKASI S1","ILMU KOMUNIKASI S1","MAHASISWA BARU"]
[22,282,"GELOMBANG 3","200940OL","DEDI PURWANTO","3302202801020001","ISLAM","Pria","085729801511",62,"dedipurwanto.mm@gmail.com","ILMU KOMUNIKASI S1","ILMU KOMUNIKASI S1","MAHASISWA BARU"]
[23,283,"GELOMBANG 3","200963OL","APRILLIA FATMAWATI","3301026004030002","ISLAM","Wanita","088220089788",62,"fatmawatia029@gmail.com","ILMU KOMUNIKASI S1","INFORMATIKA S1","MAHASISWA BARU"]
[30,290,"GELOMBANG 3","201003AO","RIFLI YANDANA","3302211907010001","ISLAM","Pria","088239805574",62,"sample@sample.com","ILMU KOMUNIKASI S1","BISNIS DIGITAL S1","MAHASISWA BARU"]
[31,291,"GELOMBANG 3","201004AO","FAUZAN AL AMIN","330315120802002","ISLAM","Pria","081226262835",62,"sample@sample.com","ILMU KOMUNIKASI S1","BISNIS DIGITAL S1","MAHASISWA BARU"]
[35,295,"GELOMBANG 3","201021OL","FERA PUSPITA SARI","3302135111010001","ISLAM","Pria","085877780239",62,"ferapuspitaa@yahoo.com","ILMU KOMUNIKASI S1","INFORMATIKA S1","MAHASISWA BARU"]
[40,300,"GELOMBANG 3","201037OL","THUHFAH HUSYIARI 'AZMI","5271024909010002","ISLAM","Wanita","0895332665409",62,"thuhfah.azmi@gmail.com","ILMU KOMUNIKASI S1","ILMU KOMUNIKASI S1","MAHASISWA BARU"]
[53,313,"GELOMBANG 3","201102OL","YUNINDA SYAHIRA NURROHMAN","3207255506020001","ISLAM","Wanita","081809365033",62,"yunindasyahira2002@gmail.com","ILMU KOMUNIKASI S1","BISNIS DIGITAL S1","MAHASISWA BARU"]
[56,316,"GELOMBANG 3","201107AO","ANGEL SEPTIA ANGGREANI","3305235209010001","ISLAM","Wanita","08562842971",62,"sample@sample.com","ILMU KOMUNIKASI S1","ILMU KOMUNIKASI S1","MAHASISWA BARU"]
[57,317,"GELOMBANG 3","201108AO","YUYUN YULIANTI","3302215607020009","ISLAM","Wanita","083867646415",62,"sample@sample.com","ILMU KOMUNIKASI S1","ILMU KOMUNIKASI S1","MAHASISWA BARU"]
[59,319,"GELOMBANG 3","201114AO","GILANG TRI SAPUTRA","3302172106020002","ISLAM","Pria","088806946181",62,"sample@sample.com","ILMU KOMUNIKASI S1","ILMU KOMUNIKASI S1","MAHASISWA BARU"]
[62,322,"GELOMBANG 3","201126OL","YOHANNA TANIA HARTANTO","3304034910020002","ISLAM","Wanita","081325202075",62,"ytaniah9@gmail.com","ILMU KOMUNIKASI S1","BISNIS DIGITAL S1","MAHASISWA BARU"]
[64,324,"GELOMBANG 3","201133OL","RAIHAN NAUFAL MUSHODDAQ","3301141306020001","ISLAM","Pria","082133494176",62,"raihannaufal32@gmail.com","ILMU KOMUNIKASI S1","ILMU KOMUNIKASI S1","MAHASISWA BARU"]
[65,325,"GELOMBANG 3","201135AO","DIAN RAHAYU","3302116110020002","ISLAM","Wanita","0895413890501",62,"sample@sample.com","ILMU KOMUNIKASI S1","ILMU KOMUNIKASI S1","MAHASISWA BARU"]
[66,326,"GELOMBANG 3","201136AO","OKTAVIAN ARISTINA","3302054110020001","ISLAM","Wanita","081225683660",62,"sample@sample.com","ILMU KOMUNIKASI S1","ILMU KOMUNIKASI S1","MAHASISWA BARU"]
[67,327,"GELOMBANG 3","201137AO","JUWITA PEVILIA ROSE","3302276506010001","ISLAM","Wanita","081546144122",62,"sample@sample.com","ILMU KOMUNIKASI S1","ILMU KOMUNIKASI S1","MAHASISWA BARU"]
[75,335,"GELOMBANG 3","201151AO","KHAIRULLAH DHIYA ULHAQ","3302234804020001","ISLAM","Pria","081393845384",62,"sample@sample.com","ILMU KOMUNIKASI S1","ILMU KOMUNIKASI S1","MAHASISWA BARU"]
[76,336,"GELOMBANG 3","201159OL","RESTI FEBRIYANTI","3302186502020003","ISLAM","Wanita","08971322525",62,"restifebriyanti001@gmail.com","ILMU KOMUNIKASI S1","TEKNOLOGI INFORMASI S1","MAHASISWA BARU"]
[81,341,"GELOMBANG 3","201195AO","AFIQOTUL ISHMAH",0,"ISLAM","Wanita","081390913578",62,"sample@sample.com","ILMU KOMUNIKASI S1","ILMU KOMUNIKASI S1","MAHASISWA BARU"]
[82,342,"GELOMBANG 3","201201AO","ANANDA LISTYA PRADHIPTAYA","33022609010001","ISLAM","Pria","082138927451",62,"sample@sample.com","ILMU KOMUNIKASI S1","BISNIS DIGITAL S1","MAHASISWA BARU"]
[94,428,"GELOMBANG 3","200783OL","ADELIANA SEKAR MUFIDAH","3302095803010001","ISLAM","Wanita","085712064033",62,"adelianamufidah@gmail.com","ILMU KOMUNIKASI S1","BISNIS DIGITAL S1","MAHASISWA BARU"]
[98,432,"GELOMBANG 3","200908AO","ANNISA DWI DAMAYANTI","3302256312010001","ISLAM","Wanita","08157744146",62,"sample@sample.com","ILMU KOMUNIKASI S1","BISNIS DIGITAL S1","MAHASISWA BARU"]
[100,434,"GELOMBANG 3","200958AO","CARISSA RAHMA WIJAYA","3303164808020002","ISLAM","Wanita","085801073455",62,"sample@sample.com","ILMU KOMUNIKASI S1","SISTEM INFORMASI S1","MAHASISWA BARU"]
[104,438,"GELOMBANG 3","201001AO","FIA KHOFIFAH PARAMADINA","3303164108020004","ISLAM","Wanita","085868602886",62,"sample@sample.com","ILMU KOMUNIKASI S1","ILMU KOMUNIKASI S1","MAHASISWA BARU"]
[117,451,"GELOMBANG 3","201134AO","DIMAS CHANDRA SETIAWAN","3302191111380001","ISLAM","Pria","6289602622100",62,"sample@sample.com","ILMU KOMUNIKASI S1","ILMU KOMUNIKASI S1","MAHASISWA BARU"]
[119,453,"GELOMBANG 3","201150OL","AZZAH HUSNA LABIBAH","3174086801020002","ISLAM","Wanita","081213880267",62,"husna.labibah@gmail.com","ILMU KOMUNIKASI S1","BISNIS DIGITAL S1","MAHASISWA BARU"]
[120,454,"GELOMBANG 3","201152AO","KEINTANI","3302256811000001","ISLAM","Wanita","085712871547",62,"sample@sample.com","ILMU KOMUNIKASI S1","ILMU KOMUNIKASI S1","MAHASISWA BARU"]
[7,200,"GELOMBANG 2","200406OL","MUHAMMAD DAFFA IZZULHAQ SUYANTO","3302271111010001","ISLAM","Pria","081227086943",62,"izzulhaqdaffasuyanto@gmail.com","INFORMATIKA S1","SISTEM INFORMASI S1","MAHASISWA BARU"]
[10,234,"GELOMBANG 2","200491AO","NOVITA DHIAN PRATIWI","330106811950003","ISLAM","Wanita","085640031535"," ","sample@sample.com","INFORMATIKA S1","INFORMATIKA S1","MAHASISWA TRANSFER"]
[11,247,"GELOMBANG 2","200522AO","MUKHAMAD IMAM MUSLIH","3518172705920001","ISLAM","Pria","085741573739",62,"sample@sample.com","INFORMATIKA S1","INFORMATIKA S1","MAHASISWA KELAS SORE"]
[14,274,"GELOMBANG 2","200620AO","TOTI USMAN DANI","3302221704010001","ISLAM","Pria","0895606475059",62,"sample@sample.com","INFORMATIKA S1","INFORMATIKA S1","MAHASISWA KELAS SORE"]
[18,278,"GELOMBANG 3","200807OL","AHMAD RIYAN SAH RIZA","3503121406010002","ISLAM","Pria","085778200570",62,"bajoel.op@gmail.com","INFORMATIKA S1","INFORMATIKA S1","MAHASISWA BARU"]
[19,279,"GELOMBANG 3","200817OL","SIGIT FATHU AMRILLAH","3329022405020006","ISLAM","Pria","087749804572",62,"sygit1111@gmail.com","INFORMATIKA S1","INFORMATIKA S1","MAHASISWA BARU"]
[21,281,"GELOMBANG 3","200938OL","MEYRA NANDA FIANKA","3201267005010003","ISLAM","Wanita","081318363535",62,"Mairanafi11@gmail.com","INFORMATIKA S1","ILMU KOMUNIKASI S1","MAHASISWA BARU"]
[27,287,"GELOMBANG 3","200987AO","ADI PRAYOGO DWIJAYANTO","33021324050220003","ISLAM","Pria","085700982621",62,"sample@sample.com","INFORMATIKA S1","SISTEM INFORMASI S1","MAHASISWA BARU"]
[32,292,"GELOMBANG 3","201005AO","DHAYAN NURULLOH ZETTA","3302120309010001","ISLAM","Pria","088233998763",62,"sample@sample.com","INFORMATIKA S1","INFORMATIKA S1","MAHASISWA BARU"]
[33,293,"GELOMBANG 3","201006AO","KHOSIRIN","3302152404020001","ISLAM","Pria","085894509523",62,"arismunandar2015@gmail.com","INFORMATIKA S1","SISTEM INFORMASI S1","MAHASISWA BARU"]
[34,294,"GELOMBANG 3","201015AO","SUSUL RIDHO MARANDANU","3303020706010002","ISLAM","Pria","085725448357",62,"sample@sample.com","INFORMATIKA S1","INFORMATIKA S1","MAHASISWA BARU"]
[38,298,"GELOMBANG 3","201029AO","MUHAMMAD AKBAR AL AFGHANI","7602012102020001","ISLAM","Pria","082293884199",62,"sample@sample.com","INFORMATIKA S1","INFORMATIKA S1","MAHASISWA BARU"]
[41,301,"GELOMBANG 3","201050AO","RIFA ALFAZRI","3302201401030002","ISLAM","Pria","0895397923219",62,"sample@sample.com","INFORMATIKA S1","INFORMATIKA S1","MAHASISWA BARU"]
[44,304,"GELOMBANG 3","201064AO","MOHAMAD FARIS SHOLAHUDDIN","3302212209980004","ISLAM","Pria","085291339759",62,"sample@sample.com","INFORMATIKA S1","INFORMATIKA S1","MAHASISWA BARU"]
[46,306,"GELOMBANG 3","201069OL","SYIFANA MUFLIH KHAERULLAH","3327030302010001","ISLAM","Pria","088902875890",62,"syifanamuflih06@gmail.com","INFORMATIKA S1","TEKNOLOGI INFORMASI S1","MAHASISWA BARU"]
[47,307,"GELOMBANG 3","201073OL","MUHAMMAD SUBHAN MAHENDRASYAH","3329041510010003","ISLAM","Pria","082322676078",62,"andraahay00@gmail.com","INFORMATIKA S1","TEKNOLOGI INFORMASI S1","MAHASISWA BARU"]
[50,310,"GELOMBANG 3","201082OL","IRVAN WIJAYA","3302201512010001","ISLAM","Pria","081340691423",62,"irfanwijayasardam@gmail.com","INFORMATIKA S1","INFORMATIKA S1","MAHASISWA BARU"]
[52,312,"GELOMBANG 3","201096OL","ISA ALI MUHAMMAD","3302231704020003","ISLAM","Pria","082316177261",62,"Isaalmuh@gmail.com","INFORMATIKA S1","TEKNOLOGI INFORMASI S1","MAHASISWA BARU"]
[58,318,"GELOMBANG 3","201111AO","ZAIN ARIF WILDAN SUGANDI",0,"ISLAM","Pria",62,62,"sample@sample.com","INFORMATIKA S1","INFORMATIKA S1","MAHASISWA KELAS SORE"]
[60,320,"GELOMBANG 2","201115AO","INDAR PUSPITANINGRUM","3302235604020002","ISLAM","Wanita","089639106277",62,"sample@sample.com","INFORMATIKA S1","ILMU KOMUNIKASI S1","MAHASISWA BARU"]
[61,321,"GELOMBANG 3","201123AO","NOUVA RIZQY PRATAMA","3302275104010003","ISLAM","Pria","087741413837",62,"sample@sample.com","INFORMATIKA S1","TEKNOLOGI INFORMASI S1","MAHASISWA KELAS SORE"]
[63,323,"GELOMBANG 3","201131OL","ARIEF RACHMAN HAKIM","3207172205020001","ISLAM","Pria","082240136816",62,"ariefrachmanhakim2358@gmail.com","INFORMATIKA S1","INFORMATIKA S1","MAHASISWA BARU"]
[69,329,"GELOMBANG 3","201140AO","YOGA ADI NUGRAHA","3301081307000002","ISLAM","Pria","081902085252",62,"sample@sample.com","INFORMATIKA S1","INFORMATIKA S1","MAHASISWA KELAS SORE"]
[79,339,"GELOMBANG 3","201173AO","BAGUS KURNIAWAN  EKHSANTO","3304182410000003","ISLAM","Pria","082326829162",62,"sample@sample.com","INFORMATIKA S1","INFORMATIKA S1","MAHASISWA KELAS SORE"]
[80,340,"GELOMBANG 3","201188AO","IMAM MUAZIZ","3302221303020002","ISLAM","Pria","62895385072476",62,"sample@sample.com","INFORMATIKA S1","INFORMATIKA S1","MAHASISWA BARU"]
[84,344,"GELOMBANG 3","201215AO","BANGUN BUDIANTO","3303040704020001","ISLAM","Pria","085713923440",62,"sample@sample.com","INFORMATIKA S1","TEKNOLOGI INFORMASI S1","MAHASISWA KELAS SORE"]
[86,411,"GELOMBANG 2","200550OL","AFIF EKA SETYABUDI","3303041108000001","ISLAM","Pria","0895383095800",62,"afifeka11@gmail.com","INFORMATIKA S1","TEKNOLOGI INFORMASI S1","MAHASISWA BARU"]
[90,421,"GELOMBANG 2","200599AO","MAHARDIKA NAUFAL IKMAL","330203160620003","ISLAM","Pria","087784495835","087784495835","sample@sample.com","INFORMATIKA S1","TEKNOLOGI INFORMASI S1","MAHASISWA BARU"]
[91,422,"GELOMBANG KHUSUS","200603AO","WASTIAN SALWA ANUGRAH RAMADAN","3302272911020001","ISLAM","Pria","085102734091",62,"sample@sample.com","INFORMATIKA S1","ILMU KOMUNIKASI S1","MAHASISWA BARU"]
[95,429,"GELOMBANG 3","200890AO","RATIH AYUNI","3302224402030001","ISLAM","Wanita","081327446232",62,"Ayuniratih3@gmail.com","INFORMATIKA S1","SISTEM INFORMASI S1","MAHASISWA BARU"]
[97,431,"GELOMBANG 3","200895AO","DWI HASTA ANJUNG SAMPURNA","330210061001003","ISLAM","Pria","0895384007772",62,"sample@sample.com","INFORMATIKA S1","INFORMATIKA S1","MAHASISWA BARU"]
[103,437,"GELOMBANG 3","200981OL","RIZKI DIAN RAMADHANI","3302176611000002","ISLAM","Wanita","081390464514",62,"rizkidianra5@gmail.com","INFORMATIKA S1","TEKNOLOGI INFORMASI S1","MAHASISWA BARU"]
[105,439,"GELOMBANG 2","201007AO","ALDI SALFANDI","3302191806020001","ISLAM","Pria","08976056059",62,"sample@sample.com","INFORMATIKA S1","TEKNOLOGI INFORMASI S1","MAHASISWA BARU"]
[122,456,"GELOMBANG 3","201157AO","ARDANU DHUHRI NUGROHO","3302221912020001","ISLAM","Pria","082138586251",62,"sample@sample.com","INFORMATIKA S1","TEKNOLOGI INFORMASI S1","MAHASISWA KELAS SORE"]
[2,104,"GELOMBANG KHUSUS","200188OL","JANAN MAULUDHI","3302132405020002","ISLAM","Pria","081215161816",62,"Jananmauludhi24@gmail.com","SISTEM INFORMASI S1","INFORMATIKA S1","MAHASISWA BARU"]
[9,220,"GELOMBANG 2","200461OL","ROMARTA YEMIMA MANURUNG","3329116711020002","PROTESTAN","Wanita","081329438053",62,"romartaktg010203@gmail.com","SISTEM INFORMASI S1","TEKNOLOGI INFORMASI S1","MAHASISWA BARU"]
[12,268,"GELOMBANG 2","200604AO","SUCI DAMAYANTI","3303135512000001","ISLAM","Wanita","081325515422",62,"sample@sample.com","SISTEM INFORMASI S1","INFORMATIKA S1","MAHASISWA BARU"]
[20,280,"GELOMBANG 3","200936OL","IRFAN HANANTO","3303152605020001","ISLAM","Pria","085155317656",62,"irfantonov111@gmail.com","SISTEM INFORMASI S1","INFORMATIKA S1","MAHASISWA BARU"]
[25,285,"GELOMBANG 3","200974OL","KHARISMA PUTRI SHOLEKHA","3301234303020001","ISLAM","Wanita","08224402247",62,"kharismaputricp123@gmail.com","SISTEM INFORMASI S1","ILMU KOMUNIKASI S1","MAHASISWA BARU"]
[28,288,"GELOMBANG 3","200989AO","DWIFA JULIETA KASIH","3302064207020002","ISLAM","Wanita","081578448996",62,"sample@sample.com","SISTEM INFORMASI S1","INFORMATIKA S1","MAHASISWA BARU"]
[36,296,"GELOMBANG 3","201025AO","ARIS WIJANARKO","3302010808010001","ISLAM","Pria","085156321120",62,"sample@sample.com","SISTEM INFORMASI S1","BISNIS DIGITAL S1","MAHASISWA BARU"]
[37,297,"GELOMBANG 3","201026AO","SELINA ISNI SETIASIH","3302045804020001","ISLAM","Wanita","6281215311245","6285842876887","sample@sample.com","SISTEM INFORMASI S1","ILMU KOMUNIKASI S1","MAHASISWA BARU"]
[39,299,"GELOMBANG 3","201034AO","WIDYA DIAN PRATIWI","3302245308020001","ISLAM","Wanita","088237237063",62,"sample@sample.com","SISTEM INFORMASI S1","ILMU KOMUNIKASI S1","MAHASISWA BARU"]
[45,305,"GELOMBANG 3","201066AO","CAHYANINGSIH PUTRI ANDARYANI","3302275509020001","ISLAM","Wanita","6285747583836",62,"sample@sample.com","SISTEM INFORMASI S1","SISTEM INFORMASI S1","MAHASISWA BARU"]
[68,328,"GELOMBANG 3","201139AO","IKO CHOERUL KOMAR","3302151604010001","ISLAM","Pria","085894877681",62,"sample@sample.com","SISTEM INFORMASI S1","BISNIS DIGITAL S1","MAHASISWA BARU"]
[85,409,"GELOMBANG 2","200541AO","IQBAL NUR AFAZI","3329022210990004","ISLAM","Pria","085717827349","085717827349","sample@sample.com","SISTEM INFORMASI S1","INFORMATIKA S1","MAHASISWA BARU"]
[89,415,"GELOMBANG 2","200564OL","R. MUHAMMAD RIZKI RAHMADANI PUTRA ZAINAL","3674052712020008","ISLAM","Pria","0895800095959",62,"rmuhammadkiki27@gmail.com","SISTEM INFORMASI S1","SISTEM INFORMASI S1","MAHASISWA BARU"]
[99,433,"GELOMBANG 3","200949OL","PRAMUDYA FABIO ARDHANA","3302071203020002","ISLAM","Pria","085717916386",62,"fabiofian123@gmail.com","SISTEM INFORMASI S1","ILMU KOMUNIKASI S1","MAHASISWA BARU"]
[116,450,"GELOMBANG 3","201119OL","VIA ALFILAENI","3302084405020004","ISLAM","Wanita","085669306790",62,"viaalfila04@gmail.com","SISTEM INFORMASI S1","ILMU KOMUNIKASI S1","MAHASISWA BARU"]
[121,455,"GELOMBANG 3","201153AO","RAZEL SYANAHIESKARA","3303131009120004","ISLAM","Wanita","081477008728",62,"sample@sample.com","SISTEM INFORMASI S1","INFORMATIKA S1","MAHASISWA BARU"]
[124,458,"GELOMBANG 3","201160AO","HARUN AL RASYID","330306150702000","ISLAM","Pria","089620489634",62,"sample@sample.com","SISTEM INFORMASI S1","TEKNOLOGI INFORMASI S1","MAHASISWA BARU"]
[125,459,"GELOMBANG 3","201176OL","ILHAM CIPTO PRASETYO","3302121504020001","ISLAM","Pria","085290632232",62,"hamcipto456@gmail.com","SISTEM INFORMASI S1","SISTEM INFORMASI S1","MAHASISWA BARU"]
[4,117,"GELOMBANG 3","200210OL","FAIZ ABDULLAH MUFTI","3301051908990002","ISLAM","Pria","081235862783",62,"faizabdmufti@gmail.com","TEKNOLOGI INFORMASI S1","TEKNOLOGI INFORMASI S1","MAHASISWA BARU"]
[5,132,"GELOMBANG 1","200240OL","BRYAN DANANG KURNIAWAN","3302270603020001","ISLAM","Pria","081326115491",62,"bryankurniawan06@gmail.com","TEKNOLOGI INFORMASI S1","SISTEM INFORMASI S1","MAHASISWA BARU"]
[6,156,"GELOMBANG 1","200300OL","MUHAMMAD ARIK FIRDAUS","3303132402020006","ISLAM","Pria","085156267613",62,"riksaa99@gmail.com","TEKNOLOGI INFORMASI S1","INFORMATIKA S1","MAHASISWA BARU"]
[15,275,"GELOMBANG 3","200633AO","ROBI WIDIONO","3302140708960001","ISLAM","Pria","085814279606",62,"sample@sample.com","TEKNOLOGI INFORMASI S1","INFORMATIKA S1","MAHASISWA BARU"]
[16,276,"GELOMBANG 3","200685AO","ANDIQO FADLAN MUBAROK","3302161210000002","ISLAM","Pria","087834354362",62,"sample@sample.com","TEKNOLOGI INFORMASI S1","TEKNOLOGI INFORMASI S1","MAHASISWA BARU"]
[24,284,"GELOMBANG 3","200964OL","STEVANO HERU YUWALYO","3304031611020001","ISLAM","Pria","089618714266",62,"stevano.heru16@gmail.com","TEKNOLOGI INFORMASI S1","SISTEM INFORMASI S1","MAHASISWA BARU"]
[29,289,"GELOMBANG 3","201000OL","BAGAS SUTIONO","3303041245400002","ISLAM","Pria","085257635112",62,"bagassutyono456@gmail.com","TEKNOLOGI INFORMASI S1","TEKNOLOGI INFORMASI S1","MAHASISWA BARU"]
[43,303,"GELOMBANG 3","201057OL","SAHAL SAPUTRA","3303171904020001","ISLAM","Pria","089601789282",62,"smahfud627@gmail.com","TEKNOLOGI INFORMASI S1","INFORMATIKA S1","MAHASISWA BARU"]
[48,308,"GELOMBANG 3","201077AO","TEGAR AJI PRATAMA","3302231403020002","ISLAM","Pria","083127079473",62,"sample@sample.com","TEKNOLOGI INFORMASI S1","SISTEM INFORMASI S1","MAHASISWA BARU"]
[49,309,"GELOMBANG 3","201079AO","RIZKI PRAMUDYA PRAMESSETYAWAN","3301082801020002","ISLAM","Pria","085759626610",62,"sample@sample.com","TEKNOLOGI INFORMASI S1","TEKNOLOGI INFORMASI S1","MAHASISWA BARU"]
[51,311,"GELOMBANG 3","201089AO","ILHAM FYRMANSYAH","3329010202030005","ISLAM","Pria","085229408947",62,"sample@sample.com","TEKNOLOGI INFORMASI S1","TEKNOLOGI INFORMASI S1","MAHASISWA BARU"]
[74,334,"GELOMBANG 3","201149AO","FEBRIANA DWI WIDIANINGSIH","3302194502020002","ISLAM","Wanita","082322336661",62,"sample@sample.com","TEKNOLOGI INFORMASI S1","INFORMATIKA S1","MAHASISWA BARU"]
[77,337,"GELOMBANG 3","201168AO","SATRIO NUGROHO","3302231502010002","ISLAM","Pria","0895424160600",62,"sample@sample.com","TEKNOLOGI INFORMASI S1","BISNIS DIGITAL S1","MAHASISWA BARU"]
[78,338,"GELOMBANG 3","201171AO","CANDRA ISFAKHUL ALAM","3303151812010001","ISLAM","Pria","088983288162",62,"sample@sample.com","TEKNOLOGI INFORMASI S1","TEKNOLOGI INFORMASI S1","MAHASISWA BARU"]
[92,423,"GELOMBANG 2","200615OL","AHMAD MANAN MUSYAFA","3302061010010001","ISLAM","Pria","087870937414",62,"Nasyifkhasan@gmail.com","TEKNOLOGI INFORMASI S1","INFORMATIKA S1","MAHASISWA BARU"]
[93,426,"GELOMBANG 2","200630OL","LINTANG AYU DAYANI","3302226004990001","ISLAM","Wanita","085647991196",62,"lintangayudayani@gmail.com","TEKNOLOGI INFORMASI S1","TEKNOLOGI INFORMASI S1","MAHASISWA BARU"]
[96,430,"GELOMBANG 3","200894AO","AMMAR RIFA HAERUDDIN","3329030603020007","ISLAM","Pria","085219426325",62,"sample@sample.com","TEKNOLOGI INFORMASI S1","INFORMATIKA S1","MAHASISWA BARU"]
[101,435,"GELOMBANG KHUSUS","200978OL","HUSEN REZKYANTO","3302270404020003","ISLAM","Pria","081218396790",62,"husen.rezky@gmail.com","TEKNOLOGI INFORMASI S1","INFORMATIKA S1","MAHASISWA BARU"]
[102,436,"GELOMBANG KHUSUS","200979OL","HASAN RIZKYANTO","3302270404020002","ISLAM","Pria","081381400778",62,"haer.rzky12@gmail.com","TEKNOLOGI INFORMASI S1","INFORMATIKA S1","MAHASISWA BARU"]
[106,440,"GELOMBANG 3","201012AO","ALFAN HUDHALLOH","3302081205030003","ISLAM","Pria","082135385294",62,"sample@sample.com","TEKNOLOGI INFORMASI S1","INFORMATIKA S1","MAHASISWA BARU"]
[107,441,"GELOMBANG 3","201018OL","YOGA AJI DHARMAWAN","3301042804020004","ISLAM","Pria","089519905764",62,"ajidharma65@yahoo.com","TEKNOLOGI INFORMASI S1","ILMU KOMUNIKASI S1","MAHASISWA BARU"]
[108,442,"GELOMBANG 3","201032AO","INGWIE BINTANG PRAMUDYAS","3302250102010003","ISLAM","Pria","082246716417","082246716417","sample@sample.com","TEKNOLOGI INFORMASI S1","BISNIS DIGITAL S1","MAHASISWA BARU"]
[109,443,"GELOMBANG 3","201078AO","MUHAMMAD RIDWAN BACHTIAR AFANDI","3328061310010001","ISLAM","Pria","085740835458",62,"sample@sample.com","TEKNOLOGI INFORMASI S1","TEKNOLOGI INFORMASI S1","MAHASISWA BARU"]
[110,444,"GELOMBANG 3","201081AO","ARNIKA HALWA","3329064907020001","ISLAM","Pria","085742585267",62,"sample@sample.com","TEKNOLOGI INFORMASI S1","TEKNOLOGI INFORMASI S1","MAHASISWA BARU"]
[112,446,"GELOMBANG 3","201094AO","KATON TITIS","3302251408960004","ISLAM","Pria","081325740446",62,"sample@sample.com","TEKNOLOGI INFORMASI S1","TEKNOLOGI INFORMASI S1","MAHASISWA BARU"]
[113,447,"GELOMBANG 3","201106AO","DANANG PAMUNGKAS","3309022603990002","ISLAM","Pria","085726004561",62,"sample@sample.com","TEKNOLOGI INFORMASI S1","TEKNOLOGI INFORMASI S1","MAHASISWA BARU"]
[118,452,"GELOMBANG 3","201138AO","AYU HANDAYANI","3302256508010001","ISLAM","Wanita","082226689860",62,"sample@sample.com","TEKNOLOGI INFORMASI S1","ILMU KOMUNIKASI S1","MAHASISWA BARU"]
[123,457,"GELOMBANG 3","201158AO","DIVA ATH THAARIQ","3302240911010002","ISLAM","Pria","081770282627",62,"sample@sample.com","TEKNOLOGI INFORMASI S1","TEKNOLOGI INFORMASI S1","MAHASISWA BARU"]

{"sheet":"Pembimbing Akademik","index":1,"n_rows":48,"n_cols":3,"rows_kept":48,"merged":[[0,0,0,2],[17,0,17,2],[28,0,28,2],[36,0,36,2],[40,0,40,2]]}
["PROGRAM STUDI INFORMATIKA"]
["NO.","Kelas","Dosen "]
[1,"IF 2020 A 1","Bagus Adhi Kusuma, S.T., M.Eng."]
[2,"IF 2020 A 2","Adam Prayogo K, M.Kom."]
[3,"IF 2020 B 1 ","Desty Rakhmawati, S.Si., M.Sc."]
[4,"IF 2020 B 2","Tri Astuti, S.Kom., M.Eng."]
[5,"IF 2020 C 1","Primandani Arsi, S.ST., M.Kom."]
[6,"IF 2020 C 2","Hendra Marcos, S.T., M.Eng."]
[7,"IF 2020 D 1 ","Siti Alvi, M.Kom."]
[8,"IF 2020 D 2","Khairunnisak Nur Isnaini, M.Kom."]
[9,"IF 2020 E 1","Ali Nur Ikhsan, M.Kom."]
[10,"IF 2020 E 2","Pungkas Subarkah, M.Kom."]
[11,"IF 2020 F 1","Anugerah Bagus Wijaya, M.Kom."]
[12,"IF 2020 F 2","Hellik Hermawan, M.Kom."]
[13,"IF  2020  S","Giat Karyono, M.Kom."]
[14,"IF Transfer 2020","Hendra Marcos, S.T., M.Eng."]
[15,"IF K 2020","Dr. Berlilana, M.Kom., M.Si."]
["PROGRAM STUDI SISTEM INFORMASI"]
["NO.","Kelas","Dosen "]
[1,"SI 2020 A 1","Muliasari Pinilih, S.E., M.Si."]
[2,"SI 2020 A 2","Rahman Rosyidi, M.Kom"]
[3,"SI 2020 B 1","Debby Ummul Hidayah, S.Kom., M.MSI"]
[4,"SI 2020 B 2","Ranggi Praharaningtyas A, S.Kom., M.MSI"]
[5,"SI 2020 C 1","Argiyan Dwi Pritama, S.Kom, M. MSI"]
[6,"SI 2020 C 2","Gustin Setyaningsih, S.Kom., M.MSI."]
[7,"SI 2020 D 1","Ika Romadoni Yunita, S.Kom., M.MSI."]
[8,"SI 2020 D 2","Muhamad Awiet Wiedanto P, S.Kom., M.MSI."]
[9,"SI Transfer 2020","Dr. Taqwa Hariguna, S.T, M.Kom."]
["PROGRAM STUDI TEKNOLOGI INFORMASI"]
["NO.","Kelas","Dosen "]
[1,"TI 2020 A 1","Wiga Maulana Baihaqi, S.Kom., M.Eng."]
[2,"TI 2020 A 2","Chyntia Raras Ajeng Widiawati, S.Kom., M.Eng."]
[3,"TI 2020 B 1","M. Syaiful Amin, M.Kom."]
[4,"TI 2020 B 2","Dani Arifudin, M.Kom."]
[5,"TI 2020 C 1","Bambang Pilu Hartato, S.Kom., M.Eng."]
[6,"TI 2020 C 2 ","Dr. Imam Tahyudin, M.M."]
["PROGRAM STUDI BISNIS DIGITAL"]
["NO.","Kelas","Dosen "]
[1,"BD 2020 A 1","Anisa Nur Andina, S.E., M.Si."]
[2,"BD 2020 A 2","Siti Barokah, S.E., M.M."]
["PROGRAM STUDI ILMU KOMUNIKASI"]
["NO.","Kelas","Dosen "]
[1,"IK 2020 A 1","Dr. Ade Tutituristiati, MIRHRM"]
[2,"IK 2020 A 2","Alfian Muhazir, S.Sos., M.A"]
[1,"IK 2020 B 1","Alfian Muhazir, S.Sos., M.A"]
[2,"IK 2020 B 2","Adita Miranti, M.I.Kom."]
[1,"IK 2020 C 1","Bunga Asriandhini, S.I.Kom., M.A."]
[2,"IK 2020 C 2","Prita Suci Nurcandrani, S.Sos., M.Si., M.I.Kom."]

{"sheet":"Informatika","index":2,"n_rows":342,"n_cols":35,"rows_kept":342}
["FAKULTAS",null,": Ilmu Komputer",{"$nulls":3},"FAKULTAS",null,": Ilmu Komputer",{"$nulls":3},"FAKULTAS",null,": Ilmu Komputer",{"$nulls":3},"FAKULTAS",null,": Ilmu Komputer",{"$nulls":3},"FAKULTAS",null,": Ilmu Komputer",{"$nulls":3},"FAKULTAS",null,": Ilmu Komputer"]
["Program Studi",null,": Informatika",{"$nulls":3},"Program Studi",null,": Informatika",{"$nulls":3},"Program Studi",null,": Informatika",{"$nulls":3},"Program Studi",null,": Informatika",{"$nulls":3},"Program Studi",null,": Informatika",{"$nulls":3},"Program Studi",null,": Informatika"]
["KELAS",null,": IF20A",{"$nulls":3},"KELAS",null,": IF20B",{"$nulls":3},"KELAS",null,": IF20C",{"$nulls":3},"KELAS",null,": IF20D",{"$nulls":3},"KELAS",null,": IF20E",{"$nulls":3},"KELAS",null,": IF20F"]
[]
["NO","NIM","NAMA","PRODI","DOSEN PEMBIMBING",null,"NO","NIM","NAMA","PRODI","DOSEN PEMBIMBING",null,"NO","NIM","NAMA","PRODI","DOSEN PEMBIMBING",null,"NO","NIM","NAMA","PRODI","DOSEN PEMBIMBING",null,"NO","NIM","NAMA","PRODI","DOSEN PEMBIMBING",null,"NO","NIM","NAMA","PRODI","DOSEN PEMBIMBING"]
[1,"20SA1119","AAN SUPANDHI","Informatika S1","Adam Prayogo K, M.Kom.",null,1,"20SA1122","ADZKIYATUN NISA AL HAURA","Informatika S1","Desty Rakhmawati, S.Si., M.Sc.",null,1,"20SA1249","ADLAN WIBOWO","Informatika S1","Hendra Marcos, S.T., M.Eng.",null,1,"20SA1027","AHMAD ZAMRUDIN","Informatika S1","Khairunnisak Nur Isnaini, M.Kom.",null,1,"20SA1187","AGUSTINA CHURIL 'AENI","Informatika S1","Ali Nur Ikhsan, M.Kom.",null,1,"20SA1186","ADITIA WARDANA","Informatika S1","Anugerah Bagus Wijaya, M.Kom."]
[2,"20SA1055","ADES TIKANINGSIH","Informatika S1","Adam Prayogo K, M.Kom.",null,2,"20SA1169","AFIF ROHMAN","Informatika S1","Desty Rakhmawati, S.Si., M.Sc.",null,2,"20SA1071","AHMAD BAHAR","Informatika S1","Hendra Marcos, S.T., M.Eng.",null,2,"20SA1129","AISHA AMALIA","Informatika S1","Khairunnisak Nur Isnaini, M.Kom.",null,2,"20SA1214","AHMAD ZAINUR RIFKI","Informatika S1","Ali Nur Ikhsan, M.Kom.",null,2,"20SA1076","AHMAD DANI PANGESTU","Informatika S1","Anugerah Bagus Wijaya, M.Kom."]
[3,"20SA1086","ADI PRAYOGO DWIJAYANTO","Informatika S1","Adam Prayogo K, M.Kom.",null,3,"20SA1145","AGIS ABIYALA","Informatika S1","Desty Rakhmawati, S.Si., M.Sc.",null,3,"20SA1032","BAGUS KUSUMAWAN AZAN SUBECHI","Informatika S1","Hendra Marcos, S.T., M.Eng.",null,3,"20SA1280","AKHIL NUR RIYADY","Informatika S1","Khairunnisak Nur Isnaini, M.Kom.",null,3,"20SA1266","BAYU AJI PURNOMO","Informatika S1","Ali Nur Ikhsan, M.Kom.",null,3,"20SA1226","DWI ASTUTI","Informatika S1","Anugerah Bagus Wijaya, M.Kom."]
[4,"20SA1009","ADNAN ADITYA MUNTAHAR","Informatika S1","Adam Prayogo K, M.Kom.",null,4,"20SA1132","ALDI SALFANDI","Informatika S1","Desty Rakhmawati, S.Si., M.Sc.",null,4,"20SB2024","DEDI PURWANTO","Informatika S1","Hendra Marcos, S.T., M.Eng.",null,4,"20SA1175","ALFIN WAHYU SUBEKTI","Informatika S1","Khairunnisak Nur Isnaini, M.Kom.",null,4,"20SA1073","DENI NUGRAHA","Informatika S1","Ali Nur Ikhsan, M.Kom.",null,4,"20SA1172","EFANDI TRI MARDIANSAH","Informatika S1","Anugerah Bagus Wijaya, M.Kom."]
[5,"20SA1030","AKHMAD BAEHAKI","Informatika S1","Adam Prayogo K, M.Kom.",null,5,"20SA1260","ANA KHOERUNISAH","Informatika S1","Desty Rakhmawati, S.Si., M.Sc.",null,5,"20SA1081","DESTIANA WIJAYANTI","Informatika S1","Hendra Marcos, S.T., M.Eng.",null,5,"20SA1135","DAVID SUSANTO","Informatika S1","Khairunnisak Nur Isnaini, M.Kom.",null,5,"20SA1258","ELSA INDRIANI","Informatika S1","Ali Nur Ikhsan, M.Kom.",null,5,"20SA1215","FADIL AFZA ABDUL RAZZAQ","Informatika S1","Anugerah Bagus Wijaya, M.Kom."]
[6,"20SA1189","ALDY RIZKY KURNIAWAN","Informatika S1","Adam Prayogo K, M.Kom.",null,6,"20SA1096","ATMAJA JALU NARENDRA KISMA","Informatika S1","Desty Rakhmawati, S.Si., M.Sc.",null,6,"20SA1271","DHIYA ARWA FADHILA","Informatika S1","Hendra Marcos, S.T., M.Eng.",null,6,"20SA1038","DEVANI LARAS SATI","Informatika S1","Khairunnisak Nur Isnaini, M.Kom.",null,6,"20SA1150","FARAH ARDELIA FITRIYANTI","Informatika S1","Ali Nur Ikhsan, M.Kom.",null,6,"20SA1114","FRISKA RELA MARETA","Informatika S1","Anugerah Bagus Wijaya, M.Kom."]
[7,"20SA1269","APRIMAN FIKRI HAIKAL","Informatika S1","Adam Prayogo K, M.Kom.",null,7,"20SA1211","ERVITA FIDYA PUTRI","Informatika S1","Desty Rakhmawati, S.Si., M.Sc.",null,7,"20SA1013","DZAKY CANDY FAHREZY","Informatika S1","Hendra Marcos, S.T., M.Eng.",null,7,"20SA1268","DIMAS ARIF PRIYOGI","Informatika S1","Khairunnisak Nur Isnaini, M.Kom.",null,7,"20SA1091","FARREL IBRAHIM","Informatika S1","Ali Nur Ikhsan, M.Kom.",null,7,"20SA1019","HERO GALUH PYAWAI","Informatika S1","Anugerah Bagus Wijaya, M.Kom."]
[8,"20SA1245","ARDU DARUGUTNI","Informatika S1","Adam Prayogo K, M.Kom.",null,8,"20SA1061","FALHAN DHIYA ULHAQ","Informatika S1","Desty Rakhmawati, S.Si., M.Sc.",null,8,"20SA1142","FATAH TRI HIDAYAT","Informatika S1","Hendra Marcos, S.T., M.Eng.",null,8,"20SA1163","FITROH IZATUL MALKIYAH","Informatika S1","Khairunnisak Nur Isnaini, M.Kom.",null,8,"20SA1106","IRVAN WIJAYA","Informatika S1","Ali Nur Ikhsan, M.Kom.",null,8,"20SA1036","HUSNI MUZAKI","Informatika S1","Anugerah Bagus Wijaya, M.Kom."]
[9,"20SA1051","ARIEF ADE IRAWAN","Informatika S1","Adam Prayogo K, M.Kom.",null,9,"20SA1179","FANESA DWIANA SARI","Informatika S1","Desty Rakhmawati, S.Si., M.Sc.",null,9,"20SA1104","IMAM MUAZIZ","Informatika S1","Hendra Marcos, S.T., M.Eng.",null,9,"20SA1045","JANUAR FABRIAN FAKHARDIKA","Informatika S1","Khairunnisak Nur Isnaini, M.Kom.",null,9,"20SA1171","IRZA FAHRUL AZKIA","Informatika S1","Ali Nur Ikhsan, M.Kom.",null,9,"20SA1126","ICHFAN CHAMDANI","Informatika S1","Anugerah Bagus Wijaya, M.Kom."]
[10,"20SA1156","DIAN AZMI AMALIA","Informatika S1","Adam Prayogo K, M.Kom.",null,10,"20SA1041","FATAH ILHAM","Informatika S1","Desty Rakhmawati, S.Si., M.Sc.",null,10,"20SA1259","IQBAL DWI SETYANTO","Informatika S1","Hendra Marcos, S.T., M.Eng.",null,10,"20SA1228","MITRA BAGUS SUGONO","Informatika S1","Khairunnisak Nur Isnaini, M.Kom.",null,10,"20SA1262","LAURENTIUS JOHANES DASION MANUK","Informatika S1","Ali Nur Ikhsan, M.Kom.",null,10,"20SA1155","IMAN NURJAMAN","Informatika S1","Anugerah Bagus Wijaya, M.Kom."]
[11,"20SA1139","DWIKI FEBRIYANTO","Informatika S1","Adam Prayogo K, M.Kom.",null,11,"20SA1078","FEDIKA AJI PRASETYO","Informatika S1","Desty Rakhmawati, S.Si., M.Sc.",null,11,"20SA1261","IRFAN NURROHMAN","Informatika S1","Hendra Marcos, S.T., M.Eng.",null,11,"20SA1082","MUHAMAD SOLEH","Informatika S1","Khairunnisak Nur Isnaini, M.Kom.",null,11,"20SA1056","LUKMAN YAHYA SAPUTRA","Informatika S1","Ali Nur Ikhsan, M.Kom.",null,11,"20SA1094","ISA ALI MUHAMMAD","Informatika S1","Anugerah Bagus Wijaya, M.Kom."]
[12,"20SA1196","ESPITA ANGGRAENI","Informatika S1","Adam Prayogo K, M.Kom.",null,12,"20SA1286","JANATA ANGGA YUWONO","Informatika S1","Desty Rakhmawati, S.Si., M.Sc.",null,12,"20SA1159","KARTIKA OCTAVIANIE","Informatika S1","Hendra Marcos, S.T., M.Eng.",null,12,"20SA1098","MUHAMMAD AFNURIZA BAHARI PUTRA","Informatika S1","Khairunnisak Nur Isnaini, M.Kom.",null,12,"20SA1154","MAHARDIKA CANDRA WICAKSONO","Informatika S1","Ali Nur Ikhsan, M.Kom.",null,12,"20SA1276","KHAIZ WAFIAN'AHDA ROBBIH","Informatika S1","Anugerah Bagus Wijaya, M.Kom."]
[13,"20SA1201","FEBRI PRASETYO","Informatika S1","Adam Prayogo K, M.Kom.",null,13,"20SA1127","LAILY FARKHAH ADHIMAH","Informatika S1","Desty Rakhmawati, S.Si., M.Sc.",null,13,"20SA1121","KHANIF AJI PRASETYO","Informatika S1","Hendra Marcos, S.T., M.Eng.",null,13,"20SA1165","MUHAMMAD SYAFIQ MASRUR","Informatika S1","Khairunnisak Nur Isnaini, M.Kom.",null,13,"20SA1185","MUKTI FITRIYADI","Informatika S1","Ali Nur Ikhsan, M.Kom.",null,13,"20SA1255","LICYA NATHANIA SILVIANA","Informatika S1","Anugerah Bagus Wijaya, M.Kom."]
[14,"20SA1069","FIRSTYAN AGENG MAULANA","Informatika S1","Adam Prayogo K, M.Kom.",null,14,"20SA1022","LARASATI","Informatika S1","Desty Rakhmawati, S.Si., M.Sc.",null,14,"20SA1053","MARCEL AFANDI","Informatika S1","Hendra Marcos, S.T., M.Eng.",null,14,"20SA1204","NAHWATUL NUR RIFA","Informatika S1","Khairunnisak Nur Isnaini, M.Kom.",null,14,"20SA1274","MUTIARA FASHATIFA RAMADHANI","Informatika S1","Ali Nur Ikhsan, M.Kom.",null,14,"20SA1107","MUHAMMAD SUBHAN MAHENDRASYAH","Informatika S1","Anugerah Bagus Wijaya, M.Kom."]
[15,"20SA1173","HERNAN FEBRI RAHMATULLAH","Informatika S1","Adam Prayogo K, M.Kom.",null,15,"20SA1205","MUHAMMAD CAESARFIGHO","Informatika S1","Desty Rakhmawati, S.Si., M.Sc.",null,15,"20SA1088","MOHAMAD FARIZ SHOLAHUDDIN","Informatika S1","Hendra Marcos, S.T., M.Eng.",null,15,"20SA1065","NRH ABDULAZIES AZZAM ALBANA","Informatika S1","Khairunnisak Nur Isnaini, M.Kom.",null,15,"20SA1005","NAILY FAJAR HIDAYATI","Informatika S1","Ali Nur Ikhsan, M.Kom.",null,15,"20SA1242","RITA PRIMADIAH MELATI","Informatika S1","Anugerah Bagus Wijaya, M.Kom."]
[16,"20SA1074","LABIB AQIL ZAIN","Informatika S1","Adam Prayogo K, M.Kom.",null,16,"20SA1025","NAUFAL TAUFIQURRAKHMAN","Informatika S1","Desty Rakhmawati, S.Si., M.Sc.",null,16,"20SA1220","NUR FADLI HERMAWAN","Informatika S1","Hendra Marcos, S.T., M.Eng.",null,16,"20SA1239","RAFI AQILA NURFAUZI","Informatika S1","Khairunnisak Nur Isnaini, M.Kom.",null,16,"20SA1113","RATIH AYUNI","Informatika S1","Ali Nur Ikhsan, M.Kom.",null,16,"20SA1058","RIZKI SETIABUDI","Informatika S1","Anugerah Bagus Wijaya, M.Kom."]
[17,"20SA1157","M. NUR FIKRI HIDAYATULLOH","Informatika S1","Adam Prayogo K, M.Kom.",null,17,"20SA1002","RESTU SETIADE PUTRA","Informatika S1","Desty Rakhmawati, S.Si., M.Sc.",null,17,"20SA1162","NUR SHOLIHIN ADI PRADANA","Informatika S1","Hendra Marcos, S.T., M.Eng.",null,17,"20SA1282","SA'ID NUR AWALI","Informatika S1","Khairunnisak Nur Isnaini, M.Kom.",null,17,"20SA1018","RIZQI FADHILAH MUKTI","Informatika S1","Ali Nur Ikhsan, M.Kom.",null,17,"20SA1151","SALSA BILLA ZULMI ZETTIRA","Informatika S1","Anugerah Bagus Wijaya, M.Kom."]
[18,"20SA1240","MOEHAMAD PUTRA SETIAWAN","Informatika S1","Adam Prayogo K, M.Kom.",null,18,"20SA1180","REZA ADITYA PERMANA","Informatika S1","Desty Rakhmawati, S.Si., M.Sc.",null,18,"20SA1194","RIDHO NUR CAHYO","Informatika S1","Hendra Marcos, S.T., M.Eng.",null,18,"20SA1195","SOLEH NIFANTO","Informatika S1","Khairunnisak Nur Isnaini, M.Kom.",null,18,"20SA1034","ROY JORDY","Informatika S1","Ali Nur Ikhsan, M.Kom.",null,18,"20SA1265","WANDA AIZUL FAHMI","Informatika S1","Anugerah Bagus Wijaya, M.Kom."]
[19,"20SA1039","BAGUS LIGA IRAWAN","Informatika S1","Bagus Adhi Kusuma, S.T., M.Eng.",null,19,"20SA1234","YUDHA BHAKTI WICAKSONO","Informatika S1","Desty Rakhmawati, S.Si., M.Sc.",null,19,"20SA1203","UMIATIN ZAKIATUL FAHIRA","Informatika S1","Hendra Marcos, S.T., M.Eng.",null,19,"20SA1115","TAOFIK ARIANTO","Informatika S1","Khairunnisak Nur Isnaini, M.Kom.",null,19,"20SA1227","SITI MUTAMIMAH","Informatika S1","Ali Nur Ikhsan, M.Kom.",null,19,"20SA1014","WIWI SUTRIATI","Informatika S1","Anugerah Bagus Wijaya, M.Kom."]
[20,"20SA1016","DELA SAFITRI","Informatika S1","Bagus Adhi Kusuma, S.T., M.Eng.",null,20,"20SA1110","ZHAKI MUHTARIK YAFI","Informatika S1","Desty Rakhmawati, S.Si., M.Sc.",null,20,"20SA1125","AFIFAH LUTFIA MUNAWAROH","Informatika S1","Primandani Arsi, S.ST., M.Kom.",null,20,"20SA1004","WAHYU WIDODO","Informatika S1","Khairunnisak Nur Isnaini, M.Kom.",null,20,"20SA1124","WASTIAN SALWA ANUGRAH RAMADAN","Informatika S1","Ali Nur Ikhsan, M.Kom.",null,20,"20SA1137","ARIEF RACHMAN HAKIM","Informatika S1","Hellik Hermawan, M.Kom."]
[21,"20SA1283","DEVA AMANDA RESTU","Informatika S1","Bagus Adhi Kusuma, S.T., M.Eng.",null,21,"20SA1010","ALBI TEGAR PRAYOGA","Informatika S1","Tri Astuti, S.Kom., M.Eng.",null,21,"20SA1043","AGUM HASRUDIN","Informatika S1","Primandani Arsi, S.ST., M.Kom.",null,21,"20SA1033","ADITYA RAMADHAN","Informatika S1","Siti Alvi, M.Kom.",null,21,"20SA1099","DHAYAN NURULLOH ZETTA","Informatika S1","Pungkas Subarkah, M.Kom.",null,21,"20SA1224","BIYANTO","Informatika S1","Hellik Hermawan, M.Kom."]
[22,"20SA1176","DEVA RISMA SAPUTRI","Informatika S1","Bagus Adhi Kusuma, S.T., M.Eng.",null,22,"20SA1160","ANANDYTA RAVI RIZALI PRASETYA","Informatika S1","Tri Astuti, S.Kom., M.Eng.",null,22,"20SA1235","ALIF HANDOYO","Informatika S1","Primandani Arsi, S.ST., M.Kom.",null,22,"20SA1105","AHMAD RIYAN SAH RIZA","Informatika S1","Siti Alvi, M.Kom.",null,22,"20SA1116","FAJAR AKMALI RIZQI","Informatika S1","Pungkas Subarkah, M.Kom.",null,22,"20SA1008","DIMAS SARIEF ARDIANSYAH","Informatika S1","Hellik Hermawan, M.Kom."]
[23,"20SA1233","DIMAS SAPUTRA","Informatika S1","Bagus Adhi Kusuma, S.T., M.Eng.",null,23,"20SA1070","DHIKA ADI PRASETYA","Informatika S1","Tri Astuti, S.Kom., M.Eng.",null,23,"20SA1063","ASHAR MULYADI PRATAMA","Informatika S1","Primandani Arsi, S.ST., M.Kom.",null,23,"20SA1184","AJI DWIANTO","Informatika S1","Siti Alvi, M.Kom.",null,23,"20SA1136","GUSTI IRENDRA YUDHISTIRA","Informatika S1","Pungkas Subarkah, M.Kom.",null,23,"20SA1275","EKA ARDIYA PUTRI","Informatika S1","Hellik Hermawan, M.Kom."]
[24,"20SA1128","HARYADI WIBOWO RIZKY PUTRA","Informatika S1","Bagus Adhi Kusuma, S.T., M.Eng.",null,24,"20SA1031","DIMAS MARSUS PANDEGA","Informatika S1","Tri Astuti, S.Kom., M.Eng.",null,24,"20SA1037","DEVINA LARAS SITA","Informatika S1","Primandani Arsi, S.ST., M.Kom.",null,24,"20SA1072","ALFIAN NANDA PRATAMA","Informatika S1","Siti Alvi, M.Kom.",null,24,"20SA1084","ISKHAK BAHTIAR","Informatika S1","Pungkas Subarkah, M.Kom.",null,24,"20SA1029","FARID HELMY MUZAQQI","Informatika S1","Hellik Hermawan, M.Kom."]
[25,"20SA1143","MOH.CHAERUDIN","Informatika S1","Bagus Adhi Kusuma, S.T., M.Eng.",null,25,"20SA1120","FANDI KRISTIAJI","Informatika S1","Tri Astuti, S.Kom., M.Eng.",null,25,"20SA1222","IPHANG PRAYOGA","Informatika S1","Primandani Arsi, S.ST., M.Kom.",null,25,"20SA1182","ANANDA NUR SYIFA","Informatika S1","Siti Alvi, M.Kom.",null,25,"20SA1066","IZAZ RIZQULLAH","Informatika S1","Pungkas Subarkah, M.Kom.",null,25,"20SA1210","HANI FATUL HIKMAH","Informatika S1","Hellik Hermawan, M.Kom."]
[26,"20SA1095","MUHAMMAD IKHSAN NUGRAHA","Informatika S1","Bagus Adhi Kusuma, S.T., M.Eng.",null,26,"20SA1075","FITRIANA AWALIYAH","Informatika S1","Tri Astuti, S.Kom., M.Eng.",null,26,"20SA1232","ISMI SURYANINGSIH","Informatika S1","Primandani Arsi, S.ST., M.Kom.",null,26,"20SA1090","ANANDA WAHYU AMUKTI","Informatika S1","Siti Alvi, M.Kom.",null,26,"20SA1134","KHOEROTUL MELINA ELISTIANA","Informatika S1","Pungkas Subarkah, M.Kom.",null,26,"20SA1100","HENDRI MUJI WALUYO","Informatika S1","Hellik Hermawan, M.Kom."]
[27,"20SA1023","NAFIS MAULIDUL FAKHRI","Informatika S1","Bagus Adhi Kusuma, S.T., M.Eng.",null,27,"20SA1158","FITROTUL KHASANAH","Informatika S1","Tri Astuti, S.Kom., M.Eng.",null,27,"20SA1097","MOCHAMAD ALIF PRAYOGO","Informatika S1","Primandani Arsi, S.ST., M.Kom.",null,27,"20SA1284","BAGUS DWI GUNTORO","Informatika S1","Siti Alvi, M.Kom.",null,27,"20SA1166","MUHAMAD NAUFAL BURHANUDDIN BALIT","Informatika S1","Pungkas Subarkah, M.Kom.",null,27,"20SA1168","KIKI RAMADHAN","Informatika S1","Hellik Hermawan, M.Kom."]
[28,"20SA1238","NOVA ANGGRAINI","Informatika S1","Bagus Adhi Kusuma, S.T., M.Eng.",null,28,"20SA1167","IRZA DWI NIESVIANTIKA","Informatika S1","Tri Astuti, S.Kom., M.Eng.",null,28,"20SA1183","MOCHAMAD SYAHRUL AKBAR","Informatika S1","Primandani Arsi, S.ST., M.Kom.",null,28,"20SA1267 ","BIMA HUBERTA","Informatika S1","Siti Alvi, M.Kom.",null,28,"20SA1270","MUHAMAD RIZKI PADILAH","Informatika S1","Pungkas Subarkah, M.Kom.",null,28,"20SA1264","MELATI QOTRUNADA","Informatika S1","Hellik Hermawan, M.Kom."]
[29,"20SA1001","NUR HAKIM SURYA ARDIYANSYAH","Informatika S1","Bagus Adhi Kusuma, S.T., M.Eng.",null,29,"20SA1198","ISTI NURHAFIYAH","Informatika S1","Tri Astuti, S.Kom., M.Eng.",null,29,"20SA1111","MUHAMMAD DAFFA IZZULHAQ SUYANTO","Informatika S1","Primandani Arsi, S.ST., M.Kom.",null,29,"20SA1272","DAFFA APRILLIO HARTONO","Informatika S1","Siti Alvi, M.Kom.",null,29,"20SA1047","MUHAMMAD RIFQI ANSHARI","Informatika S1","Pungkas Subarkah, M.Kom.",null,29,"20SA1085","MUHAMMAD AKBAR AL AFGHANI","Informatika S1","Hellik Hermawan, M.Kom."]
[30,"20SA1130","RAKHA ADRI PERDANA","Informatika S1","Bagus Adhi Kusuma, S.T., M.Eng.",null,30,"20SA1140","JANUAR YULIAWAN","Informatika S1","Tri Astuti, S.Kom., M.Eng.",null,30,"20SA1208","MUKHAMAD NUR KHOLIQ","Informatika S1","Primandani Arsi, S.ST., M.Kom.",null,30,"20SA1170","DHEWANDA PUTRO LAKSONO","Informatika S1","Siti Alvi, M.Kom.",null,30,"20SA1223","PURWANTO","Informatika S1","Pungkas Subarkah, M.Kom.",null,30,"20SA1252","MUHAMMAD DANI MU'TI","Informatika S1","Hellik Hermawan, M.Kom."]
[31,"20SA1217","RISQI DWIARTO","Informatika S1","Bagus Adhi Kusuma, S.T., M.Eng.",null,31,"20SA1278","KINANTHI PUTRI SIWILOPO","Informatika S1","Tri Astuti, S.Kom., M.Eng.",null,31,"20SA1026","NUR AZMI AMRULLOH","Informatika S1","Primandani Arsi, S.ST., M.Kom.",null,31,"20SA1251","DWI HASTA ANJUNG SAMPURNA","Informatika S1","Siti Alvi, M.Kom.",null,31,"20SA1040","PUTRY ERICA DJUNIASIH","Informatika S1","Pungkas Subarkah, M.Kom.",null,31,"20SA1117","NUGRAHA EKA ADI WIBAWA","Informatika S1","Hellik Hermawan, M.Kom."]
[32,"20SA1273","RIZKI ARIEF DEHANUDIN","Informatika S1","Bagus Adhi Kusuma, S.T., M.Eng.",null,32,"20SA1174","MUHAMMAD DZAKY DWI ARDIANSYAH","Informatika S1","Tri Astuti, S.Kom., M.Eng.",null,32,"20SA1279","RAFLYAN AKHYAR RAMADHAN","Informatika S1","Primandani Arsi, S.ST., M.Kom.",null,32,"20SA1253","DWI SETIA RAMADHANI","Informatika S1","Siti Alvi, M.Kom.",null,32,"20SA1007","SETYA RIZKY PRADANA","Informatika S1","Pungkas Subarkah, M.Kom.",null,32,"20SA1042","RESTIANA TRI OCTAVIA","Informatika S1","Hellik Hermawan, M.Kom."]
[33,"20SA1077","RIZKY VEBRIYANTO","Informatika S1","Bagus Adhi Kusuma, S.T., M.Eng.",null,33,"20SA1052","NAFI ASYQAR SYARIFUDIN","Informatika S1","Tri Astuti, S.Kom., M.Eng.",null,33,"20SA1289","RIFKI AMRULLOH","Informatika S1","Primandani Arsi, S.ST., M.Kom.",null,33,"20SA1092","INDAR PUSPITANINGRUM","Informatika S1","Siti Alvi, M.Kom.",null,33,"20SA1164","SITI NUR FADHILAH","Informatika S1","Pungkas Subarkah, M.Kom.",null,33,"20SA1050","RISKI HARDIAN","Informatika S1","Hellik Hermawan, M.Kom."]
[34,"20SA1221","SATRIA BAGUS PRASETYA","Informatika S1","Bagus Adhi Kusuma, S.T., M.Eng.",null,34,"20SA1191","PRASTA CLARIFA BUANA LATUNGGA","Informatika S1","Tri Astuti, S.Kom., M.Eng.",null,34,"20SA1003","RIZAL ARDIANSYAH","Informatika S1","Primandani Arsi, S.ST., M.Kom.",null,34,"20SA1123","MUHAMMAD ARDIANSYAH","Informatika S1","Siti Alvi, M.Kom.",null,34,"20SA1241","SUSUL RIDHO MARANDANU","Informatika S1","Pungkas Subarkah, M.Kom.",null,34,"20SA1138","RIZKI DIAN RAMADHANI","Informatika S1","Hellik Hermawan, M.Kom."]
[35,"20SA1109","SYALAFUDIN FIRMAN SYAH","Informatika S1","Bagus Adhi Kusuma, S.T., M.Eng.",null,35,"20SA1087","RIFA ALFAZRI","Informatika S1","Tri Astuti, S.Kom., M.Eng.",null,35,"20SA1133","RIZAL EKA SEPTOAJI","Informatika S1","Primandani Arsi, S.ST., M.Kom.",null,35,"20SA1054","MUHAMMAD IKHSAN MAULANA","Informatika S1","Siti Alvi, M.Kom.",null,35,"20SA1028","SYAFRIL SETIAWAN","Informatika S1","Pungkas Subarkah, M.Kom.",null,35,"20SA1243","SAOFIKH BAGUS FARCHANI","Informatika S1","Hellik Hermawan, M.Kom."]
[36,"20SA1060","TEGAR SUBIANTO","Informatika S1","Bagus Adhi Kusuma, S.T., M.Eng.",null,36,"20SA1256","SINGGIH WAHYU WIBOWO","Informatika S1","Tri Astuti, S.Kom., M.Eng.",null,36,"20SA1080","SIGIT FATHU AMRILLAH","Informatika S1","Primandani Arsi, S.ST., M.Kom.",null,36,"20SA1148","NILA NAZILATUL MAZAYA","Informatika S1","Siti Alvi, M.Kom.",null,36,"20SA1177","TRI MAHISA MURTI","Informatika S1","Pungkas Subarkah, M.Kom.",null,36,"20SA1193","WAHYU FAJAR RIYANI","Informatika S1","Hellik Hermawan, M.Kom."]
[37,"20SA1118","ULYA INDAH RAHMAWATI","Informatika S1","Bagus Adhi Kusuma, S.T., M.Eng.",null,37,"20SA1103","SYIFANA MUFLIH KHAERULLAH","Informatika S1","Tri Astuti, S.Kom., M.Eng.",null,37,"20SA1146","SITI SOFIATUL MUBAROKAH","Informatika S1","Primandani Arsi, S.ST., M.Kom.",null,37,"20SA1017","SALAHUDIN AL AYYUBI","Informatika S1","Siti Alvi, M.Kom.",null,37,"20SA1263","WAHYU WARDANA","Informatika S1","Pungkas Subarkah, M.Kom.",null,37,"20SA1178","WARSITO AGUNG NUGROHO","Informatika S1","Hellik Hermawan, M.Kom."]
[38,"20SA1202","VRENGKI ANGGADANI","Informatika S1","Bagus Adhi Kusuma, S.T., M.Eng.",null,38,"20SA1219","WILDAN RAZZAQ PRATAMA","Informatika S1","Tri Astuti, S.Kom., M.Eng.",null,38,"20SA1181","WULAN DWI CAHYANI","Informatika S1","Primandani Arsi, S.ST., M.Kom.",null,38,"20SA1209","SIDIQ NUR FAHREZA","Informatika S1","Siti Alvi, M.Kom.",null,38,"20SA1206","WENTI RISMA DAMAYANTI","Informatika S1","Pungkas Subarkah, M.Kom.",null,38,"20SA1067","ZHAFRAN AFIF NURDIYANSAH","Informatika S1","Hellik Hermawan, M.Kom."]
[{"$nulls":6},39,"20SA1248","YOGA JAKA PANGESTU","Informatika S1","Tri Astuti, S.Kom., M.Eng.",{"$nulls":7},39,"20SA1200","USAMAH ABDUL MATIN","Informatika S1","Siti Alvi, M.Kom.",null,39,"20SA1199","ZAIN AL BANI BUDI PRABOWO","Informatika S1","Pungkas Subarkah, M.Kom."]
[{"$nulls":18},40,"20SA1153","YUSUF JULIANTO","Informatika S1","Siti Alvi, M.Kom.",null,null,""]
[]
["FAKULTAS",null,": Ilmu Komputer",{"$nulls":3},"FAKULTAS",null,": Ilmu Komputer",{"$nulls":3},"FAKULTAS",null,": Ilmu Komputer"]
["Program Studi",null,": Informatika",{"$nulls":3},"Program Studi",null,": Informatika",{"$nulls":3},"Program Studi",null,": Informatika"]
["KELAS",null,": IF20T",{"$nulls":3},"KELAS",null,": IF20S",{"$nulls":3},"KELAS",null,": IF20K"]
[]
["NO","NIM","NAMA","PRODI","DOSEN PEMBIMBING",null,"NO","NIM","NAMA","PRODI","DOSEN PEMBIMBING",null,"NO","NIM","NAMA","PRODI","DOSEN PEMBIMBING"]
[1,"20SA1044","AGUNG WIDHI PRAMANA","INFORMATIKA S1","Hendra Marcos, S.T., M.Eng.",null,1,"20SA1059","AFRI MULYANA","INFORMATIKA S1","Giat Karyono, M.Kom.",null,1,"20SA1244","ADNAN DENDY MARDIKA","INFORMATIKA S1","Dr. Berlilana, M.Kom., M.Si."]
[2,"20SA1048","FIRMAN ARDI PRATAMA","INFORMATIKA S1","Hendra Marcos, S.T., M.Eng.",null,2,"20SA1012","AJI SAEFUL","INFORMATIKA S1","Giat Karyono, M.Kom.",null,2,"20SA1291","DIAH SEPTIANI","INFORMATIKA S1","Dr. Berlilana, M.Kom., M.Si."]
[5,"20SA1237","MUHAMMAD BUSYRO","INFORMATIKA S1","Hendra Marcos, S.T., M.Eng.",null,3,"20SA1089","ANDHAR SIRAJ MUNIR","INFORMATIKA S1","Giat Karyono, M.Kom.",null,3,"20SA1292","ERIK ERNANTO","INFORMATIKA S1","Dr. Berlilana, M.Kom., M.Si."]
[4,"20SA1131","RACHMAWATI MULYANI","INFORMATIKA S1","Hendra Marcos, S.T., M.Eng.",null,4,"20SA1020","ANI NURGANIS","INFORMATIKA S1","Giat Karyono, M.Kom.",null,4,"20SA1281","IDA FITRIYAH","INFORMATIKA S1","Dr. Berlilana, M.Kom., M.Si."]
[3,"20SA1068","WAHYU WIJAYANTO","INFORMATIKA S1","Hendra Marcos, S.T., M.Eng.",null,5,"20SA1236","ARDANU DHUHRI NUGROHO","INFORMATIKA S1","Giat Karyono, M.Kom.",null,5,"20SA1287","MANG'RUF ICHSANUDIN","INFORMATIKA S1","Dr. Berlilana, M.Kom., M.Si."]
[{"$nulls":6},6,"20SA1006","ARI SELAN SETIAWAN","INFORMATIKA S1","Giat Karyono, M.Kom.",null,6,"20SA1285","NOVITA DHIAN PRATIWI","INFORMATIKA S1","Dr. Berlilana, M.Kom., M.Si."]
[{"$nulls":6},7,"20SA1057","ARIEF NURSOLEH","INFORMATIKA S1","Giat Karyono, M.Kom.",null,7,"20SA1049","PRISTIAN LUTHFY ROMADLONI","INFORMATIKA S1","Dr. Berlilana, M.Kom., M.Si."]
[{"$nulls":6},8,"20SA1141","ARIF DWI HARTANTO","INFORMATIKA S1","Giat Karyono, M.Kom.",null,8,"20SA1290","PUPUS PRASETYA AJI","INFORMATIKA S1","Dr. Berlilana, M.Kom., M.Si."]
[{"$nulls":6},9,"20SA1250","BAGUS KURNIAWAN  EKHSANTO","INFORMATIKA S1","Giat Karyono, M.Kom."]
[{"$nulls":6},10,"20SA1112","BANGUN BUDIANTO","INFORMATIKA S1","Giat Karyono, M.Kom."]
[{"$nulls":6},11,"20SA1062","DWI SANDHI BHAKTI","INFORMATIKA S1","Giat Karyono, M.Kom."]
[{"$nulls":6},12,"20SA1247","HENDRIK KUSWOYO","INFORMATIKA S1","Giat Karyono, M.Kom."]
[{"$nulls":6},13,"20SA1024","JANUWAR BY KHAQI","INFORMATIKA S1","Giat Karyono, M.Kom."]
[{"$nulls":6},14,"20SA1035","JULIONO ADI PRASETIYO","INFORMATIKA S1","Giat Karyono, M.Kom."]
[{"$nulls":6},15,"20SA1102","KARMIN PRASETYO","INFORMATIKA S1","Giat Karyono, M.Kom."]
[{"$nulls":6},17,"20SA1046","MA'RIFAN PERMADI","INFORMATIKA S1","Giat Karyono, M.Kom."]
[{"$nulls":6},18,"20SA1079","MUKHAMAD IMAM MUSLIH","INFORMATIKA S1","Giat Karyono, M.Kom."]
[{"$nulls":6},19,"20SA1108","NOUVA RIZQY PRATAMA","INFORMATIKA S1","Giat Karyono, M.Kom."]
[{"$nulls":6},20,"20SA1149","NOVA RIANTO","INFORMATIKA S1","Giat Karyono, M.Kom."]
[{"$nulls":6},21,"20SA1197","RA GENTAR AMAR MA'RUF","INFORMATIKA S1","Giat Karyono, M.Kom."]
[{"$nulls":6},22,"20SA1277","RICO PRIYONO","INFORMATIKA S1","Giat Karyono, M.Kom."]
[{"$nulls":6},23,"20SA1064","SEPTIAN ARIZKI","INFORMATIKA S1","Giat Karyono, M.Kom."]
[{"$nulls":6},24,"20SA1093","TOTI USMAN DANI","INFORMATIKA S1","Giat Karyono, M.Kom."]
[{"$nulls":6},25,"20SA1246","YOGA ADI NUGRAHA","INFORMATIKA S1","Giat Karyono, M.Kom."]
[{"$nulls":6},26,"20SA1101","ZAIN ARIF WILDAN SUGANDI","INFORMATIKA S1","Giat Karyono, M.Kom."]
{"$rows_empty":252}
[null,null,"RIFKI AMRULLOH",3]
[null,null,"DIMAS ARIF PRIYOGI",4]
[null,null,"MUHAMAD RIZKI PADILAH",5]
[]
[null,null,"RIZKI ARIEF DEHANUDIN",1]
[null,null,"JANATA ANGGA YUWONO",2]
[null,null,"DHIYA ARWA FADHILA",3]
[null,null,"DAFFA APRILLIO HARTONO",4]
[null,null,"MUTIARA FASHATIFA RAMADHANI",5]
[]
[null,null,"RICO PRIYONO",1]
[null,null,"KINANTHI PUTRI SIWILOPO",2]
[null,null,"RAFLYAN AKHYAR RAMADHAN",3]
[null,null,"AKHIL NUR RIYADY",4]

{"sheet":"Sistem Informasi","index":3,"n_rows":92,"n_cols":11,"rows_kept":92}
["FAKULTAS",null,": Ilmu Komputer",{"$nulls":3},"FAKULTAS",null,": Ilmu Komputer"]
["Program Studi",null,": Sistem Informasi",{"$nulls":3},"Program Studi",null,": Sistem Informasi"]
["KELAS",null,": SI20A",{"$nulls":3},"KELAS",null,": SI20B"]
[]
["NO","NIM","NAMA","PRODI","DOSEN PEMBIMBING",null,"NO","NIM","NAMA","PRODI","DOSEN PEMBIMBING"]
[1,"20SA2017","AFAH ULY NARESTAMI","Sistem Informasi S1","Andi Dwi Riyanto, M.Kom.",null,1,"20SA2030","AGUNG PERMANA","Sistem Informasi S1","Debby Ummul Hidayah, S.Kom., M.MSI"]
[2,"20SA2026","ALIF SYAH MUGHNII PRIHATNA","Sistem Informasi S1","Andi Dwi Riyanto, M.Kom.",null,2,"20SA2046","AISYAH MUTI YANUARISKA","Sistem Informasi S1","Debby Ummul Hidayah, S.Kom., M.MSI"]
[3,"20SA2136","ANANDA DWIKO PRILIANZA PUTRA","Sistem Informasi S1","Andi Dwi Riyanto, M.Kom.",null,3,"20SA2130","AISYIYAH NUR BAITI","Sistem Informasi S1","Debby Ummul Hidayah, S.Kom., M.MSI"]
[4,"20SA2105","DWI PUJI LESTARI","Sistem Informasi S1","Andi Dwi Riyanto, M.Kom.",null,4,"20SA2082","AMRINA NUR AIDA","Sistem Informasi S1","Debby Ummul Hidayah, S.Kom., M.MSI"]
[5,"20SA2063","DYAH ROSYANA HABIBAH","Sistem Informasi S1","Andi Dwi Riyanto, M.Kom.",null,5,"20SA2087","ARYA FIRMANSYAH","Sistem Informasi S1","Debby Ummul Hidayah, S.Kom., M.MSI"]
[6,"20SA2117","EVELYN GINA MEGANANDA","Sistem Informasi S1","Andi Dwi Riyanto, M.Kom.",null,6,"20SA2108","DANI RIZALDI","Sistem Informasi S1","Debby Ummul Hidayah, S.Kom., M.MSI"]
[7,"20SA2168","FAWAZ ASYAR MUBAROK","Sistem Informasi S1","Andi Dwi Riyanto, M.Kom.",null,7,"20SA2152","DWIFA JULIETA KASIH","Sistem Informasi S1","Debby Ummul Hidayah, S.Kom., M.MSI"]
[8,"20SA2135","FITRIA IS'AAF KHAIRUNISA","Sistem Informasi S1","Andi Dwi Riyanto, M.Kom.",null,8,"20SA2060","FAJRI AULIA RACHMANDHA","Sistem Informasi S1","Debby Ummul Hidayah, S.Kom., M.MSI"]
[9,"20SA2085","FITRIANI","Sistem Informasi S1","Andi Dwi Riyanto, M.Kom.",null,9,"20SA2001","FARRELIANDRO RADHIKA PUTRA L","Sistem Informasi S1","Debby Ummul Hidayah, S.Kom., M.MSI"]
[10,"20SA2106","HASAN SETIAWAN","Sistem Informasi S1","Andi Dwi Riyanto, M.Kom.",null,10,"20SA2043","JANAN MAULUDHI","Sistem Informasi S1","Debby Ummul Hidayah, S.Kom., M.MSI"]
[11,"20SA2028","NISA AULIA RACHMA","Sistem Informasi S1","Andi Dwi Riyanto, M.Kom.",null,11,"20SA2137","KHOSIRIN","Sistem Informasi S1","Debby Ummul Hidayah, S.Kom., M.MSI"]
[12,"20SA2042","OSARA GANDANG PRAKOSO","Sistem Informasi S1","Andi Dwi Riyanto, M.Kom.",null,12,"20SA2118","LISA AMALIA","Sistem Informasi S1","Debby Ummul Hidayah, S.Kom., M.MSI"]
[13,"20SA2056","PRASETIA EKO NUGROHO","Sistem Informasi S1","Andi Dwi Riyanto, M.Kom.",null,13,"20SA2029","MIA SETYA RAHAYU","Sistem Informasi S1","Debby Ummul Hidayah, S.Kom., M.MSI"]
[14,"20SA2098","PUJI YULIANTI","Sistem Informasi S1","Andi Dwi Riyanto, M.Kom.",null,14,"20SA2012","NOVANDI SIAM RAHUTOMO","Sistem Informasi S1","Debby Ummul Hidayah, S.Kom., M.MSI"]
[15,"20SA2076","ROHIM ATTAWWAB","Sistem Informasi S1","Andi Dwi Riyanto, M.Kom.",null,15,"20SA2107","PUJI LESTARI","Sistem Informasi S1","Debby Ummul Hidayah, S.Kom., M.MSI"]
[16,"20SA2081","ROIHATUN NAFIAH","Sistem Informasi S1","Andi Dwi Riyanto, M.Kom.",null,16,"20SA2064","PUTRI MARETA PUSPITASARI","Sistem Informasi S1","Debby Ummul Hidayah, S.Kom., M.MSI"]
[17,"20SA2151","SEPTIYA NUR FADILLAH","Sistem Informasi S1","Andi Dwi Riyanto, M.Kom.",null,17,"20SA2099","PUTRI ROVIKA DURI","Sistem Informasi S1","Debby Ummul Hidayah, S.Kom., M.MSI"]
[18,"20SA2070","SITI KARLINA","Sistem Informasi S1","Andi Dwi Riyanto, M.Kom.",null,18,"20SA2018","RETNO ASIH","Sistem Informasi S1","Debby Ummul Hidayah, S.Kom., M.MSI"]
[19,"20SA2045","SUCI DAMAYANTI","Sistem Informasi S1","Andi Dwi Riyanto, M.Kom.",null,19,"20SA2131","WIWIT GAYUH MUGI MUTIKNO","Sistem Informasi S1","Debby Ummul Hidayah, S.Kom., M.MSI"]
[20,"20SA2011","WIDODO RIYADI","Sistem Informasi S1","Andi Dwi Riyanto, M.Kom.",null,20,"20SA2071","ZAHRAH SHABRINA ADERI","Sistem Informasi S1","Debby Ummul Hidayah, S.Kom., M.MSI"]
[21,"20SA2089","ABI HANAFI HADI PRAKOSO","Sistem Informasi S1","Rahman Rosyidi, M.Kom",null,21,"20SA2051","AFIT NUR KHOLIH","Sistem Informasi S1","Ranggi Praharaningtyas A, S.Kom., M.MSI"]
[22,"20SA2057","BERLIANA WAHYU PRATIWI","Sistem Informasi S1","Rahman Rosyidi, M.Kom",null,22,"20SA2058","AISYAH NUR AENI","Sistem Informasi S1","Ranggi Praharaningtyas A, S.Kom., M.MSI"]
[23,"20SA2067","DESIKO BAYU RAFIZAKI","Sistem Informasi S1","Rahman Rosyidi, M.Kom",null,23,"20SA2016","ALFIAN DAFFA FEBRIANTO","Sistem Informasi S1","Ranggi Praharaningtyas A, S.Kom., M.MSI"]
[24,"20SA2102","DINI NUR KHOLIFAH","Sistem Informasi S1","Rahman Rosyidi, M.Kom",null,24,"20SA2039","CAHYANINGSIH PUTRI ANDARYANI","Sistem Informasi S1","Ranggi Praharaningtyas A, S.Kom., M.MSI"]
[25,"20SA2090","DON AVIAN SAFITRI","Sistem Informasi S1","Rahman Rosyidi, M.Kom",null,25,"20SA2114","DIAH RATNA FEBRIANTI","Sistem Informasi S1","Ranggi Praharaningtyas A, S.Kom., M.MSI"]
[26,"20SA2159","DWI WAHYUDI","Sistem Informasi S1","Rahman Rosyidi, M.Kom",null,26,"20SA2143","EVA RIRI ORLIYANI","Sistem Informasi S1","Ranggi Praharaningtyas A, S.Kom., M.MSI"]
[27,"20SA2077","ERI SUSANTI","Sistem Informasi S1","Rahman Rosyidi, M.Kom",null,27,"20SA2122","FADLI PRATAMA KHOERURIZKI","Sistem Informasi S1","Ranggi Praharaningtyas A, S.Kom., M.MSI"]
[28,"20SA2155","FAKHRY SUBARKAH","Sistem Informasi S1","Rahman Rosyidi, M.Kom",null,28,"20SA2161","FAOZI DWIKI RAMADANI","Sistem Informasi S1","Ranggi Praharaningtyas A, S.Kom., M.MSI"]
[29,"20SA2007","FATIHILAL ADHA FADILA","Sistem Informasi S1","Rahman Rosyidi, M.Kom",null,29,"20SA2166","HERTA TRI WAHYU","Sistem Informasi S1","Ranggi Praharaningtyas A, S.Kom., M.MSI"]
[30,"20SA2165","IDA NUR LAELA","Sistem Informasi S1","Rahman Rosyidi, M.Kom",null,30,"20SA2024","IKA AYU PRATIWI","Sistem Informasi S1","Ranggi Praharaningtyas A, S.Kom., M.MSI"]
[31,"20SA2035","IRFAN HANANTO","Sistem Informasi S1","Rahman Rosyidi, M.Kom",null,31,"20SA2091","INDAH WIDI ASTUTI","Sistem Informasi S1","Ranggi Praharaningtyas A, S.Kom., M.MSI"]
[32,"20SA2037","LAUDIANA ANGGRAENI","Sistem Informasi S1","Rahman Rosyidi, M.Kom",null,32,"20SA2092","INDRA KURNIAWAN ABDURRAHMAN","Sistem Informasi S1","Ranggi Praharaningtyas A, S.Kom., M.MSI"]
[33,"20SA2050","M. ADITYA RIZKI RAMADHANI","Sistem Informasi S1","Rahman Rosyidi, M.Kom",null,33,"20SA2169","NILAM PUSPITA NURDEWANTI","Sistem Informasi S1","Ranggi Praharaningtyas A, S.Kom., M.MSI"]
[34,"20SA2113","MAYA ASTRIYANI","Sistem Informasi S1","Rahman Rosyidi, M.Kom",null,34,"20SA2036","PASCA APRIYANTO","Sistem Informasi S1","Ranggi Praharaningtyas A, S.Kom., M.MSI"]
[35,"20SA2171","R. MUHAMMAD RIZKI RAHMADANI PUTRA ZAINAL","Sistem Informasi S1","Rahman Rosyidi, M.Kom",null,35,"20SA2104","RESTI NUR AZIZAH","Sistem Informasi S1","Ranggi Praharaningtyas A, S.Kom., M.MSI"]
[36,"20SA2134","RIZQI AMIRUL FATAH","Sistem Informasi S1","Rahman Rosyidi, M.Kom",null,36,"20SA2068","RIKO DINOVA","Sistem Informasi S1","Ranggi Praharaningtyas A, S.Kom., M.MSI"]
[37,"20SA2141","SEPTIANI","Sistem Informasi S1","Rahman Rosyidi, M.Kom",null,37,"20SA2078","SINTIA AYU RAHMAWATI","Sistem Informasi S1","Ranggi Praharaningtyas A, S.Kom., M.MSI"]
[38,"20SA2124","SITI SAEKHAH ALI","Sistem Informasi S1","Rahman Rosyidi, M.Kom",null,38,"20SA2125","SULASTRI RAHAYU","Sistem Informasi S1","Ranggi Praharaningtyas A, S.Kom., M.MSI"]
[39,"20SA2015","YUDHA PRATAMA","Sistem Informasi S1","Rahman Rosyidi, M.Kom",null,39,"20SA2157","SURYA ZAKIYAN","Sistem Informasi S1","Ranggi Praharaningtyas A, S.Kom., M.MSI"]
[null,"",{"$nulls":4},40,"20SA2008","WAHYU SUBANGUN","Sistem Informasi S1","Ranggi Praharaningtyas A, S.Kom., M.MSI"]
[]
[null,""]
[]
["FAKULTAS",null,": Ilmu Komputer",{"$nulls":3},"FAKULTAS",null,": Ilmu Komputer"]
["Program Studi",null,": Sistem Informasi",{"$nulls":3},"Program Studi",null,": Sistem Informasi"]
["KELAS",null,": SI20C",{"$nulls":3},"KELAS",null,": SI20D"]
[]
["NO","NIM","NAMA","PRODI","DOSEN PEMBIMBING",null,"NO","NIM","NAMA","PRODI","DOSEN PEMBIMBING"]
[1,"20SA2103","ANISA PRIHATINI","Sistem Informasi S1","Argiyan Dwi Pritama, S.Kom, M. MSI",null,1,"20SA2127","ALIA NOVENDRI","Sistem Informasi S1","Ika Romadoni Yunita, S.Kom., M.MSI."]
[2,"20SA2144","ARINI WULANDARI","Sistem Informasi S1","Argiyan Dwi Pritama, S.Kom, M. MSI",null,2,"20SA2088","ANDIKA LUTHFI CITRA TAMA","Sistem Informasi S1","Ika Romadoni Yunita, S.Kom., M.MSI."]
[3,"20SA2079","DEWI PURWITA SARI","Sistem Informasi S1","Argiyan Dwi Pritama, S.Kom, M. MSI",null,3,"20SA2049","ANDRA DWI RAMADHAN","Sistem Informasi S1","Ika Romadoni Yunita, S.Kom., M.MSI."]
[4,"20SA2033","ERLIYANA NURRAHMA","Sistem Informasi S1","Argiyan Dwi Pritama, S.Kom, M. MSI",null,4,"20SA2133","AULIA SHAFIRA TRI DAMAYANTI","Sistem Informasi S1","Ika Romadoni Yunita, S.Kom., M.MSI."]
[5,"20SA2031","FOUNDA NUR ANANTYO","Sistem Informasi S1","Argiyan Dwi Pritama, S.Kom, M. MSI",null,5,"20SA2065","CHOIRUL RIZAL","Sistem Informasi S1","Ika Romadoni Yunita, S.Kom., M.MSI."]
[6,"20SA2019","FREDA WIDYA ARTANTI","Sistem Informasi S1","Argiyan Dwi Pritama, S.Kom, M. MSI",null,6,"20SA2097","DEWI KARTIKA PUTRI","Sistem Informasi S1","Ika Romadoni Yunita, S.Kom., M.MSI."]
[7,"20SA2005","GALIH FIRMANSYAH","Sistem Informasi S1","Argiyan Dwi Pritama, S.Kom, M. MSI",null,7,"20SA2167","FIRMAN MUNTAQO","Sistem Informasi S1","Ika Romadoni Yunita, S.Kom., M.MSI."]
[8,"20SA2061","ILHAM CIPTO PRASETYO","Sistem Informasi S1","Argiyan Dwi Pritama, S.Kom, M. MSI",null,8,"20SA2006","IMAM BAYU NURDIANTO","Sistem Informasi S1","Ika Romadoni Yunita, S.Kom., M.MSI."]
[9,"20SA2115","KHOTIMAH DEWI ANOM","Sistem Informasi S1","Argiyan Dwi Pritama, S.Kom, M. MSI",null,9,"20SA2164","LILIS SURYANI","Sistem Informasi S1","Ika Romadoni Yunita, S.Kom., M.MSI."]
[10,"20SA2080","NABILA AGUSTINAH","Sistem Informasi S1","Argiyan Dwi Pritama, S.Kom, M. MSI",null,10,"20SA2145","LISNA LESTARI","Sistem Informasi S1","Ika Romadoni Yunita, S.Kom., M.MSI."]
[11,"20SA2048","NAUVAL DWI YUZHAK AKHMARULLAH","Sistem Informasi S1","Argiyan Dwi Pritama, S.Kom, M. MSI",null,11,"20SA2032","MUHAMMAD WILDAN SANTOSA","Sistem Informasi S1","Ika Romadoni Yunita, S.Kom., M.MSI."]
[12,"20SA2095","NUR ATIKA","Sistem Informasi S1","Argiyan Dwi Pritama, S.Kom, M. MSI",null,12,"20SA2021","MUJI HARIANTI","Sistem Informasi S1","Ika Romadoni Yunita, S.Kom., M.MSI."]
[13,"20SA2160","RAZEL SYANAHIESKARA","Sistem Informasi S1","Argiyan Dwi Pritama, S.Kom, M. MSI",null,13,"20SA2128","NOFI FARIKHATUN ALFIAH","Sistem Informasi S1","Ika Romadoni Yunita, S.Kom., M.MSI."]
[14,"20SA2158","RIZKI SADEWO","Sistem Informasi S1","Argiyan Dwi Pritama, S.Kom, M. MSI",null,14,"20SA2116","RAGILAH ISMIYATI","Sistem Informasi S1","Ika Romadoni Yunita, S.Kom., M.MSI."]
[15,"20SA2173","STEVANO HERU YUWALYO","Sistem Informasi S1","Argiyan Dwi Pritama, S.Kom, M. MSI",null,15,"20SA2150","RIZQI CAHYANDIKA","Sistem Informasi S1","Ika Romadoni Yunita, S.Kom., M.MSI."]
[16,"20SA2111","TRI ALFA PAMUNGKAS","Sistem Informasi S1","Argiyan Dwi Pritama, S.Kom, M. MSI",null,16,"20SA2014","SATRIA RANGGA PRAYOGO","Sistem Informasi S1","Ika Romadoni Yunita, S.Kom., M.MSI."]
[17,"20SA2066","VIA ALFILAENI","Sistem Informasi S1","Argiyan Dwi Pritama, S.Kom, M. MSI",null,17,"20SA2055","SHAFIRINA ARSYDINI SHIDQI","Sistem Informasi S1","Ika Romadoni Yunita, S.Kom., M.MSI."]
[18,"20SA2053","WIDYA DIAN PRATIWI","Sistem Informasi S1","Argiyan Dwi Pritama, S.Kom, M. MSI",null,18,"20SA2148","YUSUF AMIN HIDAYAT","Sistem Informasi S1","Ika Romadoni Yunita, S.Kom., M.MSI."]
[19,"20SA2138","WIWIT PUJA MARGA WIDADI","Sistem Informasi S1","Argiyan Dwi Pritama, S.Kom, M. MSI",null,19,"20SA2132","AFILDA TRISETYA RIZIANA","Sistem Informasi S1","Muhamad Awiet Wiedanto P, S.Kom., M.MSI."]
[20,"20SA2013","YUDHISTIRA MUHAMMAD ALFA","Sistem Informasi S1","Argiyan Dwi Pritama, S.Kom, M. MSI",null,20,"20SA2041","ARIS WIJANARKO","Sistem Informasi S1","Muhamad Awiet Wiedanto P, S.Kom., M.MSI."]
[21,"20SA2172","ACHMAD SULTAN","Sistem Informasi S1","Gustin Setyaningsih, S.Kom., M.MSI.",null,21,"20SA2074","DEVI YUNITA SAPUTRI","Sistem Informasi S1","Muhamad Awiet Wiedanto P, S.Kom., M.MSI."]
[22,"20SA2020","AGUNG PRAYOGA","Sistem Informasi S1","Gustin Setyaningsih, S.Kom., M.MSI.",null,22,"20SA2062","ERLINA SETIANINGRUM","Sistem Informasi S1","Muhamad Awiet Wiedanto P, S.Kom., M.MSI."]
[23,"20SA2126","ARUL GADING IVANSYAH","Sistem Informasi S1","Gustin Setyaningsih, S.Kom., M.MSI.",null,23,"20SA2170","FAJRUL FALAH RAMADIAN","Sistem Informasi S1","Muhamad Awiet Wiedanto P, S.Kom., M.MSI."]
[24,"20SA2093","BAGAS RAMADHANI","Sistem Informasi S1","Gustin Setyaningsih, S.Kom., M.MSI.",null,24,"20SA2003","LAILI MEIZAROH","Sistem Informasi S1","Muhamad Awiet Wiedanto P, S.Kom., M.MSI."]
[25,"20SA2052","EDO PUTRA PRATAMA","Sistem Informasi S1","Gustin Setyaningsih, S.Kom., M.MSI.",null,25,"20SA2101","LILIANI SAPUTRI","Sistem Informasi S1","Muhamad Awiet Wiedanto P, S.Kom., M.MSI."]
[26,"20SA2119","EVANIA ADNA","Sistem Informasi S1","Gustin Setyaningsih, S.Kom., M.MSI.",null,26,"20SA2110","LUTHFI KHAERUNNISA","Sistem Informasi S1","Muhamad Awiet Wiedanto P, S.Kom., M.MSI."]
[27,"20SA2139","FAJAR NUR KHAYATI","Sistem Informasi S1","Gustin Setyaningsih, S.Kom., M.MSI.",null,27,"20SA2096","MOHAMAD BAGAS PUTRA","Sistem Informasi S1","Muhamad Awiet Wiedanto P, S.Kom., M.MSI."]
[28,"20SA2162","GHONIYYAN FADLAN","Sistem Informasi S1","Gustin Setyaningsih, S.Kom., M.MSI.",null,28,"20SA2010","MUHAMMAD SOHIHUL IBAD","Sistem Informasi S1","Muhamad Awiet Wiedanto P, S.Kom., M.MSI."]
[29,"20SA2109","IIN FATONAH","Sistem Informasi S1","Gustin Setyaningsih, S.Kom., M.MSI.",null,29,"20SA2022","RAFIAN TRI AKSO","Sistem Informasi S1","Muhamad Awiet Wiedanto P, S.Kom., M.MSI."]
[30,"20SA2069","IQBAL NUR AFAZI","Sistem Informasi S1","Gustin Setyaningsih, S.Kom., M.MSI.",null,30,"20SA2027","RATRI NURAINI","Sistem Informasi S1","Muhamad Awiet Wiedanto P, S.Kom., M.MSI."]
[31,"20SA2040","KHARISMA PUTRI SHOLEKHA","Sistem Informasi S1","Gustin Setyaningsih, S.Kom., M.MSI.",null,31,"20SA2129","REIKHAN SYAVERO PUTRA PRATAMA","Sistem Informasi S1","Muhamad Awiet Wiedanto P, S.Kom., M.MSI."]
[32,"20SA2038","KIAGUS RACHMAT FAUZAN","Sistem Informasi S1","Gustin Setyaningsih, S.Kom., M.MSI.",null,32,"20SA2146","RINA AETIN","Sistem Informasi S1","Muhamad Awiet Wiedanto P, S.Kom., M.MSI."]
[33,"20SA2009","MUHAMMAD ABDUL AZIZ","Sistem Informasi S1","Gustin Setyaningsih, S.Kom., M.MSI.",null,33,"20SA2054","SABANA NUR RIZKI HERMAWAN","Sistem Informasi S1","Muhamad Awiet Wiedanto P, S.Kom., M.MSI."]
[34,"20SA2073","NAELI MAZA AYA","Sistem Informasi S1","Gustin Setyaningsih, S.Kom., M.MSI.",null,34,"20SA2044","SELINA ISNI SETIASIH","Sistem Informasi S1","Muhamad Awiet Wiedanto P, S.Kom., M.MSI."]
[35,"20SA2059","ROMARTA YEMIMA MANURUNG","Sistem Informasi S1","Gustin Setyaningsih, S.Kom., M.MSI.",null,35,"20SA2140","SRI HARTINI","Sistem Informasi S1","Muhamad Awiet Wiedanto P, S.Kom., M.MSI."]
[36,"20SA2086","SEKAR MULYANI","Sistem Informasi S1","Gustin Setyaningsih, S.Kom., M.MSI.",null,36,"20SA2123","TOYIBATUL FAUZIYYAH","Sistem Informasi S1","Muhamad Awiet Wiedanto P, S.Kom., M.MSI."]
[37,"20SA2100","TIA OKTAVIANI","Sistem Informasi S1","Gustin Setyaningsih, S.Kom., M.MSI.",null,37,"20SA2154","UTHANA KALYANA MITHA","Sistem Informasi S1","Muhamad Awiet Wiedanto P, S.Kom., M.MSI."]
[38,"20SA2149","WINDIYA MA'ARIFAH","Sistem Informasi S1","Gustin Setyaningsih, S.Kom., M.MSI."]
[39,"20SA2025","YEVI SEPTIRAY PURBO","Sistem Informasi S1","Gustin Setyaningsih, S.Kom., M.MSI."]

{"sheet":"Teknologi Informasi","index":4,"n_rows":46,"n_cols":17,"rows_kept":46}
["FAKULTAS",null,": Ilmu Komputer",{"$nulls":3},"FAKULTAS",null,": Ilmu Komputer",{"$nulls":3},"FAKULTAS",null,": Ilmu Komputer"]
["Program Studi",null,": Teknologi Informasi",{"$nulls":3},"Program Studi",null,": Teknologi Informasi",{"$nulls":3},"Program Studi",null,": Teknologi Informasi"]
["KELAS",null,": TI20A",{"$nulls":3},"KELAS",null,": TI20B",{"$nulls":3},"KELAS",null,": TI20C"]
[]
["NO","NIM","NAMA","PRODI","DOSEN PEMBIMBING",null,"NO","NIM","NAMA","PRODI","DOSEN PEMBIMBING",null,"NO","NIM","NAMA","PRODI","DOSEN PEMBIMBING"]
[1,"20SA3099","FARHAN AKHMAD FAHREZI","TEKNOLOGI INFORMASI S1","Chyntia Raras Ajeng Widiawati, S.Kom., M.Eng.",null,1,"20SA3066","AHMAD MANAN MUSYAFA","TEKNOLOGI INFORMASI S1","Dani Arifudin, M.Kom.",null,1,"20SA3023","ANDIQO FADLAN MUBAROK","TEKNOLOGI INFORMASI S1","Bambang Pilu Hartato, S.Kom., M.Eng."]
[2,"20SA3117","HUSEN REZKYANTO","TEKNOLOGI INFORMASI S1","Chyntia Raras Ajeng Widiawati, S.Kom., M.Eng.",null,2,"20SA3069","AMMAR RIFA HAERUDDIN","TEKNOLOGI INFORMASI S1","Dani Arifudin, M.Kom.",null,2,"20SA3103","AZHAR ISMAIL","TEKNOLOGI INFORMASI S1","Bambang Pilu Hartato, S.Kom., M.Eng."]
[3,"20SA3026","MUHAMMAD MUNIFADUN NINGAM","TEKNOLOGI INFORMASI S1","Chyntia Raras Ajeng Widiawati, S.Kom., M.Eng.",null,3,"20SA3088","ARNIKA HALWA","TEKNOLOGI INFORMASI S1","Dani Arifudin, M.Kom.",null,3,"20SA3036","BAGAS SUTIONO","TEKNOLOGI INFORMASI S1","Bambang Pilu Hartato, S.Kom., M.Eng."]
[4,"20SA3087","MUKHAMMAD IFSA' HAIKALINNURONI","TEKNOLOGI INFORMASI S1","Chyntia Raras Ajeng Widiawati, S.Kom., M.Eng.",null,4,"20SA3082","DIAN PRAMESTI","TEKNOLOGI INFORMASI S1","Dani Arifudin, M.Kom.",null,4,"20SA3028","BRYAN DANANG KURNIAWAN","TEKNOLOGI INFORMASI S1","Bambang Pilu Hartato, S.Kom., M.Eng."]
[5,"20SA3063","MULKI QOLBUNA SALAMIKA","TEKNOLOGI INFORMASI S1","Chyntia Raras Ajeng Widiawati, S.Kom., M.Eng.",null,5,"20SA3077","EKA ANUGRAH WIBOWO","TEKNOLOGI INFORMASI S1","Dani Arifudin, M.Kom.",null,5,"20SA3108","CHRISTOPHER PRIMA","TEKNOLOGI INFORMASI S1","Bambang Pilu Hartato, S.Kom., M.Eng."]
[6,"20SA3005","RICARDO CHRISTIAN DA","TEKNOLOGI INFORMASI S1","Chyntia Raras Ajeng Widiawati, S.Kom., M.Eng.",null,6,"20SA3084","FAHMI IBNU RIDLO","TEKNOLOGI INFORMASI S1","Dani Arifudin, M.Kom.",null,6,"20SA3110","EVITA PATTICIA","TEKNOLOGI INFORMASI S1","Bambang Pilu Hartato, S.Kom., M.Eng."]
[7,"20SA3006","RIDO AJI PANGESTU","TEKNOLOGI INFORMASI S1","Chyntia Raras Ajeng Widiawati, S.Kom., M.Eng.",null,7,"20SA3091","HARI PANGESTU","TEKNOLOGI INFORMASI S1","Dani Arifudin, M.Kom.",null,7,"20SA3041","FEBRIANA DWI WIDIANINGSIH","TEKNOLOGI INFORMASI S1","Bambang Pilu Hartato, S.Kom., M.Eng."]
[8,"20SA3111","ROWDAK BARTS ADHANI","TEKNOLOGI INFORMASI S1","Chyntia Raras Ajeng Widiawati, S.Kom., M.Eng.",null,8,"20SA3073","HARUN ALRASYID","TEKNOLOGI INFORMASI S1","Dani Arifudin, M.Kom.",null,8,"20SA3102","INGWIE BINTANG PRAMUDYAS","TEKNOLOGI INFORMASI S1","Bambang Pilu Hartato, S.Kom., M.Eng."]
[9,"20SA3111","ROWDAK BARTS ADHANI","TEKNOLOGI INFORMASI S1","Chyntia Raras Ajeng Widiawati, S.Kom., M.Eng.",null,9,"20SA3083","HESTIANI","TEKNOLOGI INFORMASI S1","Dani Arifudin, M.Kom.",null,9,"20SA3109","KATON TITIS","TEKNOLOGI INFORMASI S1","Bambang Pilu Hartato, S.Kom., M.Eng."]
[10,"20SA3059","SAFED NUVAPHON","TEKNOLOGI INFORMASI S1","Chyntia Raras Ajeng Widiawati, S.Kom., M.Eng.",null,10,"20SA3093","ISKANDAR ARIF AIDY","TEKNOLOGI INFORMASI S1","Dani Arifudin, M.Kom.",null,10,"20SA3031","MUHAMMAD ARIK FIRDAUS","TEKNOLOGI INFORMASI S1","Bambang Pilu Hartato, S.Kom., M.Eng."]
[11,"20SA3013","SAIFU ALDIANSYAH","TEKNOLOGI INFORMASI S1","Chyntia Raras Ajeng Widiawati, S.Kom., M.Eng.",null,11,"20SA3067","LINDA HERYANTI","TEKNOLOGI INFORMASI S1","Dani Arifudin, M.Kom.",null,11,"20SA3106","NAUFAL ARIFALDI ZAIN","TEKNOLOGI INFORMASI S1","Bambang Pilu Hartato, S.Kom., M.Eng."]
[12,"20SA3029","SALLI RISQI WARIDA SURYADILAGA","TEKNOLOGI INFORMASI S1","Chyntia Raras Ajeng Widiawati, S.Kom., M.Eng.",null,12,"20SA3078","MAKHRUSUL FUAD","TEKNOLOGI INFORMASI S1","Dani Arifudin, M.Kom.",null,12,"20SA3119","PRAMUDYA FABIO ARDHANA","TEKNOLOGI INFORMASI S1","Bambang Pilu Hartato, S.Kom., M.Eng."]
[13,"20SA3045","SATIRAH","TEKNOLOGI INFORMASI S1","Chyntia Raras Ajeng Widiawati, S.Kom., M.Eng.",null,13,"20SA3096","MARSEL LIBRA SEPTIADI","TEKNOLOGI INFORMASI S1","Dani Arifudin, M.Kom.",null,13,"20SA3107","PRIMA RAHMAT ABDUL AZIZ","TEKNOLOGI INFORMASI S1","Bambang Pilu Hartato, S.Kom., M.Eng."]
[14,"20SA3085","SHARLY RIZKA ANIZZA MEGA ANANDA","TEKNOLOGI INFORMASI S1","Chyntia Raras Ajeng Widiawati, S.Kom., M.Eng.",null,14,"20SA3094","MUHAMMAD DINANSAH HASNAN","TEKNOLOGI INFORMASI S1","Dani Arifudin, M.Kom.",null,14,"20SA3034","RIFQI SETIADI","TEKNOLOGI INFORMASI S1","Bambang Pilu Hartato, S.Kom., M.Eng."]
[15,"20SA3001","TANTHY AISYAH AL MUSLIH","TEKNOLOGI INFORMASI S1","Chyntia Raras Ajeng Widiawati, S.Kom., M.Eng.",null,15,"20SA3086","MUHAMMAD REZA FATIHA","TEKNOLOGI INFORMASI S1","Dani Arifudin, M.Kom.",null,15,"20SA3038","RIZKI PRAMUDYA PRAMESSETYAWAN","TEKNOLOGI INFORMASI S1","Bambang Pilu Hartato, S.Kom., M.Eng."]
[16,"20SA3044","TEGAR SUBEKTI","TEKNOLOGI INFORMASI S1","Chyntia Raras Ajeng Widiawati, S.Kom., M.Eng.",null,16,"20SA3092","NABELLA PUTRI WIDIANTO","TEKNOLOGI INFORMASI S1","Dani Arifudin, M.Kom.",null,16,"20SA3037","SETIA DWI PRADANA","TEKNOLOGI INFORMASI S1","Bambang Pilu Hartato, S.Kom., M.Eng."]
[17,"20SA3079","TIO ARGATARA WIDODO","TEKNOLOGI INFORMASI S1","Chyntia Raras Ajeng Widiawati, S.Kom., M.Eng.",null,17,"20SA3095","RIZKI AMAN DESTRIAN","TEKNOLOGI INFORMASI S1","Dani Arifudin, M.Kom.",null,17,"20SA3104","SIGIT SAMUDRA RIZKI","TEKNOLOGI INFORMASI S1","Bambang Pilu Hartato, S.Kom., M.Eng."]
[18,"20SA3030","VIAN ALFIANDI ADITIYA","TEKNOLOGI INFORMASI S1","Chyntia Raras Ajeng Widiawati, S.Kom., M.Eng.",null,18,"20SA3089","SAHAL SAPUTRA","TEKNOLOGI INFORMASI S1","Dani Arifudin, M.Kom.",null,18,"20SA3040","TEGAR AJI PRATAMA","TEKNOLOGI INFORMASI S1","Bambang Pilu Hartato, S.Kom., M.Eng."]
[19,"20SA3010","YOSEP OKTAVIANUS TEGUH","TEKNOLOGI INFORMASI S1","Chyntia Raras Ajeng Widiawati, S.Kom., M.Eng.",null,19,"20SA3090","WINDI LESTARI","TEKNOLOGI INFORMASI S1","Dani Arifudin, M.Kom.",null,19,"20SA3105","WILDAN DWIKI IRFANDI","TEKNOLOGI INFORMASI S1","Bambang Pilu Hartato, S.Kom., M.Eng."]
[20,"20SA3072","ZAHI AHMAD FAIZI","TEKNOLOGI INFORMASI S1","Chyntia Raras Ajeng Widiawati, S.Kom., M.Eng.",null,20,"20SA3007","WISNU AJI FERNANDA","TEKNOLOGI INFORMASI S1","Dani Arifudin, M.Kom.",null,20,"20SA3098","ABDILLAH MUFTI","TEKNOLOGI INFORMASI S1","Dr. Imam Tahyudin, M.M."]
[21,"20SA3012","AFNATASYA DWIAS PUTRI","TEKNOLOGI INFORMASI S1","Wiga Maulana Baihaqi, S.Kom., M.Eng.",null,21,"20SA3070","YOGA AJI DHARMAWAN","TEKNOLOGI INFORMASI S1","Dani Arifudin, M.Kom.",null,21,"20SA3064","ALFAN HUDHALLOH","TEKNOLOGI INFORMASI S1","Dr. Imam Tahyudin, M.M."]
[22,"20SA3024","AHMAD ARIF FEBRIAN","TEKNOLOGI INFORMASI S1","Wiga Maulana Baihaqi, S.Kom., M.Eng.",null,22,"20SA3014","ABDULLAH RAHMAN SHOLIKHIN","TEKNOLOGI INFORMASI S1","M. Syaiful Amin, M.Kom.",null,22,"20SA3097","ANNISA PUTRI SUTARNO","TEKNOLOGI INFORMASI S1","Dr. Imam Tahyudin, M.M."]
[23,"20SA3015","ANAN WIDIANTO","TEKNOLOGI INFORMASI S1","Wiga Maulana Baihaqi, S.Kom., M.Eng.",null,23,"20SA3018","ALMAS 'ABDUL HAFIZH","TEKNOLOGI INFORMASI S1","M. Syaiful Amin, M.Kom.",null,23,"20SA3101","ARIF RAMDHANI","TEKNOLOGI INFORMASI S1","Dr. Imam Tahyudin, M.M."]
[24,"20SA3025","ANJAR WATI","TEKNOLOGI INFORMASI S1","Wiga Maulana Baihaqi, S.Kom., M.Eng.",null,24,"20SA3009","AMIN NASYITH","TEKNOLOGI INFORMASI S1","M. Syaiful Amin, M.Kom.",null,24,"20SA3061","ARUM DWI OKTAVIYANI","TEKNOLOGI INFORMASI S1","Dr. Imam Tahyudin, M.M."]
[25,"20SA3068","ARRIZIQ","TEKNOLOGI INFORMASI S1","Wiga Maulana Baihaqi, S.Kom., M.Eng.",null,25,"20SA3076","ANUGRAH GESANG RESTU SAPUTRA","TEKNOLOGI INFORMASI S1","M. Syaiful Amin, M.Kom.",null,25,"20SA3114","AUFA AMANULLOH","TEKNOLOGI INFORMASI S1","Dr. Imam Tahyudin, M.M."]
[26,"20SA3062","ASNAWI  YASIN AL FARUQ","TEKNOLOGI INFORMASI S1","Wiga Maulana Baihaqi, S.Kom., M.Eng.",null,26,"20SA3008","FAHAR IVANA FAJRI","TEKNOLOGI INFORMASI S1","M. Syaiful Amin, M.Kom.",null,26,"20SA3053","CANDRA ISFAKHUL ALAM","TEKNOLOGI INFORMASI S1","Dr. Imam Tahyudin, M.M."]
[27,"20SA3002","BAGUS SETIO PAMBUKO","TEKNOLOGI INFORMASI S1","Wiga Maulana Baihaqi, S.Kom., M.Eng.",null,27,"20SA3049","FIRDAN RAFI NUGROHO","TEKNOLOGI INFORMASI S1","M. Syaiful Amin, M.Kom.",null,27,"20SA3060","DANANG PAMUNGKAS","TEKNOLOGI INFORMASI S1","Dr. Imam Tahyudin, M.M."]
[28,"20SA3004","DANTY KUSUMANINGTYAS","TEKNOLOGI INFORMASI S1","Wiga Maulana Baihaqi, S.Kom., M.Eng.",null,28,"20SA3017","GALIH PRABOWO","TEKNOLOGI INFORMASI S1","M. Syaiful Amin, M.Kom.",null,28,"20SA3065","DIVA ATH THAARIQ","TEKNOLOGI INFORMASI S1","Dr. Imam Tahyudin, M.M."]
[29,"20SA3050","DWI NURHIDAYAT","TEKNOLOGI INFORMASI S1","Wiga Maulana Baihaqi, S.Kom., M.Eng.",null,29,"20SA3022","IDHAM SYAFA ARIZAL","TEKNOLOGI INFORMASI S1","M. Syaiful Amin, M.Kom.",null,29,"20SA3055","DZIKRI AMRILLAH","TEKNOLOGI INFORMASI S1","Dr. Imam Tahyudin, M.M."]
[30,"20SA3016","ELKANA AYYUGI","TEKNOLOGI INFORMASI S1","Wiga Maulana Baihaqi, S.Kom., M.Eng.",null,30,"20SA3033","IGHFARUZ ZHAQY","TEKNOLOGI INFORMASI S1","M. Syaiful Amin, M.Kom.",null,30,"20SA3112","FAJRI YUNUS WICAKSONO","TEKNOLOGI INFORMASI S1","Dr. Imam Tahyudin, M.M."]
[31,"20SA3115","FAIZ ABDULLAH MUFTI","TEKNOLOGI INFORMASI S1","Wiga Maulana Baihaqi, S.Kom., M.Eng.",null,31,"20SA3071","ISRO' NABIL FADLILLAH","TEKNOLOGI INFORMASI S1","M. Syaiful Amin, M.Kom.",null,31,"20SA3116","HASAN RIZKYANTO","TEKNOLOGI INFORMASI S1","Dr. Imam Tahyudin, M.M."]
[32,"20SA3081","FATHUR ROHIM","TEKNOLOGI INFORMASI S1","Wiga Maulana Baihaqi, S.Kom., M.Eng.",null,32,"20SA3032","LAIL AWAL RAMADHAN","TEKNOLOGI INFORMASI S1","M. Syaiful Amin, M.Kom.",null,32,"20SA3113","ILHAM FYRMANSYAH","TEKNOLOGI INFORMASI S1","Dr. Imam Tahyudin, M.M."]
[33,"20SA3080","FATHUR ROHMAN","TEKNOLOGI INFORMASI S1","Wiga Maulana Baihaqi, S.Kom., M.Eng.",null,33,"20SA3019","MOCHAMMAD FADLY FEBRI YARDAN","TEKNOLOGI INFORMASI S1","M. Syaiful Amin, M.Kom.",null,33,"20SA3057","IRYUMA ZAHRA MUTIA","TEKNOLOGI INFORMASI S1","Dr. Imam Tahyudin, M.M."]
[34,"20SA3003","FIRLANNA WIHADITRA","TEKNOLOGI INFORMASI S1","Wiga Maulana Baihaqi, S.Kom., M.Eng.",null,34,"20SA3011","MUHAMMAD SYAHRUL ALAI","TEKNOLOGI INFORMASI S1","M. Syaiful Amin, M.Kom.",null,34,"20SA3058","KHOERUL ANAM","TEKNOLOGI INFORMASI S1","Dr. Imam Tahyudin, M.M."]
[35,"20SA3043","HANS STAVIERA CHRISTY","TEKNOLOGI INFORMASI S1","Wiga Maulana Baihaqi, S.Kom., M.Eng.",null,35,"20SA3021","PRASTYO BAYU AJI","TEKNOLOGI INFORMASI S1","M. Syaiful Amin, M.Kom.",null,35,"20SA3118","MUHAMMAD RIDWAN BACHTIAR AFANDI","TEKNOLOGI INFORMASI S1","Dr. Imam Tahyudin, M.M."]
[36,"20SA3035","JAMAL SAIFULAH","TEKNOLOGI INFORMASI S1","Wiga Maulana Baihaqi, S.Kom., M.Eng.",null,36,"20SA3074","REZKY NAJIHUL UMAM","TEKNOLOGI INFORMASI S1","M. Syaiful Amin, M.Kom.",null,36,"20SA3056","RIZKY AGUNG NUGROHO","TEKNOLOGI INFORMASI S1","Dr. Imam Tahyudin, M.M."]
[37,"20SA3051","KAMELIA PUSPITASARI","TEKNOLOGI INFORMASI S1","Wiga Maulana Baihaqi, S.Kom., M.Eng.",null,37,"20SA3048","RIFAT SETO HARYOKO","TEKNOLOGI INFORMASI S1","M. Syaiful Amin, M.Kom.",null,37,"20SA3047","ROBI WIDIONO","TEKNOLOGI INFORMASI S1","Dr. Imam Tahyudin, M.M."]
[38,"20SA3039","MOHAMMAD NAUFAL TAUFIKURROHMAN","TEKNOLOGI INFORMASI S1","Wiga Maulana Baihaqi, S.Kom., M.Eng.",null,38,"20SA3046","RIO ARDY DWI RIYANTO","TEKNOLOGI INFORMASI S1","M. Syaiful Amin, M.Kom.",null,38,"20SA3054","SATRIO NUGROHO","TEKNOLOGI INFORMASI S1","Dr. Imam Tahyudin, M.M."]
[39,"20SA3042","MUHAMAD RIZAL FAUZY","TEKNOLOGI INFORMASI S1","Wiga Maulana Baihaqi, S.Kom., M.Eng.",null,39,"20SA3020","RIZKY BAGAS NUR HIDAYAT","TEKNOLOGI INFORMASI S1","M. Syaiful Amin, M.Kom.",null,39,"20SA3052","YOUKA EZZAT ELBUNA","TEKNOLOGI INFORMASI S1","Dr. Imam Tahyudin, M.M."]
[40,"20SA3100","MUHAMMAD FIKRI IBNU AZIZ","TEKNOLOGI INFORMASI S1","Wiga Maulana Baihaqi, S.Kom., M.Eng.",null,40,"20SA3075","WIDYA DWI ATMOKO","TEKNOLOGI INFORMASI S1","M. Syaiful Amin, M.Kom."]
[{"$nulls":7},""]

{"sheet":"Bisnis Digital","index":5,"n_rows":46,"n_cols":5,"rows_kept":46}
["FAKULTAS",null,": Bisnis Dan Ilmu Sosial"]
["Program Studi",null,": Bisnis Digital"]
["KELAS",null,": BD20A"]
[]
["NO","NIM","NAMA","PRODI","DOSEN PEMBIMBING"]
[1,"20SB1043","ADE IRFANSYAH","BISNIS DIGITAL S1","Anisa Nur Andina, S.E., M.Si."]
[2,"20SB1005       ","AGNAR RIAN ANGGORO","BISNIS DIGITAL S1","Anisa Nur Andina, S.E., M.Si."]
[3,"20SB1003       ","AL BAKHRI FAJAR NUR FADILLAH","BISNIS DIGITAL S1","Anisa Nur Andina, S.E., M.Si."]
[4,"20SB1019","ANGGI PUTRI PRATAMA","BISNIS DIGITAL S1","Anisa Nur Andina, S.E., M.Si."]
[5,"20SB1011       ","ARDIANSYAH PUTRA SEPTIADI","BISNIS DIGITAL S1","Anisa Nur Andina, S.E., M.Si."]
[6,"20SB1016","ARFINA AYU LESTARI","BISNIS DIGITAL S1","Anisa Nur Andina, S.E., M.Si."]
[7,"20SB1018","ARIF BAYU SADEWA","BISNIS DIGITAL S1","Anisa Nur Andina, S.E., M.Si."]
[8,"20SB1010       ","DESI PURNAMASARI","BISNIS DIGITAL S1","Anisa Nur Andina, S.E., M.Si."]
[9,"20SB1009       ","DINAR FITRI ANDHAYANI","BISNIS DIGITAL S1","Anisa Nur Andina, S.E., M.Si."]
[10,"20SB1002       ","EDWIN SUSANTO","BISNIS DIGITAL S1","Anisa Nur Andina, S.E., M.Si."]
[11,"20SB1017","FAHRUL HUSNA KUSUMA ARGA","BISNIS DIGITAL S1","Anisa Nur Andina, S.E., M.Si."]
[12,"20SB1001","HASNA LEGINASAWATI","BISNIS DIGITAL S1","Anisa Nur Andina, S.E., M.Si."]
[13,"20SB1013       ","HASYYATI TRI AGUSTIN","BISNIS DIGITAL S1","Anisa Nur Andina, S.E., M.Si."]
[14,"20SB1015","IMAM NUR VAUSI","BISNIS DIGITAL S1","Anisa Nur Andina, S.E., M.Si."]
[15,"20SB1004       ","MARETHA PERMATASARI","BISNIS DIGITAL S1","Anisa Nur Andina, S.E., M.Si."]
[16,"20SB1006       ","OLIVIA SHALSHABILA PUTRI","BISNIS DIGITAL S1","Anisa Nur Andina, S.E., M.Si."]
[17,"20SB1012       ","PAMUNGKAS TRI PRASETYO","BISNIS DIGITAL S1","Anisa Nur Andina, S.E., M.Si."]
[18,"20SB1007       ","SHIFA AULIA RAMADHANI","BISNIS DIGITAL S1","Anisa Nur Andina, S.E., M.Si."]
[19,"20SB1020","TRI SUPRAPTI","BISNIS DIGITAL S1","Anisa Nur Andina, S.E., M.Si."]
[20,"20SB1008       ","VELLANIA STELLA","BISNIS DIGITAL S1","Anisa Nur Andina, S.E., M.Si."]
[21,"20SB1042","WIBOWO LENANG TEGUH RAHARJO","BISNIS DIGITAL S1","Anisa Nur Andina, S.E., M.Si."]
[22,"20SB1014","ZULFIKAR IKHTIARA RAMADHAN","BISNIS DIGITAL S1","Anisa Nur Andina, S.E., M.Si."]
[23,"20SB1044","ADIPURA ARYA KANGSADEWA","BISNIS DIGITAL S1","Siti Barokah, S.E., M.M."]
[24,"20SB1033","ADRI MIFTAH FAUZAN","BISNIS DIGITAL S1","Siti Barokah, S.E., M.M."]
[25,"20SB1035","AFRIZAL FALAH NANDA WARDANI","BISNIS DIGITAL S1","Siti Barokah, S.E., M.M."]
[26,"20SB1029","AZIZTY NAFA SALSABELLA","BISNIS DIGITAL S1","Siti Barokah, S.E., M.M."]
[27,"20SB1041","CHRISTINA PANGARIBUAN","BISNIS DIGITAL S1","Siti Barokah, S.E., M.M."]
[28,"20SB1036","FADHAIL PATTAN PRATAMA","BISNIS DIGITAL S1","Siti Barokah, S.E., M.M."]
[29,"20SB1025","GILANG PRIAMBODO","BISNIS DIGITAL S1","Siti Barokah, S.E., M.M."]
[30,"20SB1027","GIOVANI BENEDIKTUS RIDANTO WICAKSONO","BISNIS DIGITAL S1","Siti Barokah, S.E., M.M."]
[31,"20SB1028","HANIFAH NOVITASARI","BISNIS DIGITAL S1","Siti Barokah, S.E., M.M."]
[32,"20SB1030","HUSAIN GILANG SYAH ALAM","BISNIS DIGITAL S1","Siti Barokah, S.E., M.M."]
[33,"20SB1023","IKO CHOERUL KOMAR","BISNIS DIGITAL S1","Siti Barokah, S.E., M.M."]
[34,"20SB1024","KRISTA YOHANA RAHMADEKA","BISNIS DIGITAL S1","Siti Barokah, S.E., M.M."]
[35,"20SB1021","MUHAMMAD FIKRI FIRMANSYAH","BISNIS DIGITAL S1","Siti Barokah, S.E., M.M."]
[36,"20SB1031","MUKAROHMATUL ISNANIYAH","BISNIS DIGITAL S1","Siti Barokah, S.E., M.M."]
[37,"20SB1022","NOVAN BAGUS ARIANTO","BISNIS DIGITAL S1","Siti Barokah, S.E., M.M."]
[38,"20SB1037","REGIA ANGGI SETIYADI","BISNIS DIGITAL S1","Siti Barokah, S.E., M.M."]
[39,"20SB1032","RIZKI FA'IQ PRADANA","BISNIS DIGITAL S1","Siti Barokah, S.E., M.M."]
[40,"20SB1026","WALIYUDDIN NAUFAL AL ZHAFIR","BISNIS DIGITAL S1","Siti Barokah, S.E., M.M."]
[41,"20SB1034","ZHAFIRA ATIKA ANGGRAINI","BISNIS DIGITAL S1","Siti Barokah, S.E., M.M."]

{"sheet":"Ilmu Komunikasi","index":6,"n_rows":43,"n_cols":17,"rows_kept":43}
["FAKULTAS",null,": Bisnis Dan Ilmu Sosial",{"$nulls":3},"FAKULTAS",null,": Bisnis Dan Ilmu Sosial",{"$nulls":3},"FAKULTAS",null,": Bisnis Dan Ilmu Sosial"]
["Program Studi",null,": Ilmu Komunikasi",{"$nulls":3},"Program Studi",null,": Ilmu Komunikasi",{"$nulls":3},"Program Studi",null,": Ilmu Komunikasi"]
["KELAS",null,": IK20A",{"$nulls":3},"KELAS",null,": IK20B",{"$nulls":3},"KELAS",null,": IK20C"]
[]
["NO","NIM","NAMA","PRODI","DOSEN PEMBIMBING",null,"NO","NIM","NAMA","PRODI","DOSEN PEMBIMBING",null,"NO","NIM","NAMA","PRODI","DOSEN PEMBIMBING"]
[1,"20SB2096","ANANDA DANUARTA","ILMU KOMUNIKASI S1","Alfian Muhazir, S.Sos., M.A",null,1,"20SB2049","AJENG WIKO RIMADANI","ILMU KOMUNIKASI S1","Adita Miranti, M.I.Kom.",null,1,"20SB2048","AFIQOTUL ISHMAH","ILMU KOMUNIKASI S1","Bunga Asriandhini, S.I.Kom., M.A."]
[2,"20SB2036","ANGGI RAHMAWATI","ILMU KOMUNIKASI S1","Alfian Muhazir, S.Sos., M.A",null,2,"20SB2019","ALFIAN SA'IDAN MUHROJI","ILMU KOMUNIKASI S1","Adita Miranti, M.I.Kom.",null,2,"20SB2038","AKHMAD SOLIHUDIN","ILMU KOMUNIKASI S1","Bunga Asriandhini, S.I.Kom., M.A."]
[3,"20SB2099","ASYIFA NUR HAMIDAH","ILMU KOMUNIKASI S1","Alfian Muhazir, S.Sos., M.A",null,3,"20SB2045","ANGEL SEPTIA ANGGREANI","ILMU KOMUNIKASI S1","Adita Miranti, M.I.Kom.",null,3,"20SB2047","ANANDA LISTYA PRADHIPTAYA","ILMU KOMUNIKASI S1","Bunga Asriandhini, S.I.Kom., M.A."]
[4,"20SB2112","CARISSA RAHMA WIJAYA","ILMU KOMUNIKASI S1","Alfian Muhazir, S.Sos., M.A",null,4,"20SB2115 ","DEVY ALFINITA","ILMU KOMUNIKASI S1","Adita Miranti, M.I.Kom.",null,4,"20SB2105","ANISA SRILATIFAH","ILMU KOMUNIKASI S1","Bunga Asriandhini, S.I.Kom., M.A."]
[5,"20SB2060","DIANA PUSPITA ANGGRAENI","ILMU KOMUNIKASI S1","Alfian Muhazir, S.Sos., M.A",null,5,"20SB2018","DIAH FITRIANI","ILMU KOMUNIKASI S1","Adita Miranti, M.I.Kom.",null,5,"20SB2022","APRILLIA FATMAWATI","ILMU KOMUNIKASI S1","Bunga Asriandhini, S.I.Kom., M.A."]
[6,"20SB2108","DINTA AMELIA SANOV","ILMU KOMUNIKASI S1","Alfian Muhazir, S.Sos., M.A",null,6,"20SB2027","FAUZAN AL AMIN","ILMU KOMUNIKASI S1","Adita Miranti, M.I.Kom.",null,6,"20SB2061","AZZAH HUSNA LABIBAH","ILMU KOMUNIKASI S1","Bunga Asriandhini, S.I.Kom., M.A."]
[7,"20SB2010","DZADILLASYAFAROS DAHRIGUSFA LAIRAY","ILMU KOMUNIKASI S1","Alfian Muhazir, S.Sos., M.A",null,7,"20SB2059","FERLIN CHRISTIANA","ILMU KOMUNIKASI S1","Adita Miranti, M.I.Kom.",null,7,"20SB2114","BUNGA INTAN DEVINTA","ILMU KOMUNIKASI S1","Bunga Asriandhini, S.I.Kom., M.A."]
[8,"20SB2031","FAKHRI ARDANA","ILMU KOMUNIKASI S1","Alfian Muhazir, S.Sos., M.A",null,8,"20SB2058","FIFIN MILLA FELICE DAELI","ILMU KOMUNIKASI S1","Adita Miranti, M.I.Kom.",null,8,"20SB2088","DAFFA AJENG ADISTIA","ILMU KOMUNIKASI S1","Bunga Asriandhini, S.I.Kom., M.A."]
[9,"20SB2091","IKMAL KHOERUR RIZKI","ILMU KOMUNIKASI S1","Alfian Muhazir, S.Sos., M.A",null,9,"20SB2090","HANIF SETYA WIBOWO","ILMU KOMUNIKASI S1","Adita Miranti, M.I.Kom.",null,9,"20SB2055","FERA PUSPITA SARI","ILMU KOMUNIKASI S1","Bunga Asriandhini, S.I.Kom., M.A."]
[10,"20SB2092","KANA QURROTU'AINII","ILMU KOMUNIKASI S1","Alfian Muhazir, S.Sos., M.A",null,10,"20SB2069","HANIFAH NUR ALIYYAH","ILMU KOMUNIKASI S1","Adita Miranti, M.I.Kom.",null,10,"20SB2078","HARINI ERSA JUNIAN","ILMU KOMUNIKASI S1","Bunga Asriandhini, S.I.Kom., M.A."]
[11,"20SB2053","KHARISMA KAULAENI","ILMU KOMUNIKASI S1","Alfian Muhazir, S.Sos., M.A",null,11,"20SB2011","JEANY OLIVIA","ILMU KOMUNIKASI S1","Adita Miranti, M.I.Kom.",null,11,"20SB2033","JUWITA PEVILIA ROSE","ILMU KOMUNIKASI S1","Bunga Asriandhini, S.I.Kom., M.A."]
[12,"20SB2026","MAINAR RAHMAWATI","ILMU KOMUNIKASI S1","Alfian Muhazir, S.Sos., M.A",null,12,"20SB2030","KHAIRULLAH DHIYA ULHAQ","ILMU KOMUNIKASI S1","Adita Miranti, M.I.Kom.",null,12,"20SB2109","KEINTANI","ILMU KOMUNIKASI S1","Bunga Asriandhini, S.I.Kom., M.A."]
[13,"20SB2032","MUTHIA HANAN DHIA MARDHIYATI","ILMU KOMUNIKASI S1","Alfian Muhazir, S.Sos., M.A",null,13,"20SB2071","MOHAMMAD NABIL RABBANI","ILMU KOMUNIKASI S1","Adita Miranti, M.I.Kom.",null,13,"20SB2068","LAURENSIA DEA DEVITA","ILMU KOMUNIKASI S1","Bunga Asriandhini, S.I.Kom., M.A."]
[14,"20SB2015","NOVIKA ANDANI","ILMU KOMUNIKASI S1","Alfian Muhazir, S.Sos., M.A",null,14,"20SB2106","MUHAMMAD RAFI AR RASYID","ILMU KOMUNIKASI S1","Adita Miranti, M.I.Kom.",null,14,"20SB2042","MEYRA NANDA FIANKA","ILMU KOMUNIKASI S1","Bunga Asriandhini, S.I.Kom., M.A."]
[15,"20SB2043","NURUL FACHRUNNISA","ILMU KOMUNIKASI S1","Alfian Muhazir, S.Sos., M.A",null,15,"20SB2087","NADIA PUTERI OPHELIA","ILMU KOMUNIKASI S1","Adita Miranti, M.I.Kom.",null,15,"20SB2077","MOHAMMAD ROFIQ INSANI","ILMU KOMUNIKASI S1","Bunga Asriandhini, S.I.Kom., M.A."]
[16,"20SB2076","PUTRI KUSUMA MURDHANINGTIYAS","ILMU KOMUNIKASI S1","Alfian Muhazir, S.Sos., M.A",null,16,"20SB2100","NENIS CAHYATI","ILMU KOMUNIKASI S1","Adita Miranti, M.I.Kom.",null,16,"20SB2094","OKA MAULANA ALIF WINATA","ILMU KOMUNIKASI S1","Bunga Asriandhini, S.I.Kom., M.A."]
[17,"20SB2110","RIFQIYAH AMANI","ILMU KOMUNIKASI S1","Alfian Muhazir, S.Sos., M.A",null,17,"20SB2007","PUTRI DWI LUTFIA","ILMU KOMUNIKASI S1","Adita Miranti, M.I.Kom.",null,17,"20SB2084","YUNINDA SYAHIRA NURROHMAN","ILMU KOMUNIKASI S1","Bunga Asriandhini, S.I.Kom., M.A."]
[18,"20SB2002","SHAFRI SAMSUDIN","ILMU KOMUNIKASI S1","Alfian Muhazir, S.Sos., M.A",null,18,"20SB2075","REFI AYUNIDA NURFADHILAH","ILMU KOMUNIKASI S1","Adita Miranti, M.I.Kom.",null,18,"20SB2085","ZAIDAN LAUDZA","ILMU KOMUNIKASI S1","Bunga Asriandhini, S.I.Kom., M.A."]
[19,"20SB2005","WIDYA PRATATYAS MA'RUF","ILMU KOMUNIKASI S1","Alfian Muhazir, S.Sos., M.A",null,19,"20SB2012","RIZKI SURYA AGUSTIAN","ILMU KOMUNIKASI S1","Adita Miranti, M.I.Kom.",null,19,"20SB2089","ADRIANDARU SETYO WINDHIARTO","ILMU KOMUNIKASI S1","Prita Suci Nurcandrani, S.Sos., M.Si., M.I.Kom."]
[20,"20SB2052","AFILIASARI MAULIDA","ILMU KOMUNIKASI S1","Dr. Ade Tutituristiati, MIRHRM",null,20,"20SB2105","ANISA SRILATIFAH","ILMU KOMUNIKASI S1","Alfian Muhazir, S.Sos., M.A",null,20,"20SB2073","ANNISA DWI DAMAYANTI","ILMU KOMUNIKASI S1","Prita Suci Nurcandrani, S.Sos., M.Si., M.I.Kom."]
[21,"20SB2116","ALFINA DIAN SARI","ILMU KOMUNIKASI S1","Dr. Ade Tutituristiati, MIRHRM",null,21,"20SB2017","ATIKA JUNIATI","ILMU KOMUNIKASI S1","Alfian Muhazir, S.Sos., M.A",null,21,"20SB2063","AURENSIA MEGA PANGESTU","ILMU KOMUNIKASI S1","Prita Suci Nurcandrani, S.Sos., M.Si., M.I.Kom."]
[22,"20SB2029","AMANDA INKA DWI LESTIANI SAPUTRI","ILMU KOMUNIKASI S1","Dr. Ade Tutituristiati, MIRHRM",null,22,"20SB2083","AYU HANDAYANI","ILMU KOMUNIKASI S1","Alfian Muhazir, S.Sos., M.A",null,22,"20SB2034","DIAN RAHAYU","ILMU KOMUNIKASI S1","Prita Suci Nurcandrani, S.Sos., M.Si., M.I.Kom."]
[23,"20SB2080","ANSARESI ALFAJRI LAKSAWUKIR","ILMU KOMUNIKASI S1","Dr. Ade Tutituristiati, MIRHRM",null,23,"20SB2070","EDGINA PRISIANTO","ILMU KOMUNIKASI S1","Alfian Muhazir, S.Sos., M.A",null,23,"20SB2103","DIMAS CHANDRA SETIAWAN","ILMU KOMUNIKASI S1","Prita Suci Nurcandrani, S.Sos., M.Si., M.I.Kom."]
[24,"20SB2104","ARIADNE TIARA HAPSARI","ILMU KOMUNIKASI S1","Dr. Ade Tutituristiati, MIRHRM",null,24,"20SB2066","EYORA JASMINE NAN KINASIH","ILMU KOMUNIKASI S1","Alfian Muhazir, S.Sos., M.A",null,24,"20SB2067","FIRMANSYAH ABDINAGARA","ILMU KOMUNIKASI S1","Prita Suci Nurcandrani, S.Sos., M.Si., M.I.Kom."]
[25,"20SB2101","DEWI SAPUTRI","ILMU KOMUNIKASI S1","Dr. Ade Tutituristiati, MIRHRM",null,25,"20SB2072","FAYZA SALSABILA TSANY","ILMU KOMUNIKASI S1","Alfian Muhazir, S.Sos., M.A",null,25,"20SB2025","GILANG TRI SAPUTRA","ILMU KOMUNIKASI S1","Prita Suci Nurcandrani, S.Sos., M.Si., M.I.Kom."]
[26,"20SB2062","DOLA INNOLDA","ILMU KOMUNIKASI S1","Dr. Ade Tutituristiati, MIRHRM",null,26,"20SB2065","JAMADUL WIRA SATYA","ILMU KOMUNIKASI S1","Alfian Muhazir, S.Sos., M.A",null,26,"20SB2081","HANUGRAH BANYU NARMADA","ILMU KOMUNIKASI S1","Prita Suci Nurcandrani, S.Sos., M.Si., M.I.Kom."]
[27,"20SB2102","DZAKIY FIRMANSYAH","ILMU KOMUNIKASI S1","Dr. Ade Tutituristiati, MIRHRM",null,27,"20SB2082","MUHAMMAD ZAID UKASYAH","ILMU KOMUNIKASI S1","Alfian Muhazir, S.Sos., M.A",null,27,"20SB2079","MIRSANDA AULIA SAVINA","ILMU KOMUNIKASI S1","Prita Suci Nurcandrani, S.Sos., M.Si., M.I.Kom."]
[28,"20SB2057","FARAH ANIS RAHMAWATI","ILMU KOMUNIKASI S1","Dr. Ade Tutituristiati, MIRHRM",null,28,"20SB2021","OCTAVIANA EKTINCYA DEWI","ILMU KOMUNIKASI S1","Alfian Muhazir, S.Sos., M.A",null,28,"20SB2095","NEILI ANISAH RAHMAWATI","ILMU KOMUNIKASI S1","Prita Suci Nurcandrani, S.Sos., M.Si., M.I.Kom."]
[29,"20SB2113","FIA KHOFIFAH PARAMADINA","ILMU KOMUNIKASI S1","Dr. Ade Tutituristiati, MIRHRM",null,29,"20SB2035","OKTAVIAN ARISTINA","ILMU KOMUNIKASI S1","Alfian Muhazir, S.Sos., M.A",null,29,"20SB2044","NILA REZAENI","ILMU KOMUNIKASI S1","Prita Suci Nurcandrani, S.Sos., M.Si., M.I.Kom."]
[30,"20SB2009","ILHAM AKBAR RAMDANI","ILMU KOMUNIKASI S1","Dr. Ade Tutituristiati, MIRHRM",null,30,"20SB2037","PRISTY DWI ANGGRAENI","ILMU KOMUNIKASI S1","Alfian Muhazir, S.Sos., M.A",null,30,"20SB2093","RATNA SUMINAR","ILMU KOMUNIKASI S1","Prita Suci Nurcandrani, S.Sos., M.Si., M.I.Kom."]
[31,"20SB2006","KARTIKA HANUM","ILMU KOMUNIKASI S1","Dr. Ade Tutituristiati, MIRHRM",null,31,"20SB2046","RAIHAN NAUFAL MUSHODDAQ","ILMU KOMUNIKASI S1","Alfian Muhazir, S.Sos., M.A",null,31,"20SB2056","RESTI FEBRIYANTI","ILMU KOMUNIKASI S1","Prita Suci Nurcandrani, S.Sos., M.Si., M.I.Kom."]
[32,"20SB2001","LIZA FITRIANA","ILMU KOMUNIKASI S1","Dr. Ade Tutituristiati, MIRHRM",null,32,"20SB2111","REYNALD BUDI PRASETYO","ILMU KOMUNIKASI S1","Alfian Muhazir, S.Sos., M.A",null,32,"20SB2040","REZA GHIFARI RAMADHAN","ILMU KOMUNIKASI S1","Prita Suci Nurcandrani, S.Sos., M.Si., M.I.Kom."]
[33,"20SB2054","MAYA SETIANINGSIH","ILMU KOMUNIKASI S1","Dr. Ade Tutituristiati, MIRHRM",null,33,"20SB2023","RIFLI YANDANA","ILMU KOMUNIKASI S1","Alfian Muhazir, S.Sos., M.A",null,33,"20SB2107","WIWI SUSANTI","ILMU KOMUNIKASI S1","Prita Suci Nurcandrani, S.Sos., M.Si., M.I.Kom."]
[34,"20SB2003","NIKEN MEINICA PURWANTO","ILMU KOMUNIKASI S1","Dr. Ade Tutituristiati, MIRHRM",null,34,"20SB2016","SIMBI NAZDAN IRFANI","ILMU KOMUNIKASI S1","Alfian Muhazir, S.Sos., M.A",null,34,"20SB2086","YOHANNA TANIA HARTANTO","ILMU KOMUNIKASI S1","Prita Suci Nurcandrani, S.Sos., M.Si., M.I.Kom."]
[35,"20SB2051","NUR AZIZAH","ILMU KOMUNIKASI S1","Dr. Ade Tutituristiati, MIRHRM",null,35,"20SB2013","TEGAR AQSHAL FATEHAN","ILMU KOMUNIKASI S1","Alfian Muhazir, S.Sos., M.A",null,35,"20SB2028","YUYUN YULIANTI","ILMU KOMUNIKASI S1","Prita Suci Nurcandrani, S.Sos., M.Si., M.I.Kom."]
[36,"20SB2004","OZZY IRVANSYAH","ILMU KOMUNIKASI S1","Dr. Ade Tutituristiati, MIRHRM",null,36,"20SB2050","THUHFAH HUSYIARI 'AZMI","ILMU KOMUNIKASI S1","Alfian Muhazir, S.Sos., M.A",null,36,"20SB2098","ZAHWA NUR AMALIA","ILMU KOMUNIKASI S1","Prita Suci Nurcandrani, S.Sos., M.Si., M.I.Kom."]
[37,"20SB2039","SAILATUL MARDIYAH","ILMU KOMUNIKASI S1","Dr. Ade Tutituristiati, MIRHRM",null,37,"20SB2041","TRI REJEKI LAILA WAHYUNINGSIH","ILMU KOMUNIKASI S1","Alfian Muhazir, S.Sos., M.A",null,37,"20SB2064","ZAIDAN AHMAD HUDA","ILMU KOMUNIKASI S1","Prita Suci Nurcandrani, S.Sos., M.Si., M.I.Kom."]
[38,"20SB2020","TISA PALUPI","ILMU KOMUNIKASI S1","Dr. Ade Tutituristiati, MIRHRM",null,38,"20SB2117","ZULFIKAR TOPAN DIKA WIJAYA","ILMU KOMUNIKASI S1","Alfian Muhazir, S.Sos., M.A"]